Workbook

Sheet START

Sheet Instructions
D2: 2020
X4: Yes
X5: No
W7: Type of Entities Range:
X8: Parent Municipality
X9: Consolidated Information
W17: MTREF Range: | X17: 2008
X18: 2009
X19: 2010
X20: 2011
X21: 2012
X22: 2013
X23: 2014
X24: 2015
X25: 2016
X26: 2017
X27: 2018
X28: 2019
X29: 2020
X30: 2021
X31: 2022
W33: MTREF Linked: | X33: 13
W34: MTREF: | X34: =INDEX(X17:X31,X33,1) -> 2020
W36: Fin Year: | X36: =MTREF&"/"&RIGHT(MTREF,2)+1 -> 2020/21

Sheet Template names (hidden)
A1: Common sheet headings
A2: Head1 | B2: =HLOOKUP(MTREF,Headings,2) -> 2018/19 | C2: Prior year -1
A3: Head1A | B3: =HLOOKUP(MTREF,Headings,3) -> 2017/18 | C3: Prior year -2
A4: Head1B | B4: =HLOOKUP(MTREF,Headings,4) -> 2016/17 | C4: Prior year -3
A5: Head2 | B5: =HLOOKUP(MTREF,Headings,5) -> Current Year 2019/20 | C5: Year in which budget is being prepared
A6: Head2A | B6: =HLOOKUP(MTREF,Headings,6) -> 2019/20 | C6: Year in which budget is being prepared
A7: Head3 | B7: =HLOOKUP(MTREF,Headings,7) -> 2020/21 Medium Term Revenue & Expenditure Framework | C7: MTREF name
A8: Head4 | B8: LTFS | C8: Long term financial strategy
A9: Head5 | B9: Audited Outcome
A10: Head5A | B10: Outcome
A11: Head5B | B11: Pre-audit outcome
A12: Head6 | B12: Original Budget
A13: Head7 | B13: Adjusted Budget
A14: Head8 | B14: Full Year Forecast
A15: Head9 | B15: =HLOOKUP(MTREF,Headings,8) -> Budget Year 2020/21 | C15: 1st year of MTREF | D15: Year1
A16: Head10 | B16: =HLOOKUP(MTREF,Headings,9) -> Budget Year +1 2021/22 | C16: 2nd year of MTREF | D16: Year2
A17: Head11 | B17: =HLOOKUP(MTREF,Headings,10) -> Budget Year +2 2022/23 | C17: 3rd year of MTREF | D17: Year3
A18: Head12 | B18: =HLOOKUP(MTREF,Headings,11) -> Forecast 2023/24 | C18: 1st yr of long term forecast | D18: Year4
A19: Head13 | B19: =HLOOKUP(MTREF,Headings,12) -> Forecast 2024/25 | C19: Next yr of long term forecast | D19: Year5
A20: Head14 | B20: =HLOOKUP(MTREF,Headings,13) -> Forecast 2025/26 | C20: Next yr of long term forecast | D20: Year6
A21: Head15 | B21: =HLOOKUP(MTREF,Headings,14) -> Forecast 2026/27 | C21: Next yr of long term forecast | D21: Year7
A22: Head16 | B22: =HLOOKUP(MTREF,Headings,15) -> Forecast 2027/28 | C22: Next yr of long term forecast | D22: Year8
A23: Head17 | B23: =HLOOKUP(MTREF,Headings,16) -> Forecast 2028/29 | C23: Next yr of long term forecast | D23: Year9
A24: Head18 | B24: =HLOOKUP(MTREF,Headings,17) -> Forecast 2029/30 | C24: Next yr of long term forecast | D24: Year10
A25: Head19 | B25: =HLOOKUP(MTREF,Headings,18) -> Forecast 2030/31 | C25: Next yr of long term forecast | D25: Year11
A26: Head20 | B26: =HLOOKUP(MTREF,Headings,19) -> Forecast 2031/32 | C26: Next yr of long term forecast | D26: Year12
A27: Head21 | B27: =HLOOKUP(MTREF,Headings,20) -> Forecast 2032/33 | C27: Next yr of long term forecast | D27: Year13
A28: Head22 | B28: =HLOOKUP(MTREF,Headings,21) -> Forecast 2033/34 | C28: Next yr of long term forecast | D28: Year14
A29: Head23 | B29: =HLOOKUP(MTREF,Headings,22) -> Forecast 2034/35 | C29: Next yr of long term forecast | D29: Year15
A30: Head24 | B30: Description
A31: Head25
A32: Head26 | B32: Vote Description
A33: Head27 | B33: Ref
A34: Head27a | B34: References
A35: Head28 | B35: Surplus/(Deficit) for the year | D35: Result
A36: Head29 | B36: =HLOOKUP(MTREF,Headings,23) -> Annual target 2020/21
A37: Head30 | B37: =HLOOKUP(MTREF,Headings,24) -> Revised target 2020/21
A38: Head31 | B38: Quarter ended 30 September
A39: Head32 | B39: Quarter ended 31 December
A40: Head33 | B40: Quarter ended 31 March
A41: Head34 | B41: Quarter ended 30 June
A42: Head35 | B42: Variance explanation
A43: Head36 | B43: YTD Actual 31 Dec
A44: Head37 | B44: YTD Budget 31 Dec
A45: Head38 | B45: Monthly actual
A46: Head39 | B46: YTD actual
A47: Head40 | B47: YTD budget
A48: Head41 | B48: YTD variance
A49: Head42 | B49: Surplus/ (Deficit) for the yr/period
A50: Head43 | B50: =Head3&" Summary" -> 2020/21 Medium Term Revenue & Expenditure Framework Summary
A51: Head44 | B51: 2001 Census
A52: Head45 | B52: 2011 Census
A53: Head46 | B53: - Adjustments Budget - January 2007
A54: Head47 | B54: Previous target year to complete
A55: Head48 | B55: Present value
A56: Head49
A57: Head50 | B57: Other Adjusts.
A58: Head51 | B58: Accum. Funds
A59: Head52 | B59: Multi-year capital
A60: Head53 | B60: Unfore. Unavoid.
A61: Head54 | B61: Prior Adjusted
A62: Head55 | B62: Nat. or Prov. Govt
A63: Head56 | B63: Total Adjusts.
A64: SFPerf1 | B64: Budgeted Financial Performance
A65: SFPerf2 | B65: Forecast Financial Performance
A66: SFPos1 | B66: Budgeted Financial Position
A67: SFPos2 | B67: Forecast Financial Position
A68: Cash1 | B68: Budget Cash Flow
A69: Cash2 | B69: Forecast Cash Flow
A70: RandM | B70: Expenditure includes repairs & maintenance of R'000
A71: Depart1 | B71: Department 1 - | D71: DEP1
A72: Depart2 | B72: Department 2 - | D72: DEP2
A73: Depart3 | B73: Department 3 - | D73: DEP3
A74: Depart4 | B74: Department 4 - | D74: DEP4
A75: Depart5 | B75: Department 5 - | D75: DEP5
A76: Depart6 | B76: Department 6 - | D76: DEP6
A77: Depart7 | B77: Department 7 - | D77: DEP7
A78: Depart8 | B78: Department 8 - | D78: DEP8
A79: Depart9 | B79: Department 9 - | D79: DEP9
A80: Depart10 | B80: Department 10 - | D80: DEP10
A81: Depart11 | B81: Department 11 - | D81: DEP11
A82: Depart12 | B82: Department 12 - | D82: DEP12
A83: Depart13 | B83: Department 13 - | D83: DEP13
A84: Depart14 | B84: Department 14 - | D84: DEP14
A87: Base year of forecast column selection names
A88: Choose | B88: ACT
B89: APP
B90: ADJ
A92: Standard nomenclature
A93: Muni | B93: ='Lookup and lists'!B28 -> DC28 King Cetshwayo
A94: Municipal Entities | B94: 1 | C94: Type of report: | D94: 2
A95: =IF((MuniEntities=1)*(MuniType=2),"YES","NO") -> YES | B95: Does this municipality have entities (consolidated budget and entity budgets required)? YES/NO
A96: Entity 1 | B96: (Pty) Ltd Example 1 - Municipal entity - | D96: Ent1
A97: Entity 2 | B97: (Pty) Ltd Example 2 - Municipal entity - | D97: Ent2
A98: Entity 3 | B98: Municipal Entity Example 3 | D98: Ent3
A99: Budget approval tables | C99: Chart x-ref | D99: Sch/Tab/Ch | E99: Alternative for municipalities without entities | F99: Alternative for municipalities without entities
B100: =IF(Consolques="YES",E100,F100) -> Table A1 Consolidated Budget Summary | D100: Table A1 | E100: =D100&"Consolidated Budget Summary" -> Table A1 Consolidated Budget Summary | F100: =D100&"Budget Summary" -> Table A1 Budget Summary
B101: Table A2 Consolidated Budgeted Financial Performance (revenue and expenditure by functional classification) | C101: Charts 5, 6 | D101: Table A2 | E101: =D101&"Consolidated Budgeted Financial Performance (revenue and expenditure by functional classification)" -> Table A2 Consolidated Budgeted Financial Performance (revenue and expenditure by functional classification) | F101: =D101&"Budgeted Financial Performance (revenue and expenditure by functional classification)" -> Table A2 Budgeted Financial Performance (revenue and expenditure by functional classification)
B102: Table A3 Consolidated Budgeted Financial Performance (revenue and expenditure by municipal vote) | D102: Table A3 | E102: =D102&"Consolidated Budgeted Financial Performance (revenue and expenditure by municipal vote)" -> Table A3 Consolidated Budgeted Financial Performance (revenue and expenditure by municipal vote) | F102: =D102&"Budgeted Financial Performance (revenue and expenditure by municipal vote)" -> Table A3 Budgeted Financial Performance (revenue and expenditure by municipal vote)
B103: Table A4 Consolidated Budgeted Financial Performance (revenue and expenditure) | C103: Charts 1, 2, 3, 4 | D103: Table A4 | E103: =D103&"Consolidated Budgeted Financial Performance (revenue and expenditure)" -> Table A4 Consolidated Budgeted Financial Performance (revenue and expenditure) | F103: =D103&"Budgeted Financial Performance (revenue and expenditure)" -> Table A4 Budgeted Financial Performance (revenue and expenditure)
B104: Table A5 Consolidated Budgeted Capital Expenditure by vote, functional classification and funding | C104: Charts 7, 8, 9, 10, 20 | D104: Table A5 | E104: =D104&"Consolidated Budgeted Capital Expenditure by vote, functional classification and funding" -> Table A5 Consolidated Budgeted Capital Expenditure by vote, functional classification and funding | F104: =D104&"Budgeted Capital Expenditure by vote, functional classification and funding" -> Table A5 Budgeted Capital Expenditure by vote, functional classification and funding
B105: Table A6 Consolidated Budgeted Financial Position | D105: Table A6 | E105: =D105&"Consolidated Budgeted Financial Position" -> Table A6 Consolidated Budgeted Financial Position | F105: =D105&"Budgeted Financial Position" -> Table A6 Budgeted Financial Position
B106: Table A7 Consolidated Budgeted Cash Flows | D106: Table A7 | E106: =D106&"Consolidated Budgeted Cash Flows" -> Table A7 Consolidated Budgeted Cash Flows | F106: =D106&"Budgeted Cash Flows" -> Table A7 Budgeted Cash Flows
B107: Table A8 Consolidated Cash backed reserves/accumulated surplus reconciliation | D107: Table A8 | E107: =D107&"Consolidated Cash backed reserves/accumulated surplus reconciliation" -> Table A8 Consolidated Cash backed reserves/accumulated surplus reconciliation | F107: =D107&"Cash backed reserves/accumulated surplus reconciliation" -> Table A8 Cash backed reserves/accumulated surplus reconciliation
B108: Table A9 Consolidated Asset Management | D108: Table A9 | E108: =D108&"Consolidated Asset Management" -> Table A9 Consolidated Asset Management | F108: =D108&"Asset Management" -> Table A9 Asset Management
B109: Table A10 Consolidated basic service delivery measurement | D109: Table A10 | E109: =D109&"Consolidated basic service delivery measurement" -> Table A10 Consolidated basic service delivery measurement | F109: =D109&"Basic service delivery measurement" -> Table A10 Basic service delivery measurement
A110: Supportinging Tables to the Budget Approval Tables | C110: =$C$99 -> Chart x-ref | D110: =$D$99 -> Sch/Tab/Ch
A111: Supporting Table SA1 | B111: =A111&" Supportinging detail to 'Budgeted Financial Performance'" -> Supporting Table SA1 Supportinging detail to 'Budgeted Financial Performance'
A112: Supporting Table SA2 | B112: =IF(Consolques="YES",E112,F112) -> Supporting Table SA2 Consolidated Matrix Financial Performance Budget (revenue source/expenditure type & dept.) | E112: =A112&"Consolidated Matrix Financial Performance Budget (revenue source/expenditure type & dept.)" -> Supporting Table SA2 Consolidated Matrix Financial Performance Budget (revenue source/expenditure type & dept.) | F112: =A112&"Matrix Financial Performance Budget (revenue source/expenditure type and dept.)" -> Supporting Table SA2 Matrix Financial Performance Budget (revenue source/expenditure type and dept.)
A113: Supporting Table SA3 | B113: =A113&"Supportinging detail to 'Budgeted Financial Position'" -> Supporting Table SA3 Supportinging detail to 'Budgeted Financial Position'
A114: Supporting Table SA4 | B114: =A114&"Reconciliation of IDP strategic objectives and budget (revenue)" -> Supporting Table SA4 Reconciliation of IDP strategic objectives and budget (revenue) | C114: Chart 11
A115: Supporting Table SA5 | B115: =A115&"Reconciliation of IDP strategic objectives and budget (operating expenditure)" -> Supporting Table SA5 Reconciliation of IDP strategic objectives and budget (operating expenditure) | C115: Chart 12
A116: Supporting Table SA6 | B116: =A116&"Reconciliation of IDP strategic objectives and budget (capital expenditure)" -> Supporting Table SA6 Reconciliation of IDP strategic objectives and budget (capital expenditure) | C116: Chart 13
A117: Supporting Table SA7 | B117: =A117&" Measureable performance objectives" -> Supporting Table SA7 Measureable performance objectives
A118: Supporting Table SA8 | B118: =A118&" Performance indicators and benchmarks" -> Supporting Table SA8 Performance indicators and benchmarks | C118: Chts 15-19
A119: Supporting Table SA9 | B119: =A119&" Social, economic and demographic statistics and assumptions" -> Supporting Table SA9 Social, economic and demographic statistics and assumptions
A120: Supporting Table SA10 | B120: =A120&" Funding measurement" -> Supporting Table SA10 Funding measurement | C120: Chart 14
A121: Supporting Table SA11 | B121: =A121&" Property rates summary" -> Supporting Table SA11 Property rates summary
A122: Supporting Table SA12a | B122: =A122&" Property rates by category (current year)" -> Supporting Table SA12a Property rates by category (current year)
A123: Supporting Table SA12b | B123: =A123&" Property rates by category (budget year)" -> Supporting Table SA12b Property rates by category (budget year)
A124: Supporting Table SA13a | B124: =A124&" Service Tariffs by category" -> Supporting Table SA13a Service Tariffs by category
A125: Supporting Table SA13b | B125: =A125&" Service Tariffs by category - explanatory" -> Supporting Table SA13b Service Tariffs by category - explanatory
A126: Supporting Table SA14 | B126: =A126&" Household bills" -> Supporting Table SA14 Household bills
A127: Supporting Table SA15 | B127: =A127&" Investment particulars by type" -> Supporting Table SA15 Investment particulars by type
A128: Supporting Table SA16 | B128: =A128&" Investment particulars by maturity" -> Supporting Table SA16 Investment particulars by maturity
A129: Supporting Table SA17 | B129: =A129&" Borrowing" -> Supporting Table SA17 Borrowing
A130: Supporting Table SA18 | B130: =A130&" Transfers and grant receipts" -> Supporting Table SA18 Transfers and grant receipts
A131: Supporting Table SA19 | B131: =A131&" Expenditure on transfers and grant programme" -> Supporting Table SA19 Expenditure on transfers and grant programme
A132: Supporting Table SA20 | B132: =A132&" Reconciliation of transfers, grant receipts and unspent funds" -> Supporting Table SA20 Reconciliation of transfers, grant receipts and unspent funds
A133: Supporting Table SA21 | B133: =A133&" Transfers and grants made by the municipality" -> Supporting Table SA21 Transfers and grants made by the municipality
A134: Supporting Table SA22 | B134: =A134&" Summary councillor and staff benefits" -> Supporting Table SA22 Summary councillor and staff benefits
A135: Supporting Table SA23 | B135: =A135&" Salaries, allowances & benefits (political office bearers/councillors/senior managers)" -> Supporting Table SA23 Salaries, allowances & benefits (political office bearers/councillors/senior managers)
A136: Supporting Table SA24 | B136: =A136&" Summary of personnel numbers" -> Supporting Table SA24 Summary of personnel numbers
A137: Supporting Table SA25 | B137: =IF(Consolques="YES",E137,F137) -> Supporting Table SA25 Consolidated budgeted monthly revenue and expenditure | E137: =A137&" Consolidated budgeted monthly revenue and expenditure" -> Supporting Table SA25 Consolidated budgeted monthly revenue and expenditure | F137: =A137&" Budgeted monthly revenue and expenditure" -> Supporting Table SA25 Budgeted monthly revenue and expenditure
A138: Supporting Table SA26 | B138: Supporting Table SA26 Consolidated budgeted monthly revenue and expenditure (municipal vote) | E138: =A138&" Consolidated budgeted monthly revenue and expenditure (municipal vote)" -> Supporting Table SA26 Consolidated budgeted monthly revenue and expenditure (municipal vote) | F138: =A138&" Budgeted monthly revenue and expenditure (municipal vote)" -> Supporting Table SA26 Budgeted monthly revenue and expenditure (municipal vote)
A139: Supporting Table SA27 | B139: Supporting Table SA27 Consolidated budgeted monthly revenue and expenditure (functional classification) | E139: =A139&" Consolidated budgeted monthly revenue and expenditure (functional classification)" -> Supporting Table SA27 Consolidated budgeted monthly revenue and expenditure (functional classification) | F139: =A139&" Budgeted monthly revenue and expenditure (functional classification)" -> Supporting Table SA27 Budgeted monthly revenue and expenditure (functional classification)
A140: Supporting Table SA28 | B140: Supporting Table SA28 Consolidated budgeted monthly capital expenditure (municipal vote) | E140: =A140&" Consolidated budgeted monthly capital expenditure (municipal vote)" -> Supporting Table SA28 Consolidated budgeted monthly capital expenditure (municipal vote) | F140: =A140&" Budgeted monthly capital expenditure (municipal vote)" -> Supporting Table SA28 Budgeted monthly capital expenditure (municipal vote)
A141: Supporting Table SA29 | B141: Supporting Table SA29 Consolidated budgeted monthly capital expenditure (functional classification) | E141: =A141&" Consolidated budgeted monthly capital expenditure (functional classification)" -> Supporting Table SA29 Consolidated budgeted monthly capital expenditure (functional classification) | F141: =A141&" Budgeted monthly capital expenditure (functional classification)" -> Supporting Table SA29 Budgeted monthly capital expenditure (functional classification)
A142: Supporting Table SA30 | B142: Supporting Table SA30 Consolidated budgeted monthly cash flow | E142: =A142&" Consolidated budgeted monthly cash flow" -> Supporting Table SA30 Consolidated budgeted monthly cash flow | F142: =A142&" Budgeted monthly cash flow" -> Supporting Table SA30 Budgeted monthly cash flow
A143: Supporting Table SA31 | B143: Supporting Table SA31 Aggregated entity budget | E143: =A143&" Aggregated entity budget" -> Supporting Table SA31 Aggregated entity budget | F143: NOT REQUIRED - municipality does not have entities
A144: Supporting Table SA32 | B144: =A144&" List of external mechanisms" -> Supporting Table SA32 List of external mechanisms
A145: Supporting Table SA33 | B145: =A145&" Contracts having future budgetary implications" -> Supporting Table SA33 Contracts having future budgetary implications
A146: Supporting Table SA34a | B146: =IF(Consolques="YES",E146,F146) -> Supporting Table SA34a Consolidated capital expenditure on new assets by asset class | E146: =A146&" Consolidated capital expenditure on new assets by asset class" -> Supporting Table SA34a Consolidated capital expenditure on new assets by asset class | F146: =A146&" Capital expenditure on new assets by asset class" -> Supporting Table SA34a Capital expenditure on new assets by asset class
A147: Supporting Table SA34b | B147: Supporting Table SA34b Consolidated capital expenditure on the renewal of existing assets by asset class | E147: =A147&" Consolidated capital expenditure on the renewal of existing assets by asset class" -> Supporting Table SA34b Consolidated capital expenditure on the renewal of existing assets by asset class | F147: =A147&" Capital expenditure on the renewal of existing assets by asset class" -> Supporting Table SA34b Capital expenditure on the renewal of existing assets by asset class
A148: Supporting Table SA34c | B148: Supporting Table SA34c Consolidated repairs and maintenance by asset class | E148: =A148&" Consolidated repairs and maintenance by asset class" -> Supporting Table SA34c Consolidated repairs and maintenance by asset class | F148: =A148&" Repairs and maintenance expenditure by asset class" -> Supporting Table SA34c Repairs and maintenance expenditure by asset class
A149: Supporting Table SA34d | B149: =IF(Consolques="YES",E149,F149) -> Supporting Table SA34d Consolidated Depreciation by asset class | E149: =A149&" Consolidated Depreciation by asset class" -> Supporting Table SA34d Consolidated Depreciation by asset class | F149: =A149&" Depreciation by asset class" -> Supporting Table SA34d Depreciation by asset class
A150: Supporting Table SA34e | B150: =IF(Consolques="YES",E150,F150) -> Supporting Table SA34e Consolidated capital expenditure on the upgrading of existing assets by asset class | E150: =A150&" Consolidated capital expenditure on the upgrading of existing assets by asset class" -> Supporting Table SA34e Consolidated capital expenditure on the upgrading of existing assets by asset class | F150: =A150&" Capital expenditure on the upgrading of existing assets by asset class" -> Supporting Table SA34e Capital expenditure on the upgrading of existing assets by asset class
A151: Supporting Table SA35 | B151: Supporting Table SA35 Consolidated future financial implications of the capital budget | E151: =A151&" Consolidated future financial implications of the capital budget" -> Supporting Table SA35 Consolidated future financial implications of the capital budget | F151: =A151& " Future financial implications of the capital budget" -> Supporting Table SA35 Future financial implications of the capital budget
A152: Supporting Table SA36 | B152: Supporting Table SA36 Consolidated detailed capital budget | E152: =A152&" Consolidated detailed capital budget" -> Supporting Table SA36 Consolidated detailed capital budget | F152: =A152& " Detailed capital budget" -> Supporting Table SA36 Detailed capital budget
A153: Supporting Table SA37 | B153: Supporting Table SA37 Consolidated projects delayed from previous financial year/s | E153: =A153&" Consolidated projects delayed from previous financial year/s" -> Supporting Table SA37 Consolidated projects delayed from previous financial year/s | F153: =A153& " Projects delayed from previous financial year/s" -> Supporting Table SA37 Projects delayed from previous financial year/s
A154: Supporting Table SA38 | B154: =IF(Consolques="YES",E154,F154) -> Supporting Table SA38 Consolidated detailed operational projects | E154: =A154&" Consolidated detailed operational projects" -> Supporting Table SA38 Consolidated detailed operational projects | F154: =A154& " Detailed operational projects" -> Supporting Table SA38 Detailed operational projects
A156: Budget Charts | B156: Charts | C156: Cross reference
A157: Chart A1 | B157: =A157&"Revenue by Municipal Vote" -> Chart A1 Revenue by Municipal Vote
A158: Chart A2 | B158: =A158&"Expenditure by Municipal Vote" -> Chart A2 Expenditure by Municipal Vote
A159: Chart A3 | B159: =A159&"Revenue by Standard Classification" -> Chart A3 Revenue by Standard Classification | C159: A2
A160: Chart A4 | B160: =A160&"Expenditure by Standard Classification" -> Chart A4 Expenditure by Standard Classification | C160: A2
A161: Chart A5 | B161: =A161&"Revenue by Major Source (refer 'Minor' source for 'Other Revenue' allocation" -> Chart A5 Revenue by Major Source (refer 'Minor' source for 'Other Revenue' allocation | C161: A3
A162: Chart A6 | B162: =A162&"Revenue by Minor Source (Other)" -> Chart A6 Revenue by Minor Source (Other) | C162: A3
A163: Chart A7 | B163: =A163&"Expenditure by Major Type" -> Chart A7 Expenditure by Major Type | C163: A3
A164: Chart A8 | B164: =A164&"Expenditure by Minor Type (Other)" -> Chart A8 Expenditure by Minor Type (Other) | C164: A3
A165: Chart A9 | B165: =A165&"Capital Expenditure by Municipal Vote/Appropriation (Major)" -> Chart A9 Capital Expenditure by Municipal Vote/Appropriation (Major) | C165: A5
A166: Chart A10 | B166: =A166&"Capital Expenditure by Municipal Vote/Appropriation (Minor)" -> Chart A10 Capital Expenditure by Municipal Vote/Appropriation (Minor) | C166: A5
A167: Chart A11 | B167: =A166&"Capital Expenditure by Standard Classification" -> Chart A10 Capital Expenditure by Standard Classification | C167: A5
A168: Chart A12 | B168: =A168&"Capital expenditure performance trend" -> Chart A12 Capital expenditure performance trend | C168: A5
A169: Chart A13 | B169: =A169&"Capital funding by Source" -> Chart A13 Capital funding by Source | C169: A5
A170: Chart A14 | B170: =A170&"Cash flow trend" -> Chart A14 Cash flow trend | C170: A7
A171: Chart A15 | B171: =A171&"IDP Strategic Objective - Revenue" -> Chart A15 IDP Strategic Objective - Revenue | C171: Table A4
A172: Chart A16 | B172: =A172&"IDP Strategic Objective - Expenditure" -> Chart A16 IDP Strategic Objective - Expenditure | C172: Table A5
A173: Chart A17 | B173: =A173&"IDP Strategic Objective - Capital Expenditure" -> Chart A17 IDP Strategic Objective - Capital Expenditure | C173: Table A6
A174: Chart A18 | B174: =A174&"Debt (borrowing to Total Revenue)" -> Chart A18 Debt (borrowing to Total Revenue) | C174: Table A8
A175: Chart A19 | B175: =A175&"Debtors' trend analysis" -> Chart A19 Debtors' trend analysis | C175: Table A8
A176: Chart A20 | B176: =A176&"Distribution losses" -> Chart A20 Distribution losses | C176: Table A8
A177: Chart A21 | B177: =A177&"Borrowed funding of capital expenditure" -> Chart A21 Borrowed funding of capital expenditure | C177: Table A8
A178: Chart A22 | B178: =A178&"Expenditure analysis (% of Revenue)" -> Chart A22 Expenditure analysis (% of Revenue) | C178: Table A8
A179: Chart A23 | B179: =A179&"Increases in service charges" -> Chart A23 Increases in service charges | C179: Table A10

Sheet Lookup and lists (hidden)
A1: Description | B1: 2007 | C1: 2008 | D1: 2009 | E1: 2010 | F1: 2011 | G1: 2012 | H1: 2013 | I1: 2014 | J1: 2015 | K1: 2016 | L1: 2017 | M1: 2018 | N1: 2019 | O1: 2020 | Q1: Lists | Y1: Grants: | Z1: National - opex | AA1: Provincial - opex | AB1: National - capex | AC1: Provincial - capex
A2: ='Template names'!C2 -> Prior year -1 | B2: 2005/06 | C2: 2006/07 | D2: 2007/08 | E2: =E1-2&"/"&RIGHT(E1,2)-1 -> 2008/9 | F2: 2009/10 | G2: 2010/11 | H2: 2011/12 | I2: 2012/13 | J2: 2013/14 | K2: 2014/15 | L2: 2015/16 | M2: 2016/17 | N2: 2017/18 | O2: 2018/19 | Q2: Yes | R2: <1 | S2: <4 | T2: Market | U2: Land & impr. | V2: Yes | W2: Uniform | X2: Yrs | Z2: Local Government Equitable Share | AA2: Health subsidy | AB2: Municipal Infrastructure Grant (MIG) | AC2: Agriculture
A3: ='Template names'!C3 -> Prior year -2 | B3: 2004/05 | C3: 2005/06 | D3: 2006/07 | E3: =E1-3&"/"&RIGHT(E1,2)-2 -> 2007/8 | F3: 2008/9 | G3: 2009/10 | H3: 2010/11 | I3: 2011/12 | J3: 2012/13 | K3: 2013/14 | L3: 2014/15 | M3: 2015/16 | N3: 2016/17 | O3: 2017/18 | Q3: No | R3: 1 | S3: 4 | T3: Dep.Replace | U3: Land only | V3: No | W3: Variable | X3: Mths | Z3: RSC Levy Replacement | AA3: Ambulance subsidy | AB3: Public Transport and Systems | AC3: Education
A4: ='Template names'!C4 -> Prior year -3 | B4: 2003/04 | C4: 2004/05 | D4: 2005/06 | E4: =E1-4&"/"&RIGHT(E1,2)-3 -> 2006/7 | F4: 2007/8 | G4: 2008/9 | H4: 2009/10 | I4: 2010/11 | J4: 2011/12 | K4: 2012/13 | L4: 2013/14 | M4: 2014/15 | N4: 2015/16 | O4: 2016/17 | R4: 2 | S4: 5 | T4: Other | U4: Other | Z4: Finance Management | AA4: Housing | AB4: Rural Transport Services and Infrastructure | AC4: Health
A5: ='Template names'!C5 -> Year in which budget is being prepared | B5: Current Year 2006/07 | C5: Current Year 2007/08 | D5: Current Year 2008/09 | E5: ="Current Year "& E1-1&"/"&RIGHT(E1,2) -> Current Year 2009/10 | F5: Current Year 2010/11 | G5: Current Year 2011/12 | H5: Current Year 2012/13 | I5: Current Year 2013/14 | J5: Current Year 2014/15 | K5: Current Year 2015/16 | L5: Current Year 2016/17 | M5: Current Year 2017/18 | N5: Current Year 2018/19 | O5: Current Year 2019/20 | R5: 3 | S5: 6 | Z5: Municipal Systems Improvement | AA5: Sport and Recreation | AB5: Regional Bulk Infrastructure | AC5: Housing and Local Government
A6: ='Template names'!C6 -> Year in which budget is being prepared | B6: 2006/07 | C6: 2007/08 | D6: 2008/09 | E6: =E1-1&"/"&RIGHT(E1,2) -> 2009/10 | F6: 2010/11 | G6: 2011/12 | H6: 2012/13 | I6: 2013/14 | J6: 2014/15 | K6: 2015/16 | L6: 2016/17 | M6: 2017/18 | N6: 2018/19 | O6: 2019/20 | R6: 4 | S6: 6-10 | Z6: Water Services Operating Subsidy | AB6: Rural Households Infrastructure | AC6: Other Departments
A7: ='Template names'!C7 -> MTREF name | B7: 2007/08 Medium Term Revenue & Expenditure Framework | C7: 2008/09 Medium Term Revenue & Expenditure Framework | D7: 2009/10 Medium Term Revenue & Expenditure Framework | E7: =E1&"/"&RIGHT(E1,2)+1&" Medium Term Revenue & Expenditure Framework" -> 2010/11 Medium Term Revenue & Expenditure Framework | F7: 2011/12 Medium Term Revenue & Expenditure Framework | G7: 2012/13 Medium Term Revenue & Expenditure Framework | H7: 2013/14 Medium Term Revenue & Expenditure Framework | I7: 2014/15 Medium Term Revenue & Expenditure Framework | J7: 2015/16 Medium Term Revenue & Expenditure Framework | K7: 2016/17 Medium Term Revenue & Expenditure Framework | L7: 2017/18 Medium Term Revenue & Expenditure Framework | M7: 2018/19 Medium Term Revenue & Expenditure Framework | N7: 2019/20 Medium Term Revenue & Expenditure Framework | O7: 2020/21 Medium Term Revenue & Expenditure Framework | R7: 5 | S7: >10 | Z7: Energy Efficiency and Demand Management | AB7: Neighbourhood Development Partnership | AC7: Public Works, Roads, Transport
A8: ='Template names'!C15 -> 1st year of MTREF | B8: Budget Year 2007/08 | C8: Budget Year 2008/09 | D8: Budget Year 2009/10 | E8: ="Budget Year "&E1&"/"&RIGHT(E1,2)+1 -> Budget Year 2010/11 | F8: Budget Year 2011/12 | G8: Budget Year 2012/13 | H8: Budget Year 2013/14 | I8: Budget Year 2014/15 | J8: Budget Year 2015/16 | K8: Budget Year 2016/17 | L8: Budget Year 2017/18 | M8: Budget Year 2018/19 | N8: Budget Year 2019/20 | O8: Budget Year 2020/21 | R8: >5 | Z8: Integrated National Electrification Programme | AB8: 2010 FIFA World Cup Stadiums Development | AC8: Sport and Recreation
A9: ='Template names'!C16 -> 2nd year of MTREF | B9: Budget Year +1 2008/09 | C9: Budget Year +1 2009/10 | D9: Budget Year +1 2010/11 | E9: ="Budget Year +1 "&E1+1&"/"&RIGHT(E1,2)+2 -> Budget Year +1 2011/12 | F9: Budget Year +1 2012/13 | G9: Budget Year +1 2013/14 | H9: Budget Year +1 2014/15 | I9: Budget Year +1 2015/16 | J9: Budget Year +1 2016/17 | K9: Budget Year +1 2017/18 | L9: Budget Year +1 2018/19 | M9: Budget Year +1 2019/20 | N9: Budget Year +1 2020/21 | O9: Budget Year +1 2021/22 | Z9: Municipal Drought Relief
A10: ='Template names'!C17 -> 3rd year of MTREF | B10: Budget Year +2 2009/10 | C10: Budget Year +2 2010/11 | D10: Budget Year +2 2011/12 | E10: ="Budget Year +2 "&E1+2&"/"&RIGHT(E1,2)+3 -> Budget Year +2 2012/13 | F10: Budget Year +2 2013/14 | G10: Budget Year +2 2014/15 | H10: Budget Year +2 2015/16 | I10: Budget Year +2 2016/17 | J10: Budget Year +2 2017/18 | K10: Budget Year +2 2018/19 | L10: Budget Year +2 2019/20 | M10: Budget Year +2 2020/21 | N10: Budget Year +2 2021/22 | O10: Budget Year +2 2022/23 | Z10: 2010 FIFA World Cup Operating
A11: ='Template names'!C18 -> 1st yr of long term forecast | B11: Forecast 2010/11 | C11: Forecast 2011/12 | D11: Forecast 2012/13 | E11: ="Forecast "&E1+3&"/"&RIGHT(E1,2)+4 -> Forecast 2013/14 | F11: Forecast 2014/15 | G11: Forecast 2015/16 | H11: Forecast 2016/17 | I11: Forecast 2017/18 | J11: Forecast 2018/19 | K11: Forecast 2019/20 | L11: Forecast 2020/21 | M11: Forecast 2021/22 | N11: Forecast 2022/23 | O11: Forecast 2023/24 | Z11: Electricity Demand Side Management
A12: ='Template names'!C19 -> Next yr of long term forecast | B12: Forecast 2011/12 | C12: Forecast 2012/13 | D12: Forecast 2013/14 | E12: ="Forecast "&E1+4&"/"&RIGHT(E1,2)+5 -> Forecast 2014/15 | F12: Forecast 2015/16 | G12: Forecast 2016/17 | H12: Forecast 2017/18 | I12: Forecast 2018/19 | J12: Forecast 2019/20 | K12: Forecast 2020/21 | L12: Forecast 2021/22 | M12: Forecast 2022/23 | N12: Forecast 2023/24 | O12: Forecast 2024/25 | Z12: EPWP Incentive
A13: ='Template names'!C20 -> Next yr of long term forecast | B13: Forecast 2012/13 | C13: Forecast 2013/14 | D13: Forecast 2014/15 | E13: ="Forecast "&E1+5&"/"&RIGHT(E1,2)+6 -> Forecast 2015/16 | F13: Forecast 2016/17 | G13: Forecast 2017/18 | H13: Forecast 2018/19 | I13: Forecast 2019/20 | J13: Forecast 2020/21 | K13: Forecast 2021/22 | L13: Forecast 2022/23 | M13: Forecast 2023/24 | N13: Forecast 2024/25 | O13: Forecast 2025/26
A14: ='Template names'!C21 -> Next yr of long term forecast | B14: Forecast 2013/14 | C14: Forecast 2014/15 | D14: Forecast 2015/16 | E14: ="Forecast "&E1+6&"/"&RIGHT(E1,2)+7 -> Forecast 2016/17 | F14: Forecast 2017/18 | G14: Forecast 2018/19 | H14: Forecast 2019/20 | I14: Forecast 2020/21 | J14: Forecast 2021/22 | K14: Forecast 2022/23 | L14: Forecast 2023/24 | M14: Forecast 2024/25 | N14: Forecast 2025/26 | O14: Forecast 2026/27 | Z14: Asset Class | AA14: Asset sub-class old | AB14: Asset sub-class | AC14: IUDF | AD14: MTSF
A15: ='Template names'!C22 -> Next yr of long term forecast | B15: Forecast 2014/15 | C15: Forecast 2015/16 | D15: Forecast 2016/17 | E15: ="Forecast "&E1+7&"/"&RIGHT(E1,2)+8 -> Forecast 2017/18 | F15: Forecast 2018/19 | G15: Forecast 2019/20 | H15: Forecast 2020/21 | I15: Forecast 2021/22 | J15: Forecast 2022/23 | K15: Forecast 2023/24 | L15: Forecast 2024/25 | M15: Forecast 2025/26 | N15: Forecast 2026/27 | O15: Forecast 2027/28
A16: ='Template names'!C23 -> Next yr of long term forecast | B16: Forecast 2015/16 | C16: Forecast 2016/17 | D16: Forecast 2017/18 | E16: ="Forecast "&E1+8&"/"&RIGHT(E1,2)+9 -> Forecast 2018/19 | F16: Forecast 2019/20 | G16: Forecast 2020/21 | H16: Forecast 2021/22 | I16: Forecast 2022/23 | J16: Forecast 2023/24 | K16: Forecast 2024/25 | L16: Forecast 2025/26 | M16: Forecast 2026/27 | N16: Forecast 2027/28 | O16: Forecast 2028/29 | Z16: Roads Infrastructure | AA16: Roads, Pavements & Bridges | AB16: Roads | AC16: Spatial integration | AD16: Quality basic education
A17: ='Template names'!C24 -> Next yr of long term forecast | B17: Forecast 2016/17 | C17: Forecast 2017/18 | D17: Forecast 2018/19 | E17: ="Forecast "&E1+9&"/"&RIGHT(E1,2)+10 -> Forecast 2019/20 | F17: Forecast 2020/21 | G17: Forecast 2021/22 | H17: Forecast 2022/23 | I17: Forecast 2023/24 | J17: Forecast 2024/25 | K17: Forecast 2025/26 | L17: Forecast 2026/27 | M17: Forecast 2027/28 | N17: Forecast 2028/29 | O17: Forecast 2029/30 | Z17: Storm water Infrastructure | AA17: Storm water | AB17: Road Structures | AC17: Inclusion and access | AD17: A long and healthy life for all South Africans
A18: ='Template names'!C25 -> Next yr of long term forecast | B18: Forecast 2017/18 | C18: Forecast 2018/19 | D18: Forecast 2019/20 | E18: ="Forecast "&E1+10&"/"&RIGHT(E1,2)+11 -> Forecast 2020/21 | F18: Forecast 2021/22 | G18: Forecast 2022/23 | H18: Forecast 2023/24 | I18: Forecast 2024/25 | J18: Forecast 2025/26 | K18: Forecast 2026/27 | L18: Forecast 2027/28 | M18: Forecast 2028/29 | N18: Forecast 2029/30 | O18: Forecast 2030/31 | Z18: Electrical Infrastructure | AA18: Generation | AB18: Road Furniture | AC18: Growth | AD18: All people in South Africa are and feel safe
A19: ='Template names'!C26 -> Next yr of long term forecast | B19: Forecast 2018/19 | C19: Forecast 2019/20 | D19: Forecast 2020/21 | E19: ="Forecast "&E1+11&"/"&RIGHT(E1,2)+12 -> Forecast 2021/22 | F19: Forecast 2022/23 | G19: Forecast 2023/24 | H19: Forecast 2024/25 | I19: Forecast 2025/26 | J19: Forecast 2026/27 | K19: Forecast 2027/28 | L19: Forecast 2028/29 | M19: Forecast 2029/30 | N19: Forecast 2030/31 | O19: Forecast 2031/32 | Z19: Water Supply Infrastructure | AA19: Transmission & Reticulation | AB19: Capital Spares | AC19: Governance | AD19: Decent employment through inclusive growth
A20: ='Template names'!C27 -> Next yr of long term forecast | B20: Forecast 2019/20 | C20: Forecast 2020/21 | D20: Forecast 2021/22 | E20: ="Forecast "&E1+12&"/"&RIGHT(E1,2)+13 -> Forecast 2022/23 | F20: Forecast 2023/24 | G20: Forecast 2024/25 | H20: Forecast 2025/26 | I20: Forecast 2026/27 | J20: Forecast 2027/28 | K20: Forecast 2028/29 | L20: Forecast 2029/30 | M20: Forecast 2030/31 | N20: Forecast 2031/32 | O20: Forecast 2032/33 | Z20: Sanitation Infrastructure | AA20: Street Lighting | AB20: Drainage Collection | AD20: A skilled and capable workforce to support an inclusive growth path
A21: ='Template names'!C28 -> Next yr of long term forecast | B21: Forecast 2020/21 | C21: Forecast 2021/22 | D21: Forecast 2022/23 | E21: ="Forecast "&E1+13&"/"&RIGHT(E1,2)+14 -> Forecast 2023/24 | F21: Forecast 2024/25 | G21: Forecast 2025/26 | H21: Forecast 2026/27 | I21: Forecast 2027/28 | J21: Forecast 2028/29 | K21: Forecast 2029/30 | L21: Forecast 2030/31 | M21: Forecast 2031/32 | N21: Forecast 2032/33 | O21: Forecast 2033/34 | Z21: Solid Waste Infrastructure | AA21: Dams & Reservoirs | AB21: Storm water Conveyance | AD21: An efficient, competitive and responsive economic infrastructure network
A22: ='Template names'!C29 -> Next yr of long term forecast | B22: Forecast 2021/22 | C22: Forecast 2022/23 | D22: Forecast 2023/24 | E22: ="Forecast "&E1+14&"/"&RIGHT(E1,2)+15 -> Forecast 2024/25 | F22: Forecast 2025/26 | G22: Forecast 2026/27 | H22: Forecast 2027/28 | I22: Forecast 2028/29 | J22: Forecast 2029/30 | K22: Forecast 2030/31 | L22: Forecast 2031/32 | M22: Forecast 2032/33 | N22: Forecast 2033/34 | O22: Forecast 2034/35 | Z22: Rail Infrastructure | AA22: Water purification | AB22: Attenuation | AD22: Vibrant, equitable, sustainable rural communities contributing towards food security for all
A23: Adjustments Budget | B23: Annual target 2007/08 | C23: Annual target 2008/09 | D23: Annual target 2009/10 | E23: ="Annual target " & E1&"/"&RIGHT(E1,2)+1 -> Annual target 2010/11 | F23: Annual target 2011/12 | G23: Annual target 2012/13 | H23: Annual target 2013/14 | I23: Annual target 2014/15 | J23: Annual target 2015/16 | K23: Annual target 2016/17 | L23: Annual target 2017/18 | M23: Annual target 2018/19 | N23: Annual target 2019/20 | O23: Annual target 2020/21 | Z23: Coastal Infrastructure | AA23: Reticulation | AB23: Power Plants | AD23: Sustainable human settlements and improved quality of household life
A24: =A23 -> Adjustments Budget | B24: Revised target 2007/08 | C24: Revised target 2008/09 | D24: Revised target 2009/10 | E24: ="Revised target "& E1&"/"&RIGHT(E1,2)+1 -> Revised target 2010/11 | F24: Revised target 2011/12 | G24: Revised target 2012/13 | H24: Revised target 2013/14 | I24: Revised target 2014/15 | J24: Revised target 2015/16 | K24: Revised target 2016/17 | L24: Revised target 2017/18 | M24: Revised target 2018/19 | N24: Revised target 2019/20 | O24: Revised target 2020/21 | Z24: Information and Communication Infrastructure | AA24: Sewerage purification | AB24: HV Substations | AD24: Responsive, accountable, effective and efficient local government
A25: NOTE: This sheet should not be directly amended - select headings from sheet 'S' | Z25: Community Facilities | AA25: Waste Management | AB25: HV Switching Station | AD25: Protect and enhance our environmental assets and natural resources
Z26: Sport and Recreation Facilities | AA26: Transportation | AB26: HV Transmission Conductors | AD26: Create a better South Africa and contribute to a better Africa and a better world
A27: Name link | B27: 118 | Z27: Heritage assets | AA27: Gas | AB27: MV Substations | AD27: An efficient, effective and development-oriented public service
A28: Name of Muni | B28: =INDEX(B29:B307,B27,1) -> DC28 King Cetshwayo | Z28: Revenue Generating | AA28: Parks & gardens | AB28: MV Switching Stations | AD28: A comprehensive, responsive and sustainable social protection system
B29: Choose name from list | C29: Set name on 'Instructions' sheet | Z29: Non-revenue Generating | AA29: Sportsfields & stadia | AB29: MV Networks | AD29: A diverse, socially cohesive society with a common national identity
B30: BUF Buffalo City | C30: EC EASTERN CAPE | Z30: Operational Buildings | AA30: Swimming pools | AB30: LV Networks
B31: NMA Nelson Mandela Bay | C31: EC EASTERN CAPE | Z31: Housing | AA31: Community halls | AB31: Capital Spares
B32: EC101 Dr Beyers Naude | C32: EC EASTERN CAPE | Z32: Biological or Cultivated Assets | AA32: Libraries | AB32: Dams and Weirs
B33: EC102 Blue Crane Route | C33: EC EASTERN CAPE | Z33: Servitudes | AA33: Recreational facilities | AB33: Boreholes
B34: EC104 Makana | C34: EC EASTERN CAPE | Z34: Licences and Rights | AA34: Fire, safety & emergency | AB34: Reservoirs
B35: EC105 Ndlambe | C35: EC EASTERN CAPE | Z35: Computer Equipment | AA35: Security and policing | AB35: Pump Stations
B36: EC106 Sundays River Valley | C36: EC EASTERN CAPE | Z36: Furniture and Office Equipment | AA36: Buses | AB36: Water Treatment Works
B37: EC108 Kouga | C37: EC EASTERN CAPE | Z37: Machinery and Equipment | AA37: Clinics | AB37: Bulk Mains
B38: EC109 Kou-Kamma | C38: EC EASTERN CAPE | Z38: Transport Assets | AA38: Museums & Art Galleries | AB38: Distribution
B39: DC10 Sarah Baartman | C39: EC EASTERN CAPE | Z39: Land | AA39: Cemeteries | AB39: Distribution Points
B40: EC121 Mbhashe | C40: EC EASTERN CAPE | Z40: Zoo's, Marine and Non-biological Animals | AA40: Social rental housing | AB40: PRV Stations
B41: EC122 Mnquma | C41: EC EASTERN CAPE | AA41: Buildings | AB41: Capital Spares
B42: EC123 Great Kei | C42: EC EASTERN CAPE | AA42: Housing development | AB42: Pump Station
B43: EC124 Amahlathi | C43: EC EASTERN CAPE | AA43: General vehicles | AB43: Reticulation
B44: EC126 Ngqushwa | C44: EC EASTERN CAPE | AA44: Specialised vehicles - Refuse | AB44: Waste Water Treatment Works
B45: EC129 Raymond Mhlaba | C45: EC EASTERN CAPE | AA45: Specialised vehicles - Fire | AB45: Outfall Sewers
B46: DC12 Amathole | C46: EC EASTERN CAPE | AA46: Specialised vehicles - Conservancy | AB46: Toilet Facilities
B47: EC131 Inxuba Yethemba | C47: EC EASTERN CAPE | AA47: Specialised vehicles - Ambulances | AB47: Capital Spares
B48: EC135 Intsika Yethu | C48: EC EASTERN CAPE | AA48: Plant & equipment | AB48: Landfill Sites
B49: EC136 Emalahleni (Ec) | C49: EC EASTERN CAPE | AA49: Computers - hardware/equipment | AB49: Waste Transfer Stations
B50: EC137 Engcobo | C50: EC EASTERN CAPE | AA50: Furniture and other office equipment | AB50: Waste Processing Facilities
B51: EC138 Sakhisizwe | C51: EC EASTERN CAPE | AA51: Abattoirs | AB51: Waste Drop-off Points
B52: EC139 Enoch Mgijima | C52: EC EASTERN CAPE | AA52: Markets | AB52: Waste Separation Facilities
B53: DC13 Chris Hani | C53: EC EASTERN CAPE | AA53: Civic Land and Buildings | AB53: Electricity Generation Facilities
B54: EC141 Elundini | C54: EC EASTERN CAPE | AA54: Other Buildings | AB54: Capital Spares
B55: EC142 Senqu | C55: EC EASTERN CAPE | AA55: Other Land | AB55: Rail Lines
B56: EC145 Walter Sisulu | C56: EC EASTERN CAPE | AA56: Surplus Assets - (Investment or Inventory) | AB56: Rail Structures
B57: DC14 Joe Gqabi | C57: EC EASTERN CAPE | AA57: Computers - software & programming | AB57: Rail Furniture
B58: EC153 Ngquza Hills | C58: EC EASTERN CAPE | AA58: Other | AB58: Drainage Collection
B59: EC154 Port St Johns | C59: EC EASTERN CAPE | AB59: Storm water Conveyance
B60: EC155 Nyandeni | C60: EC EASTERN CAPE | Z60: SA16 - Investments | AB60: Attenuation
B61: EC156 Mhlontlo | C61: EC EASTERN CAPE | Z61: Security | AA61: Interest rate | AB61: MV Substations
B62: EC157 King Sabata Dalindyebo | C62: EC EASTERN CAPE | Z62: Yes | AA62: Fixed | AB62: LV Networks
B63: DC15 O .R. Tambo | C63: EC EASTERN CAPE | Z63: No | AA63: Variable | AB63: Capital Spares
B64: EC441 Matatiele | C64: EC EASTERN CAPE | AB64: Sand Pumps
B65: EC442 Umzimvubu | C65: EC EASTERN CAPE | AB65: Piers
B66: EC443 Mbizana | C66: EC EASTERN CAPE | Z66: SA36, SA37 - Capital projects | AB66: Revetments
B67: EC444 Ntabankulu | C67: EC EASTERN CAPE | Z67: Yes | AB67: Promenades
B68: DC44 Alfred Nzo | C68: EC EASTERN CAPE | Z68: No | AB68: Capital Spares
B69: MAN Mangaung | C69: FS FREE STATE | AB69: Data Centres
B70: FS161 Letsemeng | C70: FS FREE STATE | AB70: Core Layers
B71: FS162 Kopanong | C71: FS FREE STATE | AB71: Distribution Layers
B72: FS163 Mohokare | C72: FS FREE STATE | AB72: Capital Spares
B73: DC16 Xhariep | C73: FS FREE STATE | AB73: Halls
B74: FS181 Masilonyana | C74: FS FREE STATE | AB74: Centres
B75: FS182 Tokologo | C75: FS FREE STATE | AB75: Crèches
B76: FS183 Tswelopele | C76: FS FREE STATE | AB76: Clinics/Care Centres
B77: FS184 Matjhabeng | C77: FS FREE STATE | AB77: Fire/Ambulance Stations
B78: FS185 Nala | C78: FS FREE STATE | AB78: Testing Stations
B79: DC18 Lejweleputswa | C79: FS FREE STATE | AB79: Museums
B80: FS191 Setsoto | C80: FS FREE STATE | AB80: Galleries
B81: FS192 Dihlabeng | C81: FS FREE STATE | AB81: Theatres
B82: FS193 Nketoana | C82: FS FREE STATE | AB82: Libraries
B83: FS194 Maluti-a-Phofung | C83: FS FREE STATE | AB83: Cemeteries/Crematoria
B84: FS195 Phumelela | C84: FS FREE STATE | AB84: Police
B85: FS196 Mantsopa | C85: FS FREE STATE | AB85: Purls
B86: DC19 Thabo Mofutsanyana | C86: FS FREE STATE | AB86: Public Open Space
B87: FS201 Moqhaka | C87: FS FREE STATE | AB87: Nature Reserves
B88: FS203 Ngwathe | C88: FS FREE STATE | AB88: Public Ablution Facilities
B89: FS204 Metsimaholo | C89: FS FREE STATE | AB89: Markets
B90: FS205 Mafube | C90: FS FREE STATE | AB90: Stalls
B91: DC20 Fezile Dabi | C91: FS FREE STATE | AB91: Abattoirs
B92: EKU City of Ekurhuleni | C92: GT GAUTENG | AB92: Airports
B93: JHB City Of Johannesburg | C93: GT GAUTENG | AB93: Taxi Ranks/Bus Terminals
B94: TSH City Of Tshwane | C94: GT GAUTENG | AB94: Capital Spares
B95: GT421 Emfuleni | C95: GT GAUTENG | AB95: Indoor Facilities
B96: GT422 Midvaal | C96: GT GAUTENG | AB96: Outdoor Facilities
B97: GT423 Lesedi | C97: GT GAUTENG | AB97: Capital Spares
B98: DC42 Sedibeng | C98: GT GAUTENG | AB98: Monuments
B99: GT481 Mogale City | C99: GT GAUTENG | AB99: Historic Buildings
B100: GT484 Merafong City | C100: GT GAUTENG | AB100: Works of Art
B101: GT485 Rand West City | C101: GT GAUTENG | AB101: Conservation Areas
B102: DC48 West Rand | C102: GT GAUTENG | AB102: Other Heritage
B103: ETH eThekwini | C103: KZN KWAZULU-NATAL | AB103: Improved Property
B104: KZN212 Umdoni | C104: KZN KWAZULU-NATAL | AB104: Unimproved Property
B105: KZN213 Umzumbe | C105: KZN KWAZULU-NATAL | AB105: Municipal Offices
B106: KZN214 uMuziwabantu | C106: KZN KWAZULU-NATAL | AB106: Pay/Enquiry Points
B107: KZN216 Ray Nkonyeni | C107: KZN KWAZULU-NATAL | AB107: Building Plan Offices
B108: DC21 Ugu | C108: KZN KWAZULU-NATAL | AB108: Workshops
B109: KZN221 uMshwathi | C109: KZN KWAZULU-NATAL | AB109: Yards
B110: KZN222 uMngeni | C110: KZN KWAZULU-NATAL | AB110: Stores
B111: KZN223 Mpofana | C111: KZN KWAZULU-NATAL | AB111: Laboratories
B112: KZN224 Impendle | C112: KZN KWAZULU-NATAL | AB112: Training Centres
B113: KZN225 Msunduzi | C113: KZN KWAZULU-NATAL | AB113: Manufacturing Plant
B114: KZN226 Mkhambathini | C114: KZN KWAZULU-NATAL | AB114: Depots
B115: KZN227 Richmond | C115: KZN KWAZULU-NATAL | AB115: Capital Spares
B116: DC22 uMgungundlovu | C116: KZN KWAZULU-NATAL | AB116: Staff Housing
B117: KZN235 Okhahlamba | C117: KZN KWAZULU-NATAL | AB117: Social Housing
B118: KZN237 Inkosi Langalibalele | C118: KZN KWAZULU-NATAL | AB118: Capital Spares
B119: KZN238 Alfred Duma | C119: KZN KWAZULU-NATAL | AB119: Water Rights
B120: DC23 Uthukela | C120: KZN KWAZULU-NATAL | AB120: Effluent Licenses
B121: KZN241 Endumeni | C121: KZN KWAZULU-NATAL | AB121: Solid Waste Licenses
B122: KZN242 Nquthu | C122: KZN KWAZULU-NATAL | AB122: Computer Software and Applications
B123: KZN244 Msinga | C123: KZN KWAZULU-NATAL | AB123: Load Settlement Software Applications
B124: KZN245 Umvoti | C124: KZN KWAZULU-NATAL | AB124: Unspecified
B125: DC24 Umzinyathi | C125: KZN KWAZULU-NATAL
B126: KZN252 Newcastle | C126: KZN KWAZULU-NATAL
B127: KZN253 Emadlangeni | C127: KZN KWAZULU-NATAL
B128: KZN254 Dannhauser | C128: KZN KWAZULU-NATAL
B129: DC25 Amajuba | C129: KZN KWAZULU-NATAL
B130: KZN261 eDumbe | C130: KZN KWAZULU-NATAL
B131: KZN262 uPhongolo | C131: KZN KWAZULU-NATAL
B132: KZN263 Abaqulusi | C132: KZN KWAZULU-NATAL
B133: KZN265 Nongoma | C133: KZN KWAZULU-NATAL
B134: KZN266 Ulundi | C134: KZN KWAZULU-NATAL
B135: DC26 Zululand | C135: KZN KWAZULU-NATAL
B136: KZN271 Umhlabuyalingana | C136: KZN KWAZULU-NATAL
B137: KZN272 Jozini | C137: KZN KWAZULU-NATAL
B138: KZN275 Mtubatuba | C138: KZN KWAZULU-NATAL
B139: KZN276 Hlabisa Big Five | C139: KZN KWAZULU-NATAL
B140: DC27 Umkhanyakude | C140: KZN KWAZULU-NATAL
B141: KZN281 Mfolozi | C141: KZN KWAZULU-NATAL
B142: KZN282 uMhlathuze | C142: KZN KWAZULU-NATAL
B143: KZN284 uMlalazi | C143: KZN KWAZULU-NATAL
B144: KZN285 Mthonjaneni | C144: KZN KWAZULU-NATAL
B145: KZN286 Nkandla | C145: KZN KWAZULU-NATAL
B146: DC28 King Cetshwayo | C146: KZN KWAZULU-NATAL
B147: KZN291 Mandeni | C147: KZN KWAZULU-NATAL
B148: KZN292 KwaDukuza | C148: KZN KWAZULU-NATAL
B149: KZN293 Ndwedwe | C149: KZN KWAZULU-NATAL
B150: KZN294 Maphumulo | C150: KZN KWAZULU-NATAL
B151: DC29 iLembe | C151: KZN KWAZULU-NATAL
B152: KZN433 Greater Kokstad | C152: KZN KWAZULU-NATAL
B153: KZN434 Ubuhlebezwe | C153: KZN KWAZULU-NATAL
B154: KZN435 Umzimkhulu | C154: KZN KWAZULU-NATAL
B155: KZN436 Dr Nkosazana Dlamini Zuma | C155: KZN KWAZULU-NATAL
B156: DC43 Harry Gwala | C156: KZN KWAZULU-NATAL
B157: LIM331 Greater Giyani | C157: LIM LIMPOPO
B158: LIM332 Greater Letaba | C158: LIM LIMPOPO
B159: LIM333 Greater Tzaneen | C159: LIM LIMPOPO
B160: LIM334 Ba-Phalaborwa | C160: LIM LIMPOPO
B161: LIM335 Maruleng | C161: LIM LIMPOPO
B162: DC33 Mopani | C162: LIM LIMPOPO
B163: LIM341 Musina | C163: LIM LIMPOPO
B164: LIM343 Thulamela | C164: LIM LIMPOPO
B165: LIM344 Makhado | C165: LIM LIMPOPO
B166: LIM345 Collins Chabane | C166: LIM LIMPOPO
B167: DC34 Vhembe | C167: LIM LIMPOPO
B168: LIM351 Blouberg | C168: LIM LIMPOPO
B169: LIM353 Molemole | C169: LIM LIMPOPO
B170: LIM354 Polokwane | C170: LIM LIMPOPO
B171: LIM355 Lepelle-Nkumpi | C171: LIM LIMPOPO
B172: DC35 Capricorn | C172: LIM LIMPOPO
B173: LIM361 Thabazimbi | C173: LIM LIMPOPO
B174: LIM362 Lephalale | C174: LIM LIMPOPO
B175: LIM366 Bela Bela | C175: LIM LIMPOPO
B176: LIM367 Mogalakwena | C176: LIM LIMPOPO
B177: LIM368 Modimolle-Mookgopong | C177: LIM LIMPOPO
B178: DC36 Waterberg | C178: LIM LIMPOPO
B179: LIM471 Ephraim Mogale | C179: LIM LIMPOPO
B180: LIM472 Elias Motsoaledi | C180: LIM LIMPOPO
B181: LIM473 Makhuduthamaga | C181: LIM LIMPOPO
B182: LIM476 Tubatse Fetakgomo | C182: LIM LIMPOPO
B183: DC47 Sekhukhune | C183: LIM LIMPOPO
B184: MP301 Albert Luthuli | C184: MP MPUMALANGA
B185: MP302 Msukaligwa | C185: MP MPUMALANGA
B186: MP303 Mkhondo | C186: MP MPUMALANGA
B187: MP304 Pixley Ka Seme (MP) | C187: MP MPUMALANGA
B188: MP305 Lekwa | C188: MP MPUMALANGA
B189: MP306 Dipaleseng | C189: MP MPUMALANGA
B190: MP307 Govan Mbeki | C190: MP MPUMALANGA
B191: DC30 Gert Sibande | C191: MP MPUMALANGA
B192: MP311 Victor Khanye | C192: MP MPUMALANGA
B193: MP312 Emalahleni (Mp) | C193: MP MPUMALANGA
B194: MP313 Steve Tshwete | C194: MP MPUMALANGA
B195: MP314 Emakhazeni | C195: MP MPUMALANGA
B196: MP315 Thembisile Hani | C196: MP MPUMALANGA
B197: MP316 Dr J.S. Moroka | C197: MP MPUMALANGA
B198: DC31 Nkangala | C198: MP MPUMALANGA
B199: MP321 Thaba Chweu | C199: MP MPUMALANGA
B200: MP324 Nkomazi | C200: MP MPUMALANGA
... 87 more rows

Sheet Org structure
A1: Organisational Structure Votes | C1: Organisational Structure Sub-Votes | E1: Display Sub-Votes
A2: =B2&" - "&C2 -> Vote 01 - Executive & Council | B2: Vote 01 | C2: Executive & Council
A3: =B14&" - "&C14 -> Vote 02 - Economic Development, Planning & Environment | B3: 01.1 | C3: Board General | D3: =CONCATENATE(B3, " - ", C3) -> 01.1 - Board General | E3: 01.1 - Board General
A4: =B19&" - "&C19 -> Vote 03 - Community & Social Services | B4: 01.2 | C4: Executive Div - Corpotate Serv | D4: 01.2 - Executive Div - Corpotate Serv | E4: 01.2 - Executive Div - Corpotate Serv
A5: =B24&" - "&C24 -> Vote 04 - Public Safety | B5: 01.3 | C5: Administration Serv | D5: 01.3 - Administration Serv | E5: 01.3 - Administration Serv
A6: =B25&" - "&C25 -> Vote 05 - Environmental Health | B6: 01.4 | C6: Municipal Manager | D6: 01.4 - Municipal Manager | E6: 01.4 - Municipal Manager
A7: =B28&" - "&C28 -> Vote 06 - Finance & Administration | B7: 01.5 | C7: Chief Operating Officer | D7: 01.5 - Chief Operating Officer | E7: 01.5 - Chief Operating Officer
A8: =B47&" - "&C47 -> Vote 07 - Infrastructure Services | B8: 01.6 | C8: Performance Management Unit | D8: 01.6 - Performance Management Unit | E8: 01.6 - Performance Management Unit
A9: =B64&" - "&C64 -> Vote 08 - Waste Management | B9: 01.7 | C9: Legal Serv Unit | D9: 01.7 - Legal Serv Unit | E9: 01.7 - Legal Serv Unit
A10: =B66&" - "&C66 -> Vote 09 - Waste Water Management | B10: 01.8 | C10: Public Participation | D10: 01.8 - Public Participation | E10: 01.8 - Public Participation
A11: =B69&" - "&C69 -> Vote 10 - King Cetshwayo Fresh Produce Market | B11: 01.9 | C11: Internal Audit | D11: 01.9 - Internal Audit | E11: 01.9 - Internal Audit
A12: =B75&" - "&C75 -> Vote 11 - | B12: 01.10 | C12: Councillor Support | D12: 01.10 - Councillor Support | E12: 01.10 - Councillor Support
A13: =B76&" - "&C76 -> Vote 12 - | B13: 01.11 | C13: Public Relations | D13: 01.11 - Public Relations | E13: 01.11 - Public Relations
A14: =B77&" - "&C77 -> Vote 13 - | B14: Vote 02 | C14: Economic Development, Planning & Environment
A15: =B78&" - "&C78 -> Vote 14 - | B15: 02.1 | C15: Economic Development | D15: =CONCATENATE(B15, " - ", C15) -> 02.1 - Economic Development | E15: 02.1 - Economic Development
A16: =B79&" - "&C79 -> Vote 15 - Other | B16: 02.2 | C16: Planning Shared Serv | D16: =CONCATENATE(B16, " - ", C16) -> 02.2 - Planning Shared Serv | E16: 02.2 - Planning Shared Serv
B17: 02.3 | C17: Development Planning Enviroment | D17: =CONCATENATE(B17, " - ", C17) -> 02.3 - Development Planning Enviroment | E17: 02.3 - Development Planning Enviroment
B18: 02.4 | C18: Executive Div Planning Serv | D18: =CONCATENATE(B18, " - ", C18) -> 02.4 - Executive Div Planning Serv | E18: 02.4 - Executive Div Planning Serv
B19: Vote 03 | C19: Community & Social Services
B20: 03.1 | C20: Community Division | D20: =CONCATENATE(B20, " - ", C20) -> 03.1 - Community Division | E20: 03.1 - Community Division
B21: 03.2 | C21: Disaster Management | D21: =CONCATENATE(B21, " - ", C21) -> 03.2 - Disaster Management | E21: 03.2 - Disaster Management
B22: 03.3 | C22: Cemetery | D22: =CONCATENATE(B22, " - ", C22) -> 03.3 - Cemetery | E22: 03.3 - Cemetery
B23: 03.4 | C23: Executive Div Community Serv | D23: =CONCATENATE(B23, " - ", C23) -> 03.4 - Executive Div Community Serv | E23: 03.4 - Executive Div Community Serv
B24: Vote 04 | C24: Public Safety
B25: Vote 05 | C25: Environmental Health
B26: 05.1 | C26: Municipal Health | D26: =CONCATENATE(B26, " - ", C26) -> 05.1 - Municipal Health | E26: 05.1 - Municipal Health
B27: 05.2 | C27: Air Quality | D27: =CONCATENATE(B27, " - ", C27) -> 05.2 - Air Quality | E27: 05.2 - Air Quality
B28: Vote 06 | C28: Finance & Administration
B29: 06.1 | C29: Human Resources Management | D29: =CONCATENATE(B29, " - ", C29) -> 06.1 - Human Resources Management | E29: 06.1 - Human Resources Management
B30: 06.2 | C30: Executive Div - Finance Serv | D30: 06.2 - Executive Div - Finance Serv | E30: 06.2 - Executive Div - Finance Serv
B31: 06.3 | C31: Executive Division - Fanance Services | D31: 06.3 - Executive Division - Fanance Services | E31: 06.3 - Executive Division - Fanance Services
B32: 06.4 | C32: Expenditure | D32: 06.4 - Expenditure | E32: 06.4 - Expenditure
B33: 06.5 | C33: Expenditure | D33: 06.5 - Expenditure | E33: 06.5 - Expenditure
B34: 06.6 | C34: Auxillary Serv Kcdm | D34: 06.6 - Auxillary Serv Kcdm | E34: 06.6 - Auxillary Serv Kcdm
B35: 06.7 | C35: Satelite Offices | D35: 06.7 - Satelite Offices | E35: 06.7 - Satelite Offices
B36: 06.8 | C36: Budget & Reporting | D36: 06.8 - Budget & Reporting | E36: 06.8 - Budget & Reporting
B37: 06.9 | C37: Budget & Reporting | D37: 06.9 - Budget & Reporting | E37: 06.9 - Budget & Reporting
B38: 06.10 | C38: Finance Interns | D38: 06.10 - Finance Interns | E38: 06.10 - Finance Interns
B39: 06.11 | C39: Finance Interns | D39: 06.11 - Finance Interns | E39: 06.11 - Finance Interns
B40: 06.12 | C40: Information & Communication Technology | D40: 06.12 - Information & Communication Technology | E40: 06.12 - Information & Communication Technology
B41: 06.13 | C41: Supply Chain Management | D41: 06.13 - Supply Chain Management | E41: 06.13 - Supply Chain Management
B42: 06.14 | C42: Supply Chain Management | D42: 06.14 - Supply Chain Management | E42: 06.14 - Supply Chain Management
B43: 06.15 | C43: Management Accounts | D43: 06.15 - Management Accounts | E43: 06.15 - Management Accounts
B44: 06.16 | C44: Management Accounts | D44: 06.16 - Management Accounts | E44: 06.16 - Management Accounts
B45: 06.17 | C45: Asset Care Centre | D45: 06.17 - Asset Care Centre | E45: 06.17 - Asset Care Centre
B46: 06.18 | C46: Asset Care Center | D46: 06.18 - Asset Care Center | E46: 06.18 - Asset Care Center
B47: Vote 07 | C47: Infrastructure Services
B48: 07.1 | C48: Executive Div - Technical Serv | D48: =CONCATENATE(B48, " - ", C48) -> 07.1 - Executive Div - Technical Serv | E48: 07.1 - Executive Div - Technical Serv
B49: 07.2 | C49: Municipal Infrastructure Ops & Maintenance | D49: 07.2 - Municipal Infrastructure Ops & Maintenance | E49: 07.2 - Municipal Infrastructure Ops & Maintenance
B50: 07.3 | C50: Consimer Billing | D50: 07.3 - Consimer Billing | E50: 07.3 - Consimer Billing
B51: 07.4 | C51: Epwp Unit | D51: 07.4 - Epwp Unit | E51: 07.4 - Epwp Unit
B52: 07.5 | C52: Auxillary Infrustructure | D52: 07.5 - Auxillary Infrustructure | E52: 07.5 - Auxillary Infrustructure
B53: 07.6 | C53: Project Management Unit | D53: 07.6 - Project Management Unit | E53: 07.6 - Project Management Unit
B54: 07.7 | C54: Water Use Effeciency | D54: 07.7 - Water Use Effeciency | E54: 07.7 - Water Use Effeciency
B55: 07.8 | C55: Process Management | D55: 07.8 - Process Management | E55: 07.8 - Process Management
B56: 07.9 | C56: Municipal Infrastructure Implementation | D56: 07.9 - Municipal Infrastructure Implementation | E56: 07.9 - Municipal Infrastructure Implementation
B57: 07.10 | C57: Process Management - Waste Water | D57: 07.10 - Process Management - Waste Water | E57: 07.10 - Process Management - Waste Water
B58: 07.11 | C58: Water Service Division | D58: 07.11 - Water Service Division | E58: 07.11 - Water Service Division
B59: 07.12 | C59: Water Service Provider | D59: 07.12 - Water Service Provider | E59: 07.12 - Water Service Provider
B60: 07.13 | C60: Operations Ops & Maint - Western Region | D60: 07.13 - Operations Ops & Maint - Western Region | E60: 07.13 - Operations Ops & Maint - Western Region
B61: 07.14 | C61: Operations Ops & Maint - Southern Region | D61: 07.14 - Operations Ops & Maint - Southern Region | E61: 07.14 - Operations Ops & Maint - Southern Region
B62: 07.15 | C62: Operations Ops & Maint - Eastern Region | D62: 07.15 - Operations Ops & Maint - Eastern Region | E62: 07.15 - Operations Ops & Maint - Eastern Region
B63: 07.16 | C63: Electricity Reporting Function | D63: 07.16 - Electricity Reporting Function | E63: 07.16 - Electricity Reporting Function
B64: Vote 08 | C64: Waste Management
B65: 08.1 | C65: Waste Manegement | D65: =CONCATENATE(B65, " - ", C65) -> 08.1 - Waste Manegement | E65: 08.1 - Waste Manegement
B66: Vote 09 | C66: Waste Water Management
B67: 09.1 | C67: Waste Water Management | D67: =CONCATENATE(B67, " - ", C67) -> 09.1 - Waste Water Management | E67: 09.1 - Waste Water Management
B68: 09.2 | C68: Process Management - Waste Water | D68: =CONCATENATE(B68, " - ", C68) -> 09.2 - Process Management - Waste Water | E68: 09.2 - Process Management - Waste Water
B69: Vote 10 | C69: King Cetshwayo Fresh Produce Market
B70: 10.1 | C70: Office Of The Ceo | D70: =CONCATENATE(B70, " - ", C70) -> 10.1 - Office Of The Ceo | E70: 10.1 - Office Of The Ceo
B71: 10.2 | C71: Finance | D71: =CONCATENATE(B71, " - ", C71) -> 10.2 - Finance | E71: 10.2 - Finance
B72: 10.3 | C72: Corporate Serv | D72: =CONCATENATE(B72, " - ", C72) -> 10.3 - Corporate Serv | E72: 10.3 - Corporate Serv
B73: 10.4 | C73: Operations | D73: =CONCATENATE(B73, " - ", C73) -> 10.4 - Operations | E73: 10.4 - Operations
B74: 10.5 | C74: Agribusiness | D74: =CONCATENATE(B74, " - ", C74) -> 10.5 - Agribusiness | E74: 10.5 - Agribusiness
B75: Vote 11
B76: Vote 12
B77: Vote 13
B78: Vote 14
B79: Vote 15 | C79: Other

Sheet Contacts
A1: =muni&" - "&" Contact Information" -> DC28 King Cetshwayo - Contact Information
A3: A. GENERAL INFORMATION
A4: Municipality | B4: =muni -> DC28 King Cetshwayo | C4: =IF(B4="Choose name from List","Set name on 'Instructions' sheet", "") -> 
A6: Grade | B6: 5 | C6: 1 Grade in terms of the Remuneration of Public Office Bearers Act.
A8: Province | B8: =IF(B4>" ",VLOOKUP(B4,'Lookup and lists'!B29:C307,2, FALSE)," ") -> KZN KWAZULU-NATAL
A10: Web Address | B10: www.kingcetshwayo.gov.za
A12: e-mail Address | B12: sceo@kingcetshwayo.gov.za
A14: B. CONTACT INFORMATION
A15: Postal address:
A16: P.O. Box | B16: Private Bag x1025
A17: City / Town | B17: RICHARDSBAY
A18: Postal Code | B18: 3900
A20: Street address
A21: Building | B21: King Cetshwayo House
A22: Street No. & Name | B22: Cnr KrugerRand Grove & Barbados Bay
A23: City / Town | B23: RICHARDSBAY
A24: Postal Code | B24: 3900
A26: General Contacts
A27: Telephone number | B27: 0357992500
A28: Fax number | B28: 0357891341
A30: C. POLITICAL LEADERSHIP
A31: Speaker: | C31: Secretary/PA to the Speaker:
A32: ID Number | B32: 7402275585082 | C32: ID Number | D32: 8405030869088
A33: Title | B33: Mr | C33: Title | D33: Ms
A34: Name | B34: KHULANI ELPHAS RICHARDS HADEBE | C34: Name | D34: NOMBUSO THANDEKA MKHIZE
A35: Telephone number | B35: 0357992707 | C35: Telephone number | D35: 0357992707
A36: Cell number | B36: 0723377894 | C36: Cell number | D36: 0731124035
A37: Fax number | B37: 035891641 | C37: Fax number | D37: 0357891641
A38: E-mail address | B38: mzimelae@kingcetshwayo.gov.za | C38: E-mail address | D38: mkizeno@kigcetshwayo.gov.za
A40: Mayor/Executive Mayor: | C40: Secretary/PA to the Mayor/Executive Mayor:
A41: ID Number | B41: 6510200243089 | C41: ID Number | D41: 8708080850084
A42: Title | B42: Ms | C42: Title | D42: Ms
A43: Name | B43: NTOMBENHLE NP MKHULSI | C43: Name | D43: PHUMZILE MPANZA
A44: Telephone number | B44: 0357992722 | C44: Telephone number | D44: 0357992722
A45: Cell number | B45: 0761133035 | C45: Cell number | D45: 0787847344
A46: Fax number | B46: 0357891641 | C46: Fax number | D46: 0357891641
A47: E-mail address | B47: mkhulisin@kingcetshwayo.gov.za | C47: E-mail address | D47: mpanzap@kingcetshwayo.gov.za
A49: Deputy Mayor/Executive Mayor: | C49: Secretary/PA to the Deputy Mayor/Executive Mayor:
A50: ID Number | B50: 5906100778086 | C50: ID Number | D50: 7006290458082
A51: Title | B51: Ms | C51: Title | D51: Ms
A52: Name | B52: ALICE MTHEMBU | C52: Name | D52: NONKULULEKO CELE
A53: Telephone number | B53: 0357992745 | C53: Telephone number | D53: 0357992745
A54: Cell number | B54: 0825829616 | C54: Cell number | D54: 0824721272
A55: Fax number | B55: 0357891641 | C55: Fax number | D55: 0357891641
A56: E-mail address | B56: mthembua@kingcetshwayo.gov.za | C56: E-mail address | D56: celeno@kingcetshwayo.gov.za
A58: D. MANAGEMENT LEADERSHIP
A59: Municipal Manager: | C59: Secretary/PA to the Municipal Manager:
A60: ID Number | B60: 7905170498086 | C60: ID Number | D60: 6512040176081
A61: Title | B61: Mrs | C61: Title | D61: Mrs
A62: Name | B62: Mbali Thulile Barbara | C62: Name | D62: CHARMAINE VERONICA RHEEDERS
A63: Telephone number | B63: 0357992501 | C63: Telephone number | D63: 0357992501
A64: Cell number | B64: 0824555202 | C64: Cell number | D64: 0836304218
A65: Fax number | B65: 0357891641 | C65: Fax number | D65: 0357891641
A66: E-mail address | B66: 0824555202 | C66: E-mail address | D66: scoe@kingcetshwayo.gov.za
A68: Chief Financial Officer | C68: Secretary/PA to the Chief Financial Officer
A69: ID Number | B69: 7502060216080 | C69: ID Number | D69: 6008280084085
A70: Title | B70: Mrs | C70: Title | D70: Mrs
A71: Name | B71: CHERLY REDDY | C71: Name | D71: ERIKA SCHAMREL
A72: Telephone number | B72: 0357992508 | C72: Telephone number | D72: 0357992509
A73: Cell number | B73: 0836399027 | C73: Cell number | D73: 063554235
A74: Fax number | B74: 0357899359 | C74: Fax number | D74: 0357899359
A75: E-mail address | B75: reddyc@kingcetshwayo.gov.za | C75: E-mail address | D75: schamrele@kingcetshwayo.gov.za
A77: Official responsible for submitting financial information | C77: Official responsible for submitting financial information
A78: ID Number | B78: 7509085381088 | C78: ID Number
A79: Title | B79: Mr | C79: Title
A80: Name | B80: BONGANI N MDLETSHE | C80: Name
A81: Telephone number | B81: 0357992712 | C81: Telephone number
A82: Cell number | B82: 0828013081 | C82: Cell number
A83: Fax number | B83: 0357899359 | C83: Fax number
A84: E-mail address | B84: mdletsheb@kingcetshwayo.gov.za | C84: E-mail address
A85: Official responsible for submitting financial information | C85: Official responsible for submitting financial information
A86: ID Number | C86: ID Number
A87: Title | C87: Title
A88: Name | C88: Name
A89: Telephone number | C89: Telephone number
A90: Cell number | C90: Cell number
A91: Fax number | C91: Fax number
A92: E-mail address | C92: E-mail address
A93: Official responsible for submitting financial information | C93: Official responsible for submitting financial information
A94: ID Number | C94: ID Number
A95: Title | C95: Title
A96: Name | C96: Name
A97: Telephone number | C97: Telephone number
A98: Cell number | C98: Cell number
A99: Fax number | C99: Fax number
A100: E-mail address | C100: E-mail address
A101: Official responsible for submitting financial information | C101: Official responsible for submitting financial information
A102: ID Number | C102: ID Number
A103: Title | C103: Title
A104: Name | C104: Name
A105: Telephone number | C105: Telephone number
A106: Cell number | C106: Cell number
A107: Fax number | C107: Fax number
A108: E-mail address | C108: E-mail address
A109: Official responsible for submitting financial information | C109: Official responsible for submitting financial information
A110: ID Number | C110: ID Number
A111: Title | C111: Title
A112: Name | C112: Name
A113: Telephone number | C113: Telephone number
A114: Cell number | C114: Cell number
A115: Fax number | C115: Fax number
A116: E-mail address | C116: E-mail address
A117: Official responsible for submitting financial information | C117: Official responsible for submitting financial information
A118: ID Number | C118: ID Number
A119: Title | C119: Title
A120: Name | C120: Name
A121: Telephone number | C121: Telephone number
A122: Cell number | C122: Cell number
A123: Fax number | C123: Fax number
A124: E-mail address | C124: E-mail address
A125: Official responsible for submitting financial information | C125: Official responsible for submitting financial information
A126: ID Number | C126: ID Number
A127: Title | C127: Title
A128: Name | C128: Name
A129: Telephone number | C129: Telephone number
A130: Cell number | C130: Cell number
A131: Fax number | C131: Fax number
A132: E-mail address | C132: E-mail address
A133: Official responsible for submitting financial information
A134: ID Number
A135: Title
A136: Name
A137: Telephone number
A138: Cell number
A139: Fax number
A140: E-mail address

Sheet A1-Sum
A1: =muni&" - "&Approve1 -> DC28 King Cetshwayo - Table A1 Consolidated Budget Summary
A2: =desc -> Description | B2: =head1b -> 2016/17 | C2: =head1A -> 2017/18 | D2: =Head1 -> 2018/19 | E2: =Head2 -> Current Year 2019/20 | I2: =Head3 -> 2020/21 Medium Term Revenue & Expenditure Framework
A3: R thousands | B3: =Head5 -> Audited Outcome | C3: =Head5 -> Audited Outcome | D3: =Head5 -> Audited Outcome | E3: =Head6 -> Original Budget | F3: =Head7 -> Adjusted Budget | G3: =Head8 -> Full Year Forecast | H3: =Head5b -> Pre-audit outcome | I3: =Head9 -> Budget Year 2020/21 | J3: =Head10 -> Budget Year +1 2021/22 | K3: =Head11 -> Budget Year +2 2022/23
A4: Financial Performance
A5: Property rates | B5: ='A4-FinPerf RE'!C5 -> 0 | C5: ='A4-FinPerf RE'!D5 -> 0 | D5: ='A4-FinPerf RE'!E5 -> 0 | E5: ='A4-FinPerf RE'!F5 -> 0 | F5: ='A4-FinPerf RE'!G5 -> 0 | G5: ='A4-FinPerf RE'!H5 -> 0 | H5: ='A4-FinPerf RE'!I5 -> 0 | I5: ='A4-FinPerf RE'!J5 -> 0 | J5: ='A4-FinPerf RE'!K5 -> 0 | K5: ='A4-FinPerf RE'!L5 -> 0
A6: Service charges | B6: =SUM('A4-FinPerf RE'!C6:C9) -> 64614924 | C6: =SUM('A4-FinPerf RE'!D6:D9) -> 77337467.13 | D6: =SUM('A4-FinPerf RE'!E6:E9) -> 86912662.79 | E6: =SUM('A4-FinPerf RE'!F6:F9) -> 92472273 | F6: =SUM('A4-FinPerf RE'!G6:G9) -> 92872273 | G6: =SUM('A4-FinPerf RE'!H6:H9) -> 92872273 | H6: =SUM('A4-FinPerf RE'!I6:I9) -> 89897540.45 | I6: =SUM('A4-FinPerf RE'!J6:J9) -> 103119276 | J6: =SUM('A4-FinPerf RE'!K6:K9) -> 112830627 | K6: =SUM('A4-FinPerf RE'!L6:L9) -> 123829500
A7: Investment revenue | B7: ='A4-FinPerf RE'!C12 -> 45649115 | C7: ='A4-FinPerf RE'!D12 -> 44448560.18 | D7: ='A4-FinPerf RE'!E12 -> 39258357.19 | E7: ='A4-FinPerf RE'!F12 -> 32145252 | F7: ='A4-FinPerf RE'!G12 -> 38821294 | G7: ='A4-FinPerf RE'!H12 -> 38821294 | H7: ='A4-FinPerf RE'!I12 -> 37537515.18 | I7: ='A4-FinPerf RE'!J12 -> 32909009 | J7: ='A4-FinPerf RE'!K12 -> 34883549 | K7: ='A4-FinPerf RE'!L12 -> 36976563
A8: Transfers recognised - operational | B8: ='A4-FinPerf RE'!C18 -> 467499844 | C8: ='A4-FinPerf RE'!D18 -> 537476798.3 | D8: ='A4-FinPerf RE'!E18 -> 574400728.5 | E8: ='A4-FinPerf RE'!F18 -> 532948245 | F8: ='A4-FinPerf RE'!G18 -> 582643741 | G8: ='A4-FinPerf RE'!H18 -> 582643741 | H8: ='A4-FinPerf RE'!I18 -> 528043532.4 | I8: ='A4-FinPerf RE'!J18 -> 591779678 | J8: ='A4-FinPerf RE'!K18 -> 631068000 | K8: ='A4-FinPerf RE'!L18 -> 682981000
A9: Other own revenue | B9: ='A4-FinPerf RE'!C11+'A4-FinPerf RE'!C13+'A4-FinPerf RE'!C14+'A4-FinPerf RE'!C15+'A4-FinPerf RE'!C16+'A4-FinPerf RE'!C17+'A4-FinPerf RE'!C19+'A4-FinPerf RE'!C20 -> 42749498.57 | C9: ='A4-FinPerf RE'!D11+'A4-FinPerf RE'!D13+'A4-FinPerf RE'!D14+'A4-FinPerf RE'!D15+'A4-FinPerf RE'!D16+'A4-FinPerf RE'!D17+'A4-FinPerf RE'!D19+'A4-FinPerf RE'!D20 -> 42302623.71 | D9: ='A4-FinPerf RE'!E11+'A4-FinPerf RE'!E13+'A4-FinPerf RE'!E14+'A4-FinPerf RE'!E15+'A4-FinPerf RE'!E16+'A4-FinPerf RE'!E17+'A4-FinPerf RE'!E19+'A4-FinPerf RE'!E20 -> 24988095.97 | E9: ='A4-FinPerf RE'!F11+'A4-FinPerf RE'!F13+'A4-FinPerf RE'!F14+'A4-FinPerf RE'!F15+'A4-FinPerf RE'!F16+'A4-FinPerf RE'!F17+'A4-FinPerf RE'!F19+'A4-FinPerf RE'!F20 -> 29529867 | F9: ='A4-FinPerf RE'!G11+'A4-FinPerf RE'!G13+'A4-FinPerf RE'!G14+'A4-FinPerf RE'!G15+'A4-FinPerf RE'!G16+'A4-FinPerf RE'!G17+'A4-FinPerf RE'!G19+'A4-FinPerf RE'!G20 -> 3222690 | G9: ='A4-FinPerf RE'!H11+'A4-FinPerf RE'!H13+'A4-FinPerf RE'!H14+'A4-FinPerf RE'!H15+'A4-FinPerf RE'!H16+'A4-FinPerf RE'!H17+'A4-FinPerf RE'!H19+'A4-FinPerf RE'!H20 -> 3222690 | H9: ='A4-FinPerf RE'!I11+'A4-FinPerf RE'!I13+'A4-FinPerf RE'!I14+'A4-FinPerf RE'!I15+'A4-FinPerf RE'!I16+'A4-FinPerf RE'!I17+'A4-FinPerf RE'!I19+'A4-FinPerf RE'!I20 -> 4189354.45 | I9: ='A4-FinPerf RE'!J11+'A4-FinPerf RE'!J13+'A4-FinPerf RE'!J14+'A4-FinPerf RE'!J15+'A4-FinPerf RE'!J16+'A4-FinPerf RE'!J17+'A4-FinPerf RE'!J19+'A4-FinPerf RE'!J20 -> 4617948 | J9: ='A4-FinPerf RE'!K11+'A4-FinPerf RE'!K13+'A4-FinPerf RE'!K14+'A4-FinPerf RE'!K15+'A4-FinPerf RE'!K16+'A4-FinPerf RE'!K17+'A4-FinPerf RE'!K19+'A4-FinPerf RE'!K20 -> 1899923 | K9: ='A4-FinPerf RE'!L11+'A4-FinPerf RE'!L13+'A4-FinPerf RE'!L14+'A4-FinPerf RE'!L15+'A4-FinPerf RE'!L16+'A4-FinPerf RE'!L17+'A4-FinPerf RE'!L19+'A4-FinPerf RE'!L20 -> 2014117
A10: ='A4-FinPerf RE'!A21 -> Total Revenue (excluding capital transfers and contributions) | B10: =SUM(B5:B9) -> 620513381.6 | C10: 701565449.4 | D10: 725559844.4 | E10: 687095637 | F10: 717559998 | G10: 717559998 | H10: 659667942.4 | I10: 732425911 | J10: 780682099 | K10: 845801180
A11: Employee costs | B11: ='A4-FinPerf RE'!C24 -> 173463443 | C11: ='A4-FinPerf RE'!D24 -> 195947911.6 | D11: ='A4-FinPerf RE'!E24 -> 229027598.1 | E11: ='A4-FinPerf RE'!F24 -> 239552108 | F11: ='A4-FinPerf RE'!G24 -> 233329638 | G11: ='A4-FinPerf RE'!H24 -> 233329638 | H11: ='A4-FinPerf RE'!I24 -> 225140412.3 | I11: ='A4-FinPerf RE'!J24 -> 280420765 | J11: ='A4-FinPerf RE'!K24 -> 291890178 | K11: ='A4-FinPerf RE'!L24 -> 309447044
A12: Remuneration of councillors | B12: ='A4-FinPerf RE'!C25 -> 10292482 | C12: ='A4-FinPerf RE'!D25 -> 11778096.65 | D12: ='A4-FinPerf RE'!E25 -> 11679483.2 | E12: ='A4-FinPerf RE'!F25 -> 13696734 | F12: ='A4-FinPerf RE'!G25 -> 13242367 | G12: ='A4-FinPerf RE'!H25 -> 13242367 | H12: ='A4-FinPerf RE'!I25 -> 12962831.66 | I12: ='A4-FinPerf RE'!J25 -> 14436372 | J12: ='A4-FinPerf RE'!K25 -> 15215953 | K12: ='A4-FinPerf RE'!L25 -> 16128911
A13: Depreciation & asset impairment | B13: ='A4-FinPerf RE'!C27 -> 62984886 | C13: ='A4-FinPerf RE'!D27 -> 69920038.49 | D13: ='A4-FinPerf RE'!E27 -> 74750879.33 | E13: ='A4-FinPerf RE'!F27 -> 102408715 | F13: ='A4-FinPerf RE'!G27 -> 101758715 | G13: ='A4-FinPerf RE'!H27 -> 101758715 | H13: ='A4-FinPerf RE'!I27 -> 66414524.81 | I13: ='A4-FinPerf RE'!J27 -> 89656068 | J13: ='A4-FinPerf RE'!K27 -> 97466388 | K13: ='A4-FinPerf RE'!L27 -> 105187074
A14: Finance charges | B14: ='A4-FinPerf RE'!C28 -> 9163083 | C14: ='A4-FinPerf RE'!D28 -> 6432318.84 | D14: ='A4-FinPerf RE'!E28 -> 5322141 | E14: ='A4-FinPerf RE'!F28 -> 4580963 | F14: ='A4-FinPerf RE'!G28 -> 4581489 | G14: ='A4-FinPerf RE'!H28 -> 4581489 | H14: ='A4-FinPerf RE'!I28 -> 2395042.88 | I14: ='A4-FinPerf RE'!J28 -> 3721615 | J14: ='A4-FinPerf RE'!K28 -> 6917405 | K14: ='A4-FinPerf RE'!L28 -> 5782016
A15: Materials and bulk purchases | B15: ='A4-FinPerf RE'!C29+'A4-FinPerf RE'!C30 -> 55621511 | C15: ='A4-FinPerf RE'!D29+'A4-FinPerf RE'!D30 -> 79784838.58 | D15: ='A4-FinPerf RE'!E29+'A4-FinPerf RE'!E30 -> 67105984.44 | E15: ='A4-FinPerf RE'!F29+'A4-FinPerf RE'!F30 -> 69687677 | F15: ='A4-FinPerf RE'!G29+'A4-FinPerf RE'!G30 -> 83531354 | G15: ='A4-FinPerf RE'!H29+'A4-FinPerf RE'!H30 -> 83531354 | H15: ='A4-FinPerf RE'!I29+'A4-FinPerf RE'!I30 -> 79254034.73 | I15: ='A4-FinPerf RE'!J29+'A4-FinPerf RE'!J30 -> 108076396 | J15: ='A4-FinPerf RE'!K29+'A4-FinPerf RE'!K30 -> 113301192 | K15: ='A4-FinPerf RE'!L29+'A4-FinPerf RE'!L30 -> 131921869
A16: Transfers and grants | B16: ='A4-FinPerf RE'!C32 -> 10635455 | C16: ='A4-FinPerf RE'!D32 -> 11514719.22 | D16: ='A4-FinPerf RE'!E32 -> 19355000 | E16: ='A4-FinPerf RE'!F32 -> 5942500 | F16: ='A4-FinPerf RE'!G32 -> 2081223 | G16: ='A4-FinPerf RE'!H32 -> 2081223 | H16: ='A4-FinPerf RE'!I32 -> 2000000 | I16: ='A4-FinPerf RE'!J32 -> 1025000 | J16: ='A4-FinPerf RE'!K32 -> 2820000 | K16: ='A4-FinPerf RE'!L32 -> 2961000
A17: Other expenditure | B17: ='A4-FinPerf RE'!C26+'A4-FinPerf RE'!C31+'A4-FinPerf RE'!C33+'A4-FinPerf RE'!C34 -> 399601221 | C17: ='A4-FinPerf RE'!D26+'A4-FinPerf RE'!D31+'A4-FinPerf RE'!D33+'A4-FinPerf RE'!D34 -> 490706793.8 | D17: ='A4-FinPerf RE'!E26+'A4-FinPerf RE'!E31+'A4-FinPerf RE'!E33+'A4-FinPerf RE'!E34 -> 483239242.4 | E17: ='A4-FinPerf RE'!F26+'A4-FinPerf RE'!F31+'A4-FinPerf RE'!F33+'A4-FinPerf RE'!F34 -> 390346345 | F17: ='A4-FinPerf RE'!G26+'A4-FinPerf RE'!G31+'A4-FinPerf RE'!G33+'A4-FinPerf RE'!G34 -> 445900272 | G17: ='A4-FinPerf RE'!H26+'A4-FinPerf RE'!H31+'A4-FinPerf RE'!H33+'A4-FinPerf RE'!H34 -> 445900272 | H17: ='A4-FinPerf RE'!I26+'A4-FinPerf RE'!I31+'A4-FinPerf RE'!I33+'A4-FinPerf RE'!I34 -> 401280795 | I17: ='A4-FinPerf RE'!J26+'A4-FinPerf RE'!J31+'A4-FinPerf RE'!J33+'A4-FinPerf RE'!J34 -> 296461156 | J17: ='A4-FinPerf RE'!K26+'A4-FinPerf RE'!K31+'A4-FinPerf RE'!K33+'A4-FinPerf RE'!K34 -> 340790732 | K17: ='A4-FinPerf RE'!L26+'A4-FinPerf RE'!L31+'A4-FinPerf RE'!L33+'A4-FinPerf RE'!L34 -> 367391633
A18: ='A4-FinPerf RE'!A35 -> Total Expenditure | B18: =SUM(B11:B17) -> 721762081 | C18: =SUM(C11:C17) -> 866084717.1 | D18: 890480328.5 | E18: 826215042 | F18: 884425058 | G18: 884425058 | H18: 789447641.4 | I18: 793797372 | J18: 868401848 | K18: 938819547
A19: ='A4-FinPerf RE'!A37 -> Surplus/(Deficit) | B19: =B10-B18 -> -101248699.4 | C19: -164519267.8 | D19: -164920484.1 | E19: -139119405 | F19: -166865060 | G19: -166865060 | H19: -129779699 | I19: -61371461 | J19: -87719749 | K19: -93018367
A20: ='A4-FinPerf RE'!A38 -> Transfers and subsidies - capital (monetary allocations) (National / Provincial and District) | B20: ='A4-FinPerf RE'!C38 -> 398564359 | C20: ='A4-FinPerf RE'!D38 -> 270695678 | D20: ='A4-FinPerf RE'!E38 -> 214677359.9 | E20: ='A4-FinPerf RE'!F38 -> 355784755 | F20: ='A4-FinPerf RE'!G38 -> 401832866 | G20: ='A4-FinPerf RE'!H38 -> 401832866 | H20: ='A4-FinPerf RE'!I38 -> 168730495.6 | I20: ='A4-FinPerf RE'!J38 -> 246981322 | J20: ='A4-FinPerf RE'!K38 -> 292000000 | K20: ='A4-FinPerf RE'!L38 -> 323706000
A21: ='A4-FinPerf RE'!A39&" & "&'A4-FinPerf RE'!A40 -> Transfers and subsidies - capital (monetary allocations) (National / Provincial Departmental Agencies, Households, Non-profit Institutions, Private Enterprises, Public Corporatons, Higher Educational Institutions) & Transfers and subsidies - capital (in-kind - all) | B21: ='A4-FinPerf RE'!C39+'A4-FinPerf RE'!C40 -> 0 | C21: ='A4-FinPerf RE'!D39+'A4-FinPerf RE'!D40 -> 0 | D21: ='A4-FinPerf RE'!E39+'A4-FinPerf RE'!E40 -> 0 | E21: ='A4-FinPerf RE'!F39+'A4-FinPerf RE'!F40 -> 0 | F21: ='A4-FinPerf RE'!G39+'A4-FinPerf RE'!G40 -> 0 | G21: ='A4-FinPerf RE'!H39+'A4-FinPerf RE'!H40 -> 0 | H21: ='A4-FinPerf RE'!I39+'A4-FinPerf RE'!I40 -> 0 | I21: ='A4-FinPerf RE'!J39+'A4-FinPerf RE'!J40 -> 0 | J21: ='A4-FinPerf RE'!K39+'A4-FinPerf RE'!K40 -> 0 | K21: ='A4-FinPerf RE'!L39+'A4-FinPerf RE'!L40 -> 0
A22: ='A4-FinPerf RE'!A41 -> Surplus/(Deficit) after capital transfers & contributions | B22: =B19+SUM(B20:B21) -> 297315659.6 | C22: =C19+SUM(C20:C21) -> 106176410.3 | D22: 49756875.8 | E22: 216665350 | F22: 234967806 | G22: 234967806 | H22: 38950796.65 | I22: 185609861 | J22: 204280251 | K22: 230687633
A23: ='A4-FinPerf RE'!A46 -> Share of surplus/ (deficit) of associate | B23: ='A4-FinPerf RE'!C46 -> 0 | C23: ='A4-FinPerf RE'!D46 -> 0 | D23: ='A4-FinPerf RE'!E46 -> 0 | E23: ='A4-FinPerf RE'!F46 -> 0 | F23: ='A4-FinPerf RE'!G46 -> 0 | G23: ='A4-FinPerf RE'!H46 -> 0 | H23: ='A4-FinPerf RE'!I46 -> 0 | I23: ='A4-FinPerf RE'!J46 -> 0 | J23: ='A4-FinPerf RE'!K46 -> 0 | K23: ='A4-FinPerf RE'!L46 -> 0
A24: ='A4-FinPerf RE'!A47 -> Surplus/(Deficit) for the year | B24: =B22+B23 -> 297315659.6 | C24: =C22+C23 -> 106176410.3 | D24: 49756875.8 | E24: 216665350 | F24: 234967806 | G24: 234967806 | H24: 38950796.65 | I24: 185609861 | J24: 204280251 | K24: 230687633
A26: Capital expenditure & funds sources
A27: Capital expenditure | B27: ='A5-Capex'!C63 -> 375258068.2 | C27: ='A5-Capex'!D63 -> 187343004.9 | D27: ='A5-Capex'!E63 -> 198402955.8 | E27: ='A5-Capex'!F63 -> 370534755 | F27: ='A5-Capex'!G63 -> 443509839 | G27: ='A5-Capex'!H63 -> 443509839 | H27: ='A5-Capex'!I63 -> 166831208.2 | I27: ='A5-Capex'!J63 -> 296130376 | J27: ='A5-Capex'!K63 -> 334727590 | K27: ='A5-Capex'!L63 -> 325356000
A28: Transfers recognised - capital | B28: ='A5-Capex'!C70 -> 357061587 | C28: ='A5-Capex'!D70 -> 171513158.2 | D28: ='A5-Capex'!E70 -> 191279784.5 | E28: ='A5-Capex'!F70 -> 355784755 | F28: ='A5-Capex'!G70 -> 401832866 | G28: ='A5-Capex'!H70 -> 401832866 | H28: ='A5-Capex'!I70 -> 156122961.2 | I28: ='A5-Capex'!J70 -> 246981322 | J28: ='A5-Capex'!K70 -> 292000000 | K28: ='A5-Capex'!L70 -> 323706000
A30: ='A5-Capex'!A72 -> Borrowing | B30: ='A5-Capex'!C72 -> 0 | C30: ='A5-Capex'!D72 -> 0 | D30: ='A5-Capex'!E72 -> 0 | E30: ='A5-Capex'!F72 -> 0 | F30: ='A5-Capex'!G72 -> 0 | G30: ='A5-Capex'!H72 -> 0 | H30: ='A5-Capex'!I72 -> 0 | I30: ='A5-Capex'!J72 -> 0 | J30: ='A5-Capex'!K72 -> 0 | K30: ='A5-Capex'!L72 -> 0
A31: ='A5-Capex'!A73 -> Internally generated funds | B31: ='A5-Capex'!C73 -> 18196481.17 | C31: ='A5-Capex'!D73 -> 15829846.61 | D31: ='A5-Capex'!E73 -> 7123171.32 | E31: ='A5-Capex'!F73 -> 14750000 | F31: ='A5-Capex'!G73 -> 41676973 | G31: ='A5-Capex'!H73 -> 41676973 | H31: ='A5-Capex'!I73 -> 10708246.94 | I31: ='A5-Capex'!J73 -> 49149054 | J31: ='A5-Capex'!K73 -> 42727590 | K31: ='A5-Capex'!L73 -> 1650000
A32: Total sources of capital funds | B32: =+B28+B30+B31 -> 375258068.2 | C32: =+C28+C30+C31 -> 187343004.9 | D32: 198402955.8 | E32: 370534755 | F32: 443509839 | G32: 443509839 | H32: 166831208.2 | I32: 296130376 | J32: 334727590 | K32: 325356000
A34: Financial position
A35: ='A6-FinPos'!A12 -> Total current assets | B35: ='A6-FinPos'!C12 -> 621509424 | C35: ='A6-FinPos'!D12 -> 555076477.7 | D35: ='A6-FinPos'!E12 -> 582873926.6 | E35: ='A6-FinPos'!F12 -> 439712562 | F35: ='A6-FinPos'!G12 -> 437058281 | G35: ='A6-FinPos'!H12 -> 437058281 | H35: ='A6-FinPos'!I12 -> 632569264.3 | I35: ='A6-FinPos'!J12 -> 638580008 | J35: ='A6-FinPos'!K12 -> 603157750 | K35: ='A6-FinPos'!L12 -> 631301033
A36: ='A6-FinPos'!A24 -> Total non current assets | B36: ='A6-FinPos'!C24 -> 2162136517 | C36: ='A6-FinPos'!D24 -> 2301443489 | D36: ='A6-FinPos'!E24 -> 2425613645 | E36: ='A6-FinPos'!F24 -> 2938031238 | F36: ='A6-FinPos'!G24 -> 2993273274 | G36: ='A6-FinPos'!H24 -> 2993273274 | H36: ='A6-FinPos'!I24 -> 2524839019 | I36: ='A6-FinPos'!J24 -> 2964530480 | J36: ='A6-FinPos'!K24 -> 3016978785 | K36: ='A6-FinPos'!L24 -> 2992341696
A37: ='A6-FinPos'!A34 -> Total current liabilities | B37: ='A6-FinPos'!C34 -> 270858008 | C37: ='A6-FinPos'!D34 -> 233262058.2 | D37: ='A6-FinPos'!E34 -> 331946961.8 | E37: ='A6-FinPos'!F34 -> 120919882 | F37: ='A6-FinPos'!G34 -> 115509174 | G37: ='A6-FinPos'!H34 -> 115509174 | H37: ='A6-FinPos'!I34 -> 449642897.4 | I37: ='A6-FinPos'!J34 -> 221144088 | J37: ='A6-FinPos'!K34 -> 304631394 | K37: ='A6-FinPos'!L34 -> 280141126
A38: ='A6-FinPos'!A39 -> Total non current liabilities | B38: ='A6-FinPos'!C39 -> 144838514 | C38: ='A6-FinPos'!D39 -> 129080978.3 | D38: ='A6-FinPos'!E39 -> 131616151.2 | E38: ='A6-FinPos'!F39 -> 118451575 | F38: ='A6-FinPos'!G39 -> 118261065 | G38: ='A6-FinPos'!H39 -> 118261065 | H38: ='A6-FinPos'!I39 -> 125139690.9 | I38: ='A6-FinPos'!J39 -> 130853077 | J38: ='A6-FinPos'!K39 -> 125671325 | K38: ='A6-FinPos'!L39 -> 126473203
A39: Community wealth/Equity | B39: ='A6-FinPos'!C48 -> 2367949129 | C39: ='A6-FinPos'!D48 -> 2494176930 | D39: ='A6-FinPos'!E48 -> 2545021599 | E39: ='A6-FinPos'!F48 -> 3138372343 | F39: ='A6-FinPos'!G48 -> 3195911316 | G39: ='A6-FinPos'!H48 -> 3195911316 | H39: ='A6-FinPos'!I48 -> 2583875256 | I39: ='A6-FinPos'!J48 -> 3251113322 | J39: ='A6-FinPos'!K48 -> 3189833815 | K39: ='A6-FinPos'!L48 -> 3217028399
A41: Cash flows
A42: Net cash from (used) operating | B42: ='A7-CFlow'!C17 -> 393953004 | C42: ='A7-CFlow'!D17 -> 150156072.3 | D42: ='A7-CFlow'!E17 -> 133257817.6 | E42: ='A7-CFlow'!F17 -> 317703610.7 | F42: ='A7-CFlow'!G17 -> 371633476.7 | G42: ='A7-CFlow'!H17 -> 371633476.7 | H42: ='A7-CFlow'!I17 -> 180789417.2 | I42: ='A7-CFlow'!J17 -> 3139130095 | J42: ='A7-CFlow'!K17 -> 2986320371 | K42: ='A7-CFlow'!L17 -> 2939134592
A43: Net cash from (used) investing | B43: ='A7-CFlow'!C27 -> -308434602 | C43: ='A7-CFlow'!D27 -> -171513158.2 | D43: ='A7-CFlow'!E27 -> -198286774.8 | E43: ='A7-CFlow'!F27 -> -370530055.9 | F43: ='A7-CFlow'!G27 -> -483184126 | G43: ='A7-CFlow'!H27 -> -483184126 | H43: ='A7-CFlow'!I27 -> -148377065.5 | I43: ='A7-CFlow'!J27 -> -592207985 | J43: ='A7-CFlow'!K27 -> -669458631 | K43: ='A7-CFlow'!L27 -> -650733635
A44: Net cash from (used) financing | B44: ='A7-CFlow'!C36 -> -12988988 | C44: ='A7-CFlow'!D36 -> -15939969.22 | D44: ='A7-CFlow'!E36 -> -6716292.9 | E44: ='A7-CFlow'!F36 -> -9926280.77 | F44: ='A7-CFlow'!G36 -> -7528813 | G44: ='A7-CFlow'!H36 -> -7528813 | H44: ='A7-CFlow'!I36 -> -6608124.66 | I44: ='A7-CFlow'!J36 -> 11637880 | J44: ='A7-CFlow'!K36 -> 1732214 | K44: ='A7-CFlow'!L36 -> 3964762
A45: =LEFT('A7-CFlow'!A40,37) -> Cash/cash equivalents at the year end | B45: ='A7-CFlow'!C40 -> 495086739 | C45: ='A7-CFlow'!D40 -> 440248760.8 | D45: ='A7-CFlow'!E40 -> 389741825.3 | E45: ='A7-CFlow'!F40 -> 321464015 | F45: ='A7-CFlow'!G40 -> 263298537.7 | G45: ='A7-CFlow'!H40 -> 263298537.7 | H45: ='A7-CFlow'!I40 -> 25717846.18 | I45: ='A7-CFlow'!J40 -> 3052548784 | J45: ='A7-CFlow'!K40 -> 5371142738 | K45: ='A7-CFlow'!L40 -> 7663508457
A47: Cash backing/surplus reconciliation
A48: ='A8-ResRecon'!A4 -> Cash and investments available | B48: ='A8-ResRecon'!C8 -> 509560458 | C48: ='A8-ResRecon'!D8 -> 461491281.4 | D48: ='A8-ResRecon'!E8 -> 494384117.6 | E48: ='A8-ResRecon'!F8 -> 401732548 | F48: ='A8-ResRecon'!G8 -> 399893400 | G48: ='A8-ResRecon'!H8 -> 399893400 | H48: ='A8-ResRecon'!I8 -> 526403214 | I48: ='A8-ResRecon'!J8 -> 555118054 | J48: ='A8-ResRecon'!K8 -> 518847227 | K48: ='A8-ResRecon'!L8 -> 545938734
A49: ='A8-ResRecon'!A10 -> Application of cash and investments | B49: ='A8-ResRecon'!C18 -> 553942802 | C49: ='A8-ResRecon'!D18 -> 273703877.1 | D49: ='A8-ResRecon'!E18 -> 365332049.2 | E49: ='A8-ResRecon'!F18 -> 491438247 | F49: ='A8-ResRecon'!G18 -> 487397029 | G49: ='A8-ResRecon'!H18 -> 487397029 | H49: ='A8-ResRecon'!I18 -> 474265897.7 | I49: ='A8-ResRecon'!J18 -> -1490406783 | J49: ='A8-ResRecon'!K18 -> -1098978621 | K49: ='A8-ResRecon'!L18 -> -962454814
A50: Balance - surplus (shortfall) | B50: =B48-B49 -> -44382344 | C50: =C48-C49 -> 187787404.3 | D50: 129052068.4 | E50: -89705699 | F50: -87503629 | G50: -87503629 | H50: 52137316.31 | I50: 2045524837 | J50: 1617825848 | K50: 1508393548
A52: Asset management
A53: Asset register summary (WDV) | B53: ='A9-Asset'!C165 -> 2155711984 | C53: ='A9-Asset'!D165 -> 1525883292 | D53: ='A9-Asset'!E165 -> 1530519744 | E53: ='A9-Asset'!F165 -> 1971633138 | F53: ='A9-Asset'!G165 -> 2026875174 | G53: ='A9-Asset'!H165 -> 2026875174 | H53: ='A9-Asset'!H165 -> 2026875174 | I53: ='A9-Asset'!I165 -> 1780613271 | J53: ='A9-Asset'!J165 -> 1788851911 | K53: ='A9-Asset'!K165 -> 1772564777
A54: ='A9-Asset'!A168 -> Depreciation | B54: ='A9-Asset'!C168 -> 62984886 | C54: ='A9-Asset'!D168 -> 69920038.49 | D54: ='A9-Asset'!E168 -> 74750879.33 | E54: ='A9-Asset'!F168 -> 102408715 | F54: ='A9-Asset'!G168 -> 101758715 | G54: ='A9-Asset'!H168 -> 101758715 | H54: ='A9-Asset'!H168 -> 101758715 | I54: ='A9-Asset'!I168 -> 89656068 | J54: ='A9-Asset'!J168 -> 97466388 | K54: ='A9-Asset'!K168 -> 105187074
A55: Renewal and Upgrading of Existing Assets | B55: ='A9-Asset'!C37+'A9-Asset'!C69 -> 0 | C55: ='A9-Asset'!D37+'A9-Asset'!D69 -> 11127575.48 | D55: ='A9-Asset'!E37+'A9-Asset'!E69 -> 27380372.66 | E55: ='A9-Asset'!F37+'A9-Asset'!F69 -> 64031658 | F55: ='A9-Asset'!G37+'A9-Asset'!G69 -> 69846653 | G55: ='A9-Asset'!H37+'A9-Asset'!H69 -> 69846653 | H55: ='A9-Asset'!H37+'A9-Asset'!H69 -> 69846653 | I55: ='A9-Asset'!I37+'A9-Asset'!I69 -> 26815510 | J55: ='A9-Asset'!J37+'A9-Asset'!J69 -> 42550661 | K55: ='A9-Asset'!K37+'A9-Asset'!K69 -> 41000000
A56: Repairs and Maintenance | B56: ='A9-Asset'!C169 -> 79266791 | C56: ='A9-Asset'!D169 -> 158506508.2 | D56: ='A9-Asset'!E169 -> 204643388.7 | E56: ='A9-Asset'!F169 -> 140931972 | F56: ='A9-Asset'!G169 -> 152639105 | G56: ='A9-Asset'!H169 -> 152639105 | H56: ='A9-Asset'!H169 -> 152639105 | I56: ='A9-Asset'!I169 -> 144048622 | J56: ='A9-Asset'!J169 -> 194113841 | K56: ='A9-Asset'!K169 -> 205129925
A58: Free services
A59: Cost of Free Basic Services provided | B59: ='A10-SerDel'!C60 -> 5470566.49 | C59: ='A10-SerDel'!D60 -> 3182218.88 | D59: ='A10-SerDel'!E60 -> 3325308.91 | E59: ='A10-SerDel'!F60 -> 2895089 | F59: ='A10-SerDel'!G60 -> 2895089 | G59: ='A10-SerDel'!H60 -> 2895089 | H59: ='A10-SerDel'!I60 -> 3797168 | I59: ='A10-SerDel'!I60 -> 3797168 | J59: ='A10-SerDel'!J60 -> 4024998 | K59: ='A10-SerDel'!K60 -> 4266497
A60: Revenue cost of free services provided | B60: ='A10-SerDel'!C79 -> 0 | C60: ='A10-SerDel'!D79 -> 0 | D60: ='A10-SerDel'!E79 -> 0 | E60: ='A10-SerDel'!F79 -> 0 | F60: ='A10-SerDel'!G79 -> 0 | G60: ='A10-SerDel'!H79 -> 0 | H60: ='A10-SerDel'!I79 -> 3406228 | I60: ='A10-SerDel'!I79 -> 3406228 | J60: ='A10-SerDel'!J79 -> 3610602 | K60: ='A10-SerDel'!K79 -> 3827237
A61: Households below minimum service level
A62: ='A10-SerDel'!A5 -> Water: | B62: ='A10-SerDel'!C14 -> 46921.4892 | C62: ='A10-SerDel'!D14 -> 65779.351 | D62: ='A10-SerDel'!E14 -> 66437.14451 | E62: ='A10-SerDel'!F14 -> 66437.14451 | F62: ='A10-SerDel'!G14 -> 66437.14451 | G62: ='A10-SerDel'!H14 -> 66437.14451 | H62: ='A10-SerDel'!I14 -> 67433.70168 | I62: ='A10-SerDel'!I14 -> 67433.70168 | J62: ='A10-SerDel'!J14 -> 68445.2072 | K62: ='A10-SerDel'!K14 -> 0
A63: ='A10-SerDel'!A16 -> Sanitation/sewerage: | B63: ='A10-SerDel'!C26 -> 28353.1644 | C63: ='A10-SerDel'!D26 -> 49941.782 | D63: ='A10-SerDel'!E26 -> 50441.19982 | E63: ='A10-SerDel'!F26 -> 50441.19982 | F63: ='A10-SerDel'!G26 -> 50441.19982 | G63: ='A10-SerDel'!H26 -> 50441.19982 | H63: ='A10-SerDel'!I26 -> 51197.81782 | I63: ='A10-SerDel'!I26 -> 51197.81782 | J63: ='A10-SerDel'!J26 -> 51965.78508 | K63: ='A10-SerDel'!K26 -> 52745.27186
A64: ='A10-SerDel'!A28 -> Energy: | B64: ='A10-SerDel'!C35 -> 0 | C64: ='A10-SerDel'!D35 -> 0 | D64: ='A10-SerDel'!E35 -> 0 | E64: ='A10-SerDel'!F35 -> 0 | F64: ='A10-SerDel'!G35 -> 0 | G64: ='A10-SerDel'!H35 -> 0 | H64: ='A10-SerDel'!I35 -> 0 | I64: ='A10-SerDel'!I35 -> 0 | J64: ='A10-SerDel'!J35 -> 0 | K64: ='A10-SerDel'!K35 -> 0
A65: ='A10-SerDel'!A37 -> Refuse: | B65: ='A10-SerDel'!C45 -> 0 | C65: ='A10-SerDel'!D45 -> 0 | D65: ='A10-SerDel'!E45 -> 0 | E65: ='A10-SerDel'!F45 -> 0 | F65: ='A10-SerDel'!G45 -> 0 | G65: ='A10-SerDel'!H45 -> 0 | H65: ='A10-SerDel'!I45 -> 0 | I65: ='A10-SerDel'!I45 -> 0 | J65: ='A10-SerDel'!J45 -> 0 | K65: ='A10-SerDel'!K45 -> 0

Sheet A2-FinPerf SC
A1: =muni&" - "&Approve3 -> DC28 King Cetshwayo - Table A2 Consolidated Budgeted Financial Performance (revenue and expenditure by functional classification)
A2: ="Functional Classification "&desc -> Functional Classification Description | B2: =head27 -> Ref | C2: =head1b -> 2016/17 | D2: =head1A -> 2017/18 | E2: =Head1 -> 2018/19 | F2: =Head2 -> Current Year 2019/20 | I2: =Head3 -> 2020/21 Medium Term Revenue & Expenditure Framework
A3: R thousand | B3: 1 | C3: =Head5 -> Audited Outcome | D3: =Head5 -> Audited Outcome | E3: =Head5 -> Audited Outcome | F3: =Head6 -> Original Budget | G3: =Head7 -> Adjusted Budget | H3: =Head8 -> Full Year Forecast | I3: =Head9 -> Budget Year 2020/21 | J3: =Head10 -> Budget Year +1 2021/22 | K3: =Head11 -> Budget Year +2 2022/23
A4: Revenue - Functional
A5: Governance and administration | C5: =SUM(C6:C8) -> 701202850 | D5: =SUM(D6:D8) -> 586030128.7 | E5: 522074261.2 | F5: 678253931 | G5: 782314041 | H5: 782314041 | I5: 594764936 | J5: 658712746 | K5: 716317450
A6: Executive and council | C6: =A2A!C6 -> 0 | D6: =A2A!D6 -> -1377.03 | E6: =A2A!E6 -> 0 | F6: =A2A!F6 -> 0 | G6: =A2A!G6 -> 0 | H6: =A2A!H6 -> 0 | I6: =A2A!I6 -> 0 | J6: =A2A!J6 -> 0 | K6: =A2A!K6 -> 0
A7: Finance and administration | C7: =A2A!C9 -> 701202850 | D7: =A2A!D9 -> 586031505.7 | E7: =A2A!E9 -> 522074261.2 | F7: =A2A!F9 -> 678253931 | G7: =A2A!G9 -> 782314041 | H7: =A2A!H9 -> 782314041 | I7: =A2A!I9 -> 594764936 | J7: =A2A!J9 -> 658712746 | K7: =A2A!K9 -> 716317450
A8: Internal audit | C8: =A2A!C23 -> 0 | D8: =A2A!D23 -> 0 | E8: =A2A!E23 -> 0 | F8: =A2A!F23 -> 0 | G8: =A2A!G23 -> 0 | H8: =A2A!H23 -> 0 | I8: =A2A!I23 -> 0 | J8: =A2A!J23 -> 0 | K8: =A2A!K23 -> 0
A9: Community and public safety | C9: =SUM(C10:C14) -> 174266 | D9: =SUM(D10:D14) -> 224603.27 | E9: 217110.92 | F9: 209151 | G9: 209151 | H9: 209151 | I9: 339200 | J9: 359552 | K9: 381125
A10: Community and social services | C10: =A2A!C26 -> 174266 | D10: =A2A!D26 -> 224603.27 | E10: =A2A!E26 -> 217110.92 | F10: =A2A!F26 -> 209151 | G10: =A2A!G26 -> 209151 | H10: =A2A!H26 -> 209151 | I10: =A2A!I26 -> 339200 | J10: =A2A!J26 -> 359552 | K10: =A2A!K26 -> 381125
A11: Sport and recreation | C11: =A2A!C48 -> 0 | D11: =A2A!D48 -> 0 | E11: =A2A!E48 -> 0 | F11: =A2A!F48 -> 0 | G11: =A2A!G48 -> 0 | H11: =A2A!H48 -> 0 | I11: =A2A!I48 -> 0 | J11: =A2A!J48 -> 0 | K11: =A2A!K48 -> 0
A12: Public safety | C12: =A2A!C54 -> 0 | D12: =A2A!D54 -> 0 | E12: =A2A!E54 -> 0 | F12: =A2A!F54 -> 0 | G12: =A2A!G54 -> 0 | H12: =A2A!H54 -> 0 | I12: =A2A!I54 -> 0 | J12: =A2A!J54 -> 0 | K12: =A2A!K54 -> 0
A13: Housing | C13: =A2A!C63 -> 0 | D13: =A2A!D63 -> 0 | E13: =A2A!E63 -> 0 | F13: =A2A!F63 -> 0 | G13: =A2A!G63 -> 0 | H13: =A2A!H63 -> 0 | I13: =A2A!I63 -> 0 | J13: =A2A!J63 -> 0 | K13: =A2A!K63 -> 0
A14: Health | C14: =A2A!C66 -> 0 | D14: =A2A!D66 -> 0 | E14: =A2A!E66 -> 0 | F14: =A2A!F66 -> 0 | G14: =A2A!G66 -> 0 | H14: =A2A!H66 -> 0 | I14: =A2A!I66 -> 0 | J14: =A2A!J66 -> 0 | K14: =A2A!K66 -> 0
A15: Economic and environmental services | C15: =SUM(C16:C18) -> 20648101 | D15: =SUM(D16:D18) -> 19095200 | E15: 19075232 | F15: 18391189 | G15: 18391189 | H15: 18391189 | I15: 19582947 | J15: 20669222 | K15: 21893698
A16: Planning and development | C16: =A2A!C75 -> 0 | D16: =A2A!D75 -> 0 | E16: =A2A!E75 -> 0 | F16: =A2A!F75 -> 0 | G16: =A2A!G75 -> 0 | H16: =A2A!H75 -> 0 | I16: =A2A!I75 -> 0 | J16: =A2A!J75 -> 0 | K16: =A2A!K75 -> 0
A17: Road transport | C17: =A2A!C86 -> 0 | D17: =A2A!D86 -> 0 | E17: =A2A!E86 -> 0 | F17: =A2A!F86 -> 0 | G17: =A2A!G86 -> 0 | H17: =A2A!H86 -> 0 | I17: =A2A!I86 -> 0 | J17: =A2A!J86 -> 0 | K17: =A2A!K86 -> 0
A18: Environmental protection | C18: =A2A!C91 -> 20648101 | D18: =A2A!D91 -> 19095200 | E18: =A2A!E91 -> 19075232 | F18: =A2A!F91 -> 18391189 | G18: =A2A!G91 -> 18391189 | H18: =A2A!H91 -> 18391189 | I18: =A2A!I91 -> 19582947 | J18: =A2A!J91 -> 20669222 | K18: =A2A!K91 -> 21893698
A19: Trading services | C19: =SUM(C20:C23) -> 266600253 | D19: =SUM(D20:D23) -> 337980491.4 | E19: 364472412.6 | F19: 318078483 | G19: 318478483 | H19: 318478483 | I19: 364720150 | J19: =SUM(J20:J23) -> 392940579 | K19: 430914907
A20: Energy sources | C20: =A2A!C99 -> 0 | D20: =A2A!D99 -> 0 | E20: =A2A!E99 -> 0 | F20: =A2A!F99 -> 0 | G20: =A2A!G99 -> 0 | H20: =A2A!H99 -> 0 | I20: =A2A!I99 -> 0 | J20: =A2A!J99 -> 0 | K20: =A2A!K99 -> 0
A21: Water management | C21: =A2A!C103 -> 222224378 | D21: =A2A!D103 -> 241881195 | E21: =A2A!E103 -> 261892127.4 | F21: =A2A!F103 -> 278597181 | G21: =A2A!G103 -> 278997181 | H21: =A2A!H103 -> 278997181 | I21: =A2A!I103 -> 313103282 | J21: =A2A!J103 -> 337826427 | K21: =A2A!K103 -> 362350052
A22: Waste water management | C22: =A2A!C107 -> 25403805 | D22: =A2A!D107 -> 75594184.94 | E22: =A2A!E107 -> 76362032.83 | F22: =A2A!F107 -> 7942714 | G22: =A2A!G107 -> 7942714 | H22: =A2A!H107 -> 7942714 | I22: =A2A!I107 -> 26444047 | J22: =A2A!J107 -> 24906767 | K22: =A2A!K107 -> 32315993
A23: Waste management | C23: =A2A!C112 -> 18972070 | D23: =A2A!D112 -> 20505111.46 | E23: =A2A!E112 -> 26218252.36 | F23: =A2A!F112 -> 31538588 | G23: =A2A!G112 -> 31538588 | H23: =A2A!H112 -> 31538588 | I23: =A2A!I112 -> 25172821 | J23: =A2A!J112 -> 30207385 | K23: =A2A!K112 -> 36248862
A24: Other | B24: 4 | C24: =A2A!C117 -> 30452270.57 | D24: =A2A!D117 -> 28930704.02 | E24: =A2A!E117 -> 34398187.63 | F24: =A2A!F117 -> 27947638 | G24: =A2A!G117 -> 0 | H24: =A2A!H117 -> 0 | I24: =A2A!I117 -> 0 | J24: =A2A!J117 -> 0 | K24: =A2A!K117 -> 0
A25: ="Total "&A4 -> Total Revenue - Functional | B25: 2 | C25: =C5+C9+C15+C19+C24 -> 1019077741 | D25: =D5+D9+D15+D19+D24 -> 972261127.4 | E25: =E5+E9+E15+E19+E24 -> 940237204.3 | F25: 1042880392 | G25: 1119392864 | H25: 1119392864 | I25: =I5+I9+I15+I19+I24 -> 979407233 | J25: 1072682099 | K25: 1169507180
A27: Expenditure - Functional
A28: Governance and administration | C28: =SUM(C29:C31) -> 136616319 | D28: =SUM(D29:D31) -> 142655669.3 | E28: 166793175.9 | F28: 201931825 | G28: 185609307 | H28: 185609307 | I28: 213512235 | J28: 218289922 | K28: 230083536
A29: Executive and council | C29: =A2A!C128 -> 25840695.47 | D29: =A2A!D128 -> 30287263.49 | E29: =A2A!E128 -> 42089234.7 | F29: =A2A!F128 -> 46413050 | G29: =A2A!G128 -> 39854436 | H29: =A2A!H128 -> 39854436 | I29: =A2A!I128 -> 42586913 | J29: =A2A!J128 -> 44872235 | K29: =A2A!K128 -> 47423979
A30: Finance and administration | C30: =A2A!C131 -> 110775623.5 | D30: =A2A!D131 -> 112368405.8 | E30: =A2A!E131 -> 124703941.2 | F30: =A2A!F131 -> 155518775 | G30: =A2A!G131 -> 145754871 | H30: =A2A!H131 -> 145754871 | I30: =A2A!I131 -> 161123842 | J30: =A2A!J131 -> 163056068 | K30: =A2A!K131 -> 171676244
A31: Internal audit | C31: =A2A!C145 -> 0 | D31: =A2A!D145 -> 0 | E31: =A2A!E145 -> 0 | F31: =A2A!F145 -> 0 | G31: =A2A!G145 -> 0 | H31: =A2A!H145 -> 0 | I31: =A2A!I145 -> 9801480 | J31: =A2A!J145 -> 10361619 | K31: =A2A!K145 -> 10983313
A32: Community and public safety | C32: =SUM(C33:C37) -> 49074004 | D32: =SUM(D33:D37) -> 47147294.17 | E32: 31546730.73 | F32: 31877404 | G32: 30986073 | H32: 30986073 | I32: 29980485 | J32: 33562137 | K32: 35437874
A33: Community and social services | C33: =A2A!C148 -> 31224362 | D33: =A2A!D148 -> 31010845.66 | E33: =A2A!E148 -> 31546511.98 | F33: =A2A!F148 -> 31877404 | G33: =A2A!G148 -> 30986073 | H33: =A2A!H148 -> 30986073 | I33: =A2A!I148 -> 29980485 | J33: =A2A!J148 -> 33562137 | K33: =A2A!K148 -> 35437874
A34: Sport and recreation | C34: =A2A!C170 -> 0 | D34: =A2A!D170 -> 0 | E34: =A2A!E170 -> 0 | F34: =A2A!F170 -> 0 | G34: =A2A!G170 -> 0 | H34: =A2A!H170 -> 0 | I34: =A2A!I170 -> 0 | J34: =A2A!J170 -> 0 | K34: =A2A!K170 -> 0
A35: Public safety | C35: =A2A!C176 -> 0 | D35: =A2A!D176 -> 0 | E35: =A2A!E176 -> 0 | F35: =A2A!F176 -> 0 | G35: =A2A!G176 -> 0 | H35: =A2A!H176 -> 0 | I35: =A2A!I176 -> 0 | J35: =A2A!J176 -> 0 | K35: =A2A!K176 -> 0
A36: Housing | C36: =A2A!C185 -> 0 | D36: =A2A!D185 -> 0 | E36: =A2A!E185 -> 0 | F36: =A2A!F185 -> 0 | G36: =A2A!G185 -> 0 | H36: =A2A!H185 -> 0 | I36: =A2A!I185 -> 0 | J36: =A2A!J185 -> 0 | K36: =A2A!K185 -> 0
A37: Health | C37: =A2A!C188 -> 17849642 | D37: =A2A!D188 -> 16136448.51 | E37: =A2A!E188 -> 218.75 | F37: =A2A!F188 -> 0 | G37: =A2A!G188 -> 0 | H37: =A2A!H188 -> 0 | I37: =A2A!I188 -> 0 | J37: =A2A!J188 -> 0 | K37: =A2A!K188 -> 0
A38: Economic and environmental services | C38: =SUM(C39:C41) -> 20766712 | D38: =SUM(D39:D41) -> 28080430.6 | E38: 54649558.39 | F38: 45962674 | G38: 38720642 | H38: 38720642 | I38: 44869112 | J38: 46851280 | K38: 49605710
A39: Planning and development | C39: =A2A!C197 -> 20766712 | D39: =A2A!D197 -> 25814608.96 | E39: =A2A!E197 -> 35882264.1 | F39: =A2A!F197 -> 24990574 | G39: =A2A!G197 -> 19597795 | H39: =A2A!H197 -> 19597795 | I39: =A2A!I197 -> 21510885 | J39: =A2A!J197 -> 22548068 | K39: =A2A!K197 -> 23813387
A40: Road transport | C40: =A2A!C208 -> 0 | D40: =A2A!D208 -> 0 | E40: =A2A!E208 -> 0 | F40: =A2A!F208 -> 0 | G40: =A2A!G208 -> 0 | H40: =A2A!H208 -> 0 | I40: =A2A!I208 -> 0 | J40: =A2A!J208 -> 0 | K40: =A2A!K208 -> 0
A41: Environmental protection | C41: =A2A!C213 -> 0 | D41: =A2A!D213 -> 2265821.64 | E41: =A2A!E213 -> 18767294.29 | F41: =A2A!F213 -> 20972100 | G41: =A2A!G213 -> 19122847 | H41: =A2A!H213 -> 19122847 | I41: =A2A!I213 -> 23358227 | J41: =A2A!J213 -> 24303212 | K41: =A2A!K213 -> 25792323
A42: Trading services | C42: =SUM(C43:C46) -> 485200722 | D42: =SUM(D43:D46) -> 615564008 | E42: 613877774.7 | F42: =SUM(F43:F46) -> 517845501 | G42: 625988649 | H42: 625988649 | I42: 505435540 | J42: 569698509 | K42: =SUM(K43:K46) -> 623692427
A43: Energy sources | C43: =A2A!C221 -> 0 | D43: =A2A!D221 -> 0 | E43: =A2A!E221 -> 0 | F43: =A2A!F221 -> 0 | G43: =A2A!G221 -> 0 | H43: =A2A!H221 -> 0 | I43: =A2A!I221 -> 0 | J43: =A2A!J221 -> 0 | K43: =A2A!K221 -> 0
A44: Water management | C44: =A2A!C225 -> 423414935 | D44: =A2A!D225 -> 474798706.4 | E44: =A2A!E225 -> 546030183.3 | F44: =A2A!F225 -> 479679257 | G44: =A2A!G225 -> 590381209 | H44: =A2A!H225 -> 590381209 | I44: =A2A!I225 -> 449891481 | J44: =A2A!J225 -> 507346286 | K44: =A2A!K225 -> 552181533
A45: Waste water management | C45: =A2A!C229 -> 26650525 | D45: =A2A!D229 -> 111782261.1 | E45: =A2A!E229 -> 46798929.92 | F45: =A2A!F229 -> 14319638 | G45: =A2A!G229 -> 10455130 | H45: =A2A!H229 -> 10455130 | I45: =A2A!I229 -> 31563017 | J45: =A2A!J229 -> 33321099 | K45: =A2A!K229 -> 41471112
A46: Waste management | C46: =A2A!C234 -> 35135262 | D46: =A2A!D234 -> 28983040.55 | E46: =A2A!E234 -> 21048661.52 | F46: =A2A!F234 -> 23846606 | G46: =A2A!G234 -> 25152310 | H46: =A2A!H234 -> 25152310 | I46: =A2A!I234 -> 23981042 | J46: =A2A!J234 -> 29031124 | K46: =A2A!K234 -> 30039782
A47: Other | B47: 4 | C47: =A2A!C239 -> 30104324 | D47: =A2A!D239 -> 32637315.02 | E47: =A2A!E239 -> 23613088.73 | F47: =A2A!F239 -> 28597638 | G47: =A2A!G239 -> 3120387 | H47: =A2A!H239 -> 3120387 | I47: =A2A!I239 -> 0 | J47: =A2A!J239 -> 0 | K47: =A2A!K239 -> 0
A48: ="Total "&A27 -> Total Expenditure - Functional | B48: 3 | C48: =C28+C32+C38+C42+C47 -> 721762081 | D48: =D28+D32+D38+D42+D47 -> 866084717.1 | E48: =E28+E32+E38+E42+E47 -> 890480328.5 | F48: =F28+F32+F38+F42+F47 -> 826215042 | G48: 884425058 | H48: 884425058 | I48: 793797372 | J48: 868401848 | K48: 938819547
A49: =result -> Surplus/(Deficit) for the year | C49: =C25-C48 -> 297315659.6 | D49: =D25-D48 -> 106176410.3 | E49: 49756875.8 | F49: 216665350 | G49: 234967806 | H49: 234967806 | I49: 185609861 | J49: 204280251 | K49: 230687633
A50: =head27a -> References
A51: 1. Government Finance Statistics Functions and Sub-functions are standardised to assist the compilation of national and international accounts for comparison purposes
A52: 2. Total Revenue by functional classification must reconcile to Total Operating Revenue shown in Budgeted Financial Performance (revenue and expenditure)
A53: 3. Total Expenditure by Functional Classification must reconcile to Total Operating Expenditure shown in Budgeted Financial Performance (revenue and expenditure)
A54: 4. All amounts must be classified under a functional classification . The GFS function 'Other' is only for Abbatoirs, Air Transport, Forestry, Licensing and Regulation, Markets and Tourism - and if used must be supported by footnotes. Nothing else may be placed under 'Other'. Assign associate share to relevant classification.
A57: check oprev balance | C57: =C25-'A4-FinPerf RE'!C59 -> 0 | D57: =D25-'A4-FinPerf RE'!D59 -> 0 | E57: =E25-'A4-FinPerf RE'!E59 -> 0 | F57: =F25-'A4-FinPerf RE'!F59 -> 0 | G57: =G25-'A4-FinPerf RE'!G59 -> 0 | H57: =H25-'A4-FinPerf RE'!H59 -> 0 | I57: =I25-'A4-FinPerf RE'!J59 -> 0 | J57: =J25-'A4-FinPerf RE'!K59 -> 0 | K57: =K25-'A4-FinPerf RE'!L59 -> 0
A58: check opexp balance | C58: =C48-'A4-FinPerf RE'!C35 -> 0 | D58: =D48-'A4-FinPerf RE'!D35 -> 0 | E58: =E48-'A4-FinPerf RE'!E35 -> 0 | F58: =F48-'A4-FinPerf RE'!F35 -> 0 | G58: =G48-'A4-FinPerf RE'!G35 -> 0 | H58: =H48-'A4-FinPerf RE'!H35 -> 0 | I58: =I48-'A4-FinPerf RE'!J35 -> 0 | J58: =J48-'A4-FinPerf RE'!K35 -> 0 | K58: =K48-'A4-FinPerf RE'!L35 -> 0

Sheet A2A
A1: =muni&" - "&Approve3 -> DC28 King Cetshwayo - Table A2 Consolidated Budgeted Financial Performance (revenue and expenditure by functional classification)
A2: ="Functional Classification "&desc -> Functional Classification Description | B2: =head27 -> Ref | C2: =head1b -> 2016/17 | D2: =head1A -> 2017/18 | E2: =Head1 -> 2018/19 | F2: =Head2 -> Current Year 2019/20 | I2: =Head3 -> 2020/21 Medium Term Revenue & Expenditure Framework
A3: R thousand | B3: 1 | C3: =Head5 -> Audited Outcome | D3: =Head5 -> Audited Outcome | E3: =Head5 -> Audited Outcome | F3: =Head6 -> Original Budget | G3: =Head7 -> Adjusted Budget | H3: =Head8 -> Full Year Forecast | I3: =Head9 -> Budget Year 2020/21 | J3: =Head10 -> Budget Year +1 2021/22 | K3: =Head11 -> Budget Year +2 2022/23
A4: Revenue - Functional
A5: Municipal governance and administration | C5: =C6+C9+C23 -> 701202850 | D5: 586030128.7 | E5: 522074261.2 | F5: 678253931 | G5: 782314041 | H5: 782314041 | I5: 594764936 | J5: 658712746 | K5: 716317450
A6: Executive and council | C6: =SUM(C7:C8) -> 0 | D6: =SUM(D7:D8) -> -1377.03 | E6: 0 | F6: 0 | G6: 0 | H6: 0 | I6: 0 | J6: 0 | K6: 0
A7: Mayor and Council | C7: 0 | D7: -1377.03 | E7: 0 | F7: 0 | G7: 0 | H7: 0 | I7: 0 | J7: 0 | K7: 0
A8: Municipal Manager, Town Secretary and Chief Executive | C8: 0 | D8: 0 | E8: 0 | F8: 0 | G8: 0 | H8: 0 | I8: 0 | J8: 0 | K8: 0
A9: Finance and administration | C9: =SUM(C10:C22) -> 701202850 | D9: 586031505.7 | E9: 522074261.2 | F9: 678253931 | G9: 782314041 | H9: 782314041 | I9: 594764936 | J9: 658712746 | K9: 716317450
A10: Administrative and Corporate Support | C10: 0 | D10: 0 | E10: 0 | F10: 0 | G10: 0 | H10: 0 | I10: 0 | J10: 0 | K10: 0
A11: Asset Management
A12: Finance | C12: 700931769 | D12: 585614992 | E12: 521838693.5 | F12: 678253931 | G12: 781861809 | H12: 781861809 | I12: 594764936 | J12: 658712746 | K12: 716317450
A13: Fleet Management
A14: Human Resources | C14: 271081 | D14: 416513.66 | E14: 235567.62 | F14: 0 | G14: 452232 | H14: 452232 | I14: 0 | J14: 0 | K14: 0
A15: Information Technology | C15: 0 | D15: 0 | E15: 0 | F15: 0 | G15: 0 | H15: 0 | I15: 0 | J15: 0 | K15: 0
A16: Legal Services
A17: Marketing, Customer Relations, Publicity and Media Co-ordination
A18: Property Services | C18: 0 | D18: 0 | E18: 0 | F18: 0 | G18: 0 | H18: 0 | I18: 0 | J18: 0 | K18: 0
A19: Risk Management
A20: Security Services
A21: Supply Chain Management
A22: Valuation Service
A23: Internal audit | C23: =SUM(C24:C24) -> 0 | D23: 0 | E23: 0 | F23: 0 | G23: 0 | H23: 0 | I23: 0 | J23: 0 | K23: 0
A24: Governance Function
A25: Community and public safety | C25: =C26+C48+C54+C63+C66 -> 174266 | D25: 224603.27 | E25: 217110.92 | F25: 209151 | G25: 209151 | H25: 209151 | I25: 339200 | J25: 359552 | K25: 381125
A26: Community and social services | C26: =SUM(C27:C47) -> 174266 | D26: =SUM(D27:D47) -> 224603.27 | E26: 217110.92 | F26: 209151 | G26: 209151 | H26: 209151 | I26: 339200 | J26: 359552 | K26: 381125
A27: Aged Care
A28: Agricultural
A29: Animal Care and Diseases
A30: Cemeteries, Funeral Parlours and Crematoriums | C30: 174266 | D30: 224603.27 | E30: 217110.92 | F30: 209151 | G30: 209151 | H30: 209151 | I30: 339200 | J30: 359552 | K30: 381125
A31: Child Care Facilities
A32: Community Halls and Facilities
A33: Consumer Protection
A34: Cultural Matters
A35: Disaster Management | C35: 0 | D35: 0 | E35: 0 | F35: 0 | G35: 0 | H35: 0 | I35: 0 | J35: 0 | K35: 0
A36: Education | C36: 0 | D36: 0 | E36: 0 | F36: 0 | G36: 0 | H36: 0 | I36: 0 | J36: 0 | K36: 0
A37: Indigenous and Customary Law
A38: Industrial Promotion
A39: Language Policy
A40: Libraries and Archives
A41: Literacy Programmes
A42: Media Services
A43: Museums and Art Galleries
A44: Population Development
A45: Provincial Cultural Matters
A46: Theatres
A47: Zoo's
A48: Sport and recreation | C48: =SUM(C49:C53) -> 0 | D48: =SUM(D49:D53) -> 0 | E48: 0 | F48: 0 | G48: 0 | H48: 0 | I48: 0 | J48: 0 | K48: 0
A49: Beaches and Jetties
A50: Casinos, Racing, Gambling, Wagering
A51: Community Parks (including Nurseries)
A52: Recreational Facilities
A53: Sports Grounds and Stadiums
A54: Public safety | C54: =SUM(C55:C62) -> 0 | D54: 0 | E54: 0 | F54: 0 | G54: 0 | H54: 0 | I54: 0 | J54: 0 | K54: 0
A55: Civil Defence
A56: Cleansing
A57: Control of Public Nuisances
A58: Fencing and Fences
A59: Fire Fighting and Protection
A60: Licensing and Control of Animals
A61: Police Forces, Traffic and Street Parking Control
A62: Pounds
A63: Housing | C63: =SUM(C64:C65) -> 0 | D63: =SUM(D64:D65) -> 0 | E63: 0 | F63: 0 | G63: 0 | H63: 0 | I63: 0 | J63: 0 | K63: 0
A64: Housing
A65: Informal Settlements
A66: Health | C66: =SUM(C67:C73) -> 0 | D66: =SUM(D67:D73) -> 0 | E66: 0 | F66: 0 | G66: 0 | H66: 0 | I66: 0 | J66: 0 | K66: 0
A67: Ambulance
A68: Health Services | C68: 0 | D68: 0 | E68: 0 | F68: 0 | G68: 0 | H68: 0 | I68: 0 | J68: 0 | K68: 0
A69: Laboratory Services
A70: Food Control
A71: Health Surveillance and Prevention of Communicable Diseases including immunizations
A72: Vector Control
A73: Chemical Safety
A74: Economic and environmental services | C74: =C75+C86+C91 -> 20648101 | D74: 19095200 | E74: 19075232 | F74: 18391189 | G74: 18391189 | H74: 18391189 | I74: 19582947 | J74: 20669222 | K74: 21893698
A75: Planning and development | C75: =SUM(C76:C85) -> 0 | D75: =SUM(D76:D85) -> 0 | E75: 0 | F75: 0 | G75: 0 | H75: 0 | I75: 0 | J75: 0 | K75: 0
A76: Billboards
A77: Corporate Wide Strategic Planning (IDPs, LEDs) | C77: 0 | D77: 0 | E77: 0 | F77: 0 | G77: 0 | H77: 0 | I77: 0 | J77: 0 | K77: 0
A78: Central City Improvement District
A79: Development Facilitation
A80: Economic Development/Planning
A81: Regional Planning and Development
A82: Town Planning, Building Regulations and Enforcement, and City Engineer
A83: Project Management Unit
A84: Provincial Planning
A85: Support to Local Municipalities
A86: Road transport | C86: =SUM(C87:C90) -> 0 | D86: 0 | E86: 0 | F86: 0 | G86: 0 | H86: 0 | I86: 0 | J86: 0 | K86: 0
A87: Public Transport
A88: Road and Traffic Regulation
A89: Roads
A90: Taxi Ranks
A91: Environmental protection | C91: =SUM(C92:C97) -> 20648101 | D91: =SUM(D92:D97) -> 19095200 | E91: 19075232 | F91: 18391189 | G91: 18391189 | H91: 18391189 | I91: 19582947 | J91: 20669222 | K91: 21893698
A92: Biodiversity and Landscape
A93: Coastal Protection
A94: Indigenous Forests
A95: Nature Conservation | C95: 20648101 | D95: 19075200 | E95: 19035232 | F95: 18321189 | G95: 18321189 | H95: 18321189 | I95: 19508747 | J95: 20589222 | K95: 21808698
A96: Pollution Control | C96: 0 | D96: 20000 | E96: 40000 | F96: 70000 | G96: 70000 | H96: 70000 | I96: 74200 | J96: 80000 | K96: 85000
A97: Soil Conservation
A98: Trading services | C98: =C99+C103+C107+C112 -> 266600253 | D98: =D99+D103+D107+D112 -> 337980491.4 | E98: 364472412.6 | F98: 318078483 | G98: 318478483 | H98: 318478483 | I98: 364720150 | J98: 392940579 | K98: =K99+K103+K107+K112 -> 430914907
A99: Energy sources | C99: =SUM(C100:C102) -> 0 | D99: =SUM(D100:D102) -> 0 | E99: 0 | F99: 0 | G99: 0 | H99: 0 | I99: 0 | J99: 0 | K99: 0
A100: Electricity
A101: Street Lighting and Signal Systems
A102: Nonelectric Energy
A103: Water management | C103: =SUM(C104:C106) -> 222224378 | D103: =SUM(D104:D106) -> 241881195 | E103: 261892127.4 | F103: 278597181 | G103: 278997181 | H103: 278997181 | I103: 313103282 | J103: 337826427 | K103: 362350052
A104: Water Treatment
A105: Water Distribution | C105: 222224378 | D105: 241881195 | E105: 261892127.4 | F105: 278597181 | G105: 278997181 | H105: 278997181 | I105: 313103282 | J105: 337826427 | K105: 362350052
A106: Water Storage
A107: Waste water management | C107: =SUM(C108:C111) -> 25403805 | D107: =SUM(D108:D111) -> 75594184.94 | E107: 76362032.83 | F107: 7942714 | G107: 7942714 | H107: 7942714 | I107: 26444047 | J107: 24906767 | K107: 32315993
A108: Public Toilets
A109: Sewerage
A110: Storm Water Management
A111: Waste Water Treatment | C111: 25403805 | D111: 75594184.94 | E111: 76362032.83 | F111: 7942714 | G111: 7942714 | H111: 7942714 | I111: 26444047 | J111: 24906767 | K111: 32315993
A112: Waste management | C112: =SUM(C113:C116) -> 18972070 | D112: =SUM(D113:D116) -> 20505111.46 | E112: 26218252.36 | F112: 31538588 | G112: 31538588 | H112: 31538588 | I112: 25172821 | J112: 30207385 | K112: 36248862
A113: Recycling
A114: Solid Waste Disposal (Landfill Sites) | C114: 18972070 | D114: 20505111.46 | E114: 26218252.36 | F114: 31538588 | G114: 31538588 | H114: 31538588 | I114: 25172821 | J114: 30207385 | K114: 36248862
A115: Solid Waste Removal
A116: Street Cleaning
A117: Other | C117: =SUM(C118:C123) -> 30452270.57 | D117: =SUM(D118:D123) -> 28930704.02 | E117: 34398187.63 | F117: 27947638 | G117: 0 | H117: 0 | I117: 0 | J117: 0 | K117: 0
A118: Abattoirs
A119: Air Transport
A120: Forestry
A121: Licensing and Regulation
A122: Markets | C122: 30452270.57 | D122: 28930704.02 | E122: 34398187.63 | F122: 27947638 | G122: 0 | H122: 0 | I122: 0 | J122: 0 | K122: 0
A123: Tourism
A124: ="Total "&A4 -> Total Revenue - Functional | B124: 2 | C124: =C5+C25+C74+C98+C117 -> 1019077741 | D124: 972261127.4 | E124: 940237204.3 | F124: 1042880392 | G124: 1119392864 | H124: 1119392864 | I124: 979407233 | J124: 1072682099 | K124: 1169507180
A126: Expenditure - Functional
A127: =A5 -> Municipal governance and administration | C127: =C128+C131+C145 -> 136616319 | D127: 142655669.3 | E127: 166793175.9 | F127: 201931825 | G127: 185609307 | H127: 185609307 | I127: 213512235 | J127: 218289922 | K127: 230083536
A128: Executive and council | C128: =SUM(C129:C130) -> 25840695.47 | D128: 30287263.49 | E128: 42089234.7 | F128: 46413050 | G128: 39854436 | H128: 39854436 | I128: 42586913 | J128: 44872235 | K128: 47423979
A129: Mayor and Council | C129: 14546025.61 | D129: 20124216.61 | E129: 23850428.89 | F129: 36953341 | G129: 31836557 | H129: 31836557 | I129: 31543019 | J129: 33152801 | K129: 35016252
A130: Municipal Manager, Town Secretary and Chief Executive | C130: 11294669.86 | D130: 10163046.88 | E130: 18238805.81 | F130: 9459709 | G130: 8017879 | H130: 8017879 | I130: 11043894 | J130: 11719434 | K130: 12407727
A131: Finance and administration | C131: =SUM(C132:C144) -> 110775623.5 | D131: 112368405.8 | E131: 124703941.2 | F131: 155518775 | G131: 145754871 | H131: 145754871 | I131: 161123842 | J131: 163056068 | K131: 171676244
A132: Administrative and Corporate Support | C132: 12200689.53 | D132: 24713711.14 | E132: 26972230.21 | F132: 37505674 | G132: 37820329 | H132: 37820329 | I132: 42766271 | J132: 41041604 | K132: 43220467
A133: Asset Management
A134: Finance | C134: 45363523 | D134: 47298510.87 | E134: 56324758.14 | F134: 67872337 | G134: 63192894 | H134: 63192894 | I134: 68503762 | J134: 69805428 | K134: 73717657
A135: Fleet Management
A136: Human Resources | C136: 21479425.42 | D136: 14441374.51 | E136: 14777813.77 | F136: 17298011 | G136: 15196093 | H136: 15196093 | I136: 15194138 | J136: 16130586 | K136: 17078643
A137: Information Technology | C137: 5508412.088 | D137: 10702024.96 | E137: 11313179.53 | F137: 14343121 | G137: 13296523 | H137: 13296523 | I137: 15855861 | J137: 16739529 | K137: 17816129
A138: Legal Services
A139: Marketing, Customer Relations, Publicity and Media Co-ordination
A140: Property Services | C140: 26223573.49 | D140: 15212784.35 | E140: 15315959.57 | F140: 18499632 | G140: 16249032 | H140: 16249032 | I140: 18803810 | J140: 19338921 | K140: 19843348
A141: Risk Management
A142: Security Services
A143: Supply Chain Management
A144: Valuation Service
A145: Internal audit | C145: =SUM(C146:C146) -> 0 | D145: 0 | E145: 0 | F145: 0 | G145: 0 | H145: 0 | I145: 9801480 | J145: 10361619 | K145: 10983313
A146: Governance Function | C146: 0 | D146: 0 | E146: 0 | F146: 0 | G146: 0 | H146: 0 | I146: 9801480 | J146: 10361619 | K146: 10983313
A147: Community and public safety | C147: =C148+C170+C176+C185+C188 -> 49074004 | D147: 47147294.17 | E147: 31546730.73 | F147: 31877404 | G147: 30986073 | H147: 30986073 | I147: 29980485 | J147: 33562137 | K147: 35437874
A148: Community and social services | C148: =SUM(C149:C169) -> 31224362 | D148: =SUM(D149:D169) -> 31010845.66 | E148: 31546511.98 | F148: 31877404 | G148: 30986073 | H148: 30986073 | I148: 29980485 | J148: 33562137 | K148: 35437874
A149: Aged Care
A150: Agricultural
A151: Animal Care and Diseases
A152: Cemeteries, Funeral Parlours and Crematoriums | C152: 0 | D152: 2960333.38 | E152: 3654383.83 | F152: 4306023 | G152: 4265940 | H152: 4265940 | I152: 4359602 | J152: 4572594 | K152: 4802196
A153: Child Care Facilities
A154: Community Halls and Facilities
A155: Consumer Protection
A156: Cultural Matters
A157: Disaster Management | C157: 5092939 | D157: 5651092.25 | E157: 7210245.48 | F157: 8106169 | G157: 7988720 | H157: 7988720 | I157: 8975004 | J157: 9165903 | K157: 9691136
A158: Education | C158: 26131423 | D158: 22399420.03 | E158: 20681882.67 | F158: 19465212 | G158: 18731413 | H158: 18731413 | I158: 16645879 | J158: 19823640 | K158: 20944542
A159: =A37 -> Indigenous and Customary Law
A160: Industrial Promotion
A161: Language Policy
A162: Libraries and Archives
A163: Literacy Programmes
A164: Media Services
A165: Museums and Art Galleries
A166: Population Development
A167: Provincial Cultural Matters
A168: Theatres
A169: Zoo's
A170: Sport and recreation | C170: =SUM(C171:C175) -> 0 | D170: 0 | E170: 0 | F170: 0 | G170: 0 | H170: 0 | I170: 0 | J170: 0 | K170: 0
A171: Beaches and Jetties
A172: Casinos, Racing, Gambling, Wagering
A173: Community Parks (including Nurseries)
A174: Recreational Facilities
A175: Sports Grounds and Stadiums
A176: Public safety | C176: =SUM(C177:C184) -> 0 | D176: 0 | E176: 0 | F176: 0 | G176: 0 | H176: 0 | I176: 0 | J176: 0 | K176: 0
A177: Civil Defence
A178: Cleansing
A179: =A57 -> Control of Public Nuisances
A180: Fencing and Fences
A181: Fire Fighting and Protection
A182: Licensing and Control of Animals
A183: Police Forces, Traffic and Street Parking Control
A184: Pounds
A185: =A63 -> Housing | C185: =SUM(C186:C187) -> 0 | D185: 0 | E185: 0 | F185: 0 | G185: 0 | H185: 0 | I185: 0 | J185: 0 | K185: 0
A186: Housing
A187: Informal Settlements
A188: Health | C188: =SUM(C189:C195) -> 17849642 | D188: =SUM(D189:D195) -> 16136448.51 | E188: 218.75 | F188: 0 | G188: 0 | H188: 0 | I188: 0 | J188: 0 | K188: 0
A189: Ambulance
A190: Health Services | C190: 17849642 | D190: 16136448.51 | E190: 218.75 | F190: 0 | G190: 0 | H190: 0 | I190: 0 | J190: 0 | K190: 0
A191: Laboratory Services
A192: Food Control
A193: Health Surveillance and Prevention of Communicable Diseases including immunizations
A194: Vector Control
A195: Chemical Safety
A196: Economic and environmental services | C196: =C197+C208+C213 -> 20766712 | D196: 28080430.6 | E196: 54649558.39 | F196: 45962674 | G196: 38720642 | H196: 38720642 | I196: 44869112 | J196: 46851280 | K196: 49605710
A197: Planning and development | C197: =SUM(C198:C207) -> 20766712 | D197: =SUM(D198:D207) -> 25814608.96 | E197: 35882264.1 | F197: 24990574 | G197: 19597795 | H197: 19597795 | I197: 21510885 | J197: 22548068 | K197: 23813387
A198: Billboards
A199: Corporate Wide Strategic Planning (IDPs, LEDs) | C199: 20766712 | D199: 25814608.96 | E199: 35882264.1 | F199: 24990574 | G199: 19597795 | H199: 19597795 | I199: 21510885 | J199: 22548068 | K199: 23813387
A200: Central City Improvement District
A201: Development Facilitation
... 53 more rows

Sheet A3-FinPerf V
A1: =muni&" - "&Approve2 -> DC28 King Cetshwayo - Table A3 Consolidated Budgeted Financial Performance (revenue and expenditure by municipal vote)
A2: =Vdesc -> Vote Description | B2: =head27 -> Ref | C2: =head1b -> 2016/17 | D2: =head1A -> 2017/18 | E2: =Head1 -> 2018/19 | F2: =Head2 -> Current Year 2019/20 | I2: =Head3 -> 2020/21 Medium Term Revenue & Expenditure Framework | L2: =Head4 -> LTFS
A3: R thousand | C3: =Head5 -> Audited Outcome | D3: =Head5 -> Audited Outcome | E3: =Head5 -> Audited Outcome | F3: =Head6 -> Original Budget | G3: =Head7 -> Adjusted Budget | H3: =Head8 -> Full Year Forecast | I3: =Head9 -> Budget Year 2020/21 | J3: =Head10 -> Budget Year +1 2021/22 | K3: =Head11 -> Budget Year +2 2022/23 | L3: =Head12 -> Forecast 2023/24 | M3: =Head13 -> Forecast 2024/25 | N3: =Head14 -> Forecast 2025/26 | O3: =Head15 -> Forecast 2026/27 | P3: =Head16 -> Forecast 2027/28 | Q3: =Head17 -> Forecast 2028/29 | R3: =Head18 -> Forecast 2029/30 | S3: =Head19 -> Forecast 2030/31 | T3: =Head20 -> Forecast 2031/32 | U3: =Head21 -> Forecast 2032/33 | V3: =Head22 -> Forecast 2033/34 | W3: =Head23 -> Forecast 2034/35
A4: Revenue by Vote | B4: 1
A5: =A3A!A5 -> Vote 01 - Executive & Council | C5: =A3A!C5 -> 0 | D5: =A3A!D5 -> -1377.03 | E5: =A3A!E5 -> 0 | F5: =A3A!F5 -> 0 | G5: =A3A!G5 -> 0 | H5: =A3A!H5 -> 0 | I5: =A3A!I5 -> 0 | J5: =A3A!J5 -> 0 | K5: =A3A!K5 -> 0
A6: =A3A!A17 -> Vote 02 - Economic Development, Planning & Environment | C6: =A3A!C17 -> 0 | D6: =A3A!D17 -> 0 | E6: =A3A!E17 -> 0 | F6: =A3A!F17 -> 0 | G6: =A3A!G17 -> 0 | H6: =A3A!H17 -> 0 | I6: =A3A!I17 -> 0 | J6: =A3A!J17 -> 0 | K6: =A3A!K17 -> 0
A7: =A3A!A22 -> Vote 03 - Community & Social Services | C7: =A3A!C22 -> 174266 | D7: =A3A!D22 -> 224603.27 | E7: =A3A!E22 -> 217110.92 | F7: =A3A!F22 -> 209151 | G7: =A3A!G22 -> 209151 | H7: =A3A!H22 -> 209151 | I7: =A3A!I22 -> 339200 | J7: =A3A!J22 -> 359552 | K7: =A3A!K22 -> 381125
A8: ='Org structure'!A5 -> Vote 04 - Public Safety | C8: =A3A!C27 -> 0 | D8: =A3A!D27 -> 0 | E8: =A3A!E27 -> 0 | F8: =A3A!F27 -> 0 | G8: =A3A!G27 -> 0 | H8: =A3A!H27 -> 0 | I8: =A3A!I27 -> 0 | J8: =A3A!J27 -> 0 | K8: =A3A!K27 -> 0
A9: =A3A!A28 -> Vote 05 - Environmental Health | C9: =A3A!C28 -> 20648101 | D9: =A3A!D28 -> 19095200 | E9: =A3A!E28 -> 19075232 | F9: =A3A!F28 -> 18391189 | G9: =A3A!G28 -> 18391189 | H9: =A3A!H28 -> 18391189 | I9: =A3A!I28 -> 19582947 | J9: =A3A!J28 -> 20669222 | K9: =A3A!K28 -> 21893698
A10: =A3A!A31 -> Vote 06 - Finance & Administration | C10: =A3A!C31 -> 701202850 | D10: =A3A!D31 -> 586031505.7 | E10: =A3A!E31 -> 522074261.2 | F10: =A3A!F31 -> 678253931 | G10: =A3A!G31 -> 782314041 | H10: =A3A!H31 -> 782314041 | I10: =A3A!I31 -> 594764936 | J10: =A3A!J31 -> 658712746 | K10: =A3A!K31 -> 716317450
A11: =A3A!A50 -> Vote 07 - Infrastructure Services | C11: =A3A!C50 -> 222224378 | D11: =A3A!D50 -> 241881195 | E11: =A3A!E50 -> 261892127.4 | F11: =A3A!F50 -> 278597181 | G11: =A3A!G50 -> 278997181 | H11: =A3A!H50 -> 278997181 | I11: =A3A!I50 -> 313103282 | J11: =A3A!J50 -> 337826427 | K11: =A3A!K50 -> 362350052
A12: =A3A!A67 -> Vote 08 - Waste Management | C12: =A3A!C67 -> 18972070 | D12: =A3A!D67 -> 20505111.46 | E12: =A3A!E67 -> 26218252.36 | F12: =A3A!F67 -> 31538588 | G12: =A3A!G67 -> 31538588 | H12: =A3A!H67 -> 31538588 | I12: =A3A!I67 -> 25172821 | J12: =A3A!J67 -> 30207385 | K12: =A3A!K67 -> 36248862
A13: =A3A!A69 -> Vote 09 - Waste Water Management | C13: =A3A!C69 -> 25403805 | D13: =A3A!D69 -> 75594184.94 | E13: =A3A!E69 -> 76362032.83 | F13: =A3A!F69 -> 7942714 | G13: =A3A!G69 -> 7942714 | H13: =A3A!H69 -> 7942714 | I13: =A3A!I69 -> 26444047 | J13: =A3A!J69 -> 24906767 | K13: =A3A!K69 -> 32315993
A14: =A3A!A72 -> Vote 10 - King Cetshwayo Fresh Produce Market | C14: =A3A!C72 -> 30452270.57 | D14: =A3A!D72 -> 28930704.02 | E14: =A3A!E72 -> 34398187.63 | F14: =A3A!F72 -> 27947638 | G14: =A3A!G72 -> 0 | H14: =A3A!H72 -> 0 | I14: =A3A!I72 -> 0 | J14: =A3A!J72 -> 0 | K14: =A3A!K72 -> 0
A15: ='Org structure'!A12 -> Vote 11 - | C15: =A3A!C78 -> 0 | D15: =A3A!D78 -> 0 | E15: =A3A!E78 -> 0 | F15: =A3A!F78 -> 0 | G15: =A3A!G78 -> 0 | H15: =A3A!H78 -> 0 | I15: =A3A!I78 -> 0 | J15: =A3A!J78 -> 0 | K15: =A3A!K78 -> 0 | L15: =A5A!#REF! -> 
A16: ='Org structure'!A13 -> Vote 12 - | C16: =A3A!C79 -> 0 | D16: =A3A!D79 -> 0 | E16: =A3A!E79 -> 0 | F16: =A3A!F79 -> 0 | G16: =A3A!G79 -> 0 | H16: =A3A!H79 -> 0 | I16: =A3A!I79 -> 0 | J16: =A3A!J79 -> 0 | K16: =A3A!K79 -> 0 | L16: =A5A!#REF! -> 
A17: ='Org structure'!A14 -> Vote 13 - | C17: =A3A!C80 -> 0 | D17: =A3A!D80 -> 0 | E17: =A3A!E80 -> 0 | F17: =A3A!F80 -> 0 | G17: =A3A!G80 -> 0 | H17: =A3A!H80 -> 0 | I17: =A3A!I80 -> 0 | J17: =A3A!J80 -> 0 | K17: =A3A!K80 -> 0 | L17: =A5A!#REF! -> 
A18: ='Org structure'!A15 -> Vote 14 - | C18: =A3A!C81 -> 0 | D18: =A3A!D81 -> 0 | E18: =A3A!E81 -> 0 | F18: =A3A!F81 -> 0 | G18: =A3A!G81 -> 0 | H18: =A3A!H81 -> 0 | I18: =A3A!I81 -> 0 | J18: =A3A!J81 -> 0 | K18: =A3A!K81 -> 0 | L18: =A5A!#REF! -> 
A19: ='Org structure'!A16 -> Vote 15 - Other | C19: =A3A!C82 -> 0 | D19: =A3A!D82 -> 0 | E19: =A3A!E82 -> 0 | F19: =A3A!F82 -> 0 | G19: =A3A!G82 -> 0 | H19: =A3A!H82 -> 0 | I19: =A3A!I82 -> 0 | J19: =A3A!J82 -> 0 | K19: =A3A!K82 -> 0 | L19: =A5A!#REF! -> 
A20: Total Revenue by Vote | B20: 2 | C20: =SUM(C5:C19) -> 1019077741 | D20: =SUM(D5:D19) -> 972261127.4 | E20: 940237204.3 | F20: 1042880392 | G20: 1119392864 | H20: 1119392864 | I20: 979407233 | J20: 1072682099 | K20: 1169507180
A22: Expenditure by Vote to be appropriated | B22: 1
A23: =A3A!A86 -> Vote 01 - Executive & Council | C23: =A3A!C86 -> 38041385 | D23: =A3A!D86 -> 55000974.63 | E23: =A3A!E86 -> 69061464.91 | F23: =A3A!F86 -> 83918724 | G23: =A3A!G86 -> 77674765 | H23: =A3A!H86 -> 77674765 | I23: =A3A!I86 -> 95154664 | J23: =A3A!J86 -> 96275458 | K23: =A3A!K86 -> 101627759
A24: =A3A!A98 -> Vote 02 - Economic Development, Planning & Environment | C24: =A3A!C98 -> 20766712 | D24: =A3A!D98 -> 25814608.96 | E24: =A3A!E98 -> 35882264.1 | F24: =A3A!F98 -> 24990574 | G24: =A3A!G98 -> 19597795 | H24: =A3A!H98 -> 19597795 | I24: =A3A!I98 -> 21510885 | J24: =A3A!J98 -> 22548068 | K24: =A3A!K98 -> 23813387
A25: =A3A!A103 -> Vote 03 - Community & Social Services | C25: =A3A!C103 -> 31224362 | D25: =A3A!D103 -> 31010845.66 | E25: =A3A!E103 -> 31546511.98 | F25: =A3A!F103 -> 31877404 | G25: =A3A!G103 -> 30986073 | H25: =A3A!H103 -> 30986073 | I25: =A3A!I103 -> 29980485 | J25: =A3A!J103 -> 33562137 | K25: =A3A!K103 -> 35437874
A26: ='Org structure'!A5 -> Vote 04 - Public Safety | C26: =A3A!C108 -> 0 | D26: =A3A!D108 -> 0 | E26: =A3A!E108 -> 0 | F26: =A3A!F108 -> 0 | G26: =A3A!G108 -> 0 | H26: =A3A!H108 -> 0 | I26: =A3A!I108 -> 0 | J26: =A3A!J108 -> 0 | K26: =A3A!K108 -> 0
A27: =A3A!A109 -> Vote 05 - Environmental Health | C27: =A3A!C109 -> 17849642 | D27: =A3A!D109 -> 18402270.15 | E27: =A3A!E109 -> 18767513.04 | F27: =A3A!F109 -> 20972100 | G27: =A3A!G109 -> 19122847 | H27: =A3A!H109 -> 19122847 | I27: =A3A!I109 -> 23358227 | J27: =A3A!J109 -> 24303212 | K27: =A3A!K109 -> 25792323
A28: =A3A!A112 -> Vote 06 - Finance & Administration | C28: =A3A!C112 -> 98574934 | D28: =A3A!D112 -> 87654694.69 | E28: =A3A!E112 -> 97731711.01 | F28: =A3A!F112 -> 118013101 | G28: =A3A!G112 -> 107934542 | H28: =A3A!H112 -> 107934542 | I28: =A3A!I112 -> 118357571 | J28: =A3A!J112 -> 122014464 | K28: =A3A!K112 -> 128455777
A29: =A3A!A131 -> Vote 07 - Infrastructure Services | C29: =A3A!C131 -> 423414935 | D29: =A3A!D131 -> 474798706.4 | E29: =A3A!E131 -> 546030183.3 | F29: =A3A!F131 -> 479679257 | G29: =A3A!G131 -> 590381209 | H29: =A3A!H131 -> 590381209 | I29: =A3A!I131 -> 449891481 | J29: =A3A!J131 -> 507346286 | K29: =A3A!K131 -> 552181533
A30: =A3A!A148 -> Vote 08 - Waste Management | C30: =A3A!C148 -> 35135262 | D30: =A3A!D148 -> 28983040.55 | E30: =A3A!E148 -> 21048661.52 | F30: =A3A!F148 -> 23846606 | G30: =A3A!G148 -> 25152310 | H30: =A3A!H148 -> 25152310 | I30: =A3A!I148 -> 23981042 | J30: =A3A!J148 -> 29031124 | K30: =A3A!K148 -> 30039782
A31: =A3A!A150 -> Vote 09 - Waste Water Management | C31: =A3A!C150 -> 26650525 | D31: =A3A!D150 -> 111782261.1 | E31: =A3A!E150 -> 46798929.92 | F31: =A3A!F150 -> 14319638 | G31: =A3A!G150 -> 10455130 | H31: =A3A!H150 -> 10455130 | I31: =A3A!I150 -> 31563017 | J31: =A3A!J150 -> 33321099 | K31: =A3A!K150 -> 41471112
A32: =A3A!A153 -> Vote 10 - King Cetshwayo Fresh Produce Market | C32: =A3A!C153 -> 30104324 | D32: =A3A!D153 -> 32637315.02 | E32: =A3A!E153 -> 23613088.73 | F32: =A3A!F153 -> 28597638 | G32: =A3A!G153 -> 3120387 | H32: =A3A!H153 -> 3120387 | I32: =A3A!I153 -> 0 | J32: =A3A!J153 -> 0 | K32: =A3A!K153 -> 0
A33: ='Org structure'!A12 -> Vote 11 - | C33: =A3A!C159 -> 0 | D33: =A3A!D159 -> 0 | E33: =A3A!E159 -> 0 | F33: =A3A!F159 -> 0 | G33: =A3A!G159 -> 0 | H33: =A3A!H159 -> 0 | I33: =A3A!I159 -> 0 | J33: =A3A!J159 -> 0 | K33: =A3A!K159 -> 0 | L33: =A3A!#REF! -> 
A34: ='Org structure'!A13 -> Vote 12 - | C34: =A3A!C160 -> 0 | D34: =A3A!D160 -> 0 | E34: =A3A!E160 -> 0 | F34: =A3A!F160 -> 0 | G34: =A3A!G160 -> 0 | H34: =A3A!H160 -> 0 | I34: =A3A!I160 -> 0 | J34: =A3A!J160 -> 0 | K34: =A3A!K160 -> 0 | L34: =A3A!#REF! -> 
A35: ='Org structure'!A14 -> Vote 13 - | C35: =A3A!C161 -> 0 | D35: =A3A!D161 -> 0 | E35: =A3A!E161 -> 0 | F35: =A3A!F161 -> 0 | G35: =A3A!G161 -> 0 | H35: =A3A!H161 -> 0 | I35: =A3A!I161 -> 0 | J35: =A3A!J161 -> 0 | K35: =A3A!K161 -> 0 | L35: =A3A!#REF! -> 
A36: ='Org structure'!A15 -> Vote 14 - | C36: =A3A!C162 -> 0 | D36: =A3A!D162 -> 0 | E36: =A3A!E162 -> 0 | F36: =A3A!F162 -> 0 | G36: =A3A!G162 -> 0 | H36: =A3A!H162 -> 0 | I36: =A3A!I162 -> 0 | J36: =A3A!J162 -> 0 | K36: =A3A!K162 -> 0 | L36: =A3A!#REF! -> 
A37: ='Org structure'!A16 -> Vote 15 - Other | C37: =A3A!C163 -> 0 | D37: =A3A!D163 -> 0 | E37: =A3A!E163 -> 0 | F37: =A3A!F163 -> 0 | G37: =A3A!G163 -> 0 | H37: =A3A!H163 -> 0 | I37: =A3A!I163 -> 0 | J37: =A3A!J163 -> 0 | K37: =A3A!K163 -> 0 | L37: =A3A!#REF! -> 
A38: Total Expenditure by Vote | B38: 2 | C38: =SUM(C23:C37) -> 721762081 | D38: =SUM(D23:D37) -> 866084717.1 | E38: 890480328.5 | F38: 826215042 | G38: 884425058 | H38: 884425058 | I38: 793797372 | J38: 868401848 | K38: 938819547 | L38: =SUM(L23:L29) -> 0 | M38: 0 | N38: 0 | O38: 0 | P38: 0 | Q38: 0 | R38: 0 | S38: 0 | T38: 0 | U38: 0 | V38: 0 | W38: 0
A39: =result -> Surplus/(Deficit) for the year | B39: 2 | C39: =C20-C38 -> 297315659.6 | D39: 106176410.3 | E39: 49756875.8 | F39: 216665350 | G39: 234967806 | H39: 234967806 | I39: 185609861 | J39: 204280251 | K39: 230687633 | L39: 0 | M39: 0 | N39: 0 | O39: 0 | P39: 0 | Q39: 0 | R39: 0 | S39: 0 | T39: 0 | U39: 0 | V39: 0 | W39: 0
A40: =head27a -> References
A41: 1. Insert 'Vote'; e.g. department, if different to functional classification structure
A42: 2. Must reconcile to Budgeted Financial Performance (revenue and expenditure)
A43: 3. Assign share in 'associate' to relevant Vote
A45: ="check "&A39 -> check Surplus/(Deficit) for the year | C45: =C39-A3A!C166 -> 0 | D45: =D39-A3A!D166 -> 0 | E45: =E39-A3A!E166 -> 0 | F45: =F39-A3A!F166 -> 0 | G45: =G39-A3A!G166 -> 0 | H45: =H39-A3A!H166 -> 0 | I45: =I39-A3A!I166 -> 0 | J45: =J39-A3A!J166 -> 0 | K45: =K39-A3A!K166 -> 0

Sheet A3A
A1: =muni&" - "&Approve2&"A" -> DC28 King Cetshwayo - Table A3 Consolidated Budgeted Financial Performance (revenue and expenditure by municipal vote)A
A2: =Vdesc -> Vote Description | B2: =head27 -> Ref | C2: =head1b -> 2016/17 | D2: =head1A -> 2017/18 | E2: =Head1 -> 2018/19 | F2: =Head2 -> Current Year 2019/20 | I2: =Head3 -> 2020/21 Medium Term Revenue & Expenditure Framework | L2: =Head4 -> LTFS
A3: R thousand | C3: =Head5 -> Audited Outcome | D3: =Head5 -> Audited Outcome | E3: =Head5 -> Audited Outcome | F3: =Head6 -> Original Budget | G3: =Head7 -> Adjusted Budget | H3: =Head8 -> Full Year Forecast | I3: =Head9 -> Budget Year 2020/21 | J3: =Head10 -> Budget Year +1 2021/22 | K3: =Head11 -> Budget Year +2 2022/23 | L3: =Head12 -> Forecast 2023/24 | M3: =Head13 -> Forecast 2024/25 | N3: =Head14 -> Forecast 2025/26 | O3: =Head15 -> Forecast 2026/27 | P3: =Head16 -> Forecast 2027/28 | Q3: =Head17 -> Forecast 2028/29 | R3: =Head18 -> Forecast 2029/30 | S3: =Head19 -> Forecast 2030/31 | T3: =Head20 -> Forecast 2031/32 | U3: =Head21 -> Forecast 2032/33 | V3: =Head22 -> Forecast 2033/34 | W3: =Head23 -> Forecast 2034/35
A4: Revenue by Vote | B4: 1
A5: ='Org structure'!A2 -> Vote 01 - Executive & Council | C5: =SUM(C6:C16) -> 0 | D5: -1377.03 | E5: 0 | F5: 0 | G5: 0 | H5: 0 | I5: 0 | J5: 0 | K5: 0
A6: ='Org structure'!E3 -> 01.1 - Board General | C6: 0 | D6: -1377.03 | E6: 0 | F6: 0 | G6: 0 | H6: 0 | I6: 0 | J6: 0 | K6: 0
A7: ='Org structure'!E4 -> 01.2 - Executive Div - Corpotate Serv | C7: 0 | D7: 0 | E7: 0 | F7: 0 | G7: 0 | H7: 0 | I7: 0 | J7: 0 | K7: 0
A8: ='Org structure'!E5 -> 01.3 - Administration Serv | C8: 0 | D8: 0 | E8: 0 | F8: 0 | G8: 0 | H8: 0 | I8: 0 | J8: 0 | K8: 0
A9: ='Org structure'!E6 -> 01.4 - Municipal Manager | C9: 0 | D9: 0 | E9: 0 | F9: 0 | G9: 0 | H9: 0 | I9: 0 | J9: 0 | K9: 0
A10: ='Org structure'!E7 -> 01.5 - Chief Operating Officer | C10: 0 | D10: 0 | E10: 0 | F10: 0 | G10: 0 | H10: 0 | I10: 0 | J10: 0 | K10: 0
A11: ='Org structure'!E8 -> 01.6 - Performance Management Unit | C11: 0 | D11: 0 | E11: 0 | F11: 0 | G11: 0 | H11: 0 | I11: 0 | J11: 0 | K11: 0
A12: ='Org structure'!E9 -> 01.7 - Legal Serv Unit | C12: 0 | D12: 0 | E12: 0 | F12: 0 | G12: 0 | H12: 0 | I12: 0 | J12: 0 | K12: 0
A13: ='Org structure'!E10 -> 01.8 - Public Participation | C13: 0 | D13: 0 | E13: 0 | F13: 0 | G13: 0 | H13: 0 | I13: 0 | J13: 0 | K13: 0
A14: ='Org structure'!E11 -> 01.9 - Internal Audit | C14: 0 | D14: 0 | E14: 0 | F14: 0 | G14: 0 | H14: 0 | I14: 0 | J14: 0 | K14: 0
A15: ='Org structure'!E12 -> 01.10 - Councillor Support | C15: 0 | D15: 0 | E15: 0 | F15: 0 | G15: 0 | H15: 0 | I15: 0 | J15: 0 | K15: 0
A16: ='Org structure'!E13 -> 01.11 - Public Relations | C16: 0 | D16: 0 | E16: 0 | F16: 0 | G16: 0 | H16: 0 | I16: 0 | J16: 0 | K16: 0
A17: ='Org structure'!A3 -> Vote 02 - Economic Development, Planning & Environment | C17: =SUM(C18:C21) -> 0 | D17: 0 | E17: 0 | F17: 0 | G17: 0 | H17: 0 | I17: 0 | J17: 0 | K17: 0
A18: ='Org structure'!E15 -> 02.1 - Economic Development | C18: 0 | D18: 0 | E18: 0 | F18: 0 | G18: 0 | H18: 0 | I18: 0 | J18: 0 | K18: 0
A19: ='Org structure'!E16 -> 02.2 - Planning Shared Serv | C19: 0 | D19: 0 | E19: 0 | F19: 0 | G19: 0 | H19: 0 | I19: 0 | J19: 0 | K19: 0
A20: ='Org structure'!E17 -> 02.3 - Development Planning Enviroment | C20: 0 | D20: 0 | E20: 0 | F20: 0 | G20: 0 | H20: 0 | I20: 0 | J20: 0 | K20: 0
A21: ='Org structure'!E18 -> 02.4 - Executive Div Planning Serv | C21: 0 | D21: 0 | E21: 0 | F21: 0 | G21: 0 | H21: 0 | I21: 0 | J21: 0 | K21: 0
A22: ='Org structure'!A4 -> Vote 03 - Community & Social Services | C22: =SUM(C23:C26) -> 174266 | D22: 224603.27 | E22: 217110.92 | F22: 209151 | G22: 209151 | H22: 209151 | I22: 339200 | J22: 359552 | K22: 381125
A23: ='Org structure'!E20 -> 03.1 - Community Division | C23: 0 | D23: 0 | E23: 0 | F23: 0 | G23: 0 | H23: 0 | I23: 0 | J23: 0 | K23: 0
A24: ='Org structure'!E21 -> 03.2 - Disaster Management | C24: 0 | D24: 0 | E24: 0 | F24: 0 | G24: 0 | H24: 0 | I24: 0 | J24: 0 | K24: 0
A25: ='Org structure'!E22 -> 03.3 - Cemetery | C25: 174266 | D25: 224603.27 | E25: 217110.92 | F25: 209151 | G25: 209151 | H25: 209151 | I25: 339200 | J25: 359552 | K25: 381125
A26: ='Org structure'!E23 -> 03.4 - Executive Div Community Serv | C26: 0 | D26: 0 | E26: 0 | F26: 0 | G26: 0 | H26: 0 | I26: 0 | J26: 0 | K26: 0
A27: ='Org structure'!A5 -> Vote 04 - Public Safety | C27: 0 | D27: 0 | E27: 0 | F27: 0 | G27: 0 | H27: 0 | I27: 0 | J27: 0 | K27: 0
A28: ='Org structure'!A6 -> Vote 05 - Environmental Health | C28: =SUM(C29:C30) -> 20648101 | D28: 19095200 | E28: 19075232 | F28: 18391189 | G28: 18391189 | H28: 18391189 | I28: 19582947 | J28: 20669222 | K28: 21893698
A29: ='Org structure'!E26 -> 05.1 - Municipal Health | C29: 20648101 | D29: 19075200 | E29: 19035232 | F29: 18321189 | G29: 18321189 | H29: 18321189 | I29: 19508747 | J29: 20589222 | K29: 21808698
A30: ='Org structure'!E27 -> 05.2 - Air Quality | C30: 0 | D30: 20000 | E30: 40000 | F30: 70000 | G30: 70000 | H30: 70000 | I30: 74200 | J30: 80000 | K30: 85000
A31: ='Org structure'!A7 -> Vote 06 - Finance & Administration | C31: =SUM(C32:C49) -> 701202850 | D31: 586031505.7 | E31: 522074261.2 | F31: 678253931 | G31: 782314041 | H31: 782314041 | I31: 594764936 | J31: 658712746 | K31: 716317450
A32: ='Org structure'!E29 -> 06.1 - Human Resources Management | C32: 271081 | D32: 416513.66 | E32: 235567.62 | F32: 0 | G32: 452232 | H32: 452232 | I32: 0 | J32: 0 | K32: 0
A33: ='Org structure'!E30 -> 06.2 - Executive Div - Finance Serv | C33: 700931769 | D33: 537623223.6 | E33: 478371052.1 | F33: 0 | G33: 0 | H33: 0 | I33: 0 | J33: 0 | K33: 0
A34: ='Org structure'!E31 -> 06.3 - Executive Division - Fanance Services | C34: 0 | D34: 47996741.28 | E34: 43467641.45 | F34: 678253931 | G34: 781861809 | H34: 781861809 | I34: 594764936 | J34: 658712746 | K34: 716317450
A35: ='Org structure'!E32 -> 06.4 - Expenditure | C35: 0 | D35: 0 | E35: 0 | F35: 0 | G35: 0 | H35: 0 | I35: 0 | J35: 0 | K35: 0
A36: ='Org structure'!E33 -> 06.5 - Expenditure | C36: 0 | D36: -4972.81 | E36: 0 | F36: 0 | G36: 0 | H36: 0 | I36: 0 | J36: 0 | K36: 0
A37: ='Org structure'!E34 -> 06.6 - Auxillary Serv Kcdm | C37: 0 | D37: 0 | E37: 0 | F37: 0 | G37: 0 | H37: 0 | I37: 0 | J37: 0 | K37: 0
A38: ='Org structure'!E35 -> 06.7 - Satelite Offices | C38: 0 | D38: 0 | E38: 0 | F38: 0 | G38: 0 | H38: 0 | I38: 0 | J38: 0 | K38: 0
A39: ='Org structure'!E36 -> 06.8 - Budget & Reporting | C39: 0 | D39: 0 | E39: 0 | F39: 0 | G39: 0 | H39: 0 | I39: 0 | J39: 0 | K39: 0
A40: ='Org structure'!E37 -> 06.9 - Budget & Reporting | C40: 0 | D40: 0 | E40: 0 | F40: 0 | G40: 0 | H40: 0 | I40: 0 | J40: 0 | K40: 0
A41: ='Org structure'!E38 -> 06.10 - Finance Interns | C41: 0 | D41: 0 | E41: 0 | F41: 0 | G41: 0 | H41: 0 | I41: 0 | J41: 0 | K41: 0
A42: ='Org structure'!E39 -> 06.11 - Finance Interns | C42: 0 | D42: 0 | E42: 0 | F42: 0 | G42: 0 | H42: 0 | I42: 0 | J42: 0 | K42: 0
A43: ='Org structure'!E40 -> 06.12 - Information & Communication Technology | C43: 0 | D43: 0 | E43: 0 | F43: 0 | G43: 0 | H43: 0 | I43: 0 | J43: 0 | K43: 0
A44: ='Org structure'!E41 -> 06.13 - Supply Chain Management | C44: 0 | D44: 0 | E44: 0 | F44: 0 | G44: 0 | H44: 0 | I44: 0 | J44: 0 | K44: 0
A45: ='Org structure'!E42 -> 06.14 - Supply Chain Management | C45: 0 | D45: 0 | E45: 0 | F45: 0 | G45: 0 | H45: 0 | I45: 0 | J45: 0 | K45: 0
A46: ='Org structure'!E43 -> 06.15 - Management Accounts | C46: 0 | D46: 0 | E46: 0 | F46: 0 | G46: 0 | H46: 0 | I46: 0 | J46: 0 | K46: 0
A47: ='Org structure'!E44 -> 06.16 - Management Accounts | C47: 0 | D47: 0 | E47: 0 | F47: 0 | G47: 0 | H47: 0 | I47: 0 | J47: 0 | K47: 0
A48: ='Org structure'!E45 -> 06.17 - Asset Care Centre | C48: 0 | D48: 0 | E48: 0 | F48: 0 | G48: 0 | H48: 0 | I48: 0 | J48: 0 | K48: 0
A49: ='Org structure'!E46 -> 06.18 - Asset Care Center | C49: 0 | D49: 0 | E49: 0 | F49: 0 | G49: 0 | H49: 0 | I49: 0 | J49: 0 | K49: 0
A50: ='Org structure'!A8 -> Vote 07 - Infrastructure Services | C50: =SUM(C51:C66) -> 222224378 | D50: 241881195 | E50: 261892127.4 | F50: 278597181 | G50: 278997181 | H50: 278997181 | I50: 313103282 | J50: 337826427 | K50: 362350052
A51: ='Org structure'!E48 -> 07.1 - Executive Div - Technical Serv | C51: 0 | D51: 0 | E51: 0 | F51: 0 | G51: 0 | H51: 0 | I51: 0 | J51: 0 | K51: 0
A52: ='Org structure'!E49 -> 07.2 - Municipal Infrastructure Ops & Maintenance | C52: 0 | D52: 0 | E52: 0 | F52: 0 | G52: 0 | H52: 0 | I52: 0 | J52: 0 | K52: 0
A53: ='Org structure'!E50 -> 07.3 - Consimer Billing | C53: 0 | D53: 48648884.91 | E53: 0 | F53: 0 | G53: 0 | H53: 0 | I53: 0 | J53: 0 | K53: 0
A54: ='Org structure'!E51 -> 07.4 - Epwp Unit | C54: 0 | D54: 0 | E54: 0 | F54: 0 | G54: 0 | H54: 0 | I54: 0 | J54: 0 | K54: 0
A55: ='Org structure'!E52 -> 07.5 - Auxillary Infrustructure | C55: 0 | D55: 0 | E55: 0 | F55: 0 | G55: 0 | H55: 0 | I55: 0 | J55: 0 | K55: 0
A56: ='Org structure'!E53 -> 07.6 - Project Management Unit | C56: 0 | D56: 0 | E56: 0 | F56: 0 | G56: 0 | H56: 0 | I56: 0 | J56: 0 | K56: 0
A57: ='Org structure'!E54 -> 07.7 - Water Use Effeciency | C57: 0 | D57: 0 | E57: 0 | F57: 0 | G57: 0 | H57: 0 | I57: 0 | J57: 0 | K57: 0
A58: ='Org structure'!E55 -> 07.8 - Process Management | C58: 0 | D58: 0 | E58: 0 | F58: 0 | G58: 0 | H58: 0 | I58: 0 | J58: 0 | K58: 0
A59: ='Org structure'!E56 -> 07.9 - Municipal Infrastructure Implementation | C59: 0 | D59: 0 | E59: 0 | F59: 0 | G59: 0 | H59: 0 | I59: 0 | J59: 0 | K59: 0
A60: ='Org structure'!E57 -> 07.10 - Process Management - Waste Water | C60: 0 | D60: 0 | E60: 0 | F60: 0 | G60: 0 | H60: 0 | I60: 0 | J60: 0 | K60: 0
A61: ='Org structure'!E58 -> 07.11 - Water Service Division | C61: 0 | D61: 0 | E61: 0 | F61: 0 | G61: 0 | H61: 0 | I61: 0 | J61: 0 | K61: 0
A62: ='Org structure'!E59 -> 07.12 - Water Service Provider | C62: 187851342.1 | D62: 192911801 | E62: 208691768 | F62: 225535811 | G62: 225535811 | H62: 225535811 | I62: 243526253 | J62: 264074778 | K62: 284173302
A63: ='Org structure'!E60 -> 07.13 - Operations Ops & Maint - Western Region | C63: 3867007.784 | D63: 314409.67 | E63: 13226557.08 | F63: 14371491 | G63: 14371491 | H63: 14371491 | I63: 18833447 | J63: 19963453 | K63: 21161261
A64: ='Org structure'!E61 -> 07.14 - Operations Ops & Maint - Southern Region | C64: 30506028.13 | D64: 6099.45 | E64: 25217798.14 | F64: 26655868 | G64: 27055868 | H64: 27055868 | I64: 34960373 | J64: 37057995 | K64: 39281475
A65: ='Org structure'!E62 -> 07.15 - Operations Ops & Maint - Eastern Region | C65: 0 | D65: 0 | E65: 14756004.16 | F65: 12034011 | G65: 12034011 | H65: 12034011 | I65: 15783209 | J65: 16730201 | K65: 17734014
A66: ='Org structure'!E63 -> 07.16 - Electricity Reporting Function | C66: 0 | D66: 0 | E66: 0 | F66: 0 | G66: 0 | H66: 0 | I66: 0 | J66: 0 | K66: 0
A67: ='Org structure'!A9 -> Vote 08 - Waste Management | C67: =SUM(C68:C68) -> 18972070 | D67: 20505111.46 | E67: 26218252.36 | F67: 31538588 | G67: 31538588 | H67: 31538588 | I67: 25172821 | J67: 30207385 | K67: 36248862
A68: ='Org structure'!E65 -> 08.1 - Waste Manegement | C68: 18972070 | D68: 20505111.46 | E68: 26218252.36 | F68: 31538588 | G68: 31538588 | H68: 31538588 | I68: 25172821 | J68: 30207385 | K68: 36248862
A69: ='Org structure'!A10 -> Vote 09 - Waste Water Management | C69: =SUM(C70:C71) -> 25403805 | D69: 75594184.94 | E69: 76362032.83 | F69: 7942714 | G69: 7942714 | H69: 7942714 | I69: 26444047 | J69: 24906767 | K69: 32315993
A70: ='Org structure'!E67 -> 09.1 - Waste Water Management | C70: 25403805 | D70: 75594184.94 | E70: 76362032.83 | F70: 7942714 | G70: 7942714 | H70: 7942714 | I70: 26444047 | J70: 24906767 | K70: 32315993
A71: ='Org structure'!E68 -> 09.2 - Process Management - Waste Water | C71: 0 | D71: 0 | E71: 0 | F71: 0 | G71: 0 | H71: 0 | I71: 0 | J71: 0 | K71: 0
A72: ='Org structure'!A11 -> Vote 10 - King Cetshwayo Fresh Produce Market | C72: =SUM(C73:C77) -> 30452270.57 | D72: 28930704.02 | E72: 34398187.63 | F72: 27947638 | G72: 0 | H72: 0 | I72: 0 | J72: 0 | K72: 0
A73: ='Org structure'!E70 -> 10.1 - Office Of The Ceo | C73: 0 | D73: 0 | E73: 0 | F73: 0 | G73: 0 | H73: 0 | I73: 0 | J73: 0 | K73: 0
A74: ='Org structure'!E71 -> 10.2 - Finance | C74: 30452270.57 | D74: 28930704.02 | E74: 34398187.63 | F74: 27947638 | G74: 0 | H74: 0 | I74: 0 | J74: 0 | K74: 0
A75: ='Org structure'!E72 -> 10.3 - Corporate Serv | C75: 0 | D75: 0 | E75: 0 | F75: 0 | G75: 0 | H75: 0 | I75: 0 | J75: 0 | K75: 0
A76: ='Org structure'!E73 -> 10.4 - Operations | C76: 0 | D76: 0 | E76: 0 | F76: 0 | G76: 0 | H76: 0 | I76: 0 | J76: 0 | K76: 0
A77: ='Org structure'!E74 -> 10.5 - Agribusiness | C77: 0 | D77: 0 | E77: 0 | F77: 0 | G77: 0 | H77: 0 | I77: 0 | J77: 0 | K77: 0
A78: ='Org structure'!A12 -> Vote 11 - | C78: 0 | D78: 0 | E78: 0 | F78: 0 | G78: 0 | H78: 0 | I78: 0 | J78: 0 | K78: 0
A79: ='Org structure'!A13 -> Vote 12 - | C79: 0 | D79: 0 | E79: 0 | F79: 0 | G79: 0 | H79: 0 | I79: 0 | J79: 0 | K79: 0
A80: ='Org structure'!A14 -> Vote 13 - | C80: 0 | D80: 0 | E80: 0 | F80: 0 | G80: 0 | H80: 0 | I80: 0 | J80: 0 | K80: 0
A81: ='Org structure'!A15 -> Vote 14 - | C81: 0 | D81: 0 | E81: 0 | F81: 0 | G81: 0 | H81: 0 | I81: 0 | J81: 0 | K81: 0
A82: ='Org structure'!A16 -> Vote 15 - Other | C82: 0 | D82: 0 | E82: 0 | F82: 0 | G82: 0 | H82: 0 | I82: 0 | J82: 0 | K82: 0
A83: Total Revenue by Vote | B83: 2 | C83: =C5+C17+C22+C27+C28+C31+C50+C67+C69+C72+C78+C79+C80+C81+C82 -> 1019077741 | D83: 972261127.4 | E83: 940237204.3 | F83: 1042880392 | G83: 1119392864 | H83: 1119392864 | I83: 979407233 | J83: 1072682099 | K83: 1169507180 | L83: =SUM(L57:L66) -> 0 | M83: 0 | N83: 0 | O83: 0 | P83: 0 | Q83: 0 | R83: 0 | S83: 0 | T83: 0 | U83: 0 | V83: 0 | W83: 0
A85: Expenditure by Vote | B85: 1
A86: ='Org structure'!A2 -> Vote 01 - Executive & Council | C86: =SUM(C87:C97) -> 38041385 | D86: 55000974.63 | E86: 69061464.91 | F86: 83918724 | G86: 77674765 | H86: 77674765 | I86: 95154664 | J86: 96275458 | K86: 101627759
A87: ='Org structure'!E3 -> 01.1 - Board General | C87: 14546025.61 | D87: 20124216.61 | E87: 23850428.89 | F87: 26575812 | G87: 23374973 | H87: 23374973 | I87: 23042307 | J87: 24251459 | K87: 25569792
A88: ='Org structure'!E4 -> 01.2 - Executive Div - Corpotate Serv | C88: 2549948.86 | D88: 3474822.4 | E88: 891352.14 | F88: 2792952 | G88: 799433 | H88: 799433 | I88: 2707801 | J88: 2768589 | K88: 2944505
A89: ='Org structure'!E5 -> 01.3 - Administration Serv | C89: 9650740.668 | D89: 12567591.68 | E89: 12705196.3 | F89: 13818608 | G89: 13461917 | H89: 13461917 | I89: 15115049 | J89: 16192663 | K89: 17163074
A90: ='Org structure'!E6 -> 01.4 - Municipal Manager | C90: 11294669.86 | D90: 10163046.88 | E90: 18238805.81 | F90: 9459709 | G90: 8017879 | H90: 8017879 | I90: 11043894 | J90: 11719434 | K90: 12407727
A91: ='Org structure'!E7 -> 01.5 - Chief Operating Officer | C91: 0 | D91: 0 | E91: 1471332.84 | F91: 9005671 | G91: 6043960 | H91: 6043960 | I91: 7140006 | J91: 6933427 | K91: 7327382
A92: ='Org structure'!E8 -> 01.6 - Performance Management Unit | C92: 0 | D92: 2184471.73 | E92: 3335705.83 | F92: 3690007 | G92: 2733101 | H92: 2733101 | I92: 3818410 | J92: 3854586 | K92: 4085684
A93: ='Org structure'!E9 -> 01.7 - Legal Serv Unit | C93: 0 | D93: 5282544.82 | E93: 5190144.88 | F93: 4289217 | G93: 12356895 | H93: 12356895 | I93: 10217699 | J93: 7300579 | K93: 7468915
A94: ='Org structure'!E10 -> 01.8 - Public Participation | C94: 0 | D94: 1204280.51 | E94: 3378498.22 | F94: 3909219 | G94: 2425023 | H94: 2425023 | I94: 3767306 | J94: 3991760 | K94: 4230907
A95: ='Org structure'!E11 -> 01.9 - Internal Audit | C95: 0 | D95: 0 | E95: 0 | F95: 0 | G95: 0 | H95: 0 | I95: 9801480 | J95: 10361619 | K95: 10983313
A96: ='Org structure'!E12 -> 01.10 - Councillor Support | C96: 0 | D96: 0 | E96: 0 | F96: 3375783 | G96: 1841517 | H96: 1841517 | I96: 1591697 | J96: 1674477 | K96: 1774947
A97: ='Org structure'!E13 -> 01.11 - Public Relations | C97: 0 | D97: 0 | E97: 0 | F97: 7001746 | G97: 6620067 | H97: 6620067 | I97: 6909015 | J97: 7226865 | K97: 7671513
A98: ='Org structure'!A3 -> Vote 02 - Economic Development, Planning & Environment | C98: =SUM(C99:C102) -> 20766712 | D98: 25814608.96 | E98: 35882264.1 | F98: 24990574 | G98: 19597795 | H98: 19597795 | I98: 21510885 | J98: 22548068 | K98: 23813387
A99: ='Org structure'!E15 -> 02.1 - Economic Development | C99: 13852963.41 | D99: 18923187.91 | E99: 27740878.41 | F99: 16389276 | G99: 9973704 | H99: 9973704 | I99: 12052020 | J99: 12579043 | K99: 13270092
A100: ='Org structure'!E16 -> 02.2 - Planning Shared Serv | C100: 270023.8344 | D100: 415193.1 | E100: 391330.97 | F100: 550000 | G100: 550000 | H100: 550000 | I100: 517831 | J100: 548902 | K100: 581834
A101: ='Org structure'!E17 -> 02.3 - Development Planning Enviroment | C101: 4425791.111 | D101: 5821702.34 | E101: 5481264.6 | F101: 5563230 | G101: 6727701 | H101: 6727701 | I101: 6455529 | J101: 6767173 | K101: 7184119
A102: ='Org structure'!E18 -> 02.4 - Executive Div Planning Serv | C102: 2217933.647 | D102: 654525.61 | E102: 2268790.12 | F102: 2488068 | G102: 2346390 | H102: 2346390 | I102: 2485505 | J102: 2652950 | K102: 2777342
A103: ='Org structure'!A4 -> Vote 03 - Community & Social Services | C103: =SUM(C104:C107) -> 31224362 | D103: 31010845.66 | E103: 31546511.98 | F103: 31877404 | G103: 30986073 | H103: 30986073 | I103: 29980485 | J103: 33562137 | K103: 35437874
A104: ='Org structure'!E20 -> 03.1 - Community Division | C104: 26131423 | D104: 20097035.68 | E104: 18220863.35 | F104: 16537770 | G104: 16077611 | H104: 16077611 | I104: 14049883 | J104: 17072993 | K104: 18017527
A105: ='Org structure'!E21 -> 03.2 - Disaster Management | C105: 5092939 | D105: 5651092.25 | E105: 7210245.48 | F105: 8106169 | G105: 7988720 | H105: 7988720 | I105: 8975004 | J105: 9165903 | K105: 9691136
A106: ='Org structure'!E22 -> 03.3 - Cemetery | C106: 0 | D106: 2960333.38 | E106: 3654383.83 | F106: 4306023 | G106: 4265940 | H106: 4265940 | I106: 4359602 | J106: 4572594 | K106: 4802196
A107: ='Org structure'!E23 -> 03.4 - Executive Div Community Serv | C107: 0 | D107: 2302384.35 | E107: 2461019.32 | F107: 2927442 | G107: 2653802 | H107: 2653802 | I107: 2595996 | J107: 2750647 | K107: 2927015
A108: ='Org structure'!A5 -> Vote 04 - Public Safety | C108: 0 | D108: 0 | E108: 0 | F108: 0 | G108: 0 | H108: 0 | I108: 0 | J108: 0 | K108: 0
A109: ='Org structure'!A6 -> Vote 05 - Environmental Health | C109: =SUM(C110:C111) -> 17849642 | D109: 18402270.15 | E109: 18767513.04 | F109: 20972100 | G109: 19122847 | H109: 19122847 | I109: 23358227 | J109: 24303212 | K109: 25792323
A110: ='Org structure'!E26 -> 05.1 - Municipal Health | C110: 17849642 | D110: 16893102.47 | E110: 16981047.66 | F110: 18411289 | G110: 16998813 | H110: 16998813 | I110: 20643379 | J110: 21855533 | K110: 23150989
A111: ='Org structure'!E27 -> 05.2 - Air Quality | C111: 0 | D111: 1509167.68 | E111: 1786465.38 | F111: 2560811 | G111: 2124034 | H111: 2124034 | I111: 2714848 | J111: 2447679 | K111: 2641334
A112: ='Org structure'!A7 -> Vote 06 - Finance & Administration | C112: =SUM(C113:C130) -> 98574934 | D112: 87654694.69 | E112: 97731711.01 | F112: 118013101 | G112: 107934542 | H112: 107934542 | I112: 118357571 | J112: 122014464 | K112: 128455777
A113: ='Org structure'!E29 -> 06.1 - Human Resources Management | C113: 21479425.42 | D113: 14441374.51 | E113: 14777813.77 | F113: 17298011 | G113: 15196093 | H113: 15196093 | I113: 15194138 | J113: 16130586 | K113: 17078643
A114: ='Org structure'!E30 -> 06.2 - Executive Div - Finance Serv | C114: 9161579.921 | D114: -3998224.68 | E114: -3477734.21 | F114: 0 | G114: 0 | H114: 0 | I114: 33711 | J114: 35734 | K114: 37878
A115: ='Org structure'!E31 -> 06.3 - Executive Division - Fanance Services | C115: 0 | D115: 8490324.71 | E115: 9022986.48 | F115: 11205250 | G115: 10576843 | H115: 10576843 | I115: 3062952 | J115: 3236429 | K115: 3421083
A116: ='Org structure'!E32 -> 06.4 - Expenditure | C116: 10256445.1 | D116: 5618324.1 | E116: 6242532.15 | F116: 9370864 | G116: 8675680 | H116: 8675680 | I116: 10177437 | J116: 10072063 | K116: 10587546
A117: ='Org structure'!E33 -> 06.5 - Expenditure | C117: 0 | D117: 2501694.17 | E117: 1733880.9 | F117: 0 | G117: 0 | H117: 0 | I117: 0 | J117: 0 | K117: 0
A118: ='Org structure'!E34 -> 06.6 - Auxillary Serv Kcdm | C118: 5407726.599 | D118: 10792073.07 | E118: 8349070.36 | F118: 9618598 | G118: 8225341 | H118: 8225341 | I118: 8938771 | J118: 9012139 | K118: 9018080
A119: ='Org structure'!E35 -> 06.7 - Satelite Offices | C119: 20815846.89 | D119: 4420711.28 | E119: 6966889.21 | F119: 8881034 | G119: 8023691 | H119: 8023691 | I119: 9865039 | J119: 10326782 | K119: 10825268
A120: ='Org structure'!E36 -> 06.8 - Budget & Reporting | C120: 0 | D120: 0 | E120: 0 | F120: 0 | G120: 0 | H120: 0 | I120: 0 | J120: 0 | K120: 0
A121: ='Org structure'!E37 -> 06.9 - Budget & Reporting | C121: 5287397.749 | D121: 4535139.23 | E121: 5291700.72 | F121: 7821131 | G121: 5692775 | H121: 5692775 | I121: 6985098 | J121: 8108450 | K121: 8538348
A122: ='Org structure'!E38 -> 06.10 - Finance Interns | C122: 1398071.164 | D122: 1246518.2 | E122: 1000003.28 | F122: 1465000 | G122: 1465000 | H122: 1465000 | I122: 1000000 | J122: 1000000 | K122: 990000
A123: ='Org structure'!E39 -> 06.11 - Finance Interns | C123: 0 | D123: 3478.52 | E123: 0 | F123: 0 | G123: 0 | H123: 0 | I123: 0 | J123: 0 | K123: 0
A124: ='Org structure'!E40 -> 06.12 - Information & Communication Technology | C124: 2117384.772 | D124: 10702024.96 | E124: 11313179.53 | F124: 14343121 | G124: 13296523 | H124: 13296523 | I124: 15855861 | J124: 16739529 | K124: 17816129
A125: ='Org structure'!E41 -> 06.13 - Supply Chain Management | C125: 7746427.171 | D125: 0 | E125: 9094.29 | F125: 0 | G125: 0 | H125: 0 | I125: 0 | J125: 0 | K125: 0
A126: ='Org structure'!E42 -> 06.14 - Supply Chain Management | C126: 0 | D126: 9761751.65 | E126: 11019883.09 | F126: 12103305 | G126: 11635360 | H126: 11635360 | I126: 14750658 | J126: 15302180 | K126: 16211886
A127: ='Org structure'!E43 -> 06.15 - Management Accounts | C127: 9396217.123 | D127: 2365311.21 | E127: 2281739.68 | F127: 2960093 | G127: 2487863 | H127: 2487863 | I127: 3906815 | J127: 4146161 | K127: 4381719
A128: ='Org structure'!E44 -> 06.16 - Management Accounts | C128: 0 | D128: 69964.71 | E128: 230200 | F128: 0 | G128: 0 | H128: 0 | I128: 0 | J128: 0 | K128: 0
A129: ='Org structure'!E45 -> 06.17 - Asset Care Centre | C129: 0 | D129: 0 | E129: 6547.26 | F129: 0 | G129: 0 | H129: 0 | I129: 0 | J129: 0 | K129: 0
A130: ='Org structure'!E46 -> 06.18 - Asset Care Center | C130: 5508412.088 | D130: 16704229.05 | E130: 22963924.5 | F130: 22946694 | G130: 22659373 | H130: 22659373 | I130: 28587091 | J130: 27904411 | K130: 29549197
A131: ='Org structure'!A8 -> Vote 07 - Infrastructure Services | C131: =SUM(C132:C147) -> 423414935 | D131: 474798706.4 | E131: 546030183.3 | F131: 479679257 | G131: 590381209 | H131: 590381209 | I131: 449891481 | J131: 507346286 | K131: 552181533
A132: ='Org structure'!E48 -> 07.1 - Executive Div - Technical Serv | C132: 47633052.13 | D132: 4466087.16 | E132: 4436660.26 | F132: 4789252 | G132: 1249451 | H132: 1249451 | I132: 2605121 | J132: 2761743 | K132: 2931805
A133: ='Org structure'!E49 -> 07.2 - Municipal Infrastructure Ops & Maintenance | C133: 8214147.654 | D133: 5372517.97 | E133: 7824182.03 | F133: 6156364 | G133: 6936381 | H133: 6936381 | I133: 7498131 | J133: 7944795 | K133: 8421379
A134: ='Org structure'!E50 -> 07.3 - Consimer Billing | C134: 14379977.55 | D134: 15848425.01 | E134: 16255858.41 | F134: 16889111 | G134: 15826801 | H134: 15826801 | I134: 17069581 | J134: 18099591 | K134: 19177387
A135: ='Org structure'!E51 -> 07.4 - Epwp Unit | C135: 0 | D135: 5795432.03 | E135: 7835546.19 | F135: 7537772 | G135: 6782592 | H135: 6782592 | I135: 6182736 | J135: 1224009 | K135: 1297450
A136: ='Org structure'!E52 -> 07.5 - Auxillary Infrustructure | C136: 0 | D136: 3813535.61 | E136: 5193225.08 | F136: 8020140 | G136: 7893049 | H136: 7893049 | I136: 5503744 | J136: 6306675 | K136: 6678717
A137: ='Org structure'!E53 -> 07.6 - Project Management Unit | C137: 7959162.971 | D137: 7173801.95 | E137: 5578321.16 | F137: 6552245 | G137: 8099041 | H137: 8099041 | I137: 7050678 | J137: 7096924 | K137: 7516739
A138: ='Org structure'!E54 -> 07.7 - Water Use Effeciency | C138: 2301163.225 | D138: 10882582.27 | E138: 13686350.23 | F138: 5969627 | G138: 5263837 | H138: 5263837 | I138: 9260784 | J138: 10972141 | K138: 13095295
A139: ='Org structure'!E55 -> 07.8 - Process Management | C139: 713340.1192 | D139: 13854999.82 | E139: 16118685.71 | F139: 25876574 | G139: 22656687 | H139: 22656687 | I139: 31272366 | J139: 28808566 | K139: 31152819
A140: ='Org structure'!E56 -> 07.9 - Municipal Infrastructure Implementation | C140: 8049131.202 | D140: 3956691.23 | E140: 3934665.27 | F140: 4244452 | G140: 3993936 | H140: 3993936 | I140: 12733936 | J140: 17208201 | K140: 22703200
A141: ='Org structure'!E57 -> 07.10 - Process Management - Waste Water | C141: 0 | D141: 0 | E141: 0 | F141: 0 | G141: 0 | H141: 0 | I141: 0 | J141: 0 | K141: 0
A142: ='Org structure'!E58 -> 07.11 - Water Service Division | C142: 47161451.76 | D142: 17487336.85 | E142: 21064823.75 | F142: 21126942 | G142: 18357165 | H142: 18357165 | I142: 22142474 | J142: 22173767 | K142: 23447984
A143: ='Org structure'!E59 -> 07.12 - Water Service Provider | C143: 270504512.3 | D143: 364173809.5 | E143: 420207541.6 | F143: 351453440 | G143: 460302367 | H143: 460302367 | I143: 296442833 | J143: 351123778 | K143: 380523109
A144: ='Org structure'!E60 -> 07.13 - Operations Ops & Maint - Western Region | C144: 2717165.638 | D144: 3118232.86 | E144: 4015507.44 | F144: 3774995 | G144: 4096163 | H144: 4096163 | I144: 4649972 | J144: 4927703 | K144: 5223364
A145: ='Org structure'!E61 -> 07.14 - Operations Ops & Maint - Southern Region | C145: 4664908.467 | D145: 14770682.19 | E145: 14992582.86 | F145: 13378327 | G145: 23886683 | H145: 23886683 | I145: 22951869 | J145: 23918414 | K145: 24945625
A146: ='Org structure'!E62 -> 07.15 - Operations Ops & Maint - Eastern Region | C146: 9116922.006 | D146: 4084571.89 | E146: 4886233.31 | F146: 3910016 | G146: 5037056 | H146: 5037056 | I146: 4527256 | J146: 4779979 | K146: 5066660
A147: ='Org structure'!E63 -> 07.16 - Electricity Reporting Function | C147: 0 | D147: 0 | E147: 0 | F147: 0 | G147: 0 | H147: 0 | I147: 0 | J147: 0 | K147: 0
A148: ='Org structure'!A9 -> Vote 08 - Waste Management | C148: =SUM(C149:C149) -> 35135262 | D148: 28983040.55 | E148: 21048661.52 | F148: 23846606 | G148: 25152310 | H148: 25152310 | I148: 23981042 | J148: 29031124 | K148: 30039782
A149: ='Org structure'!E65 -> 08.1 - Waste Manegement | C149: 35135262 | D149: 28983040.55 | E149: 21048661.52 | F149: 23846606 | G149: 25152310 | H149: 25152310 | I149: 23981042 | J149: 29031124 | K149: 30039782
A150: ='Org structure'!A10 -> Vote 09 - Waste Water Management | C150: =SUM(C151:C152) -> 26650525 | D150: 111782261.1 | E150: 46798929.92 | F150: 14319638 | G150: 10455130 | H150: 10455130 | I150: 31563017 | J150: 33321099 | K150: 41471112
A151: ='Org structure'!E67 -> 09.1 - Waste Water Management | C151: 26650525 | D151: 111782261.1 | E151: 46798929.92 | F151: 6548639 | G151: 5015587 | H151: 5015587 | I151: 23762736 | J151: 22740376 | K151: 30314434
A152: ='Org structure'!E68 -> 09.2 - Process Management - Waste Water | C152: 0 | D152: 0 | E152: 0 | F152: 7770999 | G152: 5439543 | H152: 5439543 | I152: 7800281 | J152: 10580723 | K152: 11156678
A153: ='Org structure'!A11 -> Vote 10 - King Cetshwayo Fresh Produce Market | C153: =SUM(C154:C158) -> 30104324 | D153: 32637315.02 | E153: 23613088.73 | F153: 28597638 | G153: 3120387 | H153: 3120387 | I153: 0 | J153: 0 | K153: 0
A154: ='Org structure'!E70 -> 10.1 - Office Of The Ceo | C154: 30104324 | D154: 10536726.63 | E154: 28897.44 | F154: 653500 | G154: 0 | H154: 0 | I154: 0 | J154: 0 | K154: 0
A155: ='Org structure'!E71 -> 10.2 - Finance | C155: 0 | D155: 3893168.43 | E155: 2429315.29 | F155: 3851222 | G155: 958621 | H155: 958621 | I155: 0 | J155: 0 | K155: 0
A156: ='Org structure'!E72 -> 10.3 - Corporate Serv | C156: 0 | D156: 1084001.49 | E156: 1464337.17 | F156: 2024096 | G156: 893517 | H156: 893517 | I156: 0 | J156: 0 | K156: 0
A157: ='Org structure'!E73 -> 10.4 - Operations | C157: 0 | D157: 17123418.47 | E157: 19209185.08 | F157: 21078613 | G157: 1047565 | H157: 1047565 | I157: 0 | J157: 0 | K157: 0
A158: ='Org structure'!E74 -> 10.5 - Agribusiness | C158: 0 | D158: 0 | E158: 481353.75 | F158: 990207 | G158: 220684 | H158: 220684 | I158: 0 | J158: 0 | K158: 0
A159: ='Org structure'!A12 -> Vote 11 - | C159: 0 | D159: 0 | E159: 0 | F159: 0 | G159: 0 | H159: 0 | I159: 0 | J159: 0 | K159: 0
A160: ='Org structure'!A13 -> Vote 12 - | C160: 0 | D160: 0 | E160: 0 | F160: 0 | G160: 0 | H160: 0 | I160: 0 | J160: 0 | K160: 0
A161: ='Org structure'!A14 -> Vote 13 - | C161: 0 | D161: 0 | E161: 0 | F161: 0 | G161: 0 | H161: 0 | I161: 0 | J161: 0 | K161: 0
A162: ='Org structure'!A15 -> Vote 14 - | C162: 0 | D162: 0 | E162: 0 | F162: 0 | G162: 0 | H162: 0 | I162: 0 | J162: 0 | K162: 0
A163: ='Org structure'!A16 -> Vote 15 - Other | C163: 0 | D163: 0 | E163: 0 | F163: 0 | G163: 0 | H163: 0 | I163: 0 | J163: 0 | K163: 0
A164: Total Expenditure by Vote | B164: 2 | C164: =C86+C98+C103+C108+C109+C112+C131+C148+C150+C153+C159+C160+C161+C162+C163 -> 721762081 | D164: 866084717.1 | E164: 890480328.5 | F164: 826215042 | G164: 884425058 | H164: 884425058 | I164: 793797372 | J164: 868401848 | K164: 938819547 | L164: =SUM(L86:L147) -> 0 | M164: 0 | N164: 0 | O164: 0 | P164: 0 | Q164: 0 | R164: 0 | S164: 0 | T164: 0 | U164: 0 | V164: 0 | W164: 0
A166: =result -> Surplus/(Deficit) for the year | B166: 2 | C166: =C83-C164 -> 297315659.6 | D166: 106176410.3 | E166: 49756875.8 | F166: 216665350 | G166: 234967806 | H166: 234967806 | I166: 185609861 | J166: 204280251 | K166: 230687633 | L166: 0 | M166: 0 | N166: 0 | O166: 0 | P166: 0 | Q166: 0 | R166: 0 | S166: 0 | T166: 0 | U166: 0 | V166: 0 | W166: 0
A167: =head27a -> References
A168: 1. Insert 'Vote'; e.g. Department, if different to Functional structure
A169: 2. Must reconcile to Financial Performance ('Revenue and Expenditure by Functional Classification' and 'Revenue and Expenditure')
A170: 3. Assign share in 'associate' to relevant Vote
A172: check revenue | C172: =C83-'A4-FinPerf RE'!C59 -> 0 | D172: =D83-'A4-FinPerf RE'!D59 -> 0 | E172: =E83-'A4-FinPerf RE'!E59 -> 0 | F172: =F83-'A4-FinPerf RE'!F59 -> 0 | G172: =G83-'A4-FinPerf RE'!G59 -> 0 | H172: =H83-'A4-FinPerf RE'!H59 -> 0 | I172: =I83-'A4-FinPerf RE'!J59 -> 0 | J172: =J83-'A4-FinPerf RE'!K59 -> 0 | K172: =K83-'A4-FinPerf RE'!L59 -> 0
A173: check expenditure | C173: =C164-'A4-FinPerf RE'!C35 -> 0 | D173: =D164-'A4-FinPerf RE'!D35 -> 0 | E173: =E164-'A4-FinPerf RE'!E35 -> 0 | F173: =F164-'A4-FinPerf RE'!F35 -> 0 | G173: =G164-'A4-FinPerf RE'!G35 -> 0 | H173: =H164-'A4-FinPerf RE'!H35 -> 0 | I173: =I164-'A4-FinPerf RE'!J35 -> 0 | J173: =J164-'A4-FinPerf RE'!K35 -> 0 | K173: =K164-'A4-FinPerf RE'!L35 -> 0

Sheet A4-FinPerf RE
A1: =muni&" - "&Approve4 -> DC28 King Cetshwayo - Table A4 Consolidated Budgeted Financial Performance (revenue and expenditure)
A2: =desc -> Description | B2: =head27 -> Ref | C2: =head1b -> 2016/17 | D2: =head1A -> 2017/18 | E2: =Head1 -> 2018/19 | F2: =Head2 -> Current Year 2019/20 | J2: =Head3 -> 2020/21 Medium Term Revenue & Expenditure Framework | M2: =Head4 -> LTFS
A3: R thousand | B3: 1 | C3: =Head5 -> Audited Outcome | D3: =Head5 -> Audited Outcome | E3: =Head5 -> Audited Outcome | F3: =Head6 -> Original Budget | G3: =Head7 -> Adjusted Budget | H3: =Head8 -> Full Year Forecast | I3: =Head5b -> Pre-audit outcome | J3: =Head9 -> Budget Year 2020/21 | K3: =Head10 -> Budget Year +1 2021/22 | L3: =Head11 -> Budget Year +2 2022/23 | M3: =Head12 -> Forecast 2023/24 | N3: =Head13 -> Forecast 2024/25 | O3: =Head14 -> Forecast 2025/26 | P3: =Head15 -> Forecast 2026/27 | Q3: =Head16 -> Forecast 2027/28 | R3: =Head17 -> Forecast 2028/29 | S3: =Head18 -> Forecast 2029/30 | T3: =Head19 -> Forecast 2030/31 | U3: =Head20 -> Forecast 2031/32 | V3: =Head21 -> Forecast 2032/33 | W3: =Head22 -> Forecast 2033/34 | X3: =Head23 -> Forecast 2034/35
A4: Revenue By Source
A5: Property rates | B5: 2 | C5: ='SA1'!C9 -> 0 | D5: ='SA1'!D9 -> 0 | E5: ='SA1'!E9 -> 0 | F5: ='SA1'!F9 -> 0 | G5: ='SA1'!G9 -> 0 | H5: ='SA1'!H9 -> 0 | I5: ='SA1'!I9 -> 0 | J5: ='SA1'!J9 -> 0 | K5: ='SA1'!K9 -> 0 | L5: ='SA1'!L9 -> 0
A6: Service charges - electricity revenue | B6: 2 | C6: ='SA1'!C15 -> 0 | D6: ='SA1'!D15 -> 0 | E6: ='SA1'!E15 -> 0 | F6: ='SA1'!F15 -> 0 | G6: ='SA1'!G15 -> 0 | H6: ='SA1'!H15 -> 0 | I6: ='SA1'!I15 -> 0 | J6: ='SA1'!J15 -> 0 | K6: ='SA1'!K15 -> 0 | L6: ='SA1'!L15 -> 0
A7: Service charges - water revenue | B7: 2 | C7: ='SA1'!C21 -> 38936837 | D7: ='SA1'!D21 -> 48893321.26 | E7: ='SA1'!E21 -> 53124986.25 | F7: ='SA1'!F21 -> 52990971 | G7: ='SA1'!G21 -> 53390971 | H7: ='SA1'!H21 -> 53390971 | I7: ='SA1'!I21 -> 55892319.53 | J7: ='SA1'!J21 -> 69502408 | K7: ='SA1'!K21 -> 73672551 | L7: ='SA1'!L21 -> 78092906
A8: Service charges - sanitation revenue | B8: 2 | C8: ='SA1'!C27 -> 6706017 | D8: ='SA1'!D27 -> 7939034.41 | E8: ='SA1'!E27 -> 7569424.18 | F8: ='SA1'!F27 -> 7942714 | G8: ='SA1'!G27 -> 7942714 | H8: ='SA1'!H27 -> 7942714 | I8: ='SA1'!I27 -> 7972141.61 | J8: ='SA1'!J27 -> 8444047 | K8: ='SA1'!K27 -> 8950691 | L8: ='SA1'!L27 -> 9487732
A9: Service charges - refuse revenue | B9: 2 | C9: ='SA1'!C34 -> 18972070 | D9: ='SA1'!D34 -> 20505111.46 | E9: ='SA1'!E34 -> 26218252.36 | F9: ='SA1'!F34 -> 31538588 | G9: ='SA1'!G34 -> 31538588 | H9: ='SA1'!H34 -> 31538588 | I9: ='SA1'!I34 -> 26033079.31 | J9: ='SA1'!J34 -> 25172821 | K9: ='SA1'!K34 -> 30207385 | L9: ='SA1'!L34 -> 36248862
A11: Rental of facilities and equipment | C11: 46667 | D11: 567813.64 | E11: 118511.11 | F11: 111370 | G11: 111370 | H11: 111370 | I11: 81749.16 | J11: 115052 | K11: 121955 | L11: 129272
A12: Interest earned - external investments | C12: 45649115 | D12: 44448560.18 | E12: 39258357.19 | F12: 32145252 | G12: 38821294 | H12: 38821294 | I12: 37537515.18 | J12: 32909009 | K12: 34883549 | L12: 36976563
A13: Interest earned - outstanding debtors | C13: 2054264 | D13: 2190416.17 | E13: 1709971.44 | F13: 265032 | G13: 265032 | H13: 265032 | I13: 2040016.06 | J13: 279771 | K13: 296558 | L13: 314350
A14: Dividends received | C14: 0 | D14: 3294.4 | E14: 3544.32 | F14: 0 | G14: 0 | H14: 0 | I14: 0 | J14: 0 | K14: 0 | L14: 0
A15: Fines, penalties and forfeits | C15: 0 | D15: 8431.29 | E15: 13368.44 | F15: 9029 | G15: 9029 | H15: 9029 | I15: 21184.49 | J15: 9569 | K15: 10143 | L15: 10752
A16: Licences and permits | C16: 52000 | D16: 20000 | E16: 40000 | F16: 70000 | G16: 70000 | H16: 70000 | I16: 55000 | J16: 74200 | K16: 80000 | L16: 85000
A17: Agency services | C17: 0
A18: Transfers and subsidies | C18: 467499844 | D18: 537476798.3 | E18: 574400728.5 | F18: 532948245 | G18: 582643741 | H18: 582643741 | I18: 528043532.4 | J18: 591779678 | K18: 631068000 | L18: 682981000
A19: Other revenue | B19: 2 | C19: ='SA1'!C49 -> 40596567.57 | D19: ='SA1'!D49 -> 32547286.96 | E19: ='SA1'!E49 -> 23054767.42 | F19: ='SA1'!F49 -> 29074436 | G19: ='SA1'!G49 -> 2767259 | H19: ='SA1'!H49 -> 2767259 | I19: ='SA1'!I49 -> 1991404.74 | J19: ='SA1'!J49 -> 4139356 | K19: ='SA1'!K49 -> 1391267 | L19: ='SA1'!L49 -> 1474743
A20: Gains | C20: 0 | D20: 6965381.25 | E20: 47933.24 | F20: 0 | G20: 0 | H20: 0 | I20: 0 | J20: 0 | K20: 0 | L20: 0
A21: Total Revenue (excluding capital transfers and contributions) | C21: =SUM(C5:C9)+SUM(C11:C20) -> 620513381.6 | D21: =SUM(D5:D9)+SUM(D11:D20) -> 701565449.4 | E21: 725559844.4 | F21: 687095637 | G21: 717559998 | H21: 717559998 | I21: 659667942.4 | J21: 732425911 | K21: 780682099 | L21: 845801180 | M21: =SUM(M5:M20) -> 0 | N21: 0 | O21: 0 | P21: 0 | Q21: 0 | R21: 0 | S21: 0 | T21: 0 | U21: 0 | V21: 0 | W21: 0 | X21: 0
A23: Expenditure By Type
A24: Employee related costs | B24: 2 | C24: ='SA1'!C67 -> 173463443 | D24: ='SA1'!D67 -> 195947911.6 | E24: ='SA1'!E67 -> 229027598.1 | F24: ='SA1'!F67 -> 239552108 | G24: ='SA1'!G67 -> 233329638 | H24: ='SA1'!H67 -> 233329638 | I24: ='SA1'!I67 -> 225140412.3 | J24: ='SA1'!J67 -> 280420765 | K24: ='SA1'!K67 -> 291890178 | L24: ='SA1'!L67 -> 309447044
A25: Remuneration of councillors | C25: 10292482 | D25: 11778096.65 | E25: 11679483.2 | F25: 13696734 | G25: 13242367 | H25: 13242367 | I25: 12962831.66 | J25: 14436372 | K25: 15215953 | L25: 16128911
A26: Debt impairment | B26: 3 | C26: 12425804 | D26: 5317988.66 | E26: 8753606.81 | F26: 7611741 | G26: 7611741 | H26: 7611741 | I26: 258989.17 | J26: 7816979 | K26: 8285997 | L26: 8783156
A27: Depreciation & asset impairment | B27: 2 | C27: ='SA1'!C83 -> 62984886 | D27: ='SA1'!D83 -> 69920038.49 | E27: ='SA1'!E83 -> 74750879.33 | F27: ='SA1'!F83 -> 102408715 | G27: ='SA1'!G83 -> 101758715 | H27: ='SA1'!H83 -> 101758715 | I27: ='SA1'!I83 -> 66414524.81 | J27: ='SA1'!J83 -> 89656068 | K27: ='SA1'!K83 -> 97466388 | L27: ='SA1'!L83 -> 105187074
A28: Finance charges | C28: 9163083 | D28: 6432318.84 | E28: 5322141 | F28: 4580963 | G28: 4581489 | H28: 4581489 | I28: 2395042.88 | J28: 3721615 | K28: 6917405 | L28: 5782016
A29: Bulk purchases | B29: 2 | C29: ='SA1'!C88 -> 55621511 | D29: ='SA1'!D88 -> 47254674.64 | E29: ='SA1'!E88 -> 39200886.39 | F29: ='SA1'!F88 -> 34380972 | G29: ='SA1'!G88 -> 65751957 | H29: ='SA1'!H88 -> 65751957 | I29: ='SA1'!I88 -> 63690816.82 | J29: ='SA1'!J88 -> 71810790 | K29: ='SA1'!K88 -> 87362632 | L29: ='SA1'!L88 -> 104325486
A30: Other materials | B30: 8 | C30: 0 | D30: 32530163.94 | E30: 27905098.05 | F30: 35306705 | G30: 17779397 | H30: 17779397 | I30: 15563217.91 | J30: 36265606 | K30: 25938560 | L30: 27596383
A31: Contracted services | C31: ='SA1'!C127 -> 111867343 | D31: ='SA1'!D127 -> 387280531.1 | E31: ='SA1'!E127 -> 367237905.2 | F31: ='SA1'!F127 -> 253765485 | G31: ='SA1'!G127 -> 334874344 | H31: ='SA1'!H127 -> 334874344 | I31: ='SA1'!I127 -> 312332783.7 | J31: ='SA1'!J127 -> 177417200 | K31: ='SA1'!K127 -> 220673914 | L31: ='SA1'!L127 -> 240095233
A32: Transfers and subsidies | C32: ='SA1'!C93 -> 10635455 | D32: ='SA1'!D93 -> 11514719.22 | E32: ='SA1'!E93 -> 19355000 | F32: ='SA1'!F93 -> 5942500 | G32: ='SA1'!G93 -> 2081223 | H32: ='SA1'!H93 -> 2081223 | I32: ='SA1'!I93 -> 2000000 | J32: ='SA1'!J93 -> 1025000 | K32: ='SA1'!K93 -> 2820000 | L32: ='SA1'!L93 -> 2961000
A33: Other expenditure | B33: 4, 5 | C33: ='SA1'!C157 -> 275308074 | D33: ='SA1'!D157 -> 96776400.37 | E33: ='SA1'!E157 -> 107247730.4 | F33: ='SA1'!F157 -> 128969119 | G33: ='SA1'!G157 -> 103414187 | H33: ='SA1'!H157 -> 103414187 | I33: ='SA1'!I157 -> 88689022.19 | J33: ='SA1'!J157 -> 111226977 | K33: ='SA1'!K157 -> 111830821 | L33: ='SA1'!L157 -> 118513244
A34: Losses | C34: 0 | D34: 1331873.61 | E34: 0 | F34: 0 | G34: 0 | H34: 0 | I34: 0 | J34: 0 | K34: 0 | L34: 0
A35: Total Expenditure | C35: =SUM(C24:C34) -> 721762081 | D35: =SUM(D24:D34) -> 866084717.1 | E35: 890480328.5 | F35: 826215042 | G35: 884425058 | H35: 884425058 | I35: 789447641.4 | J35: 793797372 | K35: 868401848 | L35: 938819547 | M35: =SUM(M24:M34) -> 0 | N35: 0 | O35: 0 | P35: 0 | Q35: 0 | R35: 0 | S35: 0 | T35: 0 | U35: 0 | V35: 0 | W35: 0 | X35: 0
A37: Surplus/(Deficit) | C37: =C21-C35 -> -101248699.4 | D37: -164519267.8 | E37: -164920484.1 | F37: -139119405 | G37: -166865060 | H37: -166865060 | I37: -129779699 | J37: -61371461 | K37: -87719749 | L37: -93018367 | M37: =M21+M35 -> 0 | N37: 0 | O37: 0 | P37: 0 | Q37: 0 | R37: 0 | S37: 0 | T37: 0 | U37: 0 | V37: 0 | W37: 0 | X37: 0
A38: Transfers and subsidies - capital (monetary allocations) (National / Provincial and District) | C38: 398564359 | D38: 270695678 | E38: 214677359.9 | F38: 355784755 | G38: 401832866 | H38: 401832866 | I38: 168730495.6 | J38: 246981322 | K38: 292000000 | L38: 323706000
A39: Transfers and subsidies - capital (monetary allocations) (National / Provincial Departmental Agencies, Households, Non-profit Institutions, Private Enterprises, Public Corporatons, Higher Educational Institutions) | B39: 6 | C39: 0 | D39: 0 | E39: 0 | F39: 0 | G39: 0 | H39: 0 | I39: 0 | J39: 0 | K39: 0 | L39: 0
A40: Transfers and subsidies - capital (in-kind - all)
A41: Surplus/(Deficit) after capital transfers & contributions | C41: =SUM(C37:C40) -> 297315659.6 | D41: 106176410.3 | E41: 49756875.8 | F41: 216665350 | G41: 234967806 | H41: 234967806 | I41: 38950796.65 | J41: 185609861 | K41: 204280251 | L41: 230687633
A42: Taxation
A43: Surplus/(Deficit) after taxation | C43: =C41-C42 -> 297315659.6 | D43: 106176410.3 | E43: 49756875.8 | F43: 216665350 | G43: 234967806 | H43: 234967806 | I43: 38950796.65 | J43: 185609861 | K43: 204280251 | L43: 230687633
A44: Attributable to minorities
A45: Surplus/(Deficit) attributable to municipality | C45: =SUM(C43:C44) -> 297315659.6 | D45: 106176410.3 | E45: 49756875.8 | F45: 216665350 | G45: 234967806 | H45: 234967806 | I45: 38950796.65 | J45: 185609861 | K45: 204280251 | L45: 230687633
A46: Share of surplus/ (deficit) of associate | B46: 7
A47: =result -> Surplus/(Deficit) for the year | C47: =SUM(C45:C46) -> 297315659.6 | D47: 106176410.3 | E47: 49756875.8 | F47: 216665350 | G47: 234967806 | H47: 234967806 | I47: 38950796.65 | J47: 185609861 | K47: 204280251 | L47: 230687633 | M47: =M25+M46 -> 0 | N47: 0 | O47: 0 | P47: 0 | Q47: 0 | R47: 0 | S47: 0 | T47: 0 | U47: 0 | V47: 0 | W47: 0 | X47: 0
A48: =head27a -> References
A49: 1. Classifications are revenue sources and expenditure type
A50: 2. Detail to be provided in Table SA1
A51: 3. Previously described as 'bad or doubtful debts' - amounts shown should reflect the change in the provision for debt impairment
A52: 4. Expenditure type components previously shown under repairs and maintenance should be allocated back to the originating expenditure group/item; e.g. employee costs
A53: 5. Repairs & maintenance detailed in Table A9 and Table SA34c
A54: 6. Contributions are funds provided by external organisations to assist with infrastructure development; e.g. developer contributions (detail to be provided in Table SA1)
A55: 7. Equity method ( Includes Joint Ventures)
A56: 8. All materials not part of 'bulk' e.g road making materials, pipe, cable etc.
A57: check balance | C57: =C45-'A3-FinPerf V'!C39 -> 0 | D57: =D45-'A3-FinPerf V'!D39 -> -2.980232239e-07 | E57: =E45-'A3-FinPerf V'!E39 -> 0 | F57: =F45-'A3-FinPerf V'!F39 -> 0 | G57: =G45-'A3-FinPerf V'!G39 -> 0 | H57: =H45-'A3-FinPerf V'!H39 -> 0 | J57: =J45-'A3-FinPerf V'!I39 -> 0 | K57: =K45-'A3-FinPerf V'!J39 -> 0 | L57: =L45-'A3-FinPerf V'!K39 -> 0
A59: Total revenue | C59: =C21+SUM(C38:C40) -> 1019077741 | D59: 972261127.4 | E59: 940237204.3 | F59: 1042880392 | G59: 1119392864 | H59: 1119392864 | I59: 828398438.1 | J59: 979407233 | K59: 1072682099 | L59: 1169507180

Sheet A5-Capex
A2: =Vdesc -> Vote Description | B2: =head27 -> Ref | C2: =head1b -> 2016/17 | D2: =head1A -> 2017/18 | E2: =Head1 -> 2018/19 | F2: =Head2 -> Current Year 2019/20 | J2: =Head3 -> 2020/21 Medium Term Revenue & Expenditure Framework
A3: R thousand | B3: 1 | C3: =Head5 -> Audited Outcome | D3: =Head5 -> Audited Outcome | E3: =Head5 -> Audited Outcome | F3: =Head6 -> Original Budget | G3: =Head7 -> Adjusted Budget | H3: =Head8 -> Full Year Forecast | I3: =Head5b -> Pre-audit outcome | J3: =Head9 -> Budget Year 2020/21 | K3: =Head10 -> Budget Year +1 2021/22 | L3: =Head11 -> Budget Year +2 2022/23
A4: Capital expenditure - Vote
A5: Multi-year expenditure to be appropriated | B5: 2
A6: =A5A!A6 -> Vote 01 - Executive & Council | C6: =A5A!C6 -> 0 | D6: =A5A!D6 -> 0 | E6: =A5A!E6 -> 0 | F6: =A5A!F6 -> 0 | G6: =A5A!G6 -> 0 | H6: =A5A!H6 -> 0 | I6: =A5A!I6 -> 0 | J6: =A5A!J6 -> 0 | K6: =A5A!K6 -> 0 | L6: =A5A!L6 -> 0
A7: =A5A!A18 -> Vote 02 - Economic Development, Planning & Environment | C7: =A5A!C18 -> 0 | D7: =A5A!D18 -> 0 | E7: =A5A!E18 -> 0 | F7: =A5A!F18 -> 0 | G7: =A5A!G18 -> 0 | H7: =A5A!H18 -> 0 | I7: =A5A!I18 -> 0 | J7: =A5A!J18 -> 0 | K7: =A5A!K18 -> 0 | L7: =A5A!L18 -> 0
A8: =A5A!A23 -> Vote 03 - Community & Social Services | C8: =A5A!C23 -> 0 | D8: =A5A!D23 -> 636349.43 | E8: =A5A!E23 -> 0 | F8: =A5A!F23 -> 0 | G8: =A5A!G23 -> 0 | H8: =A5A!H23 -> 0 | I8: =A5A!I23 -> 0 | J8: =A5A!J23 -> 0 | K8: =A5A!K23 -> 0 | L8: =A5A!L23 -> 0
A9: ='Org structure'!A5 -> Vote 04 - Public Safety | C9: =A5A!C28 -> 0 | D9: =A5A!D28 -> 0 | E9: =A5A!E28 -> 0 | F9: =A5A!F28 -> 0 | G9: =A5A!G28 -> 0 | H9: =A5A!H28 -> 0 | I9: =A5A!I28 -> 0 | J9: =A5A!J28 -> 0 | K9: =A5A!K28 -> 0 | L9: =A5A!L28 -> 0
A10: =A5A!A29 -> Vote 05 - Environmental Health | C10: =A5A!C29 -> 0 | D10: =A5A!D29 -> 0 | E10: =A5A!E29 -> 0 | F10: =A5A!F29 -> 0 | G10: =A5A!G29 -> 0 | H10: =A5A!H29 -> 0 | I10: =A5A!I29 -> 0 | J10: =A5A!J29 -> 0 | K10: =A5A!K29 -> 0 | L10: =A5A!L29 -> 0
A11: =A5A!A32 -> Vote 06 - Finance & Administration | C11: =A5A!C32 -> 0 | D11: =A5A!D32 -> 0 | E11: =A5A!E32 -> 0 | F11: =A5A!F32 -> 0 | G11: =A5A!G32 -> 0 | H11: =A5A!H32 -> 0 | I11: =A5A!I32 -> 0 | J11: =A5A!J32 -> 0 | K11: =A5A!K32 -> 0 | L11: =A5A!L32 -> 0
A12: =A5A!A51 -> Vote 07 - Infrastructure Services | C12: =A5A!C51 -> 354168860 | D12: =A5A!D51 -> 152499816.2 | E12: =A5A!E51 -> 172654792.3 | F12: =A5A!F51 -> 309753097 | G12: =A5A!G51 -> 311164039 | H12: =A5A!H51 -> 311164039 | I12: =A5A!I51 -> 103357307.8 | J12: =A5A!J51 -> 178910703 | K12: =A5A!K51 -> 213811240 | L12: =A5A!L51 -> 237706000
A13: =A5A!A68 -> Vote 08 - Waste Management | C13: =A5A!C68 -> 0 | D13: =A5A!D68 -> 310000 | E13: =A5A!E68 -> 0 | F13: =A5A!F68 -> 0 | G13: =A5A!G68 -> 0 | H13: =A5A!H68 -> 0 | I13: =A5A!I68 -> 0 | J13: =A5A!J68 -> 4361901 | K13: =A5A!K68 -> 4361901 | L13: =A5A!L68 -> 0
A14: =A5A!A70 -> Vote 09 - Waste Water Management | C14: =A5A!C70 -> 3000000 | D14: =A5A!D70 -> 0 | E14: =A5A!E70 -> 18624992.22 | F14: =A5A!F70 -> 52031658 | G14: =A5A!G70 -> 53307424 | H14: =A5A!H70 -> 53307424 | I14: =A5A!I70 -> 45193826.41 | J14: =A5A!J70 -> 16003609 | K14: =A5A!K70 -> 38188760 | L14: =A5A!L70 -> 46000000
A15: =A5A!A73 -> Vote 10 - King Cetshwayo Fresh Produce Market | C15: =A5A!C73 -> 0 | D15: =A5A!D73 -> 0 | E15: =A5A!E73 -> 0 | F15: =A5A!F73 -> 0 | G15: =A5A!G73 -> 0 | H15: =A5A!H73 -> 0 | I15: =A5A!I73 -> 0 | J15: =A5A!J73 -> 0 | K15: =A5A!K73 -> 0 | L15: =A5A!L73 -> 0
A16: ='Org structure'!A12 -> Vote 11 - | C16: =A5A!C79 -> 0 | D16: =A5A!D79 -> 0 | E16: =A5A!E79 -> 0 | F16: =A5A!F79 -> 0 | G16: =A5A!G79 -> 0 | H16: =A5A!H79 -> 0 | I16: =A5A!I79 -> 0 | J16: =A5A!J79 -> 0 | K16: =A5A!K79 -> 0 | L16: =A5A!L79 -> 0
A17: ='Org structure'!A13 -> Vote 12 - | C17: =A5A!C80 -> 0 | D17: =A5A!D80 -> 0 | E17: =A5A!E80 -> 0 | F17: =A5A!F80 -> 0 | G17: =A5A!G80 -> 0 | H17: =A5A!H80 -> 0 | I17: =A5A!I80 -> 0 | J17: =A5A!J80 -> 0 | K17: =A5A!K80 -> 0 | L17: =A5A!L80 -> 0
A18: ='Org structure'!A14 -> Vote 13 - | C18: =A5A!C81 -> 0 | D18: =A5A!D81 -> 0 | E18: =A5A!E81 -> 0 | F18: =A5A!F81 -> 0 | G18: =A5A!G81 -> 0 | H18: =A5A!H81 -> 0 | I18: =A5A!I81 -> 0 | J18: =A5A!J81 -> 0 | K18: =A5A!K81 -> 0 | L18: =A5A!L81 -> 0
A19: ='Org structure'!A15 -> Vote 14 - | C19: =A5A!C82 -> 0 | D19: =A5A!D82 -> 0 | E19: =A5A!E82 -> 0 | F19: =A5A!F82 -> 0 | G19: =A5A!G82 -> 0 | H19: =A5A!H82 -> 0 | I19: =A5A!I82 -> 0 | J19: =A5A!J82 -> 0 | K19: =A5A!K82 -> 0 | L19: =A5A!L82 -> 0
A20: ='Org structure'!A16 -> Vote 15 - Other | C20: =A5A!C83 -> 0 | D20: =A5A!D83 -> 0 | E20: =A5A!E83 -> 0 | F20: =A5A!F83 -> 0 | G20: =A5A!G83 -> 0 | H20: =A5A!H83 -> 0 | I20: =A5A!I83 -> 0 | J20: =A5A!J83 -> 0 | K20: =A5A!K83 -> 0 | L20: =A5A!L83 -> 0
A21: Capital multi-year expenditure sub-total | B21: 7 | C21: =SUM(C6:C20) -> 357168860 | D21: =SUM(D6:D20) -> 153446165.6 | E21: 191279784.5 | F21: 361784755 | G21: 364471463 | H21: =SUM(H6:H20) -> 364471463 | I21: 148551134.2 | J21: 199276213 | K21: 256361901 | L21: 283706000
A23: Single-year expenditure to be appropriated | B23: 2
A24: =A5A!A88 -> Vote 01 - Executive & Council | C24: =A5A!C88 -> 3579417 | D24: =A5A!D88 -> 2028384.92 | E24: =A5A!E88 -> 783289.07 | F24: =A5A!F88 -> 100000 | G24: =A5A!G88 -> 3714411 | H24: =A5A!H88 -> 3714411 | I24: =A5A!I88 -> 219822.17 | J24: =A5A!J88 -> 100000 | K24: =A5A!K88 -> 0 | L24: =A5A!L88 -> 0
A25: =A5A!A100 -> Vote 02 - Economic Development, Planning & Environment | C25: =A5A!C100 -> 0 | D25: =A5A!D100 -> 0 | E25: =A5A!E100 -> 86336.44 | F25: =A5A!F100 -> 40000 | G25: =A5A!G100 -> 24195 | H25: =A5A!H100 -> 24195 | I25: =A5A!I100 -> 0 | J25: =A5A!J100 -> 0 | K25: =A5A!K100 -> 0 | L25: =A5A!L100 -> 0
A26: =A5A!A105 -> Vote 03 - Community & Social Services | C26: =A5A!C105 -> 999047 | D26: =A5A!D105 -> 221337.34 | E26: =A5A!E105 -> 1955435.46 | F26: =A5A!F105 -> 0 | G26: =A5A!G105 -> 253004 | H26: =A5A!H105 -> 253004 | I26: =A5A!I105 -> 0 | J26: =A5A!J105 -> 150000 | K26: =A5A!K105 -> 0 | L26: =A5A!L105 -> 0
A27: ='Org structure'!A5 -> Vote 04 - Public Safety | C27: =A5A!C110 -> 0 | D27: =A5A!D110 -> 0 | E27: =A5A!E110 -> 0 | F27: =A5A!F110 -> 0 | G27: =A5A!G110 -> 0 | H27: =A5A!H110 -> 0 | I27: =A5A!I110 -> 0 | J27: =A5A!J110 -> 0 | K27: =A5A!K110 -> 0 | L27: =A5A!L110 -> 0
A28: =A5A!A111 -> Vote 05 - Environmental Health | C28: =A5A!C111 -> 0 | D28: =A5A!D111 -> 85897.81 | E28: =A5A!E111 -> 241809.29 | F28: =A5A!F111 -> 250000 | G28: =A5A!G111 -> 250000 | H28: =A5A!H111 -> 250000 | I28: =A5A!I111 -> 0 | J28: =A5A!J111 -> 0 | K28: =A5A!K111 -> 0 | L28: =A5A!L111 -> 0
A29: =A5A!A114 -> Vote 06 - Finance & Administration | C29: =A5A!C114 -> 3472101 | D29: =A5A!D114 -> 2917310.64 | E29: =A5A!E114 -> 2226632.39 | F29: =A5A!F114 -> 3450000 | G29: =A5A!G114 -> 4249988 | H29: =A5A!H114 -> 4249988 | I29: =A5A!I114 -> 1657905.59 | J29: =A5A!J114 -> 7009000 | K29: =A5A!K114 -> 1650000 | L29: =A5A!L114 -> 650000
A30: =A5A!A133 -> Vote 07 - Infrastructure Services | C30: =A5A!C133 -> 2892727 | D30: =A5A!D133 -> 28493980.59 | E30: =A5A!E133 -> 1144151.63 | F30: =A5A!F133 -> 4310000 | G30: =A5A!G133 -> 69848928 | H30: =A5A!H133 -> 69848928 | I30: =A5A!I133 -> 16199496.24 | J30: =A5A!J133 -> 62450000 | K30: =A5A!K133 -> 41700000 | L30: =A5A!L133 -> 41000000
A31: =A5A!A150 -> Vote 08 - Waste Management | C31: =A5A!C150 -> 257748 | D31: =A5A!D150 -> 50178.43 | E31: =A5A!E150 -> 578002.39 | F31: =A5A!F150 -> 0 | G31: =A5A!G150 -> 415000 | H31: =A5A!H150 -> 415000 | I31: =A5A!I150 -> 0 | J31: =A5A!J150 -> 14878153 | K31: =A5A!K150 -> 34715689 | L31: =A5A!L150 -> 0
A32: =A5A!A152 -> Vote 09 - Waste Water Management | C32: =A5A!C152 -> 2928679 | D32: =A5A!D152 -> 0 | E32: =A5A!E152 -> 0 | F32: =A5A!F152 -> 600000 | G32: =A5A!G152 -> 282850 | H32: =A5A!H152 -> 282850 | I32: =A5A!I152 -> 202850 | J32: =A5A!J152 -> 12267010 | K32: =A5A!K152 -> 300000 | L32: =A5A!L152 -> 0
A33: =A5A!A155 -> Vote 10 - King Cetshwayo Fresh Produce Market | C33: =A5A!C155 -> 3959489.17 | D33: =A5A!D155 -> 99749.52 | E33: =A5A!E155 -> 107514.65 | F33: =A5A!F155 -> 0 | G33: =A5A!G155 -> 0 | H33: =A5A!H155 -> 0 | I33: =A5A!I155 -> 0 | J33: =A5A!J155 -> 0 | K33: =A5A!K155 -> 0 | L33: =A5A!L155 -> 0
A34: ='Org structure'!A12 -> Vote 11 - | C34: =A5A!C161 -> 0 | D34: =A5A!D161 -> 0 | E34: =A5A!E161 -> 0 | F34: =A5A!F161 -> 0 | G34: =A5A!G161 -> 0 | H34: =A5A!H161 -> 0 | I34: =A5A!I161 -> 0 | J34: =A5A!J161 -> 0 | K34: =A5A!K161 -> 0 | L34: =A5A!L161 -> 0
A35: ='Org structure'!A13 -> Vote 12 - | C35: =A5A!C162 -> 0 | D35: =A5A!D162 -> 0 | E35: =A5A!E162 -> 0 | F35: =A5A!F162 -> 0 | G35: =A5A!G162 -> 0 | H35: =A5A!H162 -> 0 | I35: =A5A!I162 -> 0 | J35: =A5A!J162 -> 0 | K35: =A5A!K162 -> 0 | L35: =A5A!L162 -> 0
A36: ='Org structure'!A14 -> Vote 13 - | C36: =A5A!C163 -> 0 | D36: =A5A!D163 -> 0 | E36: =A5A!E163 -> 0 | F36: =A5A!F163 -> 0 | G36: =A5A!G163 -> 0 | H36: =A5A!H163 -> 0 | I36: =A5A!I163 -> 0 | J36: =A5A!J163 -> 0 | K36: =A5A!K163 -> 0 | L36: =A5A!L163 -> 0
A37: ='Org structure'!A15 -> Vote 14 - | C37: =A5A!C164 -> 0 | D37: =A5A!D164 -> 0 | E37: =A5A!E164 -> 0 | F37: =A5A!F164 -> 0 | G37: =A5A!G164 -> 0 | H37: =A5A!H164 -> 0 | I37: =A5A!I164 -> 0 | J37: =A5A!J164 -> 0 | K37: =A5A!K164 -> 0 | L37: =A5A!L164 -> 0
A38: ='Org structure'!A16 -> Vote 15 - Other | C38: =A5A!C165 -> 0 | D38: =A5A!D165 -> 0 | E38: =A5A!E165 -> 0 | F38: =A5A!F165 -> 0 | G38: =A5A!G165 -> 0 | H38: =A5A!H165 -> 0 | I38: =A5A!I165 -> 0 | J38: =A5A!J165 -> 0 | K38: =A5A!K165 -> 0 | L38: =A5A!L165 -> 0
A39: Capital single-year expenditure sub-total | C39: =SUM(C24:C38) -> 18089208.17 | D39: =SUM(D24:D38) -> 33896839.25 | E39: 7123171.32 | F39: 8750000 | G39: 79038376 | H39: 79038376 | I39: 18280074 | J39: 96854163 | K39: 78365689 | L39: 41650000
A40: Total Capital Expenditure - Vote | C40: =C39+C21 -> 375258068.2 | D40: =D39+D21 -> 187343004.9 | E40: 198402955.8 | F40: 370534755 | G40: 443509839 | H40: 443509839 | I40: 166831208.2 | J40: 296130376 | K40: 334727590 | L40: 325356000
A42: Capital Expenditure - Functional
A43: Governance and administration | C43: =SUM(C44:C46) -> 7051518 | D43: =SUM(D44:D46) -> 4945695.56 | E43: 3009921.46 | F43: 3550000 | G43: 7964399 | H43: 7964399 | I43: 1877727.76 | J43: 7109000 | K43: 1650000 | L43: 650000
A44: Executive and council | C44: 3579417 | D44: 1703437.91 | E44: 442689 | F44: 100000 | G44: 3714411 | H44: 3714411 | I44: 219822.17 | J44: 100000 | K44: 0 | L44: 0
A45: Finance and administration | C45: 3472101 | D45: 3242257.65 | E45: 2567232.46 | F45: 3450000 | G45: 4249988 | H45: 4249988 | I45: 1657905.59 | J45: 7009000 | K45: 1650000 | L45: 650000
A46: Internal audit
A47: Community and public safety | C47: =SUM(C48:C52) -> 999047 | D47: =SUM(D48:D52) -> 857686.77 | E47: 1955435.46 | F47: 0 | G47: 253004 | H47: 253004 | I47: 0 | J47: 150000 | K47: 0 | L47: 0
A48: Community and social services | C48: 999047 | D48: 857686.77 | E48: 1955435.46 | F48: 0 | G48: 253004 | H48: 253004 | I48: 0 | J48: 150000 | K48: 0 | L48: 0
A49: Sport and recreation
A50: Public safety
A51: Housing
A52: Health
A53: Economic and environmental services | C53: =SUM(C54:C56) -> 0 | D53: =SUM(D54:D56) -> 85897.81 | E53: 328145.73 | F53: 290000 | G53: 274195 | H53: 274195 | I53: 0 | J53: 0 | K53: 0 | L53: 0
A54: Planning and development | C54: 0 | D54: 0 | E54: 86336.44 | F54: 40000 | G54: 24195 | H54: 24195 | I54: 0 | J54: 0 | K54: 0 | L54: 0
A55: Road transport
A56: Environmental protection | C56: 0 | D56: 85897.81 | E56: 241809.29 | F56: 250000 | G56: 250000 | H56: 250000 | I56: 0 | J56: 0 | K56: 0 | L56: 0
A57: Trading services | C57: =SUM(C58:C61) -> 363248014 | D57: =SUM(D58:D61) -> 181353975.2 | E57: 193001938.5 | F57: 366694755 | G57: 435018241 | H57: 435018241 | I57: 164953480.4 | J57: 288871376 | K57: 333077590 | L57: 324706000
A58: Energy sources
A59: Water management | C59: 357061587 | D59: 180993796.8 | E59: 173798943.9 | F59: 314063097 | G59: 381012967 | H59: 381012967 | I59: 119556804 | J59: 241360703 | K59: 255511240 | L59: 278706000
A60: Waste water management | C60: 5928679 | D60: 0 | E60: 18624992.22 | F60: 52631658 | G60: 53590274 | H60: 53590274 | I60: 45396676.41 | J60: 28270619 | K60: 38488760 | L60: 46000000
A61: Waste management | C61: 257748 | D61: 360178.43 | E61: 578002.39 | F61: 0 | G61: 415000 | H61: 415000 | I61: 0 | J61: 19240054 | K61: 39077590 | L61: 0
A62: Other | C62: 3959489.17 | D62: 99749.52 | E62: 107514.65 | F62: 0 | G62: 0 | H62: 0 | I62: 0 | J62: 0 | K62: 0 | L62: 0
A63: Total Capital Expenditure - Functional | B63: 3 | C63: =C43+C47+C53+C57+C62 -> 375258068.2 | D63: =D43+D47+D53+D57+D62 -> 187343004.9 | E63: 198402955.8 | F63: 370534755 | G63: 443509839 | H63: 443509839 | I63: 166831208.2 | J63: 296130376 | K63: 334727590 | L63: =L43+L47+L53+L57+L62 -> 325356000
A65: Funded by:
A66: National Government | C66: 357061587 | D66: 171513158.2 | E66: 191279784.5 | F66: 355784755 | G66: 401832866 | H66: 401832866 | I66: 156122961.2 | J66: 246981322 | K66: 292000000 | L66: 323706000
A67: Provincial Government
A68: District Municipality
A69: ='A4-FinPerf RE'!A39 -> Transfers and subsidies - capital (monetary allocations) (National / Provincial Departmental Agencies, Households, Non-profit Institutions, Private Enterprises, Public Corporatons, Higher Educational Institutions)
A70: Transfers recognised - capital | B70: 4 | C70: =SUM(C66:C69) -> 357061587 | D70: 171513158.2 | E70: 191279784.5 | F70: 355784755 | G70: 401832866 | H70: 401832866 | I70: 156122961.2 | J70: 246981322 | K70: 292000000 | L70: 323706000
A72: Borrowing | B72: 6
A73: Internally generated funds | C73: 18196481.17 | D73: 15829846.61 | E73: 7123171.32 | F73: 14750000 | G73: 41676973 | H73: 41676973 | I73: 10708246.94 | J73: 49149054 | K73: 42727590 | L73: 1650000
A74: Total Capital Funding | B74: 7 | C74: =+C70+C72+C73 -> 375258068.2 | D74: =+D70+D72+D73 -> 187343004.9 | E74: 198402955.8 | F74: 370534755 | G74: 443509839 | H74: 443509839 | I74: 166831208.2 | J74: 296130376 | K74: 334727590 | L74: 325356000
A75: =head27a -> References
A76: 1. Municipalities may choose to appropriate for capital expenditure for three years or for one year (if one year appropriation projected expenditure required for yr2 and yr3).
A77: 2. Include capital component of PPP unitary payment. Note that capital transfers are only appropriated to municipalities for the budget year
A78: 3. Capital expenditure by functional classification must reconcile to the appropriations by vote
A79: 4. Must reconcile to supporting table SA20 and to Budgeted Financial Performance (revenue and expenditure)
A81: 6. Include finance leases and PPP capital funding component of unitary payment - total borrowing/repayments to reconcile to changes in Table SA17
A82: 7. Total Capital Funding must balance with Total Capital Expenditure
A83: 8. Include any capitalised interest (MFMA section 46) as part of relevant capital budget
A85: check balance | C85: =IF((C63-C74)=0,0,"Unbalanced") -> 0 | D85: =IF((D63-D74)=0,0,"Unbalanced") -> 0 | E85: 0 | F85: 0 | G85: 0 | H85: 0 | I85: 0 | J85: 0 | K85: 0 | L85: 0

Sheet A5A
A1: =muni&" - "&Approve5 -> DC28 King Cetshwayo - Table A5 Consolidated Budgeted Capital Expenditure by vote, functional classification and funding
A2: =Vdesc -> Vote Description | B2: =head27 -> Ref | C2: =head1b -> 2016/17 | D2: =head1A -> 2017/18 | E2: =Head1 -> 2018/19 | F2: =Head2 -> Current Year 2019/20 | J2: =Head3 -> 2020/21 Medium Term Revenue & Expenditure Framework | N2: ="Multi-year appropriation for "&Head9& " in the "&Head2A&" Annual Budget" -> Multi-year appropriation for Budget Year 2020/21 in the 2019/20 Annual Budget | R2: ="Multi-year appropriation for "&RIGHT(Head10,7)& " in the "&Head2A&" Annual Budget" -> Multi-year appropriation for 2021/22 in the 2019/20 Annual Budget | V2: New multi-year appropriations (funds for new and existing projects)
A3: R thousand | B3: 1 | C3: =Head5 -> Audited Outcome | D3: =Head5 -> Audited Outcome | E3: =Head5 -> Audited Outcome | F3: =Head6 -> Original Budget | G3: =Head7 -> Adjusted Budget | H3: =Head8 -> Full Year Forecast | I3: =Head5b -> Pre-audit outcome | J3: =Head9 -> Budget Year 2020/21 | K3: =Head10 -> Budget Year +1 2021/22 | L3: =Head11 -> Budget Year +2 2022/23 | N3: ="Appropriation for "&RIGHT(Head9,7) -> Appropriation for 2020/21 | O3: ="Adjustments in "&Head2A -> Adjustments in 2019/20 | P3: ="Downward adjustments for "&RIGHT(Head9,7) -> Downward adjustments for 2020/21 | Q3: Appropriation carried forward | R3: ="Appropriation for "&RIGHT(Head9,7) -> Appropriation for 2020/21 | S3: ="Adjustments in "&Head2A -> Adjustments in 2019/20 | T3: ="Downward adjustments for "&RIGHT(Head9,7) -> Downward adjustments for 2020/21 | U3: Appropriation carried forward | V3: =Head9 -> Budget Year 2020/21 | W3: =Head10 -> Budget Year +1 2021/22 | X3: =Head11 -> Budget Year +2 2022/23
A4: Capital expenditure - Municipal Vote
A5: Multi-year expenditure appropriation | B5: 2
A6: ='Org structure'!A2 -> Vote 01 - Executive & Council | C6: =SUM(C7:C17) -> 0 | D6: 0 | E6: 0 | F6: 0 | G6: 0 | H6: 0 | I6: 0 | J6: 0 | K6: 0 | L6: 0 | N6: =SUM(N7:N17) -> 0 | O6: 0 | P6: 0 | Q6: 0 | R6: 0 | S6: 0 | T6: 0 | U6: 0 | V6: 0 | W6: 0 | X6: 0
A7: ='Org structure'!E3 -> 01.1 - Board General | C7: 0 | D7: 0 | E7: 0 | F7: 0 | G7: 0 | H7: 0 | I7: 0 | J7: =Q7+V7 -> 0 | K7: =U7+W7 -> 0 | L7: =X7 -> 0 | N7: 0 | O7: 0 | P7: 0 | Q7: =SUM(N7:P7) -> 0 | R7: 0 | S7: 0 | T7: 0 | U7: =SUM(R7:T7) -> 0 | V7: 0 | W7: 0 | X7: 0
A8: ='Org structure'!E4 -> 01.2 - Executive Div - Corpotate Serv | C8: 0 | D8: 0 | E8: 0 | F8: 0 | G8: 0 | H8: 0 | I8: 0 | J8: 0 | K8: 0 | L8: 0 | N8: 0 | O8: 0 | P8: 0 | Q8: 0 | R8: 0 | S8: 0 | T8: 0 | U8: 0 | V8: 0 | W8: 0 | X8: 0
A9: ='Org structure'!E5 -> 01.3 - Administration Serv | C9: 0 | D9: 0 | E9: 0 | F9: 0 | G9: 0 | H9: 0 | I9: 0 | J9: 0 | K9: 0 | L9: 0 | N9: 0 | O9: 0 | P9: 0 | Q9: 0 | R9: 0 | S9: 0 | T9: 0 | U9: 0 | V9: 0 | W9: 0 | X9: 0
A10: ='Org structure'!E6 -> 01.4 - Municipal Manager | C10: 0 | D10: 0 | E10: 0 | F10: 0 | G10: 0 | H10: 0 | I10: 0 | J10: 0 | K10: 0 | L10: 0 | N10: 0 | O10: 0 | P10: 0 | Q10: 0 | R10: 0 | S10: 0 | T10: 0 | U10: 0 | V10: 0 | W10: 0 | X10: 0
A11: ='Org structure'!E7 -> 01.5 - Chief Operating Officer | C11: 0 | D11: 0 | E11: 0 | F11: 0 | G11: 0 | H11: 0 | I11: 0 | J11: 0 | K11: 0 | L11: 0 | N11: 0 | O11: 0 | P11: 0 | Q11: 0 | R11: 0 | S11: 0 | T11: 0 | U11: 0 | V11: 0 | W11: 0 | X11: 0
A12: ='Org structure'!E8 -> 01.6 - Performance Management Unit | C12: 0 | D12: 0 | E12: 0 | F12: 0 | G12: 0 | H12: 0 | I12: 0 | J12: 0 | K12: 0 | L12: 0 | N12: 0 | O12: 0 | P12: 0 | Q12: 0 | R12: 0 | S12: 0 | T12: 0 | U12: 0 | V12: 0 | W12: 0 | X12: 0
A13: ='Org structure'!E9 -> 01.7 - Legal Serv Unit | C13: 0 | D13: 0 | E13: 0 | F13: 0 | G13: 0 | H13: 0 | I13: 0 | J13: 0 | K13: 0 | L13: 0 | N13: 0 | O13: 0 | P13: 0 | Q13: 0 | R13: 0 | S13: 0 | T13: 0 | U13: 0 | V13: 0 | W13: 0 | X13: 0
A14: ='Org structure'!E10 -> 01.8 - Public Participation | C14: 0 | D14: 0 | E14: 0 | F14: 0 | G14: 0 | H14: 0 | I14: 0 | J14: 0 | K14: 0 | L14: 0 | N14: 0 | O14: 0 | P14: 0 | Q14: 0 | R14: 0 | S14: 0 | T14: 0 | U14: 0 | V14: 0 | W14: 0 | X14: 0
A15: ='Org structure'!E11 -> 01.9 - Internal Audit | C15: 0 | D15: 0 | E15: 0 | F15: 0 | G15: 0 | H15: 0 | I15: 0 | J15: 0 | K15: 0 | L15: 0 | N15: 0 | O15: 0 | P15: 0 | Q15: 0 | R15: 0 | S15: 0 | T15: 0 | U15: 0 | V15: 0 | W15: 0 | X15: 0
A16: ='Org structure'!E12 -> 01.10 - Councillor Support | C16: 0 | D16: 0 | E16: 0 | F16: 0 | G16: 0 | H16: 0 | I16: 0 | J16: 0 | K16: 0 | L16: 0 | N16: 0 | O16: 0 | P16: 0 | Q16: 0 | R16: 0 | S16: 0 | T16: 0 | U16: 0 | V16: 0 | W16: 0 | X16: 0
A17: ='Org structure'!E13 -> 01.11 - Public Relations | C17: 0 | D17: 0 | E17: 0 | F17: 0 | G17: 0 | H17: 0 | I17: 0 | J17: 0 | K17: 0 | L17: 0 | N17: 0 | O17: 0 | P17: 0 | Q17: 0 | R17: 0 | S17: 0 | T17: 0 | U17: 0 | V17: 0 | W17: 0 | X17: 0
A18: ='Org structure'!A3 -> Vote 02 - Economic Development, Planning & Environment | C18: =SUM(C19:C22) -> 0 | D18: 0 | E18: 0 | F18: 0 | G18: 0 | H18: 0 | I18: 0 | J18: 0 | K18: 0 | L18: 0 | N18: =SUM(N19:N22) -> 0 | O18: 0 | P18: 0 | Q18: 0 | R18: 0 | S18: 0 | T18: 0 | U18: 0 | V18: 0 | W18: 0 | X18: 0
A19: ='Org structure'!E15 -> 02.1 - Economic Development | C19: 0 | D19: 0 | E19: 0 | F19: 0 | G19: 0 | H19: 0 | I19: 0 | J19: =Q19+V19 -> 0 | K19: =U19+W19 -> 0 | L19: =X19 -> 0 | N19: 0 | O19: 0 | P19: 0 | Q19: =SUM(N19:P19) -> 0 | R19: 0 | S19: 0 | T19: 0 | U19: =SUM(R19:T19) -> 0 | V19: 0 | W19: 0 | X19: 0
A20: ='Org structure'!E16 -> 02.2 - Planning Shared Serv | C20: 0 | D20: 0 | E20: 0 | F20: 0 | G20: 0 | H20: 0 | I20: 0 | J20: =Q20+V20 -> 0 | K20: =U20+W20 -> 0 | L20: =X20 -> 0 | N20: 0 | O20: 0 | P20: 0 | Q20: =SUM(N20:P20) -> 0 | R20: 0 | S20: 0 | T20: 0 | U20: =SUM(R20:T20) -> 0 | V20: 0 | W20: 0 | X20: 0
A21: ='Org structure'!E17 -> 02.3 - Development Planning Enviroment | C21: 0 | D21: 0 | E21: 0 | F21: 0 | G21: 0 | H21: 0 | I21: 0 | J21: =Q21+V21 -> 0 | K21: =U21+W21 -> 0 | L21: =X21 -> 0 | N21: 0 | O21: 0 | P21: 0 | Q21: =SUM(N21:P21) -> 0 | R21: 0 | S21: 0 | T21: 0 | U21: =SUM(R21:T21) -> 0 | V21: 0 | W21: 0 | X21: 0
A22: ='Org structure'!E18 -> 02.4 - Executive Div Planning Serv | C22: 0 | D22: 0 | E22: 0 | F22: 0 | G22: 0 | H22: 0 | I22: 0 | J22: =Q22+V22 -> 0 | K22: =U22+W22 -> 0 | L22: =X22 -> 0 | N22: 0 | O22: 0 | P22: 0 | Q22: =SUM(N22:P22) -> 0 | R22: 0 | S22: 0 | T22: 0 | U22: =SUM(R22:T22) -> 0 | V22: 0 | W22: 0 | X22: 0
A23: ='Org structure'!A4 -> Vote 03 - Community & Social Services | C23: =SUM(C24:C27) -> 0 | D23: 636349.43 | E23: 0 | F23: 0 | G23: 0 | H23: 0 | I23: 0 | J23: 0 | K23: 0 | L23: 0 | N23: =SUM(N24:N27) -> 0 | O23: 0 | P23: 0 | Q23: 0 | R23: 0 | S23: 0 | T23: 0 | U23: 0 | V23: 0 | W23: 0 | X23: 0
A24: ='Org structure'!E20 -> 03.1 - Community Division | C24: 0 | D24: 0 | E24: 0 | F24: 0 | G24: 0 | H24: 0 | I24: 0 | J24: =Q24+V24 -> 0 | K24: =U24+W24 -> 0 | L24: =X24 -> 0 | N24: 0 | O24: 0 | P24: 0 | Q24: =SUM(N24:P24) -> 0 | R24: 0 | S24: 0 | T24: 0 | U24: =SUM(R24:T24) -> 0 | V24: 0 | W24: 0 | X24: 0
A25: ='Org structure'!E21 -> 03.2 - Disaster Management | C25: 0 | D25: 0 | E25: 0 | F25: 0 | G25: 0 | H25: 0 | I25: 0 | J25: =Q25+V25 -> 0 | K25: =U25+W25 -> 0 | L25: =X25 -> 0 | N25: 0 | O25: 0 | P25: 0 | Q25: =SUM(N25:P25) -> 0 | R25: 0 | S25: 0 | T25: 0 | U25: =SUM(R25:T25) -> 0 | V25: 0 | W25: 0 | X25: 0
A26: ='Org structure'!E22 -> 03.3 - Cemetery | C26: 0 | D26: 636349.43 | E26: 0 | F26: 0 | G26: 0 | H26: 0 | I26: 0 | J26: =Q26+V26 -> 0 | K26: =U26+W26 -> 0 | L26: =X26 -> 0 | N26: 0 | O26: 0 | P26: 0 | Q26: =SUM(N26:P26) -> 0 | R26: 0 | S26: 0 | T26: 0 | U26: =SUM(R26:T26) -> 0 | V26: 0 | W26: 0 | X26: 0
A27: ='Org structure'!E23 -> 03.4 - Executive Div Community Serv | C27: 0 | D27: 0 | E27: 0 | F27: 0 | G27: 0 | H27: 0 | I27: 0 | J27: =Q27+V27 -> 0 | K27: =U27+W27 -> 0 | L27: =X27 -> 0 | N27: 0 | O27: 0 | P27: 0 | Q27: =SUM(N27:P27) -> 0 | R27: 0 | S27: 0 | T27: 0 | U27: =SUM(R27:T27) -> 0 | V27: 0 | W27: 0 | X27: 0
A28: ='Org structure'!A5 -> Vote 04 - Public Safety | C28: 0 | D28: 0 | E28: 0 | F28: 0 | G28: 0 | H28: 0 | I28: 0 | J28: 0 | K28: 0 | L28: 0 | N28: 0 | O28: 0 | P28: 0 | Q28: 0 | R28: 0 | S28: 0 | T28: 0 | U28: 0 | V28: 0 | W28: 0
A29: ='Org structure'!A6 -> Vote 05 - Environmental Health | C29: =SUM(C30:C31) -> 0 | D29: 0 | E29: 0 | F29: 0 | G29: 0 | H29: 0 | I29: 0 | J29: 0 | K29: 0 | L29: 0 | N29: =SUM(N30:N31) -> 0 | O29: 0 | P29: 0 | Q29: 0 | R29: 0 | S29: 0 | T29: 0 | U29: 0 | V29: 0 | W29: 0 | X29: 0
A30: ='Org structure'!E26 -> 05.1 - Municipal Health | C30: 0 | D30: 0 | E30: 0 | F30: 0 | G30: 0 | H30: 0 | I30: 0 | J30: =Q30+V30 -> 0 | K30: =U30+W30 -> 0 | L30: =X30 -> 0 | N30: 0 | O30: 0 | P30: 0 | Q30: =SUM(N30:P30) -> 0 | R30: 0 | S30: 0 | T30: 0 | U30: =SUM(R30:T30) -> 0 | V30: 0 | W30: 0 | X30: 0
A31: ='Org structure'!E27 -> 05.2 - Air Quality | C31: 0 | D31: 0 | E31: 0 | F31: 0 | G31: 0 | H31: 0 | I31: 0 | J31: =Q31+V31 -> 0 | K31: =U31+W31 -> 0 | L31: =X31 -> 0 | N31: 0 | O31: 0 | P31: 0 | Q31: =SUM(N31:P31) -> 0 | R31: 0 | S31: 0 | T31: 0 | U31: =SUM(R31:T31) -> 0 | V31: 0 | W31: 0 | X31: 0
A32: ='Org structure'!A7 -> Vote 06 - Finance & Administration | C32: =SUM(C33:C50) -> 0 | D32: 0 | E32: 0 | F32: 0 | G32: 0 | H32: 0 | I32: 0 | J32: 0 | K32: 0 | L32: 0 | N32: =SUM(N33:N50) -> 0 | O32: 0 | P32: 0 | Q32: 0 | R32: 0 | S32: 0 | T32: 0 | U32: 0 | V32: 0 | W32: 0 | X32: 0
A33: ='Org structure'!E29 -> 06.1 - Human Resources Management | C33: 0 | D33: 0 | E33: 0 | F33: 0 | G33: 0 | H33: 0 | I33: 0 | J33: =Q33+V33 -> 0 | K33: =U33+W33 -> 0 | L33: =X33 -> 0 | N33: 0 | O33: 0 | P33: 0 | Q33: =SUM(N33:P33) -> 0 | R33: 0 | S33: 0 | T33: 0 | U33: =SUM(R33:T33) -> 0 | V33: 0 | W33: 0 | X33: 0
A34: ='Org structure'!E30 -> 06.2 - Executive Div - Finance Serv | C34: 0 | D34: 0 | E34: 0 | F34: 0 | G34: 0 | H34: 0 | I34: 0 | J34: 0 | K34: 0 | L34: 0 | N34: 0 | O34: 0 | P34: 0 | Q34: 0 | R34: 0 | S34: 0 | T34: 0 | U34: 0 | V34: 0 | W34: 0 | X34: 0
A35: ='Org structure'!E31 -> 06.3 - Executive Division - Fanance Services | C35: 0 | D35: 0 | E35: 0 | F35: 0 | G35: 0 | H35: 0 | I35: 0 | J35: 0 | K35: 0 | L35: 0 | N35: 0 | O35: 0 | P35: 0 | Q35: 0 | R35: 0 | S35: 0 | T35: 0 | U35: 0 | V35: 0 | W35: 0 | X35: 0
A36: ='Org structure'!E32 -> 06.4 - Expenditure | C36: 0 | D36: 0 | E36: 0 | F36: 0 | G36: 0 | H36: 0 | I36: 0 | J36: 0 | K36: 0 | L36: 0 | N36: 0 | O36: 0 | P36: 0 | Q36: 0 | R36: 0 | S36: 0 | T36: 0 | U36: 0 | V36: 0 | W36: 0 | X36: 0
A37: ='Org structure'!E33 -> 06.5 - Expenditure | C37: 0 | D37: 0 | E37: 0 | F37: 0 | G37: 0 | H37: 0 | I37: 0 | J37: 0 | K37: 0 | L37: 0 | N37: 0 | O37: 0 | P37: 0 | Q37: 0 | R37: 0 | S37: 0 | T37: 0 | U37: 0 | V37: 0 | W37: 0 | X37: 0
A38: ='Org structure'!E34 -> 06.6 - Auxillary Serv Kcdm | C38: 0 | D38: 0 | E38: 0 | F38: 0 | G38: 0 | H38: 0 | I38: 0 | J38: 0 | K38: 0 | L38: 0 | N38: 0 | O38: 0 | P38: 0 | Q38: 0 | R38: 0 | S38: 0 | T38: 0 | U38: 0 | V38: 0 | W38: 0 | X38: 0
A39: ='Org structure'!E35 -> 06.7 - Satelite Offices | C39: 0 | D39: 0 | E39: 0 | F39: 0 | G39: 0 | H39: 0 | I39: 0 | J39: 0 | K39: 0 | L39: 0 | N39: 0 | O39: 0 | P39: 0 | Q39: 0 | R39: 0 | S39: 0 | T39: 0 | U39: 0 | V39: 0 | W39: 0 | X39: 0
A40: ='Org structure'!E36 -> 06.8 - Budget & Reporting | C40: 0 | D40: 0 | E40: 0 | F40: 0 | G40: 0 | H40: 0 | I40: 0 | J40: 0 | K40: 0 | L40: 0 | N40: 0 | O40: 0 | P40: 0 | Q40: 0 | R40: 0 | S40: 0 | T40: 0 | U40: 0 | V40: 0 | W40: 0 | X40: 0
A41: ='Org structure'!E37 -> 06.9 - Budget & Reporting | C41: 0 | D41: 0 | E41: 0 | F41: 0 | G41: 0 | H41: 0 | I41: 0 | J41: 0 | K41: 0 | L41: 0 | N41: 0 | O41: 0 | P41: 0 | Q41: 0 | R41: 0 | S41: 0 | T41: 0 | U41: 0 | V41: 0 | W41: 0 | X41: 0
A42: ='Org structure'!E38 -> 06.10 - Finance Interns | C42: 0 | D42: 0 | E42: 0 | F42: 0 | G42: 0 | H42: 0 | I42: 0 | J42: 0 | K42: 0 | L42: 0 | N42: 0 | O42: 0 | P42: 0 | Q42: 0 | R42: 0 | S42: 0 | T42: 0 | U42: 0 | V42: 0 | W42: 0 | X42: 0
A43: ='Org structure'!E39 -> 06.11 - Finance Interns | C43: 0 | D43: 0 | E43: 0 | F43: 0 | G43: 0 | H43: 0 | I43: 0 | J43: 0 | K43: 0 | L43: 0 | N43: 0 | O43: 0 | P43: 0 | Q43: 0 | R43: 0 | S43: 0 | T43: 0 | U43: 0 | V43: 0 | W43: 0 | X43: 0
A44: ='Org structure'!E40 -> 06.12 - Information & Communication Technology | C44: 0 | D44: 0 | E44: 0 | F44: 0 | G44: 0 | H44: 0 | I44: 0 | J44: 0 | K44: 0 | L44: 0 | N44: 0 | O44: 0 | P44: 0 | Q44: 0 | R44: 0 | S44: 0 | T44: 0 | U44: 0 | V44: 0 | W44: 0 | X44: 0
A45: ='Org structure'!E41 -> 06.13 - Supply Chain Management | C45: 0 | D45: 0 | E45: 0 | F45: 0 | G45: 0 | H45: 0 | I45: 0 | J45: 0 | K45: 0 | L45: 0 | N45: 0 | O45: 0 | P45: 0 | Q45: 0 | R45: 0 | S45: 0 | T45: 0 | U45: 0 | V45: 0 | W45: 0 | X45: 0
A46: ='Org structure'!E42 -> 06.14 - Supply Chain Management | C46: 0 | D46: 0 | E46: 0 | F46: 0 | G46: 0 | H46: 0 | I46: 0 | J46: 0 | K46: 0 | L46: 0 | N46: 0 | O46: 0 | P46: 0 | Q46: 0 | R46: 0 | S46: 0 | T46: 0 | U46: 0 | V46: 0 | W46: 0 | X46: 0
A47: ='Org structure'!E43 -> 06.15 - Management Accounts | C47: 0 | D47: 0 | E47: 0 | F47: 0 | G47: 0 | H47: 0 | I47: 0 | J47: 0 | K47: 0 | L47: 0 | N47: 0 | O47: 0 | P47: 0 | Q47: 0 | R47: 0 | S47: 0 | T47: 0 | U47: 0 | V47: 0 | W47: 0 | X47: 0
A48: ='Org structure'!E44 -> 06.16 - Management Accounts | C48: 0 | D48: 0 | E48: 0 | F48: 0 | G48: 0 | H48: 0 | I48: 0 | J48: 0 | K48: 0 | L48: 0 | N48: 0 | O48: 0 | P48: 0 | Q48: 0 | R48: 0 | S48: 0 | T48: 0 | U48: 0 | V48: 0 | W48: 0 | X48: 0
A49: ='Org structure'!E45 -> 06.17 - Asset Care Centre | C49: 0 | D49: 0 | E49: 0 | F49: 0 | G49: 0 | H49: 0 | I49: 0 | J49: 0 | K49: 0 | L49: 0 | N49: 0 | O49: 0 | P49: 0 | Q49: 0 | R49: 0 | S49: 0 | T49: 0 | U49: 0 | V49: 0 | W49: 0 | X49: 0
A50: ='Org structure'!E46 -> 06.18 - Asset Care Center | C50: 0 | D50: 0 | E50: 0 | F50: 0 | G50: 0 | H50: 0 | I50: 0 | J50: 0 | K50: 0 | L50: 0 | N50: 0 | O50: 0 | P50: 0 | Q50: 0 | R50: 0 | S50: 0 | T50: 0 | U50: 0 | V50: 0 | W50: 0 | X50: 0
A51: ='Org structure'!A8 -> Vote 07 - Infrastructure Services | C51: =SUM(C52:C67) -> 354168860 | D51: 152499816.2 | E51: 172654792.3 | F51: 309753097 | G51: 311164039 | H51: 311164039 | I51: 103357307.8 | J51: 178910703 | K51: 213811240 | L51: 237706000 | N51: =SUM(N52:N67) -> 178910703 | O51: 0 | P51: 0 | Q51: 178910703 | R51: 213811240 | S51: 0 | T51: 0 | U51: 213811240 | V51: 0 | W51: 0 | X51: 237706000
A52: ='Org structure'!E48 -> 07.1 - Executive Div - Technical Serv | C52: 0 | D52: 0 | E52: 0 | F52: 0 | G52: 0 | H52: 0 | I52: 0 | J52: =Q52+V52 -> 0 | K52: =U52+W52 -> 0 | L52: =X52 -> 0 | N52: 0 | O52: 0 | P52: 0 | Q52: =SUM(N52:P52) -> 0 | R52: 0 | S52: 0 | T52: 0 | U52: =SUM(R52:T52) -> 0 | V52: 0 | W52: 0 | X52: 0
A53: ='Org structure'!E49 -> 07.2 - Municipal Infrastructure Ops & Maintenance | C53: 0 | D53: 0 | E53: 0 | F53: 0 | G53: 0 | H53: 0 | I53: 0 | J53: 0 | K53: 0 | L53: 0 | N53: 0 | O53: 0 | P53: 0 | Q53: 0 | R53: 0 | S53: 0 | T53: 0 | U53: 0 | V53: 0 | W53: 0 | X53: 0
A54: ='Org structure'!E50 -> 07.3 - Consimer Billing | C54: 0 | D54: 0 | E54: 0 | F54: 0 | G54: 0 | H54: 0 | I54: 0 | J54: 0 | K54: 0 | L54: 0 | N54: 0 | O54: 0 | P54: 0 | Q54: 0 | R54: 0 | S54: 0 | T54: 0 | U54: 0 | V54: 0 | W54: 0 | X54: 0
A55: ='Org structure'!E51 -> 07.4 - Epwp Unit | C55: 0 | D55: 0 | E55: 0 | F55: 0 | G55: 0 | H55: 0 | I55: 0 | J55: 0 | K55: 0 | L55: 0 | N55: 0 | O55: 0 | P55: 0 | Q55: 0 | R55: 0 | S55: 0 | T55: 0 | U55: 0 | V55: 0 | W55: 0 | X55: 0
A56: ='Org structure'!E52 -> 07.5 - Auxillary Infrustructure | C56: 0 | D56: 0 | E56: 0 | F56: 0 | G56: 0 | H56: 0 | I56: 0 | J56: 0 | K56: 0 | L56: 0 | N56: 0 | O56: 0 | P56: 0 | Q56: 0 | R56: 0 | S56: 0 | T56: 0 | U56: 0 | V56: 0 | W56: 0 | X56: 0
A57: ='Org structure'!E53 -> 07.6 - Project Management Unit | C57: 0 | D57: 0 | E57: 0 | F57: 0 | G57: 0 | H57: 0 | I57: 0 | J57: 0 | K57: 0 | L57: 0 | N57: 0 | O57: 0 | P57: 0 | Q57: 0 | R57: 0 | S57: 0 | T57: 0 | U57: 0 | V57: 0 | W57: 0 | X57: 0
A58: ='Org structure'!E54 -> 07.7 - Water Use Effeciency | C58: 0 | D58: 0 | E58: 23060757.48 | F58: 68000000 | G58: 66334275 | H58: 66334275 | I58: 4097076 | J58: 18000000 | K58: 30000000 | L58: 30000000 | N58: 18000000 | O58: 0 | P58: 0 | Q58: 18000000 | R58: 30000000 | S58: 0 | T58: 0 | U58: 30000000 | V58: 0 | W58: 0 | X58: 30000000
A59: ='Org structure'!E55 -> 07.8 - Process Management | C59: 0 | D59: 0 | E59: 0 | F59: 0 | G59: 0 | H59: 0 | I59: 0 | J59: 0 | K59: 0 | L59: 0 | N59: 0 | O59: 0 | P59: 0 | Q59: 0 | R59: 0 | S59: 0 | T59: 0 | U59: 0 | V59: 0 | W59: 0 | X59: 0
A60: ='Org structure'!E56 -> 07.9 - Municipal Infrastructure Implementation | C60: 354168860 | D60: 152499816.2 | E60: 131391628.6 | F60: 214753097 | G60: 244772764 | H60: 244772764 | I60: 99203231.76 | J60: 160910703 | K60: 183811240 | L60: 207706000 | N60: 160910703 | O60: 0 | P60: 0 | Q60: 160910703 | R60: 183811240 | S60: 0 | T60: 0 | U60: 183811240 | V60: 0 | W60: 0 | X60: 207706000
A61: ='Org structure'!E57 -> 07.10 - Process Management - Waste Water | C61: 0 | D61: 0 | E61: 0 | F61: 0 | G61: 0 | H61: 0 | I61: 0 | J61: 0 | K61: 0 | L61: 0 | N61: 0 | O61: 0 | P61: 0 | Q61: 0 | R61: 0 | S61: 0 | T61: 0 | U61: 0 | V61: 0 | W61: 0 | X61: 0
A62: ='Org structure'!E58 -> 07.11 - Water Service Division | C62: 0 | D62: 0 | E62: 18202406.22 | F62: 27000000 | G62: 57000 | H62: 57000 | I62: 57000 | J62: 0 | K62: 0 | L62: 0 | N62: 0 | O62: 0 | P62: 0 | Q62: 0 | R62: 0 | S62: 0 | T62: 0 | U62: 0 | V62: 0 | W62: 0 | X62: 0
A63: ='Org structure'!E59 -> 07.12 - Water Service Provider | C63: 0 | D63: 0 | E63: 0 | F63: 0 | G63: 0 | H63: 0 | I63: 0 | J63: 0 | K63: 0 | L63: 0 | N63: 0 | O63: 0 | P63: 0 | Q63: 0 | R63: 0 | S63: 0 | T63: 0 | U63: 0 | V63: 0 | W63: 0 | X63: 0
A64: ='Org structure'!E60 -> 07.13 - Operations Ops & Maint - Western Region | C64: 0 | D64: 0 | E64: 0 | F64: 0 | G64: 0 | H64: 0 | I64: 0 | J64: 0 | K64: 0 | L64: 0 | N64: 0 | O64: 0 | P64: 0 | Q64: 0 | R64: 0 | S64: 0 | T64: 0 | U64: 0 | V64: 0 | W64: 0 | X64: 0
A65: ='Org structure'!E61 -> 07.14 - Operations Ops & Maint - Southern Region | C65: 0 | D65: 0 | E65: 0 | F65: 0 | G65: 0 | H65: 0 | I65: 0 | J65: 0 | K65: 0 | L65: 0 | N65: 0 | O65: 0 | P65: 0 | Q65: 0 | R65: 0 | S65: 0 | T65: 0 | U65: 0 | V65: 0 | W65: 0 | X65: 0
A66: ='Org structure'!E62 -> 07.15 - Operations Ops & Maint - Eastern Region | C66: 0 | D66: 0 | E66: 0 | F66: 0 | G66: 0 | H66: 0 | I66: 0 | J66: 0 | K66: 0 | L66: 0 | N66: 0 | O66: 0 | P66: 0 | Q66: 0 | R66: 0 | S66: 0 | T66: 0 | U66: 0 | V66: 0 | W66: 0 | X66: 0
A67: ='Org structure'!E63 -> 07.16 - Electricity Reporting Function | C67: 0 | D67: 0 | E67: 0 | F67: 0 | G67: 0 | H67: 0 | I67: 0 | J67: 0 | K67: 0 | L67: 0 | N67: 0 | O67: 0 | P67: 0 | Q67: 0 | R67: 0 | S67: 0 | T67: 0 | U67: 0 | V67: 0 | W67: 0 | X67: 0
A68: ='Org structure'!A9 -> Vote 08 - Waste Management | C68: =SUM(C69:C69) -> 0 | D68: 310000 | E68: 0 | F68: 0 | G68: 0 | H68: 0 | I68: 0 | J68: 4361901 | K68: 4361901 | L68: 0 | N68: =SUM(N69:N69) -> 4361901 | O68: 0 | P68: 0 | Q68: 4361901 | R68: 4361901 | S68: 0 | T68: 0 | U68: 4361901 | V68: 0 | W68: 0 | X68: 0
A69: ='Org structure'!E65 -> 08.1 - Waste Manegement | C69: 0 | D69: 310000 | E69: 0 | F69: 0 | G69: 0 | H69: 0 | I69: 0 | J69: =Q69+V69 -> 4361901 | K69: =U69+W69 -> 4361901 | L69: =X69 -> 0 | N69: 4361901 | O69: 0 | P69: 0 | Q69: =SUM(N69:P69) -> 4361901 | R69: 4361901 | S69: 0 | T69: 0 | U69: =SUM(R69:T69) -> 4361901 | V69: 0 | W69: 0 | X69: 0
A70: ='Org structure'!A10 -> Vote 09 - Waste Water Management | C70: =SUM(C71:C72) -> 3000000 | D70: 0 | E70: 18624992.22 | F70: 52031658 | G70: 53307424 | H70: 53307424 | I70: 45193826.41 | J70: 16003609 | K70: 38188760 | L70: 46000000 | N70: =SUM(N71:N72) -> 16003609 | O70: 0 | P70: 0 | Q70: 16003609 | R70: 38188760 | S70: 0 | T70: 0 | U70: 38188760 | V70: 0 | W70: 0 | X70: 46000000
A71: ='Org structure'!E67 -> 09.1 - Waste Water Management | C71: 3000000 | D71: 0 | E71: 18624992.22 | F71: 41031658 | G71: 41657050 | H71: 41657050 | I71: 38236482.13 | J71: =Q71+V71 -> 16003609 | K71: =U71+W71 -> 28188760 | L71: =X71 -> 31000000 | N71: 16003609 | O71: 0 | P71: 0 | Q71: =SUM(N71:P71) -> 16003609 | R71: 28188760 | S71: 0 | T71: 0 | U71: =SUM(R71:T71) -> 28188760 | V71: 0 | W71: 0 | X71: 31000000
A72: ='Org structure'!E68 -> 09.2 - Process Management - Waste Water | C72: 0 | D72: 0 | E72: 0 | F72: 11000000 | G72: 11650374 | H72: 11650374 | I72: 6957344.28 | J72: =Q72+V72 -> 0 | K72: =U72+W72 -> 10000000 | L72: =X72 -> 15000000 | N72: 0 | O72: 0 | P72: 0 | Q72: =SUM(N72:P72) -> 0 | R72: 10000000 | S72: 0 | T72: 0 | U72: =SUM(R72:T72) -> 10000000 | V72: 0 | W72: 0 | X72: 15000000
A73: ='Org structure'!A11 -> Vote 10 - King Cetshwayo Fresh Produce Market | C73: =SUM(C74:C78) -> 0 | D73: 0 | E73: 0 | F73: 0 | G73: 0 | H73: 0 | I73: 0 | J73: 0 | K73: 0 | L73: 0 | N73: =SUM(N74:N78) -> 0 | O73: 0 | P73: 0 | Q73: 0 | R73: 0 | S73: 0 | T73: 0 | U73: 0 | V73: 0 | W73: 0 | X73: 0
A74: ='Org structure'!E70 -> 10.1 - Office Of The Ceo | C74: 0 | D74: 0 | E74: 0 | F74: 0 | G74: 0 | H74: 0 | I74: 0 | J74: =Q74+V74 -> 0 | K74: =U74+W74 -> 0 | L74: =X74 -> 0 | N74: 0 | O74: 0 | P74: 0 | Q74: =SUM(N74:P74) -> 0 | R74: 0 | S74: 0 | T74: 0 | U74: =SUM(R74:T74) -> 0 | V74: 0 | W74: 0 | X74: 0
A75: ='Org structure'!E71 -> 10.2 - Finance | C75: 0 | D75: 0 | E75: 0 | F75: 0 | G75: 0 | H75: 0 | I75: 0 | J75: =Q75+V75 -> 0 | K75: =U75+W75 -> 0 | L75: =X75 -> 0 | N75: 0 | O75: 0 | P75: 0 | Q75: =SUM(N75:P75) -> 0 | R75: 0 | S75: 0 | T75: 0 | U75: =SUM(R75:T75) -> 0 | V75: 0 | W75: 0 | X75: 0
A76: ='Org structure'!E72 -> 10.3 - Corporate Serv | C76: 0 | D76: 0 | E76: 0 | F76: 0 | G76: 0 | H76: 0 | I76: 0 | J76: =Q76+V76 -> 0 | K76: =U76+W76 -> 0 | L76: =X76 -> 0 | N76: 0 | O76: 0 | P76: 0 | Q76: =SUM(N76:P76) -> 0 | R76: 0 | S76: 0 | T76: 0 | U76: =SUM(R76:T76) -> 0 | V76: 0 | W76: 0 | X76: 0
A77: ='Org structure'!E73 -> 10.4 - Operations | C77: 0 | D77: 0 | E77: 0 | F77: 0 | G77: 0 | H77: 0 | I77: 0 | J77: =Q77+V77 -> 0 | K77: =U77+W77 -> 0 | L77: =X77 -> 0 | N77: 0 | O77: 0 | P77: 0 | Q77: =SUM(N77:P77) -> 0 | R77: 0 | S77: 0 | T77: 0 | U77: =SUM(R77:T77) -> 0 | V77: 0 | W77: 0 | X77: 0
A78: ='Org structure'!E74 -> 10.5 - Agribusiness | C78: 0 | D78: 0 | E78: 0 | F78: 0 | G78: 0 | H78: 0 | I78: 0 | J78: =Q78+V78 -> 0 | K78: =U78+W78 -> 0 | L78: =X78 -> 0 | N78: 0 | O78: 0 | P78: 0 | Q78: =SUM(N78:P78) -> 0 | R78: 0 | S78: 0 | T78: 0 | U78: =SUM(R78:T78) -> 0 | V78: 0 | W78: 0 | X78: 0
A79: ='Org structure'!A12 -> Vote 11 - | C79: 0 | D79: 0 | E79: 0 | F79: 0 | G79: 0 | H79: 0 | I79: 0 | J79: 0 | K79: 0 | L79: 0 | N79: 0 | O79: 0 | P79: 0 | Q79: 0 | R79: 0 | S79: 0 | T79: 0 | U79: 0 | V79: 0 | W79: 0
A80: ='Org structure'!A13 -> Vote 12 - | C80: 0 | D80: 0 | E80: 0 | F80: 0 | G80: 0 | H80: 0 | I80: 0 | J80: 0 | K80: 0 | L80: 0 | N80: 0 | O80: 0 | P80: 0 | Q80: 0 | R80: 0 | S80: 0 | T80: 0 | U80: 0 | V80: 0 | W80: 0
A81: ='Org structure'!A14 -> Vote 13 - | C81: 0 | D81: 0 | E81: 0 | F81: 0 | G81: 0 | H81: 0 | I81: 0 | J81: 0 | K81: 0 | L81: 0 | N81: 0 | O81: 0 | P81: 0 | Q81: 0 | R81: 0 | S81: 0 | T81: 0 | U81: 0 | V81: 0 | W81: 0
A82: ='Org structure'!A15 -> Vote 14 - | C82: 0 | D82: 0 | E82: 0 | F82: 0 | G82: 0 | H82: 0 | I82: 0 | J82: 0 | K82: 0 | L82: 0 | N82: 0 | O82: 0 | P82: 0 | Q82: 0 | R82: 0 | S82: 0 | T82: 0 | U82: 0 | V82: 0 | W82: 0
A83: ='Org structure'!A16 -> Vote 15 - Other | C83: 0 | D83: 0 | E83: 0 | F83: 0 | G83: 0 | H83: 0 | I83: 0 | J83: 0 | K83: 0 | L83: 0 | N83: 0 | O83: 0 | P83: 0 | Q83: 0 | R83: 0 | S83: 0 | T83: 0 | U83: 0 | V83: 0 | W83: 0
A84: Capital multi-year expenditure sub-total | C84: =C6+C18+C23+C28+C29+C32+C51+C68+C70+C73+C79+C80+C81+C82+C83 -> 357168860 | D84: 153446165.6 | E84: 191279784.5 | F84: 361784755 | G84: 364471463 | H84: 364471463 | I84: 148551134.2 | J84: 199276213 | K84: 256361901 | L84: 283706000 | N84: =N6+N18+N23+N28+N29+N32+N51+N68+N70+N73+N79+N80+N81+N82+N83 -> 199276213 | O84: 0 | P84: 0 | Q84: 199276213 | R84: 256361901 | S84: 0 | T84: 0 | U84: 256361901 | V84: 0 | W84: 0
A86: Capital expenditure - Municipal Vote
A87: Single-year expenditure appropriation | B87: 2
A88: ='Org structure'!A2 -> Vote 01 - Executive & Council | C88: =SUM(C89:C99) -> 3579417 | D88: 2028384.92 | E88: 783289.07 | F88: 100000 | G88: 3714411 | H88: 3714411 | I88: 219822.17 | J88: 100000 | K88: 0 | L88: 0
A89: ='Org structure'!E3 -> 01.1 - Board General | C89: 3206757 | D89: 1703437.91 | E89: 352848 | F89: 70000 | G89: 3394252 | H89: 3394252 | I89: 5652.17 | J89: 100000 | K89: 0 | L89: 0
A90: ='Org structure'!E4 -> 01.2 - Executive Div - Corpotate Serv | C90: 0 | D90: 0 | E90: 0 | F90: 0 | G90: 0 | H90: 0 | I90: 0 | J90: 0 | K90: 0 | L90: 0
A91: ='Org structure'!E5 -> 01.3 - Administration Serv | C91: 96300 | D91: 95216.66 | E91: 44371.4 | F91: 0 | G91: 0 | H91: 0 | I91: 0 | J91: 0 | K91: 0 | L91: 0
A92: ='Org structure'!E6 -> 01.4 - Municipal Manager | C92: 276360 | D92: 0 | E92: 89841 | F92: 0 | G92: 320159 | H92: 320159 | I92: 214170 | J92: 0 | K92: 0 | L92: 0
A93: ='Org structure'!E7 -> 01.5 - Chief Operating Officer | C93: 0 | D93: 0 | E93: 265652.84 | F93: 0 | G93: 0 | H93: 0 | I93: 0 | J93: 0 | K93: 0 | L93: 0
A94: ='Org structure'!E8 -> 01.6 - Performance Management Unit | C94: 0 | D94: 0 | E94: 0 | F94: 0 | G94: 0 | H94: 0 | I94: 0 | J94: 0 | K94: 0 | L94: 0
A95: ='Org structure'!E9 -> 01.7 - Legal Serv Unit | C95: 0 | D95: 229730.35 | E95: 0 | F95: 0 | G95: 0 | H95: 0 | I95: 0 | J95: 0 | K95: 0 | L95: 0
A96: ='Org structure'!E10 -> 01.8 - Public Participation | C96: 0 | D96: 0 | E96: 30575.83 | F96: 0 | G96: 0 | H96: 0 | I96: 0 | J96: 0 | K96: 0 | L96: 0
A97: ='Org structure'!E11 -> 01.9 - Internal Audit | C97: 0 | D97: 0 | E97: 0 | F97: 0 | G97: 0 | H97: 0 | I97: 0 | J97: 0 | K97: 0 | L97: 0
A98: ='Org structure'!E12 -> 01.10 - Councillor Support | C98: 0 | D98: 0 | E98: 0 | F98: 0 | G98: 0 | H98: 0 | I98: 0 | J98: 0 | K98: 0 | L98: 0
A99: ='Org structure'!E13 -> 01.11 - Public Relations | C99: 0 | D99: 0 | E99: 0 | F99: 30000 | G99: 0 | H99: 0 | I99: 0 | J99: 0 | K99: 0 | L99: 0
A100: ='Org structure'!A3 -> Vote 02 - Economic Development, Planning & Environment | C100: =SUM(C101:C104) -> 0 | D100: 0 | E100: 86336.44 | F100: 40000 | G100: 24195 | H100: 24195 | I100: 0 | J100: 0 | K100: 0 | L100: 0
A101: ='Org structure'!E15 -> 02.1 - Economic Development | C101: 0 | D101: 0 | E101: 49477.91 | F101: 0 | G101: 0 | H101: 0 | I101: 0 | J101: 0 | K101: 0 | L101: 0
A102: ='Org structure'!E16 -> 02.2 - Planning Shared Serv | C102: 0 | D102: 0 | E102: 0 | F102: 0 | G102: 0 | H102: 0 | I102: 0 | J102: 0 | K102: 0 | L102: 0
A103: ='Org structure'!E17 -> 02.3 - Development Planning Enviroment | C103: 0 | D103: 0 | E103: 33408.53 | F103: 0 | G103: 0 | H103: 0 | I103: 0 | J103: 0 | K103: 0 | L103: 0
A104: ='Org structure'!E18 -> 02.4 - Executive Div Planning Serv | C104: 0 | D104: 0 | E104: 3450 | F104: 40000 | G104: 24195 | H104: 24195 | I104: 0 | J104: 0 | K104: 0 | L104: 0
A105: ='Org structure'!A4 -> Vote 03 - Community & Social Services | C105: =SUM(C106:C109) -> 999047 | D105: 221337.34 | E105: 1955435.46 | F105: 0 | G105: 253004 | H105: 253004 | I105: 0 | J105: 150000 | K105: 0 | L105: 0
A106: ='Org structure'!E20 -> 03.1 - Community Division | C106: 349304 | D106: 0 | E106: 0 | F106: 0 | G106: 0 | H106: 0 | I106: 0 | J106: 60000 | K106: 0 | L106: 0
A107: ='Org structure'!E21 -> 03.2 - Disaster Management | C107: 74505 | D107: 179987.34 | E107: 1497170.38 | F107: 0 | G107: 0 | H107: 0 | I107: 0 | J107: 0 | K107: 0 | L107: 0
A108: ='Org structure'!E22 -> 03.3 - Cemetery | C108: 575238 | D108: 0 | E108: 454790.08 | F108: 0 | G108: 253004 | H108: 253004 | I108: 0 | J108: 90000 | K108: 0 | L108: 0
A109: ='Org structure'!E23 -> 03.4 - Executive Div Community Serv | C109: 0 | D109: 41350 | E109: 3475 | F109: 0 | G109: 0 | H109: 0 | I109: 0 | J109: 0 | K109: 0 | L109: 0
A110: ='Org structure'!A5 -> Vote 04 - Public Safety | C110: 0 | D110: 0 | E110: 0 | F110: 0 | G110: 0 | H110: 0 | I110: 0 | J110: 0 | K110: 0 | L110: 0
A111: ='Org structure'!A6 -> Vote 05 - Environmental Health | C111: =SUM(C112:C113) -> 0 | D111: 85897.81 | E111: 241809.29 | F111: 250000 | G111: 250000 | H111: 250000 | I111: 0 | J111: 0 | K111: 0 | L111: 0
A112: ='Org structure'!E26 -> 05.1 - Municipal Health | C112: 0 | D112: 0 | E112: 27366 | F112: 0 | G112: 0 | H112: 0 | I112: 0 | J112: 0 | K112: 0 | L112: 0
A113: ='Org structure'!E27 -> 05.2 - Air Quality | C113: 0 | D113: 85897.81 | E113: 214443.29 | F113: 250000 | G113: 250000 | H113: 250000 | I113: 0 | J113: 0 | K113: 0 | L113: 0
A114: ='Org structure'!A7 -> Vote 06 - Finance & Administration | C114: =SUM(C115:C132) -> 3472101 | D114: 2917310.64 | E114: 2226632.39 | F114: 3450000 | G114: 4249988 | H114: 4249988 | I114: 1657905.59 | J114: 7009000 | K114: 1650000 | L114: 650000
A115: ='Org structure'!E29 -> 06.1 - Human Resources Management | C115: 0 | D115: 98980 | E115: 0 | F115: 20000 | G115: 0 | H115: 0 | I115: 0 | J115: 0 | K115: 0 | L115: 0
A116: ='Org structure'!E30 -> 06.2 - Executive Div - Finance Serv | C116: 0 | D116: 0 | E116: 221743.59 | F116: 0 | G116: 0 | H116: 0 | I116: 0 | J116: 0 | K116: 0 | L116: 0
A117: ='Org structure'!E31 -> 06.3 - Executive Division - Fanance Services | C117: 0 | D117: 0 | E117: 0 | F117: 0 | G117: 0 | H117: 0 | I117: 0 | J117: 0 | K117: 0 | L117: 0
A118: ='Org structure'!E32 -> 06.4 - Expenditure | C118: 0 | D118: 0 | E118: 0 | F118: 0 | G118: 0 | H118: 0 | I118: 0 | J118: 0 | K118: 0 | L118: 0
A119: ='Org structure'!E33 -> 06.5 - Expenditure | C119: 0 | D119: 0 | E119: 46560 | F119: 0 | G119: 0 | H119: 0 | I119: 0 | J119: 0 | K119: 0 | L119: 0
A120: ='Org structure'!E34 -> 06.6 - Auxillary Serv Kcdm | C120: 113980 | D120: 0 | E120: 0 | F120: 0 | G120: 0 | H120: 0 | I120: 0 | J120: 0 | K120: 0 | L120: 0
A121: ='Org structure'!E35 -> 06.7 - Satelite Offices | C121: 0 | D121: 0 | E121: 0 | F121: 0 | G121: 0 | H121: 0 | I121: 0 | J121: 0 | K121: 0 | L121: 0
A122: ='Org structure'!E36 -> 06.8 - Budget & Reporting | C122: 489917 | D122: 892226.58 | E122: 0 | F122: 0 | G122: 0 | H122: 0 | I122: 0 | J122: 0 | K122: 0 | L122: 0
A123: ='Org structure'!E37 -> 06.9 - Budget & Reporting | C123: 0 | D123: 0 | E123: 184074.87 | F123: 2000000 | G123: 1444188 | H123: 1444188 | I123: 1080921.9 | J123: 5300000 | K123: 700000 | L123: 0
A124: ='Org structure'!E38 -> 06.10 - Finance Interns | C124: 0 | D124: 0 | E124: 0 | F124: 0 | G124: 0 | H124: 0 | I124: 0 | J124: 0 | K124: 0 | L124: 0
A125: ='Org structure'!E39 -> 06.11 - Finance Interns | C125: 0 | D125: 0 | E125: 0 | F125: 0 | G125: 0 | H125: 0 | I125: 0 | J125: 0 | K125: 0 | L125: 0
A126: ='Org structure'!E40 -> 06.12 - Information & Communication Technology | C126: 2868204 | D126: 1726212.19 | E126: 1546384.24 | F126: 1030000 | G126: 1476470 | H126: 1476470 | I126: 551940.21 | J126: 1409000 | K126: 650000 | L126: 650000
A127: ='Org structure'!E41 -> 06.13 - Supply Chain Management | C127: 0 | D127: 47279 | E127: 0 | F127: 0 | G127: 0 | H127: 0 | I127: 0 | J127: 0 | K127: 0 | L127: 0
A128: ='Org structure'!E42 -> 06.14 - Supply Chain Management | C128: 0 | D128: 0 | E128: 141341.3 | F128: 100000 | G128: 0 | H128: 0 | I128: 0 | J128: 0 | K128: 0 | L128: 0
A129: ='Org structure'!E43 -> 06.15 - Management Accounts | C129: 0 | D129: 0 | E129: 14599 | F129: 0 | G129: 0 | H129: 0 | I129: 0 | J129: 0 | K129: 0 | L129: 0
A130: ='Org structure'!E44 -> 06.16 - Management Accounts | C130: 0 | D130: 0 | E130: 0 | F130: 0 | G130: 0 | H130: 0 | I130: 0 | J130: 0 | K130: 0 | L130: 0
A131: ='Org structure'!E45 -> 06.17 - Asset Care Centre | C131: 0 | D131: 152612.87 | E131: 0 | F131: 0 | G131: 0 | H131: 0 | I131: 0 | J131: 0 | K131: 0 | L131: 0
A132: ='Org structure'!E46 -> 06.18 - Asset Care Center | C132: 0 | D132: 0 | E132: 71929.39 | F132: 300000 | G132: 1329330 | H132: 1329330 | I132: 25043.48 | J132: 300000 | K132: 300000 | L132: 0
A133: ='Org structure'!A8 -> Vote 07 - Infrastructure Services | C133: =SUM(C134:C149) -> 2892727 | D133: 28493980.59 | E133: 1144151.63 | F133: 4310000 | G133: 69848928 | H133: 69848928 | I133: 16199496.24 | J133: 62450000 | K133: 41700000 | L133: 41000000
A134: ='Org structure'!E48 -> 07.1 - Executive Div - Technical Serv | C134: 0 | D134: 54664.75 | E134: 0 | F134: 0 | G134: 0 | H134: 0 | I134: 0 | J134: 0 | K134: 0 | L134: 0
A135: ='Org structure'!E49 -> 07.2 - Municipal Infrastructure Ops & Maintenance | C135: 0 | D135: 0 | E135: 0 | F135: 0 | G135: 0 | H135: 0 | I135: 0 | J135: 0 | K135: 0 | L135: 0
A136: ='Org structure'!E50 -> 07.3 - Consimer Billing | C136: 0 | D136: 84812.87 | E136: 63248.36 | F136: 210000 | G136: 17790 | H136: 17790 | I136: 12790 | J136: 0 | K136: 0 | L136: 0
A137: ='Org structure'!E51 -> 07.4 - Epwp Unit | C137: 0 | D137: 0 | E137: 0 | F137: 0 | G137: 0 | H137: 0 | I137: 0 | J137: 0 | K137: 0 | L137: 0
A138: ='Org structure'!E52 -> 07.5 - Auxillary Infrustructure | C138: 0 | D138: 58640 | E138: 100300 | F138: 1000000 | G138: 1860677 | H138: 1860677 | I138: 960956.17 | J138: 0 | K138: 0 | L138: 0
A139: ='Org structure'!E53 -> 07.6 - Project Management Unit | C139: 0 | D139: 0 | E139: 0 | F139: 0 | G139: 0 | H139: 0 | I139: 0 | J139: 0 | K139: 0 | L139: 0
A140: ='Org structure'!E54 -> 07.7 - Water Use Effeciency | C140: 0 | D140: 130967.44 | E140: 132763 | F140: 0 | G140: 0 | H140: 0 | I140: 0 | J140: 0 | K140: 0 | L140: 0
A141: ='Org structure'!E55 -> 07.8 - Process Management | C141: 0 | D141: 36645 | E141: 604142.45 | F141: 300000 | G141: 3740816 | H141: 3740816 | I141: 3676048.05 | J141: 1000000 | K141: 700000 | L141: 0
A142: ='Org structure'!E56 -> 07.9 - Municipal Infrastructure Implementation | C142: 0 | D142: 24988173.06 | E142: 0 | F142: 0 | G142: 33401770 | H142: 33401770 | I142: 6339709.42 | J142: 26000000 | K142: 40000000 | L142: 40000000
A143: ='Org structure'!E57 -> 07.10 - Process Management - Waste Water | C143: 0 | D143: 0 | E143: 0 | F143: 0 | G143: 0 | H143: 0 | I143: 0 | J143: 0 | K143: 0 | L143: 0
A144: ='Org structure'!E58 -> 07.11 - Water Service Division | C144: 0 | D144: 1543128.22 | E144: 52824.22 | F144: 1300000 | G144: 567875 | H144: 567875 | I144: 567867 | J144: 0 | K144: 0 | L144: 0
A145: ='Org structure'!E59 -> 07.12 - Water Service Provider | C145: 2892727 | D145: 1596949.25 | E145: 190873.6 | F145: 1500000 | G145: 30260000 | H145: 30260000 | I145: 4642125.6 | J145: 35450000 | K145: 1000000 | L145: 1000000
A146: ='Org structure'!E60 -> 07.13 - Operations Ops & Maint - Western Region | C146: 0 | D146: 0 | E146: 0 | F146: 0 | G146: 0 | H146: 0 | I146: 0 | J146: 0 | K146: 0 | L146: 0
A147: ='Org structure'!E61 -> 07.14 - Operations Ops & Maint - Southern Region | C147: 0 | D147: 0 | E147: 0 | F147: 0 | G147: 0 | H147: 0 | I147: 0 | J147: 0 | K147: 0 | L147: 0
A148: ='Org structure'!E62 -> 07.15 - Operations Ops & Maint - Eastern Region | C148: 0 | D148: 0 | E148: 0 | F148: 0 | G148: 0 | H148: 0 | I148: 0 | J148: 0 | K148: 0 | L148: 0
A149: ='Org structure'!E63 -> 07.16 - Electricity Reporting Function | C149: 0 | D149: 0 | E149: 0 | F149: 0 | G149: 0 | H149: 0 | I149: 0 | J149: 0 | K149: 0 | L149: 0
A150: ='Org structure'!A9 -> Vote 08 - Waste Management | C150: =SUM(C151:C151) -> 257748 | D150: 50178.43 | E150: 578002.39 | F150: 0 | G150: 415000 | H150: 415000 | I150: 0 | J150: 14878153 | K150: 34715689 | L150: 0
A151: ='Org structure'!E65 -> 08.1 - Waste Manegement | C151: 257748 | D151: 50178.43 | E151: 578002.39 | F151: 0 | G151: 415000 | H151: 415000 | I151: 0 | J151: 14878153 | K151: 34715689 | L151: 0
A152: ='Org structure'!A10 -> Vote 09 - Waste Water Management | C152: =SUM(C153:C154) -> 2928679 | D152: 0 | E152: 0 | F152: 600000 | G152: 282850 | H152: 282850 | I152: 202850 | J152: 12267010 | K152: 300000 | L152: 0
A153: ='Org structure'!E67 -> 09.1 - Waste Water Management | C153: 2928679 | D153: 0 | E153: 0 | F153: 0 | G153: 0 | H153: 0 | I153: 0 | J153: 0 | K153: 0 | L153: 0
A154: ='Org structure'!E68 -> 09.2 - Process Management - Waste Water | C154: 0 | D154: 0 | E154: 0 | F154: 600000 | G154: 282850 | H154: 282850 | I154: 202850 | J154: 12267010 | K154: 300000 | L154: 0
A155: ='Org structure'!A11 -> Vote 10 - King Cetshwayo Fresh Produce Market | C155: =SUM(C156:C160) -> 3959489.17 | D155: 99749.52 | E155: 107514.65 | F155: 0 | G155: 0 | H155: 0 | I155: 0 | J155: 0 | K155: 0 | L155: 0
A156: ='Org structure'!E70 -> 10.1 - Office Of The Ceo | C156: 0 | D156: 0 | E156: 0 | F156: 0 | G156: 0 | H156: 0 | I156: 0 | J156: 0 | K156: 0 | L156: 0
A157: ='Org structure'!E71 -> 10.2 - Finance | C157: 3959489.17 | D157: 99749.52 | E157: 107514.65 | F157: 0 | G157: 0 | H157: 0 | I157: 0 | J157: 0 | K157: 0 | L157: 0
A158: ='Org structure'!E72 -> 10.3 - Corporate Serv | C158: 0 | D158: 0 | E158: 0 | F158: 0 | G158: 0 | H158: 0 | I158: 0 | J158: 0 | K158: 0 | L158: 0
A159: ='Org structure'!E73 -> 10.4 - Operations | C159: 0 | D159: 0 | E159: 0 | F159: 0 | G159: 0 | H159: 0 | I159: 0 | J159: 0 | K159: 0 | L159: 0
A160: ='Org structure'!E74 -> 10.5 - Agribusiness | C160: 0 | D160: 0 | E160: 0 | F160: 0 | G160: 0 | H160: 0 | I160: 0 | J160: 0 | K160: 0 | L160: 0
A161: ='Org structure'!A12 -> Vote 11 - | C161: 0 | D161: 0 | E161: 0 | F161: 0 | G161: 0 | H161: 0 | I161: 0 | J161: 0 | K161: 0 | L161: 0
A162: ='Org structure'!A13 -> Vote 12 - | C162: 0 | D162: 0 | E162: 0 | F162: 0 | G162: 0 | H162: 0 | I162: 0 | J162: 0 | K162: 0 | L162: 0
A163: ='Org structure'!A14 -> Vote 13 - | C163: 0 | D163: 0 | E163: 0 | F163: 0 | G163: 0 | H163: 0 | I163: 0 | J163: 0 | K163: 0 | L163: 0
A164: ='Org structure'!A15 -> Vote 14 - | C164: 0 | D164: 0 | E164: 0 | F164: 0 | G164: 0 | H164: 0 | I164: 0 | J164: 0 | K164: 0 | L164: 0
A165: ='Org structure'!A16 -> Vote 15 - Other | C165: 0 | D165: 0 | E165: 0 | F165: 0 | G165: 0 | H165: 0 | I165: 0 | J165: 0 | K165: 0 | L165: 0
A166: Capital single-year expenditure sub-total | C166: =C88+C100+C105+C110+C111+C114+C133+C150+C152+C155+C161+C162+C163+C164+C165 -> 18089208.17 | D166: 33896839.25 | E166: 7123171.32 | F166: 8750000 | G166: 79038376 | H166: 79038376 | I166: 18280074 | J166: 96854163 | K166: 78365689 | L166: 41650000
A167: Total Capital Expenditure | C167: =C84+C166 -> 375258068.2 | D167: 187343004.9 | E167: 198402955.8 | F167: 370534755 | G167: 443509839 | H167: 443509839 | I167: 166831208.2 | J167: 296130376 | K167: 334727590 | L167: 325356000

Sheet A6-FinPos
A1: =muni&" - "&Approve6 -> DC28 King Cetshwayo - Table A6 Consolidated Budgeted Financial Position
A2: =desc -> Description | B2: =head27 -> Ref | C2: =head1b -> 2016/17 | D2: =head1A -> 2017/18 | E2: =Head1 -> 2018/19 | F2: =Head2 -> Current Year 2019/20 | J2: =Head3 -> 2020/21 Medium Term Revenue & Expenditure Framework
A3: R thousand | C3: =Head5 -> Audited Outcome | D3: =Head5 -> Audited Outcome | E3: =Head5 -> Audited Outcome | F3: =Head6 -> Original Budget | G3: =Head7 -> Adjusted Budget | H3: =Head8 -> Full Year Forecast | I3: =Head5b -> Pre-audit outcome | J3: =Head9 -> Budget Year 2020/21 | K3: =Head10 -> Budget Year +1 2021/22 | L3: =Head11 -> Budget Year +2 2022/23
A4: ASSETS
A5: Current assets
A6: Cash | C6: 198357452 | D6: 111491280.9 | E6: 144384120.1 | F6: 66732548 | G6: 64893400 | H6: 64893400 | I6: 288857513.1 | J6: 165118058 | K6: 153847231 | L6: 180938738
A7: Call investment deposits | B7: 1 | C7: 305000000 | D7: 350000000.5 | E7: 349999997.5 | F7: 335000000 | G7: 335000000 | H7: 335000000 | I7: 237545701 | J7: 389999996 | K7: 364999996 | L7: 364999996
A8: Consumer debtors | B8: 1 | C8: ='SA3'!C14 -> 72297982 | D8: ='SA3'!D14 -> 45459186.78 | E8: ='SA3'!E14 -> 54358181.97 | F8: ='SA3'!F14 -> 27778076 | G8: ='SA3'!G14 -> 27357856 | H8: ='SA3'!H14 -> 27357856 | I8: ='SA3'!I14 -> 60808482.1 | J8: ='SA3'!J14 -> 51496208 | K8: ='SA3'!K14 -> 51421544 | L8: ='SA3'!L14 -> 52464727
A9: Other debtors | C9: 40080083 | D9: 42042067.46 | E9: 28234876.29 | F9: 5735099 | G9: 5340186 | H9: 5340186 | I9: 38306447.56 | J9: 26025117 | K9: 26952080 | L9: 26962673
A10: Current portion of long-term receivables | C10: 42983 | D10: 47772 | E10: 53188.38 | F10: 43879 | G10: 43879 | H10: 43879 | I10: 48719.16 | J10: 97067 | K10: 93337 | L10: 91337
A11: Inventory | B11: 2 | C11: 5730924 | D11: 6036170.05 | E11: 5843562.39 | F11: 4422960 | G11: 4422960 | H11: 4422960 | I11: 7002401.47 | J11: 5843562 | K11: 5843562 | L11: 5843562
A12: Total current assets | C12: =SUM(C6:C11) -> 621509424 | D12: 555076477.7 | E12: 582873926.6 | F12: 439712562 | G12: 437058281 | H12: 437058281 | I12: 632569264.3 | J12: 638580008 | K12: 603157750 | L12: 631301033
A14: Non current assets
A15: Long-term receivables | C15: 221524 | D15: 0 | E15: 116180.95 | F15: 120880 | G15: 120880 | H15: 120880 | I15: 66586.93 | J15: 68113 | K15: 71564 | L15: 93199
A16: Investments | C16: 6203006
A17: Investment property
A18: Investment in Associate | C18: 0 | D18: 0 | E18: 0 | F18: 0 | G18: 0 | H18: 0 | I18: 0 | J18: 0 | K18: 0 | L18: 0
A19: Property, plant and equipment | B19: 3 | C19: ='SA3'!C26 -> 2151558643 | D19: ='SA3'!D26 -> 2295318186 | E19: ='SA3'!E26 -> 2419390759 | F19: ='SA3'!F26 -> 2930908029 | G19: ='SA3'!G26 -> 2986448967 | H19: ='SA3'!H26 -> 2986448967 | I19: ='SA3'!I26 -> 2519367934 | J19: ='SA3'!J26 -> 2949617388 | K19: ='SA3'!K26 -> 3011300242 | L19: ='SA3'!L26 -> 2987641518
A21: Biological
A22: Intangible | C22: 3453344 | D22: 4657570.6 | E22: 4591039.25 | F22: 6302329 | G22: 6003427 | H22: 6003427 | I22: 5030548.42 | J22: 13329314 | K22: 4091314 | L22: 3091314
A23: Other non-current assets | C23: 700000 | D23: 1467732.49 | E23: 1515665.73 | F23: 700000 | G23: 700000 | H23: 700000 | I23: 373949.86 | J23: 1515665 | K23: 1515665 | L23: 1515665
A24: Total non current assets | C24: =SUM(C15:C19)+SUM(C21:C23) -> 2162136517 | D24: =SUM(D15:D19)+SUM(D21:D23) -> 2301443489 | E24: 2425613645 | F24: 2938031238 | G24: 2993273274 | H24: 2993273274 | I24: 2524839019 | J24: 2964530480 | K24: 3016978785 | L24: 2992341696
A25: TOTAL ASSETS | C25: =C12+C24 -> 2783645941 | D25: =D12+D24 -> 2856519967 | E25: =E12+E24 -> 3008487572 | F25: =F12+F24 -> 3377743800 | G25: 3430331555 | H25: 3430331555 | I25: 3157408283 | J25: 3603110488 | K25: 3620136535 | L25: 3623642729
A27: LIABILITIES
A28: Current liabilities
A29: Bank overdraft | B29: 1 | C29: 0 | D29: 0 | E29: 0 | F29: 0 | G29: 0 | H29: 0 | I29: 0 | J29: 0 | K29: 0 | L29: 0
A30: Borrowing | B30: 4 | C30: ='SA3'!C32 -> 10605497 | D30: ='SA3'!D32 -> 5928340.54 | E30: ='SA3'!E32 -> 6669521.35 | F30: ='SA3'!F32 -> 7528813 | G30: ='SA3'!G32 -> 7528813 | H30: ='SA3'!H32 -> 7528813 | I30: ='SA3'!I32 -> 6669521.35 | J30: ='SA3'!J32 -> 7626208 | K30: ='SA3'!K32 -> 7747802 | L30: ='SA3'!L32 -> 9947653
A31: Consumer deposits | C31: 10386568 | D31: 10011628.68 | E31: 10058400.23 | F31: 12455868 | G31: 12455868 | H31: 12455868 | I31: 10100051.54 | J31: 23137061 | K31: 23790994 | L31: 24477624
A32: Trade and other payables | B32: 4 | C32: ='SA3'!C39 -> 248209468 | D32: ='SA3'!D39 -> 188103089.2 | E32: ='SA3'!E39 -> 286384333 | F32: ='SA3'!F39 -> 67170111 | G32: ='SA3'!G39 -> 61759403 | H32: ='SA3'!H39 -> 61759403 | I32: ='SA3'!I39 -> 404038617.2 | J32: ='SA3'!J39 -> 159034298 | K32: ='SA3'!K39 -> 241788317 | L32: ='SA3'!L39 -> 216332244
A33: Provisions | C33: 1656475 | D33: 29218999.82 | E33: 28834707.28 | F33: 33765090 | G33: 33765090 | H33: 33765090 | I33: 28834707.28 | J33: 31346521 | K33: 31304281 | L33: 29383605
A34: Total current liabilities | C34: =SUM(C29:C33) -> 270858008 | D34: 233262058.2 | E34: 331946961.8 | F34: 120919882 | G34: 115509174 | H34: 115509174 | I34: 449642897.4 | J34: 221144088 | K34: 304631394 | L34: 280141126
A36: Non current liabilities
A37: Borrowing | C37: ='SA3'!C44 -> 44461655 | D37: ='SA3'!D44 -> 38533314.59 | E37: ='SA3'!E44 -> 31863792.56 | F37: ='SA3'!F44 -> 24334929 | G37: ='SA3'!G44 -> 24334929 | H37: ='SA3'!H44 -> 24334929 | I37: ='SA3'!I44 -> 28633068.4 | J37: ='SA3'!J44 -> 23378292 | K37: ='SA3'!K44 -> 21837920 | L37: ='SA3'!L44 -> 21482836
A38: Provisions | C38: ='SA3'!C51 -> 100376859 | D38: ='SA3'!D51 -> 90547663.69 | E38: ='SA3'!E51 -> 99752358.65 | F38: ='SA3'!F51 -> 94116646 | G38: ='SA3'!G51 -> 93926136 | H38: ='SA3'!H51 -> 93926136 | I38: ='SA3'!I51 -> 96506622.49 | J38: ='SA3'!J51 -> 107474785 | K38: ='SA3'!K51 -> 103833405 | L38: ='SA3'!L51 -> 104990367
A39: Total non current liabilities | C39: =SUM(C37:C38) -> 144838514 | D39: =SUM(D37:D38) -> 129080978.3 | E39: =SUM(E37:E38) -> 131616151.2 | F39: =SUM(F37:F38) -> 118451575 | G39: 118261065 | H39: 118261065 | I39: 125139690.9 | J39: 130853077 | K39: =SUM(K37:K38) -> 125671325 | L39: 126473203
A40: TOTAL LIABILITIES | C40: =C34+C39 -> 415696522 | D40: =D34+D39 -> 362343036.5 | E40: =E34+E39 -> 463563113.1 | F40: =F34+F39 -> 239371457 | G40: 233770239 | H40: 233770239 | I40: 574782588.3 | J40: 351997165 | K40: =K34+K39 -> 430302719 | L40: 406614329
A42: NET ASSETS | B42: 5 | C42: =C25-C40 -> 2367949419 | D42: 2494176930 | E42: 2544924459 | F42: 3138372343 | G42: 3196561316 | H42: 3196561316 | I42: 2582625695 | J42: 3251113323 | K42: 3189833816 | L42: 3217028400
A44: COMMUNITY WEALTH/EQUITY
A45: Accumulated Surplus/(Deficit) | C45: 2102957129 | D45: ='SA3'!D63 -> 2494175930 | E45: ='SA3'!E63 -> 2545020599 | F45: ='SA3'!F63 -> 2810900943 | G45: ='SA3'!G63 -> 2868440916 | H45: ='SA3'!H63 -> 2868440916 | I45: ='SA3'!I63 -> 2583874256 | J45: ='SA3'!J63 -> 2931748360 | K45: ='SA3'!K63 -> 2824672090 | L45: ='SA3'!L63 -> 2904798080
A46: Reserves | B46: 4 | C46: ='SA3'!C70 -> 264992000 | D46: ='SA3'!D70 -> 1000 | E46: ='SA3'!E70 -> 1000 | F46: ='SA3'!F70 -> 327471400 | G46: ='SA3'!G70 -> 327470400 | H46: ='SA3'!H70 -> 327470400 | I46: ='SA3'!I70 -> 1000 | J46: ='SA3'!J70 -> 319364962 | K46: ='SA3'!K70 -> 365161725 | L46: ='SA3'!L70 -> 312230319
A48: TOTAL COMMUNITY WEALTH/EQUITY | B48: 5 | C48: =SUM(C45:C46) -> 2367949129 | D48: =SUM(D45:D46) -> 2494176930 | E48: 2545021599 | F48: 3138372343 | G48: 3195911316 | H48: 3195911316 | I48: 2583875256 | J48: 3251113322 | K48: 3189833815 | L48: 3217028399
A49: =head27a -> References
A50: 1. Detail to be provided in Table SA3
A51: 2. Include completed low cost housing to be transferred to beneficiaries within 12 months
A52: 3. Include 'Construction-work-in-progress' (disclosed separately in annual financial statements)
A53: 4. Detail to be provided in Table SA3. Includes reserves to be funded by statute.
A54: 5. Net assets must balance with Total Community Wealth/Equity
A55: check balance | C55: =IF((C42-C48)=0,0,"Unbalanced") -> Unbalanced | D55: =IF((D42-D48)=0,0,"Unbalanced") -> 0 | E55: Unbalanced | F55: 0 | G55: Unbalanced | H55: Unbalanced | I55: Unbalanced | J55: Unbalanced | K55: Unbalanced | L55: Unbalanced

Sheet A7-CFlow
A1: =muni&" - "&Approve7 -> DC28 King Cetshwayo - Table A7 Consolidated Budgeted Cash Flows
A2: =desc -> Description | B2: =head27 -> Ref | C2: =head1b -> 2016/17 | D2: =head1A -> 2017/18 | E2: =Head1 -> 2018/19 | F2: =Head2 -> Current Year 2019/20 | J2: =Head3 -> 2020/21 Medium Term Revenue & Expenditure Framework
A3: R thousand | C3: =Head5 -> Audited Outcome | D3: =Head5 -> Audited Outcome | E3: =Head5 -> Audited Outcome | F3: =Head6 -> Original Budget | G3: =Head7 -> Adjusted Budget | H3: =Head8 -> Full Year Forecast | I3: =Head5b -> Pre-audit outcome | J3: =Head9 -> Budget Year 2020/21 | K3: =Head10 -> Budget Year +1 2021/22 | L3: =Head11 -> Budget Year +2 2022/23
A4: CASH FLOW FROM OPERATING ACTIVITIES
A5: Receipts
A6: Property rates | J6: ='SA30'!N5 -> 0 | K6: ='SA30'!O5 -> 0 | L6: ='SA30'!P5 -> 0
A7: Service charges | C7: 64841192 | D7: 77337467.13 | E7: 86912662.79 | F7: 83225045.7 | G7: 83225045.7 | H7: 83225045.7 | I7: 76288840.1 | J7: ='SA30'!N6+'SA30'!N7+'SA30'!N8+'SA30'!N9 -> 486143504 | K7: ='SA30'!O6+'SA30'!O7+'SA30'!O8+'SA30'!O9 -> 546617924 | L7: ='SA30'!P6+'SA30'!P7+'SA30'!P8+'SA30'!P9 -> 611894008
A8: Other revenue | C8: -6398787 | D8: 7521968.86 | E8: 23274580.21 | F8: 29529867 | G8: =+'[3]A4-FinPerf RE'!G11+'[3]A4-FinPerf RE'!G13+'[3]A4-FinPerf RE'!G15+'[3]A4-FinPerf RE'!G16+'[3]A4-FinPerf RE'!G19 -> 3222690 | H8: 3222690 | I8: 3879973.4 | J8: ='SA30'!N11+'SA30'!N15+'SA30'!N16+'SA30'!N17+'SA30'!N19 -> 2484624496 | K8: ='SA30'!O11+'SA30'!O15+'SA30'!O16+'SA30'!O17+'SA30'!O19 -> 2192614076 | L8: ='SA30'!P11+'SA30'!P15+'SA30'!P16+'SA30'!P17+'SA30'!P19 -> 2010721992
A9: Transfers and Subsidies - Operational | B9: 1 | C9: 433789216 | D9: 537476798.3 | E9: 574400728.5 | F9: 532948245 | G9: 535948245 | H9: 535948245 | I9: 525755539.1 | J9: ='SA30'!N18 -> 25904000 | K9: ='SA30'!O18 -> 4800000 | L9: ='SA30'!P18 -> 4800000
A10: Transfers and Subsidies - Capital | B10: 1 | C10: 461762987 | D10: 270695678 | E10: 214677359.9 | F10: 355784755 | G10: 441417866 | H10: 441417866 | I10: 162227096.8 | J10: ='SA30'!N23 -> 1098328000 | K10: ='SA30'!O23 -> 1270968000 | L10: ='SA30'!P23 -> 1427584000
A11: Interest | C11: 47703379 | D11: 46638976.35 | E11: 40968328.63 | F11: 32410284 | G11: 38821294 | H11: 38821294 | I11: 34756516.72 | J11: ='SA30'!N12+'SA30'!N13 -> 32909009 | K11: ='SA30'!O12+'SA30'!O13 -> 34883549 | L11: ='SA30'!P12+'SA30'!P13 -> 36976563
A12: Dividends | J12: ='SA30'!N14 -> 0 | K12: ='SA30'!O14 -> 0 | L12: ='SA30'!P14 -> 0
A13: Payments
A14: Suppliers and employees | C14: -587984093 | D14: -771567778.3 | E14: -782298701.3 | F14: -705671123 | G14: -724339478 | H14: -724339478 | I14: -618723506 | J14: =-('SA30'!N35+'SA30'!N36+'SA30'!N38+'SA30'!N39+'SA30'!N40+'SA30'!N41+'SA30'!N44+'SA30'!N50) -> -985057299 | K14: =-('SA30'!O35+'SA30'!O36+'SA30'!O38+'SA30'!O39+'SA30'!O40+'SA30'!O41+'SA30'!O44+'SA30'!O50) -> -1056645773 | L14: =-('SA30'!P35+'SA30'!P36+'SA30'!P38+'SA30'!P39+'SA30'!P40+'SA30'!P41+'SA30'!P44+'SA30'!P50) -> -1147059955
A15: Finance charges | C15: -9125435 | D15: -6432318.84 | E15: -5322141 | F15: -4580963 | G15: -4580963 | H15: -4580963 | I15: -2395042.88 | J15: =-('SA30'!N37) -> -3721615 | K15: =-('SA30'!O37) -> -6917405 | L15: =-('SA30'!P37) -> -5782016
A16: Transfers and Grants | B16: 1 | C16: -10635455 | D16: -11514719.22 | E16: -19355000 | F16: -5942500 | G16: -2081223 | H16: -2081223 | I16: -1000000 | J16: =-('SA30'!N42+'SA30'!N43) -> 0 | K16: =-('SA30'!O42+'SA30'!O43) -> 0 | L16: =-('SA30'!P42+'SA30'!P43) -> 0
A17: NET CASH FROM/(USED) OPERATING ACTIVITIES | C17: =SUM(C6:C12)+SUM(C14:C16) -> 393953004 | D17: 150156072.3 | E17: 133257817.6 | F17: 317703610.7 | G17: 371633476.7 | H17: 371633476.7 | I17: 180789417.2 | J17: 3139130095 | K17: 2986320371 | L17: 2939134592
A19: CASH FLOWS FROM INVESTING ACTIVITIES
A20: Receipts
A21: Proceeds on disposal of PPE | C21: 186611 | J21: ='SA30'!N24+'SA30'!N25 -> 0 | K21: ='SA30'!O24+'SA30'!O25 -> 0 | L21: ='SA30'!P24+'SA30'!P25 -> 0
C22: 8270713
A23: Decrease (increase) in non-current receivables | C23: 89992 | J23: ='SA30'!N30 -> 52767 | K23: ='SA30'!O30 -> -3451 | L23: ='SA30'!P30 -> -21635
A24: Decrease (increase) in non-current investments | C24: 0 | D24: 0 | E24: 116180.95 | F24: 4699.05 | G24: 0 | H24: 0 | I24: -42902.7 | J24: ='SA30'!N31 -> 0 | K24: ='SA30'!O31 -> 0 | L24: ='SA30'!P31 -> 0
A25: Payments
A26: Capital assets | C26: -308711205 | D26: -171513158.2 | E26: -198402955.8 | F26: -370534755 | G26: -483184126 | H26: -483184126 | I26: -148334162.8 | J26: =-('SA30'!N48) -> -592260752 | K26: =-('SA30'!O48) -> -669455180 | L26: =-('SA30'!P48) -> -650712000
A27: NET CASH FROM/(USED) INVESTING ACTIVITIES | C27: =+C21+C23+C24+C26 -> -308434602 | D27: =+D21+D23+D24+D26 -> -171513158.2 | E27: -198286774.8 | F27: -370530055.9 | G27: -483184126 | H27: -483184126 | I27: -148377065.5 | J27: -592207985 | K27: -669458631 | L27: -650733635
A29: CASH FLOWS FROM FINANCING ACTIVITIES
A30: Receipts
A31: Short term loans | J31: ='SA30'!N26 -> 0 | K31: ='SA30'!O26 -> 0 | L31: ='SA30'!P26 -> 0
A32: Borrowing long term/refinancing | J32: ='SA30'!N27 -> 0 | K32: ='SA30'!O27 -> 0 | L32: ='SA30'!P27 -> 0
A33: Increase (decrease) in consumer deposits | C33: 0 | D33: -10011628.68 | E33: -46771.55 | F33: -2397467.77 | G33: 0 | H33: 0 | I33: 61396.69 | J33: ='SA30'!N28 -> 10681193 | K33: ='SA30'!O28 -> 653933 | L33: ='SA30'!P28 -> 686630
A34: Payments
A35: Repayment of borrowing | C35: -12988988 | D35: -5928340.54 | E35: -6669521.35 | F35: -7528813 | G35: -7528813 | H35: -7528813 | I35: -6669521.35 | J35: =-('SA30'!N49) -> 956687 | K35: =-('SA30'!O49) -> 1078281 | L35: =-('SA30'!P49) -> 3278132
A36: NET CASH FROM/(USED) FINANCING ACTIVITIES | C36: =SUM(C31:C33)+C35 -> -12988988 | D36: =SUM(D31:D33)+D35 -> -15939969.22 | E36: -6716292.9 | F36: -9926280.77 | G36: -7528813 | H36: -7528813 | I36: -6608124.66 | J36: 11637880 | K36: 1732214 | L36: 3964762
A38: NET INCREASE/ (DECREASE) IN CASH HELD | C38: =C17+C27+C36 -> 72529414 | D38: =D17+D27+D36 -> -37297055.13 | E38: -71745250.13 | F38: -62752726.02 | G38: -119079462.3 | H38: -119079462.3 | I38: 25804227.03 | J38: 2558559990 | K38: 2318593954 | L38: 2292365719
A39: Cash/cash equivalents at the year begin: | B39: 2 | C39: 422557325 | D39: 477545815.9 | E39: 461487075.4 | F39: 384216741 | G39: 382378000 | H39: 382378000 | I39: -86380.85 | J39: ='SA30'!N54 -> 493988794 | K39: =J40 -> 3052548784 | L39: =K40 -> 5371142738
A40: Cash/cash equivalents at the year end: | B40: 2 | C40: =C38+C39 -> 495086739 | D40: =D38+D39 -> 440248760.8 | E40: =E38+E39 -> 389741825.3 | F40: =F38+F39 -> 321464015 | G40: 263298537.7 | H40: 263298537.7 | I40: 25717846.18 | J40: 3052548784 | K40: 5371142738 | L40: 7663508457
A41: =head27a -> References
A42: 1. Local/District municipalities to include transfers from/to District/Local Municipalities
A43: 2. Cash equivalents includes investments with maturities of 3 months or less
A44: 3. The MTREF is populated directly from SA30.
A45: Total receipts | C45: =SUM(C6:C12)+SUM(C21:C23) -> 1010245303 | D45: 939670888.7 | E45: 940233660 | F45: 1033898197 | G45: 1102635141 | H45: 1102635141 | I45: 802907966.1 | J45: 4127961776 | K45: 4049880098 | L45: 4091954928
A46: Total payments | C46: =SUM(C14:C16)+C26 -> -916456188 | D46: =SUM(D14:D16)+D26 -> -961027974.6 | E46: -1005378798 | F46: -1086729341 | G46: -1214185790 | H46: -1214185790 | I46: -770452711.7 | J46: -1581039666 | K46: -1733018358 | L46: -1803553971
C47: =C45+C46 -> 93789115 | D47: =D45+D46 -> -21357085.91 | E47: -65145138.18 | F47: -52831144.3 | G47: -111550649.3 | H47: -111550649.3 | I47: 32455254.39 | J47: 2546922110 | K47: 2316861740 | L47: 2288400957
A48: Borrowings & investments & c.deposits | C48: =C24+C32+C33 -> 0 | D48: =D24+D32+D33 -> -10011628.68 | E48: 69409.4 | F48: -2392768.72 | G48: 0 | H48: 0 | I48: 18493.99 | J48: 10681193 | K48: 653933 | L48: 686630
A49: =A35 -> Repayment of borrowing | C49: =C35 -> -12988988 | D49: =D35 -> -5928340.54 | E49: -6669521.35 | F49: -7528813 | G49: -7528813 | H49: -7528813 | I49: =I35 -> -6669521.35 | J49: 956687 | K49: 1078281 | L49: 3278132
C50: =C47+C48+C49 -> 80800127 | D50: =D47+D48+D49 -> -37297055.13 | E50: -71745250.13 | F50: -62752726.02 | G50: -119079462.3 | H50: -119079462.3 | I50: 25804227.03 | J50: 2558559990 | K50: 2318593954 | L50: 2292365719
C51: =C38-C50 -> -8270713 | D51: 0 | E51: 0 | F51: 0 | G51: 0 | H51: 0 | I51: 0 | J51: 0 | K51: 0 | L51: 0

Sheet A8-ResRecon
A1: =muni&" - "&Approve8 -> DC28 King Cetshwayo - Table A8 Consolidated Cash backed reserves/accumulated surplus reconciliation
A2: =desc -> Description | B2: =head27 -> Ref | C2: =head1b -> 2016/17 | D2: =head1A -> 2017/18 | E2: =Head1 -> 2018/19 | F2: =Head2 -> Current Year 2019/20 | J2: =Head3 -> 2020/21 Medium Term Revenue & Expenditure Framework
A3: R thousand | C3: =Head5 -> Audited Outcome | D3: =Head5 -> Audited Outcome | E3: =Head5 -> Audited Outcome | F3: =Head6 -> Original Budget | G3: =Head7 -> Adjusted Budget | H3: =Head8 -> Full Year Forecast | I3: =Head5b -> Pre-audit outcome | J3: =Head9 -> Budget Year 2020/21 | K3: =Head10 -> Budget Year +1 2021/22 | L3: =Head11 -> Budget Year +2 2022/23
A4: Cash and investments available
A5: =LEFT('A7-CFlow'!A40,37) -> Cash/cash equivalents at the year end | B5: 1 | C5: ='A7-CFlow'!C40 -> 495086739 | D5: ='A7-CFlow'!D40 -> 440248760.8 | E5: ='A7-CFlow'!E40 -> 389741825.3 | F5: ='A7-CFlow'!F40 -> 321464015 | G5: ='A7-CFlow'!G40 -> 263298537.7 | H5: ='A7-CFlow'!H40 -> 263298537.7 | I5: ='A7-CFlow'!I40 -> 25717846.18 | J5: ='A7-CFlow'!J40 -> 3052548784 | K5: ='A7-CFlow'!K40 -> 5371142738 | L5: ='A7-CFlow'!L40 -> 7663508457
A6: Other current investments > 90 days | C6: ='A6-FinPos'!C6+'A6-FinPos'!C7-'A6-FinPos'!C29-'A8-ResRecon'!C5 -> 8270713 | D6: ='A6-FinPos'!D6+'A6-FinPos'!D7-'A6-FinPos'!D29-'A8-ResRecon'!D5 -> 21242520.62 | E6: ='A6-FinPos'!E6+'A6-FinPos'!E7-'A6-FinPos'!E29-'A8-ResRecon'!E5 -> 104642292.4 | F6: ='A6-FinPos'!F6+'A6-FinPos'!F7-'A6-FinPos'!F29-'A8-ResRecon'!F5 -> 80268533.02 | G6: ='A6-FinPos'!G6+'A6-FinPos'!G7-'A6-FinPos'!G29-'A8-ResRecon'!G5 -> 136594862.3 | H6: ='A6-FinPos'!H6+'A6-FinPos'!H7-'A6-FinPos'!H29-'A8-ResRecon'!H5 -> 136594862.3 | I6: ='A6-FinPos'!I6+'A6-FinPos'!I7-'A6-FinPos'!I29-'A8-ResRecon'!I5 -> 500685367.9 | J6: ='A6-FinPos'!J6+'A6-FinPos'!J7-'A6-FinPos'!J29-'A8-ResRecon'!J5 -> -2497430730 | K6: ='A6-FinPos'!K6+'A6-FinPos'!K7-'A6-FinPos'!K29-'A8-ResRecon'!K5 -> -4852295511 | L6: ='A6-FinPos'!L6+'A6-FinPos'!L7-'A6-FinPos'!L29-'A8-ResRecon'!L5 -> -7117569723
A7: ='A6-FinPos'!A14&" - "&'A6-FinPos'!A16 -> Non current assets - Investments | B7: 1 | C7: ='A6-FinPos'!C16 -> 6203006 | D7: ='A6-FinPos'!D16 -> 0 | E7: ='A6-FinPos'!E16 -> 0 | F7: ='A6-FinPos'!F16 -> 0 | G7: ='A6-FinPos'!G16 -> 0 | H7: ='A6-FinPos'!H16 -> 0 | I7: ='A6-FinPos'!I16 -> 0 | J7: ='A6-FinPos'!J16 -> 0 | K7: ='A6-FinPos'!K16 -> 0 | L7: ='A6-FinPos'!L16 -> 0
A8: Cash and investments available: | C8: =SUM(C5:C7) -> 509560458 | D8: =SUM(D5:D7) -> 461491281.4 | E8: 494384117.6 | F8: 401732548 | G8: 399893400 | H8: 399893400 | I8: 526403214 | J8: 555118054 | K8: 518847227 | L8: 545938734
A10: Application of cash and investments
A11: ='SA3'!A37 -> Unspent conditional transfers | C11: ='SA3'!C37 -> 0 | D11: ='SA3'!D37 -> 4.85 | E11: ='SA3'!E37 -> 92895172.67 | F11: ='SA3'!F37 -> 0 | G11: ='SA3'!G37 -> 0 | H11: ='SA3'!H37 -> 0 | I11: ='SA3'!I37 -> 286537705.9 | J11: ='SA3'!J37 -> 92895170 | K11: ='SA3'!K37 -> 92895170 | L11: ='SA3'!L37 -> 92895170
A12: Unspent borrowing | C12: ='SA17'!C67 -> 0 | D12: ='SA17'!D67 -> 0 | E12: ='SA17'!E67 -> 0 | F12: ='SA17'!F67 -> 0 | G12: ='SA17'!G67 -> 0 | H12: ='SA17'!H67 -> 0 | J12: ='SA17'!I67 -> 0 | K12: ='SA17'!J67 -> 0 | L12: ='SA17'!K67 -> 0
A13: Statutory requirements | B13: 2 | C13: 1656475 | D13: 29218999.82 | E13: 28834707.28 | F13: 33765090 | G13: 33765090 | H13: 33765090 | I13: 28834707.28 | J13: 31346521 | K13: 31304281 | L13: 29383605
A14: Other working capital requirements | B14: 3 | C14: =-C32 -> 186917468 | D14: =-D32 -> 153936208.8 | E14: 143848810.6 | F14: =-F32 -> 36085111 | G14: 32235403 | H14: 32235403 | I14: 62244651.93 | J14: -2041488221 | K14: -1692173202 | L14: -1501954275
A15: Other provisions | C15: 100376859 | D15: 90547663.69 | E15: 99752358.65 | F15: 94116646 | G15: 93926136 | H15: 93926136 | I15: 96647832.66 | J15: 107474785 | K15: 103833405 | L15: 104990367
A16: Long term investments committed | B16: 4 | C16: =C42 -> 0 | D16: =D42 -> 0 | E16: 0 | F16: 0 | G16: 0 | H16: 0 | I16: 0 | J16: 0 | K16: 0 | L16: 0
A17: Reserves to be backed by cash/investments | B17: 5 | C17: =SUM(C44:C48) -> 264992000 | D17: 1000 | E17: 1000 | F17: 327471400 | G17: 327470400 | H17: 327470400 | I17: 1000 | J17: 319364962 | K17: 365161725 | L17: 312230319
A18: ="Total "&A10&":" -> Total Application of cash and investments: | C18: =SUM(C11:C17) -> 553942802 | D18: =SUM(D11:D17) -> 273703877.1 | E18: 365332049.2 | F18: 491438247 | G18: 487397029 | H18: 487397029 | I18: 474265897.7 | J18: -1490406783 | K18: -1098978621 | L18: -962454814
A19: Surplus(shortfall) | C19: =C8-C18 -> -44382344 | D19: =D8-D18 -> 187787404.3 | E19: 129052068.4 | F19: -89705699 | G19: -87503629 | H19: -87503629 | I19: 52137316.31 | J19: 2045524837 | K19: 1617825848 | L19: 1508393548
A20: =head27a -> References
A21: 1. Must reconcile with Budgeted Cash Flows
A22: 2. For example: VAT, taxation
A23: 3. Council approval for policy required - include sufficient working capital (e.g. allowing for a % of current debtors > 90 days as uncollectable)
A24: 4. For example: sinking fund requirements for borrowing
A25: 5. Council approval required for each reserve created and basis of cash backing of reserves
A28: Other working capital requirements
A29: Debtors | C29: =IF(ISERROR(ROUND(C35*C36,-3)),0,(ROUND(C35*C36,-3))) -> 61292000 | D29: =IF(ISERROR(ROUND(D35*D36,-3)),0,(ROUND(D35*D36,-3))) -> 65902000 | E29: 81480000 | F29: 31085000 | G29: 29524000 | H29: 29524000 | I29: 84510000 | J29: 2139467000 | K29: 1872906000 | L29: 1657231000
A31: Creditors due | C31: ='SA3'!C35+'SA3'!C36 -> 248209468 | D31: ='SA3'!D35+'SA3'!D36 -> 219838208.8 | E31: ='SA3'!E35+'SA3'!E36 -> 225328810.6 | F31: ='SA3'!F35+'SA3'!F36 -> 67170111 | G31: ='SA3'!G35+'SA3'!G36 -> 61759403 | H31: ='SA3'!H35+'SA3'!H36 -> 61759403 | I31: ='SA3'!I35+'SA3'!I36 -> 146754651.9 | J31: ='SA3'!J35+'SA3'!J36 -> 97978779 | K31: ='SA3'!K35+'SA3'!K36 -> 180732798 | L31: ='SA3'!L35+'SA3'!L36 -> 155276725
A32: Total | C32: =C29-C31 -> -186917468 | D32: =D29-D31 -> -153936208.8 | E32: -143848810.6 | F32: -36085111 | G32: -32235403 | H32: -32235403 | I32: -62244651.93 | J32: 2041488221 | K32: 1692173202 | L32: 1501954275
A34: Debtors collection assumptions
A35: Balance outstanding - debtors | C35: ='A6-FinPos'!C8+'A6-FinPos'!C9+'A6-FinPos'!C15 -> 112599589 | D35: ='A6-FinPos'!D8+'A6-FinPos'!D9+'A6-FinPos'!D15 -> 87501254.24 | E35: ='A6-FinPos'!E8+'A6-FinPos'!E9+'A6-FinPos'!E15 -> 82709239.21 | F35: ='A6-FinPos'!F8+'A6-FinPos'!F9+'A6-FinPos'!F15 -> 33634055 | G35: ='A6-FinPos'!G8+'A6-FinPos'!G9+'A6-FinPos'!G15 -> 32818922 | H35: ='A6-FinPos'!H8+'A6-FinPos'!H9+'A6-FinPos'!H15 -> 32818922 | I35: ='A6-FinPos'!I8+'A6-FinPos'!I9+'A6-FinPos'!I15 -> 99181516.59 | J35: ='A6-FinPos'!J8+'A6-FinPos'!J9+'A6-FinPos'!J15 -> 77589438 | K35: ='A6-FinPos'!K8+'A6-FinPos'!K9+'A6-FinPos'!K15 -> 78445188 | L35: ='A6-FinPos'!L8+'A6-FinPos'!L9+'A6-FinPos'!L15 -> 79520599
A36: Estimate of debtors collection rate | C36: =IF(ISERROR('SA10'!D10),0,('SA10'!D10)) -> 0.5443367887 | D36: =IF(ISERROR('SA10'!E10),0,('SA10'!E10)) -> 0.7531585172 | E36: =IF(ISERROR('SA10'!F10),0,('SA10'!F10)) -> 0.9851403766 | F36: =IF(ISERROR('SA10'!G10),0,('SA10'!G10)) -> 0.9242043844 | G36: =IF(ISERROR('SA10'!H10),0,('SA10'!H10)) -> 0.8996073572 | H36: =IF(ISERROR('SA10'!I10),0,('SA10'!I10)) -> 0.8996073572 | I36: =IF(ISERROR('SA10'!J10),0,('SA10'!J10)) -> 0.8520720509 | J36: =IF(ISERROR('SA10'!K10),0,('SA10'!K10)) -> 27.57420221 | K36: =IF(ISERROR('SA10'!L10),0,('SA10'!L10)) -> 23.87534968 | L36: =IF(ISERROR('SA10'!M10),0,('SA10'!M10)) -> 20.8402783
K39: `
A40: =A16 -> Long term investments committed
A41: Balance (Insert description; eg sinking fund)
C42: =SUM(C41:C41) -> 0 | D42: 0 | E42: 0 | F42: 0 | G42: 0 | H42: 0 | I42: 0 | J42: 0 | K42: 0 | L42: 0
A43: =A17 -> Reserves to be backed by cash/investments
A44: ='SA3'!A65 -> Housing Development Fund | C44: ='SA3'!C65 -> 0 | D44: ='SA3'!D65 -> 0 | E44: ='SA3'!E65 -> 0 | F44: ='SA3'!F65 -> 0 | G44: ='SA3'!G65 -> 0 | H44: ='SA3'!H65 -> 0 | I44: ='SA3'!I65 -> 0 | J44: ='SA3'!J65 -> 0 | K44: ='SA3'!K65 -> 0 | L44: ='SA3'!L65 -> 0
A45: ='SA3'!A66 -> Capital replacement | C45: ='SA3'!C66 -> 0 | D45: ='SA3'!D66 -> 0 | E45: ='SA3'!E66 -> 0 | F45: ='SA3'!F66 -> 0 | G45: ='SA3'!G66 -> 0 | H45: ='SA3'!H66 -> 0 | I45: ='SA3'!I66 -> 0 | J45: ='SA3'!J66 -> 0 | K45: ='SA3'!K66 -> 0 | L45: ='SA3'!L66 -> 0
A46: ='SA3'!A67 -> Self-insurance | C46: ='SA3'!C67 -> 0 | D46: ='SA3'!D67 -> 0 | E46: ='SA3'!E67 -> 0 | F46: ='SA3'!F67 -> 0 | G46: ='SA3'!G67 -> 0 | H46: ='SA3'!H67 -> 0 | I46: ='SA3'!I67 -> 0 | J46: ='SA3'!J67 -> 0 | K46: ='SA3'!K67 -> 0 | L46: ='SA3'!L67 -> 0
A47: ='SA3'!A68 -> Other reserves | C47: ='SA3'!C68 -> 0 | D47: ='SA3'!D68 -> 1000 | E47: ='SA3'!E68 -> 1000 | F47: ='SA3'!F68 -> 1000 | G47: ='SA3'!G68 -> 0 | H47: ='SA3'!H68 -> 0 | I47: ='SA3'!I68 -> 1000 | J47: ='SA3'!J68 -> 0 | K47: ='SA3'!K68 -> 0 | L47: ='SA3'!L68 -> 0
A48: ='SA3'!A69 -> Revaluation | C48: ='SA3'!C69 -> 264992000 | D48: ='SA3'!D69 -> 0 | E48: ='SA3'!E69 -> 0 | F48: ='SA3'!F69 -> 327470400 | G48: ='SA3'!G69 -> 327470400 | H48: ='SA3'!H69 -> 327470400 | I48: ='SA3'!I69 -> 0 | J48: ='SA3'!J69 -> 319364962 | K48: ='SA3'!K69 -> 365161725 | L48: ='SA3'!L69 -> 312230319
C49: =SUM(C44:C48) -> 264992000 | D49: 1000 | E49: 1000 | F49: 327471400 | G49: 327470400 | H49: 327470400 | I49: 1000 | J49: 319364962 | K49: 365161725 | L49: 312230319

Sheet A9-Asset
A1: =muni&" - "&Approve9 -> DC28 King Cetshwayo - Table A9 Consolidated Asset Management
A2: =desc -> Description | B2: =head27 -> Ref | C2: =head1b -> 2016/17 | D2: =head1A -> 2017/18 | E2: =Head1 -> 2018/19 | F2: =Head2 -> Current Year 2019/20 | I2: =Head3 -> 2020/21 Medium Term Revenue & Expenditure Framework
A3: R thousand | C3: =Head5 -> Audited Outcome | D3: =Head5 -> Audited Outcome | E3: =Head5 -> Audited Outcome | F3: =Head6 -> Original Budget | G3: =Head7 -> Adjusted Budget | H3: =Head8 -> Full Year Forecast | I3: =Head9 -> Budget Year 2020/21 | J3: =Head10 -> Budget Year +1 2021/22 | K3: =Head11 -> Budget Year +2 2022/23
A4: CAPITAL EXPENDITURE
A5: Total New Assets | B5: 1 | C5: =C15+C18+C19+C22+C25+C26+SUM(C29:C35) -> 375258068.2 | D5: =D15+D18+D19+D22+D25+D26+SUM(D29:D35) -> 176215429.4 | E5: 171022583.1 | F5: 306503097 | G5: 413337473 | H5: 413337473 | I5: 269314866 | J5: 292176929 | K5: 284356000
A6: Roads Infrastructure | C6: =SA34a!C7 -> 0 | D6: =SA34a!D7 -> 0 | E6: =SA34a!E7 -> 0 | F6: =SA34a!F7 -> 0 | G6: =SA34a!G7 -> 0 | H6: =SA34a!H7 -> 0 | I6: =SA34a!I7 -> 0 | J6: =SA34a!J7 -> 0 | K6: =SA34a!K7 -> 0
A7: Storm water Infrastructure | C7: =SA34a!C12 -> 0 | D7: =SA34a!D12 -> 0 | E7: =SA34a!E12 -> 0 | F7: =SA34a!F12 -> 0 | G7: =SA34a!G12 -> 0 | H7: =SA34a!H12 -> 0 | I7: =SA34a!I12 -> 0 | J7: =SA34a!J12 -> 0 | K7: =SA34a!K12 -> 0
A8: Electrical Infrastructure | C8: =SA34a!C16 -> 0 | D8: =SA34a!D16 -> 0 | E8: =SA34a!E16 -> 0 | F8: =SA34a!F16 -> 0 | G8: =SA34a!G16 -> 0 | H8: =SA34a!H16 -> 0 | I8: =SA34a!I16 -> 0 | J8: =SA34a!J16 -> 0 | K8: =SA34a!K16 -> 0
A9: Water Supply Infrastructure | C9: =SA34a!C26 -> 354168860 | D9: =SA34a!D26 -> 169042505.8 | E9: =SA34a!E26 -> 164463554.3 | F9: =SA34a!F26 -> 300253097 | G9: =SA34a!G26 -> 372733040 | H9: =SA34a!H26 -> 372733040 | I9: =SA34a!I26 -> 226477713 | J9: =SA34a!J26 -> 255511240 | K9: =SA34a!K26 -> 283706000
A10: Sanitation Infrastructure | C10: =SA34a!C37 -> 20389208.17 | D10: =SA34a!D37 -> 0 | E10: =SA34a!E37 -> 0 | F10: =SA34a!F37 -> 0 | G10: =SA34a!G37 -> 0 | H10: =SA34a!H37 -> 0 | I10: =SA34a!I37 -> 0 | J10: =SA34a!J37 -> 0 | K10: =SA34a!K37 -> 0
A11: Solid Waste Infrastructure | C11: =SA34a!C44 -> 0 | D11: =SA34a!D44 -> 310000 | E11: =SA34a!E44 -> 523217.27 | F11: =SA34a!F44 -> 0 | G11: =SA34a!G44 -> 0 | H11: =SA34a!H44 -> 0 | I11: =SA34a!I44 -> 14878153 | J11: =SA34a!J44 -> 34715689 | K11: =SA34a!K44 -> 0
A12: Rail Infrastructure | C12: =SA34a!C52 -> 0 | D12: =SA34a!D52 -> 0 | E12: =SA34a!E52 -> 0 | F12: =SA34a!F52 -> 0 | G12: =SA34a!G52 -> 0 | H12: =SA34a!H52 -> 0 | I12: =SA34a!I52 -> 0 | J12: =SA34a!J52 -> 0 | K12: =SA34a!K52 -> 0
A13: Coastal Infrastructure | C13: =SA34a!C62 -> 0 | D13: =SA34a!D62 -> 0 | E13: =SA34a!E62 -> 0 | F13: =SA34a!F62 -> 0 | G13: =SA34a!G62 -> 0 | H13: =SA34a!H62 -> 0 | I13: =SA34a!I62 -> 0 | J13: =SA34a!J62 -> 0 | K13: =SA34a!K62 -> 0
A14: Information and Communication Infrastructure | C14: =SA34a!C68 -> 0 | D14: =SA34a!D68 -> 0 | E14: =SA34a!E68 -> 0 | F14: =SA34a!F68 -> 0 | G14: =SA34a!G68 -> 0 | H14: =SA34a!H68 -> 0 | I14: =SA34a!I68 -> 0 | J14: =SA34a!J68 -> 0 | K14: =SA34a!K68 -> 0
A15: Infrastructure | C15: =SUM(C6:C14) -> 374558068.2 | D15: =SUM(D6:D14) -> 169352505.8 | E15: 164986771.5 | F15: 300253097 | G15: 372733040 | H15: 372733040 | I15: 241355866 | J15: 290226929 | K15: 283706000
A16: Community Facilities | C16: =SA34a!C75 -> 0 | D16: =SA34a!D75 -> 636349.43 | E16: =SA34a!E75 -> 425405 | F16: =SA34a!F75 -> 0 | G16: =SA34a!G75 -> 253004 | H16: =SA34a!H75 -> 253004 | I16: =SA34a!I75 -> 0 | J16: =SA34a!J75 -> 0 | K16: =SA34a!K75 -> 0
A17: Sport and Recreation Facilities | C17: =SA34a!C98 -> 0 | D17: =SA34a!D98 -> 0 | E17: =SA34a!E98 -> 0 | F17: =SA34a!F98 -> 0 | G17: =SA34a!G98 -> 0 | H17: =SA34a!H98 -> 0 | I17: =SA34a!I98 -> 0 | J17: =SA34a!J98 -> 0 | K17: =SA34a!K98 -> 0
A18: Community Assets | C18: =SUM(C16:C17) -> 0 | D18: =SUM(D16:D17) -> 636349.43 | E18: 425405 | F18: 0 | G18: 253004 | H18: 253004 | I18: 0 | J18: 0 | K18: 0
A19: Heritage Assets | C19: =SA34a!C103 -> 700000 | D19: =SA34a!D103 -> 0 | E19: =SA34a!E103 -> 0 | F19: =SA34a!F103 -> 0 | G19: =SA34a!G103 -> 0 | H19: =SA34a!H103 -> 0 | I19: =SA34a!I103 -> 0 | J19: =SA34a!J103 -> 0 | K19: =SA34a!K103 -> 0
A20: Revenue Generating | C20: =SA34a!C111 -> 0 | D20: =SA34a!D111 -> 0 | E20: =SA34a!E111 -> 0 | F20: =SA34a!F111 -> 0 | G20: =SA34a!G111 -> 0 | H20: =SA34a!H111 -> 0 | I20: =SA34a!I111 -> 0 | J20: =SA34a!J111 -> 0 | K20: =SA34a!K111 -> 0
A21: Non-revenue Generating | C21: =SA34a!C114 -> 0 | D21: =SA34a!D114 -> 0 | E21: =SA34a!E114 -> 0 | F21: =SA34a!F114 -> 0 | G21: =SA34a!G114 -> 0 | H21: =SA34a!H114 -> 0 | I21: =SA34a!I114 -> 0 | J21: =SA34a!J114 -> 0 | K21: =SA34a!K114 -> 0
A22: Investment properties | C22: =SUM(C20:C21) -> 0 | D22: =SUM(D20:D21) -> 0 | E22: 0 | F22: 0 | G22: 0 | H22: 0 | I22: 0 | J22: 0 | K22: 0
A23: Operational Buildings | C23: =SA34a!C119 -> 0 | D23: =SA34a!D119 -> 0 | E23: =SA34a!E119 -> 194713.59 | F23: =SA34a!F119 -> 1300000 | G23: =SA34a!G119 -> 11235677 | H23: =SA34a!H119 -> 11235677 | I23: =SA34a!I119 -> 0 | J23: =SA34a!J119 -> 0 | K23: =SA34a!K119 -> 0
A24: Housing | C24: =SA34a!C131 -> 0 | D24: =SA34a!D131 -> 0 | E24: =SA34a!E131 -> 0 | F24: =SA34a!F131 -> 0 | G24: =SA34a!G131 -> 0 | H24: =SA34a!H131 -> 0 | I24: =SA34a!I131 -> 0 | J24: =SA34a!J131 -> 0 | K24: =SA34a!K131 -> 0
A25: Other Assets | C25: =SUM(C23:C24) -> 0 | D25: =SUM(D23:D24) -> 0 | E25: 194713.59 | F25: 1300000 | G25: 11235677 | H25: 11235677 | I25: 0 | J25: 0 | K25: 0
A26: Biological or Cultivated Assets | C26: =SA34a!C136 -> 0 | D26: =SA34a!D136 -> 0 | E26: =SA34a!E136 -> 0 | F26: =SA34a!F136 -> 0 | G26: =SA34a!G136 -> 0 | H26: =SA34a!H136 -> 0 | I26: =SA34a!I136 -> 0 | J26: =SA34a!J136 -> 0 | K26: =SA34a!K136 -> 0
A27: Servitudes | C27: =SA34a!C140 -> 0 | D27: =SA34a!D140 -> 0 | E27: =SA34a!E140 -> 0 | F27: =SA34a!F140 -> 0 | G27: =SA34a!G140 -> 0 | H27: =SA34a!H140 -> 0 | I27: =SA34a!I140 -> 0 | J27: =SA34a!J140 -> 0 | K27: =SA34a!K140 -> 0
A28: Licences and Rights | C28: =SA34a!C141 -> 0 | D28: =SA34a!D141 -> 1109881.93 | E28: =SA34a!E141 -> 879963.84 | F28: =SA34a!F141 -> 1650000 | G28: =SA34a!G141 -> 1441548 | H28: =SA34a!H141 -> 1441548 | I28: =SA34a!I141 -> 5119000 | J28: =SA34a!J141 -> 500000 | K28: =SA34a!K141 -> 0
A29: Intangible Assets | C29: =SUM(C27:C28) -> 0 | D29: =SUM(D27:D28) -> 1109881.93 | E29: 879963.84 | F29: 1650000 | G29: 1441548 | H29: 1441548 | I29: 5119000 | J29: 500000 | K29: 0
A30: Computer Equipment | C30: =SA34a!C149 -> 0 | D30: =SA34a!D149 -> 2261696.14 | E30: =SA34a!E149 -> 1769371.94 | F30: =SA34a!F149 -> 1750000 | G30: =SA34a!G149 -> 1874042 | H30: =SA34a!H149 -> 1874042 | I30: =SA34a!I149 -> 1590000 | J30: =SA34a!J149 -> 850000 | K30: =SA34a!K149 -> 650000
A31: Furniture and Office Equipment | C31: =SA34a!C152 -> 0 | D31: =SA34a!D152 -> 1214855.28 | E31: =SA34a!E152 -> 1047697.46 | F31: =SA34a!F152 -> 350000 | G31: =SA34a!G152 -> 462956 | H31: =SA34a!H152 -> 462956 | I31: =SA34a!I152 -> 220000 | J31: =SA34a!J152 -> 0 | K31: =SA34a!K152 -> 0
A32: Machinery and Equipment | C32: =SA34a!C155 -> 0 | D32: =SA34a!D155 -> 118957.87 | E32: =SA34a!E155 -> 221489.39 | F32: =SA34a!F155 -> 1200000 | G32: =SA34a!G155 -> 1082180 | H32: =SA34a!H155 -> 1082180 | I32: =SA34a!I155 -> 1030000 | J32: =SA34a!J155 -> 600000 | K32: =SA34a!K155 -> 0
A33: Transport Assets | C33: =SA34a!C158 -> 0 | D33: =SA34a!D158 -> 1521182.95 | E33: =SA34a!E158 -> 1497170.38 | F33: =SA34a!F158 -> 0 | G33: =SA34a!G158 -> 24255026 | H33: =SA34a!H158 -> 24255026 | I33: =SA34a!I158 -> 20000000 | J33: =SA34a!J158 -> 0 | K33: =SA34a!K158 -> 0
A34: Land | C34: =SA34a!C161 -> 0 | D34: =SA34a!D161 -> 0 | E34: =SA34a!E161 -> 0 | F34: =SA34a!F161 -> 0 | G34: =SA34a!G161 -> 0 | H34: =SA34a!H161 -> 0 | I34: =SA34a!I161 -> 0 | J34: =SA34a!J161 -> 0 | K34: =SA34a!K161 -> 0
A35: Zoo's, Marine and Non-biological Animals | C35: =SA34a!C164 -> 0 | D35: =SA34a!D164 -> 0 | E35: =SA34a!E164 -> 0 | F35: =SA34a!F164 -> 0 | G35: =SA34a!G164 -> 0 | H35: =SA34a!H164 -> 0 | I35: =SA34a!I164 -> 0 | J35: =SA34a!J164 -> 0 | K35: =SA34a!K164 -> 0
A37: Total Renewal of Existing Assets | B37: 2 | C37: =C47+C50+C51+C54+C57+C58+SUM(C61:C67) -> 0 | D37: =D47+D50+D51+D54+D57+D58+SUM(D61:D67) -> 1958840 | E37: 3537989.14 | F37: 41031658 | G37: 56981009 | H37: 56981009 | I37: 22003609 | J37: 28188760 | K37: 31000000
A38: Roads Infrastructure | C38: =SA34b!C7 -> 0 | D38: =SA34b!D7 -> 0 | E38: =SA34b!E7 -> 0 | F38: =SA34b!F7 -> 0 | G38: =SA34b!G7 -> 0 | H38: =SA34b!H7 -> 0 | I38: =SA34b!I7 -> 0 | J38: =SA34b!J7 -> 0 | K38: =SA34b!K7 -> 0
A39: Storm water Infrastructure | C39: =SA34b!C12 -> 0 | D39: =SA34b!D12 -> 0 | E39: =SA34b!E12 -> 0 | F39: =SA34b!F12 -> 0 | G39: =SA34b!G12 -> 0 | H39: =SA34b!H12 -> 0 | I39: =SA34b!I12 -> 0 | J39: =SA34b!J12 -> 0 | K39: =SA34b!K12 -> 0
A40: Electrical Infrastructure | C40: =SA34b!C16 -> 0 | D40: =SA34b!D16 -> 0 | E40: =SA34b!E16 -> 0 | F40: =SA34b!F16 -> 0 | G40: =SA34b!G16 -> 0 | H40: =SA34b!H16 -> 0 | I40: =SA34b!I16 -> 0 | J40: =SA34b!J16 -> 0 | K40: =SA34b!K16 -> 0
A41: Water Supply Infrastructure | C41: =SA34b!C26 -> 0 | D41: =SA34b!D26 -> 1958840 | E41: =SA34b!E26 -> 3537989.14 | F41: =SA34b!F26 -> 0 | G41: =SA34b!G26 -> 0 | H41: =SA34b!H26 -> 0 | I41: =SA34b!I26 -> 6000000 | J41: =SA34b!J26 -> 0 | K41: =SA34b!K26 -> 0
A42: Sanitation Infrastructure | C42: =SA34b!C37 -> 0 | D42: =SA34b!D37 -> 0 | E42: =SA34b!E37 -> 0 | F42: =SA34b!F37 -> 41031658 | G42: =SA34b!G37 -> 56981009 | H42: =SA34b!H37 -> 56981009 | I42: =SA34b!I37 -> 16003609 | J42: =SA34b!J37 -> 28188760 | K42: =SA34b!K37 -> 31000000
A43: Solid Waste Infrastructure | C43: =SA34b!C44 -> 0 | D43: =SA34b!D44 -> 0 | E43: =SA34b!E44 -> 0 | F43: =SA34b!F44 -> 0 | G43: =SA34b!G44 -> 0 | H43: =SA34b!H44 -> 0 | I43: =SA34b!I44 -> 0 | J43: =SA34b!J44 -> 0 | K43: =SA34b!K44 -> 0
A44: Rail Infrastructure | C44: =SA34b!C52 -> 0 | D44: =SA34b!D52 -> 0 | E44: =SA34b!E52 -> 0 | F44: =SA34b!F52 -> 0 | G44: =SA34b!G52 -> 0 | H44: =SA34b!H52 -> 0 | I44: =SA34b!I52 -> 0 | J44: =SA34b!J52 -> 0 | K44: =SA34b!K52 -> 0
A45: Coastal Infrastructure | C45: =SA34b!C62 -> 0 | D45: =SA34b!D62 -> 0 | E45: =SA34b!E62 -> 0 | F45: =SA34b!F62 -> 0 | G45: =SA34b!G62 -> 0 | H45: =SA34b!H62 -> 0 | I45: =SA34b!I62 -> 0 | J45: =SA34b!J62 -> 0 | K45: =SA34b!K62 -> 0
A46: Information and Communication Infrastructure | C46: =SA34b!C68 -> 0 | D46: =SA34b!D68 -> 0 | E46: =SA34b!E68 -> 0 | F46: =SA34b!F68 -> 0 | G46: =SA34b!G68 -> 0 | H46: =SA34b!H68 -> 0 | I46: =SA34b!I68 -> 0 | J46: =SA34b!J68 -> 0 | K46: =SA34b!K68 -> 0
A47: Infrastructure | C47: =SUM(C38:C46) -> 0 | D47: =SUM(D38:D46) -> 1958840 | E47: 3537989.14 | F47: 41031658 | G47: 56981009 | H47: 56981009 | I47: 22003609 | J47: 28188760 | K47: 31000000
A48: Community Facilities | C48: =SA34b!C75 -> 0 | D48: =SA34b!D75 -> 0 | E48: =SA34b!E75 -> 0 | F48: =SA34b!F75 -> 0 | G48: =SA34b!G75 -> 0 | H48: =SA34b!H75 -> 0 | I48: =SA34b!I75 -> 0 | J48: =SA34b!J75 -> 0 | K48: =SA34b!K75 -> 0
A49: Sport and Recreation Facilities | C49: =SA34b!C98 -> 0 | D49: =SA34b!D98 -> 0 | E49: =SA34b!E98 -> 0 | F49: =SA34b!F98 -> 0 | G49: =SA34b!G98 -> 0 | H49: =SA34b!H98 -> 0 | I49: =SA34b!I98 -> 0 | J49: =SA34b!J98 -> 0 | K49: =SA34b!K98 -> 0
A50: Community Assets | C50: =SUM(C48:C49) -> 0 | D50: =SUM(D48:D49) -> 0 | E50: 0 | F50: 0 | G50: 0 | H50: 0 | I50: 0 | J50: 0 | K50: 0
A51: Heritage Assets | C51: =SA34b!C103 -> 0 | D51: =SA34b!D103 -> 0 | E51: =SA34b!E103 -> 0 | F51: =SA34b!F103 -> 0 | G51: =SA34b!G103 -> 0 | H51: =SA34b!H103 -> 0 | I51: =SA34b!I103 -> 0 | J51: =SA34b!J103 -> 0 | K51: =SA34b!K103 -> 0
A52: Revenue Generating | C52: =SA34b!C111 -> 0 | D52: =SA34b!D111 -> 0 | E52: =SA34b!E111 -> 0 | F52: =SA34b!F111 -> 0 | G52: =SA34b!G111 -> 0 | H52: =SA34b!H111 -> 0 | I52: =SA34b!I111 -> 0 | J52: =SA34b!J111 -> 0 | K52: =SA34b!K111 -> 0
A53: Non-revenue Generating | C53: =SA34b!C114 -> 0 | D53: =SA34b!D114 -> 0 | E53: =SA34b!E114 -> 0 | F53: =SA34b!F114 -> 0 | G53: =SA34b!G114 -> 0 | H53: =SA34b!H114 -> 0 | I53: =SA34b!I114 -> 0 | J53: =SA34b!J114 -> 0 | K53: =SA34b!K114 -> 0
A54: Investment properties | C54: =SUM(C52:C53) -> 0 | D54: =SUM(D52:D53) -> 0 | E54: 0 | F54: 0 | G54: 0 | H54: 0 | I54: 0 | J54: 0 | K54: 0
A55: Operational Buildings | C55: =SA34b!C119 -> 0 | D55: =SA34b!D119 -> 0 | E55: =SA34b!E119 -> 0 | F55: =SA34b!F119 -> 0 | G55: =SA34b!G119 -> 0 | H55: =SA34b!H119 -> 0 | I55: =SA34b!I119 -> 0 | J55: =SA34b!J119 -> 0 | K55: =SA34b!K119 -> 0
A56: Housing | C56: =SA34b!C131 -> 0 | D56: =SA34b!D131 -> 0 | E56: =SA34b!E131 -> 0 | F56: =SA34b!F131 -> 0 | G56: =SA34b!G131 -> 0 | H56: =SA34b!H131 -> 0 | I56: =SA34b!I131 -> 0 | J56: =SA34b!J131 -> 0 | K56: =SA34b!K131 -> 0
A57: Other Assets | C57: =SUM(C55:C56) -> 0 | D57: =SUM(D55:D56) -> 0 | E57: 0 | F57: 0 | G57: 0 | H57: 0 | I57: 0 | J57: 0 | K57: 0
A58: Biological or Cultivated Assets | C58: =SA34b!C136 -> 0 | D58: =SA34b!D136 -> 0 | E58: =SA34b!E136 -> 0 | F58: =SA34b!F136 -> 0 | G58: =SA34b!G136 -> 0 | H58: =SA34b!H136 -> 0 | I58: =SA34b!I136 -> 0 | J58: =SA34b!J136 -> 0 | K58: =SA34b!K136 -> 0
A59: Servitudes | C59: =SA34b!C140 -> 0 | D59: =SA34b!D140 -> 0 | E59: =SA34b!E140 -> 0 | F59: =SA34b!F140 -> 0 | G59: =SA34b!G140 -> 0 | H59: =SA34b!H140 -> 0 | I59: =SA34b!I140 -> 0 | J59: =SA34b!J140 -> 0 | K59: =SA34b!K140 -> 0
A60: Licences and Rights | C60: =SA34b!C141 -> 0 | D60: =SA34b!D141 -> 0 | E60: =SA34b!E141 -> 0 | F60: =SA34b!F141 -> 0 | G60: =SA34b!G141 -> 0 | H60: =SA34b!H141 -> 0 | I60: =SA34b!I141 -> 0 | J60: =SA34b!J141 -> 0 | K60: =SA34b!K141 -> 0
A61: Intangible Assets | C61: =SUM(C59:C60) -> 0 | D61: =SUM(D59:D60) -> 0 | E61: 0 | F61: 0 | G61: 0 | H61: 0 | I61: 0 | J61: 0 | K61: 0
A62: Computer Equipment | C62: =SA34b!C149 -> 0 | D62: =SA34b!D149 -> 0 | E62: =SA34b!E149 -> 0 | F62: =SA34b!F149 -> 0 | G62: =SA34b!G149 -> 0 | H62: =SA34b!H149 -> 0 | I62: =SA34b!I149 -> 0 | J62: =SA34b!J149 -> 0 | K62: =SA34b!K149 -> 0
A63: Furniture and Office Equipment | C63: =SA34b!C152 -> 0 | D63: =SA34b!D152 -> 0 | E63: =SA34b!E152 -> 0 | F63: =SA34b!F152 -> 0 | G63: =SA34b!G152 -> 0 | H63: =SA34b!H152 -> 0 | I63: =SA34b!I152 -> 0 | J63: =SA34b!J152 -> 0 | K63: =SA34b!K152 -> 0
A64: Machinery and Equipment | C64: =SA34b!C155 -> 0 | D64: =SA34b!D155 -> 0 | E64: =SA34b!E155 -> 0 | F64: =SA34b!F155 -> 0 | G64: =SA34b!G155 -> 0 | H64: =SA34b!H155 -> 0 | I64: =SA34b!I155 -> 0 | J64: =SA34b!J155 -> 0 | K64: =SA34b!K155 -> 0
A65: Transport Assets | C65: =SA34b!C158 -> 0 | D65: =SA34b!D158 -> 0 | E65: =SA34b!E158 -> 0 | F65: =SA34b!F158 -> 0 | G65: =SA34b!G158 -> 0 | H65: =SA34b!H158 -> 0 | I65: =SA34b!I158 -> 0 | J65: =SA34b!J158 -> 0 | K65: =SA34b!K158 -> 0
A66: Land | C66: =SA34b!C161 -> 0 | D66: =SA34b!D161 -> 0 | E66: =SA34b!E161 -> 0 | F66: =SA34b!F161 -> 0 | G66: =SA34b!G161 -> 0 | H66: =SA34b!H161 -> 0 | I66: =SA34b!I161 -> 0 | J66: =SA34b!J161 -> 0 | K66: =SA34b!K161 -> 0
A67: Zoo's, Marine and Non-biological Animals | C67: =SA34b!C164 -> 0 | D67: =SA34b!D164 -> 0 | E67: =SA34b!E164 -> 0 | F67: =SA34b!F164 -> 0 | G67: =SA34b!G164 -> 0 | H67: =SA34b!H164 -> 0 | I67: =SA34b!I164 -> 0 | J67: =SA34b!J164 -> 0 | K67: =SA34b!K164 -> 0
A69: Total Upgrading of Existing Assets | B69: 6 | C69: =C79+C82+C83+C86+C89+C90+SUM(C93:C99) -> 0 | D69: =D79+D82+D83+D86+D89+D90+SUM(D93:D99) -> 9168735.48 | E69: 23842383.52 | F69: 23000000 | G69: 12865644 | H69: 12865644 | I69: 4811901 | J69: 14361901 | K69: 10000000
A70: Roads Infrastructure | C70: =SA34e!C7 -> 0 | D70: =SA34e!D7 -> 0 | E70: =SA34e!E7 -> 0 | F70: =SA34e!F7 -> 0 | G70: =SA34e!G7 -> 0 | H70: =SA34e!H7 -> 0 | I70: =SA34e!I7 -> 0 | J70: =SA34e!J7 -> 0 | K70: =SA34e!K7 -> 0
A71: Storm water Infrastructure | C71: =SA34e!C12 -> 0 | D71: =SA34e!D12 -> 0 | E71: =SA34e!E12 -> 0 | F71: =SA34e!F12 -> 0 | G71: =SA34e!G12 -> 0 | H71: =SA34e!H12 -> 0 | I71: =SA34e!I12 -> 0 | J71: =SA34e!J12 -> 0 | K71: =SA34e!K12 -> 0
A72: Electrical Infrastructure | C72: =SA34e!C16 -> 0 | D72: =SA34e!D16 -> 0 | E72: =SA34e!E16 -> 0 | F72: =SA34e!F16 -> 0 | G72: =SA34e!G16 -> 0 | H72: =SA34e!H16 -> 0 | I72: =SA34e!I16 -> 0 | J72: =SA34e!J16 -> 0 | K72: =SA34e!K16 -> 0
A73: Water Supply Infrastructure | C73: =SA34e!C26 -> 0 | D73: =SA34e!D26 -> 9168735.48 | E73: =SA34e!E26 -> 23842383.52 | F73: =SA34e!F26 -> 23000000 | G73: =SA34e!G26 -> 12865644 | H73: =SA34e!H26 -> 12865644 | I73: =SA34e!I26 -> 450000 | J73: =SA34e!J26 -> 10000000 | K73: =SA34e!K26 -> 10000000
A74: Sanitation Infrastructure | C74: =SA34e!C37 -> 0 | D74: =SA34e!D37 -> 0 | E74: =SA34e!E37 -> 0 | F74: =SA34e!F37 -> 0 | G74: =SA34e!G37 -> 0 | H74: =SA34e!H37 -> 0 | I74: =SA34e!I37 -> 0 | J74: =SA34e!J37 -> 0 | K74: =SA34e!K37 -> 0
A75: Solid Waste Infrastructure | C75: =SA34e!C44 -> 0 | D75: =SA34e!D44 -> 0 | E75: =SA34e!E44 -> 0 | F75: =SA34e!F44 -> 0 | G75: =SA34e!G44 -> 0 | H75: =SA34e!H44 -> 0 | I75: =SA34e!I44 -> 4361901 | J75: =SA34e!J44 -> 4361901 | K75: =SA34e!K44 -> 0
A76: Rail Infrastructure | C76: =SA34e!C52 -> 0 | D76: =SA34e!D52 -> 0 | E76: =SA34e!E52 -> 0 | F76: =SA34e!F52 -> 0 | G76: =SA34e!G52 -> 0 | H76: =SA34e!H52 -> 0 | I76: =SA34e!I52 -> 0 | J76: =SA34e!J52 -> 0 | K76: =SA34e!K52 -> 0
A77: Coastal Infrastructure | C77: =SA34e!C62 -> 0 | D77: =SA34e!D62 -> 0 | E77: =SA34e!E62 -> 0 | F77: =SA34e!F62 -> 0 | G77: =SA34e!G62 -> 0 | H77: =SA34e!H62 -> 0 | I77: =SA34e!I62 -> 0 | J77: =SA34e!J62 -> 0 | K77: =SA34e!K62 -> 0
A78: Information and Communication Infrastructure | C78: =SA34e!C68 -> 0 | D78: =SA34e!D68 -> 0 | E78: =SA34e!E68 -> 0 | F78: =SA34e!F68 -> 0 | G78: =SA34e!G68 -> 0 | H78: =SA34e!H68 -> 0 | I78: =SA34e!I68 -> 0 | J78: =SA34e!J68 -> 0 | K78: =SA34e!K68 -> 0
A79: Infrastructure | C79: =SUM(C70:C78) -> 0 | D79: 9168735.48 | E79: 23842383.52 | F79: 23000000 | G79: 12865644 | H79: 12865644 | I79: 4811901 | J79: 14361901 | K79: 10000000
A80: Community Facilities | C80: =SA34e!C75 -> 0 | D80: =SA34e!D75 -> 0 | E80: =SA34e!E75 -> 0 | F80: =SA34e!F75 -> 0 | G80: =SA34e!G75 -> 0 | H80: =SA34e!H75 -> 0 | I80: =SA34e!I75 -> 0 | J80: =SA34e!J75 -> 0 | K80: =SA34e!K75 -> 0
A81: Sport and Recreation Facilities | C81: =SA34e!C98 -> 0 | D81: =SA34e!D98 -> 0 | E81: =SA34e!E98 -> 0 | F81: =SA34e!F98 -> 0 | G81: =SA34e!G98 -> 0 | H81: =SA34e!H98 -> 0 | I81: =SA34e!I98 -> 0 | J81: =SA34e!J98 -> 0 | K81: =SA34e!K98 -> 0
A82: Community Assets | C82: =SUM(C80:C81) -> 0 | D82: 0 | E82: 0 | F82: 0 | G82: 0 | H82: 0 | I82: 0 | J82: 0 | K82: 0
A83: Heritage Assets | C83: =SA34e!C103 -> 0 | D83: =SA34e!D103 -> 0 | E83: =SA34e!E103 -> 0 | F83: =SA34e!F103 -> 0 | G83: =SA34e!G103 -> 0 | H83: =SA34e!H103 -> 0 | I83: =SA34e!I103 -> 0 | J83: =SA34e!J103 -> 0 | K83: =SA34e!K103 -> 0
A84: Revenue Generating | C84: =SA34e!C111 -> 0 | D84: =SA34e!D111 -> 0 | E84: =SA34e!E111 -> 0 | F84: =SA34e!F111 -> 0 | G84: =SA34e!G111 -> 0 | H84: =SA34e!H111 -> 0 | I84: =SA34e!I111 -> 0 | J84: =SA34e!J111 -> 0 | K84: =SA34e!K111 -> 0
A85: Non-revenue Generating | C85: =SA34e!C114 -> 0 | D85: =SA34e!D114 -> 0 | E85: =SA34e!E114 -> 0 | F85: =SA34e!F114 -> 0 | G85: =SA34e!G114 -> 0 | H85: =SA34e!H114 -> 0 | I85: =SA34e!I114 -> 0 | J85: =SA34e!J114 -> 0 | K85: =SA34e!K114 -> 0
A86: Investment properties | C86: =SUM(C84:C85) -> 0 | D86: 0 | E86: 0 | F86: 0 | G86: 0 | H86: 0 | I86: 0 | J86: 0 | K86: 0
A87: Operational Buildings | C87: =SA34e!C119 -> 0 | D87: =SA34e!D119 -> 0 | E87: =SA34e!E119 -> 0 | F87: =SA34e!F119 -> 0 | G87: =SA34e!G119 -> 0 | H87: =SA34e!H119 -> 0 | I87: =SA34e!I119 -> 0 | J87: =SA34e!J119 -> 0 | K87: =SA34e!K119 -> 0
A88: Housing | C88: =SA34e!C131 -> 0 | D88: =SA34e!D131 -> 0 | E88: =SA34e!E131 -> 0 | F88: =SA34e!F131 -> 0 | G88: =SA34e!G131 -> 0 | H88: =SA34e!H131 -> 0 | I88: =SA34e!I131 -> 0 | J88: =SA34e!J131 -> 0 | K88: =SA34e!K131 -> 0
A89: Other Assets | C89: =SUM(C87:C88) -> 0 | D89: 0 | E89: 0 | F89: 0 | G89: 0 | H89: 0 | I89: 0 | J89: 0 | K89: 0
A90: Biological or Cultivated Assets | C90: =SA34e!C136 -> 0 | D90: =SA34e!D136 -> 0 | E90: =SA34e!E136 -> 0 | F90: =SA34e!F136 -> 0 | G90: =SA34e!G136 -> 0 | H90: =SA34e!H136 -> 0 | I90: =SA34e!I136 -> 0 | J90: =SA34e!J136 -> 0 | K90: =SA34e!K136 -> 0
A91: Servitudes | C91: =SA34e!C140 -> 0 | D91: =SA34e!D140 -> 0 | E91: =SA34e!E140 -> 0 | F91: =SA34e!F140 -> 0 | G91: =SA34e!G140 -> 0 | H91: =SA34e!H140 -> 0 | I91: =SA34e!I140 -> 0 | J91: =SA34e!J140 -> 0 | K91: =SA34e!K140 -> 0
A92: Licences and Rights | C92: =SA34e!C141 -> 0 | D92: =SA34e!D141 -> 0 | E92: =SA34e!E141 -> 0 | F92: =SA34e!F141 -> 0 | G92: =SA34e!G141 -> 0 | H92: =SA34e!H141 -> 0 | I92: =SA34e!I141 -> 0 | J92: =SA34e!J141 -> 0 | K92: =SA34e!K141 -> 0
A93: Intangible Assets | C93: =SUM(C91:C92) -> 0 | D93: 0 | E93: 0 | F93: 0 | G93: 0 | H93: 0 | I93: 0 | J93: 0 | K93: 0
A94: Computer Equipment | C94: =SA34e!C149 -> 0 | D94: =SA34e!D149 -> 0 | E94: =SA34e!E149 -> 0 | F94: =SA34e!F149 -> 0 | G94: =SA34e!G149 -> 0 | H94: =SA34e!H149 -> 0 | I94: =SA34e!I149 -> 0 | J94: =SA34e!J149 -> 0 | K94: =SA34e!K149 -> 0
A95: Furniture and Office Equipment | C95: =SA34e!C152 -> 0 | D95: =SA34e!D152 -> 0 | E95: =SA34e!E152 -> 0 | F95: =SA34e!F152 -> 0 | G95: =SA34e!G152 -> 0 | H95: =SA34e!H152 -> 0 | I95: =SA34e!I152 -> 0 | J95: =SA34e!J152 -> 0 | K95: =SA34e!K152 -> 0
A96: Machinery and Equipment | C96: =SA34e!C155 -> 0 | D96: =SA34e!D155 -> 0 | E96: =SA34e!E155 -> 0 | F96: =SA34e!F155 -> 0 | G96: =SA34e!G155 -> 0 | H96: =SA34e!H155 -> 0 | I96: =SA34e!I155 -> 0 | J96: =SA34e!J155 -> 0 | K96: =SA34e!K155 -> 0
A97: Transport Assets | C97: =SA34e!C158 -> 0 | D97: =SA34e!D158 -> 0 | E97: =SA34e!E158 -> 0 | F97: =SA34e!F158 -> 0 | G97: =SA34e!G158 -> 0 | H97: =SA34e!H158 -> 0 | I97: =SA34e!I158 -> 0 | J97: =SA34e!J158 -> 0 | K97: =SA34e!K158 -> 0
A98: Land | C98: =SA34e!C161 -> 0 | D98: =SA34e!D161 -> 0 | E98: =SA34e!E161 -> 0 | F98: =SA34e!F161 -> 0 | G98: =SA34e!G161 -> 0 | H98: =SA34e!H161 -> 0 | I98: =SA34e!I161 -> 0 | J98: =SA34e!J161 -> 0 | K98: =SA34e!K161 -> 0
A99: Zoo's, Marine and Non-biological Animals | C99: =SA34e!C164 -> 0 | D99: =SA34e!D164 -> 0 | E99: =SA34e!E164 -> 0 | F99: =SA34e!F164 -> 0 | G99: =SA34e!G164 -> 0 | H99: =SA34e!H164 -> 0 | I99: =SA34e!I164 -> 0 | J99: =SA34e!J164 -> 0 | K99: =SA34e!K164 -> 0
A101: Total Capital Expenditure | B101: 4 | C101: =+C5+C37+C69 -> 375258068.2 | D101: =+D5+D37+D69 -> 187343004.9 | E101: 198402955.8 | F101: 370534755 | G101: 483184126 | H101: 483184126 | I101: 296130376 | J101: 334727590 | K101: 325356000
A102: Roads Infrastructure | C102: =+C6+C38+C70 -> 0 | D102: =+D6+D38+D70 -> 0 | E102: 0 | F102: 0 | G102: 0 | H102: 0 | I102: 0 | J102: 0 | K102: 0
A103: Storm water Infrastructure | C103: =+C7+C39+C71 -> 0 | D103: 0 | E103: 0 | F103: 0 | G103: 0 | H103: 0 | I103: 0 | J103: 0 | K103: 0
A104: Electrical Infrastructure | C104: 0 | D104: 0 | E104: 0 | F104: 0 | G104: 0 | H104: 0 | I104: 0 | J104: 0 | K104: 0
A105: Water Supply Infrastructure | C105: 354168860 | D105: 180170081.3 | E105: 191843926.9 | F105: 323253097 | G105: 385598684 | H105: 385598684 | I105: 232927713 | J105: 265511240 | K105: 293706000
A106: Sanitation Infrastructure | C106: 20389208.17 | D106: 0 | E106: 0 | F106: 41031658 | G106: 56981009 | H106: 56981009 | I106: 16003609 | J106: 28188760 | K106: 31000000
A107: Solid Waste Infrastructure | C107: 0 | D107: 310000 | E107: 523217.27 | F107: 0 | G107: 0 | H107: 0 | I107: 19240054 | J107: 39077590 | K107: 0
A108: Rail Infrastructure | C108: 0 | D108: 0 | E108: 0 | F108: 0 | G108: 0 | H108: 0 | I108: 0 | J108: 0 | K108: 0
A109: Coastal Infrastructure | C109: 0 | D109: 0 | E109: 0 | F109: 0 | G109: 0 | H109: 0 | I109: 0 | J109: 0 | K109: 0
A110: Information and Communication Infrastructure | C110: 0 | D110: 0 | E110: 0 | F110: 0 | G110: 0 | H110: 0 | I110: 0 | J110: 0 | K110: 0
A111: Infrastructure | C111: =SUM(C102:C110) -> 374558068.2 | D111: =SUM(D102:D110) -> 180480081.3 | E111: 192367144.2 | F111: 364284755 | G111: 442579693 | H111: 442579693 | I111: 268171376 | J111: 332777590 | K111: 324706000
A112: Community Facilities | C112: =+C16+C48+C80 -> 0 | D112: =+D16+D48+D80 -> 636349.43 | E112: 425405 | F112: 0 | G112: 253004 | H112: 253004 | I112: 0 | J112: 0 | K112: 0
A113: Sport and Recreation Facilities | C113: =+C17+C49+C81 -> 0 | D113: =+D17+D49+D81 -> 0 | E113: 0 | F113: 0 | G113: 0 | H113: 0 | I113: 0 | J113: 0 | K113: 0
A114: Community Assets | C114: =SUM(C112:C113) -> 0 | D114: =SUM(D112:D113) -> 636349.43 | E114: 425405 | F114: 0 | G114: 253004 | H114: 253004 | I114: 0 | J114: 0 | K114: 0
A115: Heritage Assets | C115: =+C19+C51+C83 -> 700000 | D115: =+D19+D51+D83 -> 0 | E115: 0 | F115: 0 | G115: 0 | H115: 0 | I115: 0 | J115: 0 | K115: 0
A116: Revenue Generating | C116: =+C20+C52+C84 -> 0 | D116: =+D20+D52+D84 -> 0 | E116: 0 | F116: 0 | G116: 0 | H116: 0 | I116: 0 | J116: 0 | K116: 0
A117: Non-revenue Generating | C117: =+C21+C53+C85 -> 0 | D117: =+D21+D53+D85 -> 0 | E117: 0 | F117: 0 | G117: 0 | H117: 0 | I117: 0 | J117: 0 | K117: 0
A118: Investment properties | C118: =SUM(C116:C117) -> 0 | D118: =SUM(D116:D117) -> 0 | E118: 0 | F118: 0 | G118: 0 | H118: 0 | I118: 0 | J118: 0 | K118: 0
A119: Operational Buildings | C119: =+C23+C55+C87 -> 0 | D119: =+D23+D55+D87 -> 0 | E119: 194713.59 | F119: 1300000 | G119: 11235677 | H119: 11235677 | I119: 0 | J119: 0 | K119: 0
A120: Housing | C120: =+C24+C56+C88 -> 0 | D120: =+D24+D56+D88 -> 0 | E120: 0 | F120: 0 | G120: 0 | H120: 0 | I120: 0 | J120: 0 | K120: 0
A121: Other Assets | C121: =SUM(C119:C120) -> 0 | D121: 0 | E121: 194713.59 | F121: 1300000 | G121: 11235677 | H121: 11235677 | I121: 0 | J121: 0 | K121: 0
A122: Biological or Cultivated Assets | C122: =+C26+C58+C90 -> 0 | D122: =+D26+D58+D90 -> 0 | E122: 0 | F122: 0 | G122: 0 | H122: 0 | I122: 0 | J122: 0 | K122: 0
A123: Servitudes | C123: =+C27+C59+C91 -> 0 | D123: =+D27+D59+D91 -> 0 | E123: 0 | F123: 0 | G123: 0 | H123: 0 | I123: 0 | J123: 0 | K123: 0
A124: Licences and Rights | C124: =+C28+C60+C92 -> 0 | D124: =+D28+D60+D92 -> 1109881.93 | E124: 879963.84 | F124: 1650000 | G124: 1441548 | H124: 1441548 | I124: 5119000 | J124: 500000 | K124: 0
A125: Intangible Assets | C125: =SUM(C123:C124) -> 0 | D125: =SUM(D123:D124) -> 1109881.93 | E125: 879963.84 | F125: 1650000 | G125: 1441548 | H125: 1441548 | I125: 5119000 | J125: 500000 | K125: 0
A126: Computer Equipment | C126: =+C30+C62+C94 -> 0 | D126: =+D30+D62+D94 -> 2261696.14 | E126: 1769371.94 | F126: 1750000 | G126: 1874042 | H126: 1874042 | I126: 1590000 | J126: 850000 | K126: 650000
A127: Furniture and Office Equipment | C127: =+C31+C63+C95 -> 0 | D127: 1214855.28 | E127: 1047697.46 | F127: 350000 | G127: 462956 | H127: 462956 | I127: 220000 | J127: 0 | K127: 0
A128: Machinery and Equipment | C128: 0 | D128: 118957.87 | E128: 221489.39 | F128: 1200000 | G128: 1082180 | H128: 1082180 | I128: 1030000 | J128: 600000 | K128: 0
A129: Transport Assets | C129: 0 | D129: 1521182.95 | E129: 1497170.38 | F129: 0 | G129: 24255026 | H129: 24255026 | I129: 20000000 | J129: 0 | K129: 0
A130: Land | C130: 0 | D130: 0 | E130: 0 | F130: 0 | G130: 0 | H130: 0 | I130: 0 | J130: 0 | K130: 0
A131: Zoo's, Marine and Non-biological Animals | C131: 0 | D131: 0 | E131: 0 | F131: 0 | G131: 0 | H131: 0 | I131: 0 | J131: 0 | K131: 0
A132: TOTAL CAPITAL EXPENDITURE - Asset class | C132: =+C5+C37+C69 -> 375258068.2 | D132: =+D5+D37+D69 -> 187343004.9 | E132: 198402955.8 | F132: 370534755 | G132: 483184126 | H132: 483184126 | I132: 296130376 | J132: 334727590 | K132: 325356000
A134: ASSET REGISTER SUMMARY - PPE (WDV) | B134: 5 | C134: =C144+C147+C148+C151+C154+C155+C158+C159+C160+C161+C162+C163+C164 -> 2155711984 | D134: =D144+D147+D148+D151+D154+D155+D158+D159+D160+D161+D162+D163+D164 -> 1525883292 | E134: 1530519744 | F134: 1971633138 | G134: 2026875174 | H134: 2026875174 | I134: 1780613271 | J134: 1788851911 | K134: 1772564777
A135: Roads Infrastructure
A136: Storm water Infrastructure
A137: Electrical Infrastructure
A138: Water Supply Infrastructure | C138: 2022884956 | D138: 1293161125 | E138: 1107569829 | F138: 1589443310 | G138: 1627102488 | H138: 1627102488 | I138: 1274866606 | J138: 1299639813 | K138: 1320113887
A139: Sanitation Infrastructure | C139: 30948113 | D139: -3677388.45 | E139: -6015099.3 | F139: 54819937 | G139: 55445329 | H139: 55445329 | I139: 6747677 | J139: 18932828 | K139: 21744068
A140: Solid Waste Infrastructure | C140: 18448253 | D140: 14857024.95 | E140: 16221530.26 | F140: 47407025 | G140: 47822025 | H140: 47822025 | I140: 35461584 | J140: 55299120 | K140: 16221530
A141: Rail Infrastructure
A142: Coastal Infrastructure
A143: Information and Communication Infrastructure | C143: 0 | D143: 114555317.5 | E143: 297974600.6 | F143: 153945079 | G143: 153945079 | H143: 153945079 | I143: 298224602 | J143: 298224602 | K143: 298224602
A144: Infrastructure | C144: =SUM(C135:C143) -> 2072281322 | D144: =SUM(D135:D143) -> 1418896079 | E144: 1415750861 | F144: 1845615351 | G144: 1884314921 | H144: 1884314921 | I144: 1615300469 | J144: 1672096363 | K144: 1656304087
A147: Community Assets | C147: 61928418 | D147: 15317888.35 | E147: 15301657.51 | F147: 19956614 | G147: 19022004 | H147: 19022004 | I147: 15534420 | J147: 15534420 | K147: 15534420
A148: Heritage Assets | C148: 700000 | D148: 700000 | E148: 700000 | F148: 700000 | G148: 700000 | H148: 700000 | I148: 700000 | J148: 700000 | K148: 700000
A151: Investment properties
A154: Other Assets | C154: 0 | D154: 59607735.41 | E154: 18179034.31 | F154: 59654944 | G154: 69590621 | H154: 69590621 | I154: 18179037 | J154: 18179037 | K154: 18179037
A155: Biological or Cultivated Assets
A158: Intangible Assets | C158: 3453343 | D158: 4657570.6 | E158: 4591039.25 | F158: 6302329 | G158: 6003427 | H158: 6003427 | I158: 13329314 | J158: 4091314 | K158: 3091314
A159: Computer Equipment | C159: 5373863 | D159: 7174060.48 | E159: 6682211.83 | F159: 12426224 | G159: 12283689 | H159: 12283689 | I159: 7341763 | J159: 8061763 | K159: 8161763
A160: Furniture and Office Equipment | C160: 4431123 | D160: 6413801.14 | E160: 12148652.76 | F160: 1921702 | G160: 1028607 | H160: 1028607 | I160: 12293344 | J160: 12113344 | K160: 12313344
A161: Machinery and Equipment | C161: 1115269 | D161: 1969512.12 | E161: 920478.15 | F161: 18195438 | G161: 2756343 | H161: 2756343 | I161: 3215740 | J161: 3356486 | K161: 3561628
A162: Transport Assets | C162: 6428646 | D162: 11146644.97 | E162: 56245809.39 | F162: 6860536 | G162: 31175562 | H162: 31175562 | I162: 94719184 | J162: 54719184 | K162: 54719184
A163: Land
A164: Zoo's, Marine and Non-biological Animals
A165: TOTAL ASSET REGISTER SUMMARY - PPE (WDV) | B165: 5 | C165: =C144+C147+C148+C151+C154+C155+C158+C159+C160+C161+C162+C163+C164 -> 2155711984 | D165: =D144+D147+D148+D151+D154+D155+D158+D159+D160+D161+D162+D163+D164 -> 1525883292 | E165: 1530519744 | F165: 1971633138 | G165: 2026875174 | H165: 2026875174 | I165: 1780613271 | J165: 1788851911 | K165: 1772564777
A167: EXPENDITURE OTHER ITEMS | C167: =SUM(C168:C169) -> 142251677 | D167: =SUM(D168:D169) -> 228426546.7 | E167: 279394268 | F167: 243340687 | G167: 254397820 | H167: 254397820 | I167: 233704690 | J167: 291580229 | K167: 310316999
A168: Depreciation | B168: 7 | C168: =SA34d!C167 -> 62984886 | D168: =SA34d!D167 -> 69920038.49 | E168: =SA34d!E167 -> 74750879.33 | F168: =SA34d!F167 -> 102408715 | G168: =SA34d!G167 -> 101758715 | H168: =SA34d!H167 -> 101758715 | I168: =SA34d!I167 -> 89656068 | J168: =SA34d!J167 -> 97466388 | K168: =SA34d!K167 -> 105187074
A169: Repairs and Maintenance by Asset Class | B169: 3 | C169: =C179+C182+C183+C186+C189+C190+SUM(C193:C199) -> 79266791 | D169: =D179+D182+D183+D186+D189+D190+SUM(D193:D199) -> 158506508.2 | E169: 204643388.7 | F169: 140931972 | G169: 152639105 | H169: 152639105 | I169: 144048622 | J169: 194113841 | K169: 205129925
A170: Roads Infrastructure | C170: =SA34c!C7 -> 0 | D170: =SA34c!D7 -> 0 | E170: =SA34c!E7 -> 0 | F170: =SA34c!F7 -> 0 | G170: =SA34c!G7 -> 0 | H170: =SA34c!H7 -> 0 | I170: =SA34c!I7 -> 0 | J170: =SA34c!J7 -> 0 | K170: =SA34c!K7 -> 0
A171: Storm water Infrastructure | C171: =SA34c!C12 -> 0 | D171: =SA34c!D12 -> 0 | E171: =SA34c!E12 -> 0 | F171: =SA34c!F12 -> 0 | G171: =SA34c!G12 -> 0 | H171: =SA34c!H12 -> 0 | I171: =SA34c!I12 -> 0 | J171: =SA34c!J12 -> 0 | K171: =SA34c!K12 -> 0
A172: Electrical Infrastructure | C172: =SA34c!C16 -> 0 | D172: =SA34c!D16 -> 0 | E172: =SA34c!E16 -> 0 | F172: =SA34c!F16 -> 0 | G172: =SA34c!G16 -> 0 | H172: =SA34c!H16 -> 0 | I172: =SA34c!I16 -> 0 | J172: =SA34c!J16 -> 0 | K172: =SA34c!K16 -> 0
A173: Water Supply Infrastructure | C173: =SA34c!C26 -> 77198320.53 | D173: =SA34c!D26 -> 156447998.5 | E173: =SA34c!E26 -> 199231382.5 | F173: =SA34c!F26 -> 136889225 | G173: =SA34c!G26 -> 148425358 | H173: =SA34c!H26 -> 148425358 | I173: =SA34c!I26 -> 135713300 | J173: =SA34c!J26 -> 185167913 | K173: =SA34c!K26 -> 195606841
A174: Sanitation Infrastructure | C174: =SA34c!C37 -> 0 | D174: =SA34c!D37 -> 0 | E174: =SA34c!E37 -> 0 | F174: =SA34c!F37 -> 0 | G174: =SA34c!G37 -> 0 | H174: =SA34c!H37 -> 0 | I174: =SA34c!I37 -> 0 | J174: =SA34c!J37 -> 0 | K174: =SA34c!K37 -> 0
A175: Solid Waste Infrastructure | C175: =SA34c!C44 -> 0 | D175: =SA34c!D44 -> 0 | E175: =SA34c!E44 -> 0 | F175: =SA34c!F44 -> 0 | G175: =SA34c!G44 -> 0 | H175: =SA34c!H44 -> 0 | I175: =SA34c!I44 -> 0 | J175: =SA34c!J44 -> 0 | K175: =SA34c!K44 -> 0
A176: Rail Infrastructure | C176: =SA34c!C52 -> 0 | D176: =SA34c!D52 -> 0 | E176: =SA34c!E52 -> 0 | F176: =SA34c!F52 -> 0 | G176: =SA34c!G52 -> 0 | H176: =SA34c!H52 -> 0 | I176: =SA34c!I52 -> 0 | J176: =SA34c!J52 -> 0 | K176: =SA34c!K52 -> 0
A177: Coastal Infrastructure | C177: =SA34c!C62 -> 0 | D177: =SA34c!D62 -> 0 | E177: =SA34c!E62 -> 0 | F177: =SA34c!F62 -> 0 | G177: =SA34c!G62 -> 0 | H177: =SA34c!H62 -> 0 | I177: =SA34c!I62 -> 0 | J177: =SA34c!J62 -> 0 | K177: =SA34c!K62 -> 0
A178: Information and Communication Infrastructure | C178: =SA34c!C68 -> 0 | D178: =SA34c!D68 -> 0 | E178: =SA34c!E68 -> 0 | F178: =SA34c!F68 -> 0 | G178: =SA34c!G68 -> 0 | H178: =SA34c!H68 -> 0 | I178: =SA34c!I68 -> 0 | J178: =SA34c!J68 -> 0 | K178: =SA34c!K68 -> 0
A179: Infrastructure | C179: =SUM(C170:C178) -> 77198320.53 | D179: =SUM(D170:D178) -> 156447998.5 | E179: 199231382.5 | F179: 136889225 | G179: 148425358 | H179: 148425358 | I179: 135713300 | J179: 185167913 | K179: 195606841
A180: Community Facilities | C180: =SA34c!C75 -> 290359.5702 | D180: =SA34c!D75 -> 103826.68 | E180: =SA34c!E75 -> 46960.66 | F180: =SA34c!F75 -> 209527 | G180: =SA34c!G75 -> 309527 | H180: =SA34c!H75 -> 309527 | I180: =SA34c!I75 -> 193803 | J180: =SA34c!J75 -> 202768 | K180: =SA34c!K75 -> 216735
A181: Sport and Recreation Facilities | C181: =SA34c!C98 -> 0 | D181: =SA34c!D98 -> 0 | E181: =SA34c!E98 -> 0 | F181: =SA34c!F98 -> 0 | G181: =SA34c!G98 -> 0 | H181: =SA34c!H98 -> 0 | I181: =SA34c!I98 -> 0 | J181: =SA34c!J98 -> 0 | K181: =SA34c!K98 -> 0
A182: Community Assets | C182: =SUM(C180:C181) -> 290359.5702 | D182: 103826.68 | E182: 46960.66 | F182: 209527 | G182: 309527 | H182: 309527 | I182: 193803 | J182: 202768 | K182: 216735
A183: Heritage Assets | C183: =SA34c!C103 -> 0 | D183: =SA34c!D103 -> 0 | E183: =SA34c!E103 -> 0 | F183: =SA34c!F103 -> 0 | G183: =SA34c!G103 -> 0 | H183: =SA34c!H103 -> 0 | I183: =SA34c!I103 -> 0 | J183: =SA34c!J103 -> 0 | K183: =SA34c!K103 -> 0
A184: Revenue Generating | C184: =SA34c!C111 -> 0 | D184: =SA34c!D111 -> 0 | E184: =SA34c!E111 -> 0 | F184: =SA34c!F111 -> 0 | G184: =SA34c!G111 -> 0 | H184: =SA34c!H111 -> 0 | I184: =SA34c!I111 -> 0 | J184: =SA34c!J111 -> 0 | K184: =SA34c!K111 -> 0
A185: Non-revenue Generating | C185: =SA34c!C114 -> 0 | D185: =SA34c!D114 -> 0 | E185: =SA34c!E114 -> 0 | F185: =SA34c!F114 -> 0 | G185: =SA34c!G114 -> 0 | H185: =SA34c!H114 -> 0 | I185: =SA34c!I114 -> 0 | J185: =SA34c!J114 -> 0 | K185: =SA34c!K114 -> 0
A186: Investment properties | C186: =SUM(C184:C185) -> 0 | D186: 0 | E186: 0 | F186: 0 | G186: 0 | H186: 0 | I186: 0 | J186: 0 | K186: 0
A187: Operational Buildings | C187: =SA34c!C119 -> 0 | D187: =SA34c!D119 -> 0 | E187: =SA34c!E119 -> 0 | F187: =SA34c!F119 -> 0 | G187: =SA34c!G119 -> 0 | H187: =SA34c!H119 -> 0 | I187: =SA34c!I119 -> 0 | J187: =SA34c!J119 -> 0 | K187: =SA34c!K119 -> 0
A188: Housing | C188: =SA34c!C131 -> 0 | D188: =SA34c!D131 -> 0 | E188: =SA34c!E131 -> 0 | F188: =SA34c!F131 -> 0 | G188: =SA34c!G131 -> 0 | H188: =SA34c!H131 -> 0 | I188: =SA34c!I131 -> 0 | J188: =SA34c!J131 -> 0 | K188: =SA34c!K131 -> 0
A189: Other Assets | C189: =SUM(C187:C188) -> 0 | D189: 0 | E189: 0 | F189: 0 | G189: 0 | H189: 0 | I189: 0 | J189: 0 | K189: 0
A190: Biological or Cultivated Assets | C190: =SA34c!C136 -> 0 | D190: =SA34c!D136 -> 0 | E190: =SA34c!E136 -> 0 | F190: =SA34c!F136 -> 0 | G190: =SA34c!G136 -> 0 | H190: =SA34c!H136 -> 0 | I190: =SA34c!I136 -> 0 | J190: =SA34c!J136 -> 0 | K190: =SA34c!K136 -> 0
A191: Servitudes | C191: =SA34c!C140 -> 0 | D191: =SA34c!D140 -> 0 | E191: =SA34c!E140 -> 0 | F191: =SA34c!F140 -> 0 | G191: =SA34c!G140 -> 0 | H191: =SA34c!H140 -> 0 | I191: =SA34c!I140 -> 0 | J191: =SA34c!J140 -> 0 | K191: =SA34c!K140 -> 0
A192: Licences and Rights | C192: =SA34c!C141 -> 0 | D192: =SA34c!D141 -> 0 | E192: =SA34c!E141 -> 0 | F192: =SA34c!F141 -> 0 | G192: =SA34c!G141 -> 0 | H192: =SA34c!H141 -> 0 | I192: =SA34c!I141 -> 0 | J192: =SA34c!J141 -> 0 | K192: =SA34c!K141 -> 0
A193: Intangible Assets | C193: =SUM(C191:C192) -> 0 | D193: 0 | E193: 0 | F193: 0 | G193: 0 | H193: 0 | I193: 0 | J193: 0 | K193: 0
A194: Computer Equipment | C194: =SA34c!C149 -> 0 | D194: =SA34c!D149 -> 0 | E194: =SA34c!E149 -> 0 | F194: =SA34c!F149 -> 0 | G194: =SA34c!G149 -> 0 | H194: =SA34c!H149 -> 0 | I194: =SA34c!I149 -> 0 | J194: =SA34c!J149 -> 0 | K194: =SA34c!K149 -> 0
A195: Furniture and Office Equipment | C195: =SA34c!C152 -> 7256.666378 | D195: =SA34c!D152 -> 0 | E195: =SA34c!E152 -> 4995.44 | F195: =SA34c!F152 -> 0 | G195: =SA34c!G152 -> 3000 | H195: =SA34c!H152 -> 3000 | I195: =SA34c!I152 -> 0 | J195: =SA34c!J152 -> 0 | K195: =SA34c!K152 -> 0
A196: Machinery and Equipment | C196: =SA34c!C155 -> 720091.734 | D196: =SA34c!D155 -> 575784.68 | E196: =SA34c!E155 -> 1266760.55 | F196: =SA34c!F155 -> 2206332 | G196: =SA34c!G155 -> 2099332 | H196: =SA34c!H155 -> 2099332 | I196: =SA34c!I155 -> 1097217 | J196: =SA34c!J155 -> 1557097 | K196: =SA34c!K155 -> 1713123
A197: Transport Assets | C197: =SA34c!C158 -> 1050762.504 | D197: =SA34c!D158 -> 1378898.36 | E197: =SA34c!E158 -> 4093289.52 | F197: =SA34c!F158 -> 1626888 | G197: =SA34c!G158 -> 1801888 | H197: =SA34c!H158 -> 1801888 | I197: =SA34c!I158 -> 7044302 | J197: =SA34c!J158 -> 7186063 | K197: =SA34c!K158 -> 7593226
A198: Land | C198: =SA34c!C161 -> 0 | D198: =SA34c!D161 -> 0 | E198: =SA34c!E161 -> 0 | F198: =SA34c!F161 -> 0 | G198: =SA34c!G161 -> 0 | H198: =SA34c!H161 -> 0 | I198: =SA34c!I161 -> 0 | J198: =SA34c!J161 -> 0 | K198: =SA34c!K161 -> 0
A199: Zoo's, Marine and Non-biological Animals | C199: =SA34c!C164 -> 0 | D199: =SA34c!D164 -> 0 | E199: =SA34c!E164 -> 0 | F199: =SA34c!F164 -> 0 | G199: =SA34c!G164 -> 0 | H199: =SA34c!H164 -> 0 | I199: =SA34c!I164 -> 0 | J199: =SA34c!J164 -> 0 | K199: =SA34c!K164 -> 0
A201: TOTAL EXPENDITURE OTHER ITEMS | C201: =SUM(C168:C169) -> 142251677 | D201: 228426546.7 | E201: 279394268 | F201: 243340687 | G201: 254397820 | H201: 254397820 | I201: 233704690 | J201: 291580229 | K201: 310316999
A203: Renewal and upgrading of Existing Assets as % of total capex | C203: =IF(ISERROR((C37+C69)/C132),0,((C37+C69)/C132)) -> 0 | D203: =IF(ISERROR((D37+D69)/D132),0,((D37+D69)/D132)) -> 0.05939680261 | E203: 0.1380038546 | F203: 0.1728087774 | G203: 0.1445549414 | H203: 0.1445549414 | I203: 0.09055305424 | J203: 0.1271202682 | K203: 0.1260158104
A204: Renewal and upgrading of Existing Assets as % of deprecn | C204: =IF(ISERROR((C37+C69)/C168),0,((C37+C69)/C168)) -> 0 | D204: =IF(ISERROR((D37+D69)/D168),0,((D37+D69)/D168)) -> 0.159147159 | E204: 0.366288302 | F204: 0.6252559462 | G204: 0.6863948017 | H204: 0.6863948017 | I204: 0.2990930854 | J204: 0.4365675375 | K204: 0.3897817331
A205: R&M as a % of PPE | C205: =IF(ISERROR(ROUND(C169/'A6-FinPos'!C19,3)),0,(ROUND(C169/'A6-FinPos'!C19,3))) -> 0.037 | D205: =IF(ISERROR(ROUND(D169/'A6-FinPos'!D19,3)),0,(ROUND(D169/'A6-FinPos'!D19,3))) -> 0.069 | E205: =IF(ISERROR(ROUND(E169/'A6-FinPos'!E19,3)),0,(ROUND(E169/'A6-FinPos'!E19,3))) -> 0.085 | F205: =IF(ISERROR(ROUND(F169/'A6-FinPos'!F19,3)),0,(ROUND(F169/'A6-FinPos'!F19,3))) -> 0.048 | G205: =IF(ISERROR(ROUND(G169/'A6-FinPos'!G19,3)),0,(ROUND(G169/'A6-FinPos'!G19,3))) -> 0.051 | H205: =IF(ISERROR(ROUND(H169/'A6-FinPos'!H19,3)),0,(ROUND(H169/'A6-FinPos'!H19,3))) -> 0.051 | I205: =IF(ISERROR(ROUND(I169/'A6-FinPos'!J19,3)),0,(ROUND(I169/'A6-FinPos'!J19,3))) -> 0.049 | J205: =IF(ISERROR(ROUND(J169/'A6-FinPos'!K19,3)),0,(ROUND(J169/'A6-FinPos'!K19,3))) -> 0.064 | K205: =IF(ISERROR(ROUND(K169/'A6-FinPos'!L19,3)),0,(ROUND(K169/'A6-FinPos'!L19,3))) -> 0.069
A206: Renewal and upgrading and R&M as a % of PPE | C206: =IF(ISERROR(ROUND((C37+C69+C169)/C165,2)),0,(ROUND((C37+C69+C169)/C165,2))) -> 0.04 | D206: =IF(ISERROR(ROUND((D37+D69+D169)/D165,2)),0,(ROUND((D37+D69+D169)/D165,2))) -> 0.11 | E206: 0.15 | F206: 0.1 | G206: 0.11 | H206: 0.11 | I206: 0.1 | J206: 0.13 | K206: 0.14
A208: =head27a -> References
A209: 1. Detail of new assets provided in Table SA34a
A210: 2. Detail of renewal of existing assets provided in Table SA34b
A211: 3. Detail of Repairs and Maintenance by Asset Class provided in Table SA34c
A212: 4. Must reconcile to total capital expenditure on Budgeted Capital Expenditure
A213: 5. Must reconcile to 'Budgeted Financial Position' (written down value)
A214: 6. Detail of upgrading of existing assets provided in Table SA34e
A215: 7. Detail of depreciation provided in Table SA34d
A217: Check balance to A6 | C217: =C165-'A6-FinPos'!D17-'A6-FinPos'!D19-'A6-FinPos'!D20-'A6-FinPos'!D21-'A6-FinPos'!D22-C148 -> -144963772.5 | D217: =D165-'A6-FinPos'!E17-'A6-FinPos'!E19-'A6-FinPos'!E20-'A6-FinPos'!E21-'A6-FinPos'!E22-D148 -> -898798506.6 | E217: =E165-'A6-FinPos'!F17-'A6-FinPos'!F19-'A6-FinPos'!F20-'A6-FinPos'!F21-'A6-FinPos'!F22-E148 -> -1407390614 | F217: =F165-'A6-FinPos'!G17-'A6-FinPos'!G19-'A6-FinPos'!G20-'A6-FinPos'!G21-'A6-FinPos'!G22-F148 -> -1021519256 | G217: =G165-'A6-FinPos'!H17-'A6-FinPos'!H19-'A6-FinPos'!H20-'A6-FinPos'!H21-'A6-FinPos'!H22-G148 -> -966277220 | H217: =H165-'A6-FinPos'!I17-'A6-FinPos'!I19-'A6-FinPos'!I20-'A6-FinPos'!I21-'A6-FinPos'!I22-H148 -> -498223308.1 | I217: =I165-'A6-FinPos'!J17-'A6-FinPos'!J19-'A6-FinPos'!J20-'A6-FinPos'!J21-'A6-FinPos'!J22-I148 -> -1183033431 | J217: =J165-'A6-FinPos'!K17-'A6-FinPos'!K19-'A6-FinPos'!K20-'A6-FinPos'!K21-'A6-FinPos'!K22-J148 -> -1227239645 | K217: =K165-'A6-FinPos'!L17-'A6-FinPos'!L19-'A6-FinPos'!L20-'A6-FinPos'!L21-'A6-FinPos'!L22-K148 -> -1218868055

Sheet A10-SerDel
A1: =muni&" - "&Approve10 -> DC28 King Cetshwayo - Table A10 Consolidated basic service delivery measurement
A2: =desc -> Description | B2: =head27 -> Ref | C2: =head1b -> 2016/17 | D2: =head1A -> 2017/18 | E2: =Head1 -> 2018/19 | F2: =Head2 -> Current Year 2019/20 | I2: =Head3 -> 2020/21 Medium Term Revenue & Expenditure Framework
C3: =Head5A -> Outcome | D3: =Head5A -> Outcome | E3: =Head5A -> Outcome | F3: =Head6 -> Original Budget | G3: =Head7 -> Adjusted Budget | H3: =Head8 -> Full Year Forecast | I3: =Head9 -> Budget Year 2020/21 | J3: =Head10 -> Budget Year +1 2021/22 | K3: =Head11 -> Budget Year +2 2022/23
A4: Household service targets | B4: 1
A5: Water:
A6: Piped water inside dwelling | C6: ='SA9'!E67 -> 31221.2412 | D6: ='SA9'!F67 -> 40337.286 | E6: ='SA9'!G67 -> 40740.65886 | F6: ='SA9'!H67 -> 40740.65886 | G6: ='SA9'!I67 -> 40740.65886 | H6: ='SA9'!J67 -> 40740.65886 | I6: ='SA9'!K67 -> 41351.76874 | J6: ='SA9'!L67 -> 41972.04527 | K6: ='SA9'!M67 -> 42601.62595
A7: Piped water inside yard (but not in dwelling) | C7: ='SA9'!E68 -> 48419.4 | D7: ='SA9'!F68 -> 58064.875 | E7: ='SA9'!G68 -> 58645.52375 | F7: ='SA9'!H68 -> 58645.52375 | G7: ='SA9'!I68 -> 58645.52375 | H7: ='SA9'!J68 -> 58645.52375 | I7: ='SA9'!K68 -> 59525.20661 | J7: ='SA9'!L68 -> 60418.08471 | K7: ='SA9'!M68 -> 61324.35598
A8: Using public tap (at least min.service level) | B8: 2 | C8: ='SA9'!E69 -> 23179.5 | D8: ='SA9'!F69 -> 29282 | E8: ='SA9'!G69 -> 29574.82 | F8: ='SA9'!H69 -> 29574.82 | G8: ='SA9'!I69 -> 29574.82 | H8: ='SA9'!J69 -> 29574.82 | I8: ='SA9'!K69 -> 30018.4423 | J8: ='SA9'!L69 -> 30468.71893 | K8: ='SA9'!M69 -> 30925.74972
A9: Other water supply (at least min.service level) | B9: 4 | C9: ='SA9'!E70 -> 0 | D9: ='SA9'!F70 -> 0 | E9: ='SA9'!G70 -> 0 | F9: ='SA9'!H70 -> 0 | G9: ='SA9'!I70 -> 0 | H9: ='SA9'!J70 -> 0 | I9: ='SA9'!K70 -> 0 | J9: ='SA9'!L70 -> 0 | K9: ='SA9'!M70 -> 0
A10: Minimum Service Level and Above sub-total | C10: =SUM(C6:C9) -> 102820.1412 | D10: =SUM(D6:D9) -> 127684.161 | E10: 128961.0026 | F10: 128961.0026 | G10: 128961.0026 | H10: 128961.0026 | I10: 130895.4176 | J10: 132858.8489 | K10: 134851.7316
A11: Using public tap (< min.service level) | B11: 3 | C11: ='SA9'!E72 -> 10229.886 | D11: ='SA9'!F72 -> 10102.29 | E11: ='SA9'!G72 -> 10203.3129 | F11: ='SA9'!H72 -> 10203.3129 | G11: ='SA9'!I72 -> 10203.3129 | H11: ='SA9'!J72 -> 10203.3129 | I11: ='SA9'!K72 -> 10356.36259 | J11: ='SA9'!L72 -> 10511.70803 | K11: ='SA9'!M72 -> 0
A12: Other water supply (< min.service level) | B12: =B9 -> 4 | C12: ='SA9'!E73 -> 0 | D12: ='SA9'!F73 -> 0 | E12: ='SA9'!G73 -> 0 | F12: ='SA9'!H73 -> 0 | G12: ='SA9'!I73 -> 0 | H12: ='SA9'!J73 -> 0 | I12: ='SA9'!K73 -> 0 | J12: ='SA9'!L73 -> 0 | K12: ='SA9'!M73 -> 0
A13: No water supply | C13: ='SA9'!E74 -> 36691.6032 | D13: ='SA9'!F74 -> 55677.061 | E13: ='SA9'!G74 -> 56233.83161 | F13: ='SA9'!H74 -> 56233.83161 | G13: ='SA9'!I74 -> 56233.83161 | H13: ='SA9'!J74 -> 56233.83161 | I13: ='SA9'!K74 -> 57077.33908 | J13: ='SA9'!L74 -> 57933.49917 | K13: ='SA9'!M74 -> 0
A14: Below Minimum Service Level sub-total | C14: =SUM(C11:C13) -> 46921.4892 | D14: =SUM(D11:D13) -> 65779.351 | E14: 66437.14451 | F14: 66437.14451 | G14: 66437.14451 | H14: 66437.14451 | I14: 67433.70168 | J14: 68445.2072 | K14: 0
A15: Total number of households | B15: 5 | C15: =C10+C14 -> 149741.6304 | D15: =D10+D14 -> 193463.512 | E15: 195398.1471 | F15: 195398.1471 | G15: 195398.1471 | H15: 195398.1471 | I15: 198329.1193 | J15: 201304.0561 | K15: 134851.7316
A16: Sanitation/sewerage:
A17: Flush toilet (connected to sewerage) | C17: ='SA9'!E78 -> 31221.2412 | D17: ='SA9'!F78 -> 40337.286 | E17: ='SA9'!G78 -> 40740.65886 | F17: ='SA9'!H78 -> 40740.65886 | G17: ='SA9'!I78 -> 40740.65886 | H17: ='SA9'!J78 -> 40740.65886 | I17: ='SA9'!K78 -> 41351.76874 | J17: ='SA9'!L78 -> 41972.04527 | K17: ='SA9'!M78 -> 42601.62595
A18: Flush toilet (with septic tank) | C18: ='SA9'!E79 -> 4378.35 | D18: ='SA9'!F79 -> 5656.75 | E18: ='SA9'!G79 -> 5713.3175 | F18: ='SA9'!H79 -> 5713.3175 | G18: ='SA9'!I79 -> 5713.3175 | H18: ='SA9'!J79 -> 5713.3175 | I18: ='SA9'!K79 -> 5799.017263 | J18: ='SA9'!L79 -> 5886.002521 | K18: ='SA9'!M79 -> 5974.292559
A19: Chemical toilet | C19: ='SA9'!E80 -> 0 | D19: ='SA9'!F80 -> 0 | E19: ='SA9'!G80 -> 0 | F19: ='SA9'!H80 -> 0 | G19: ='SA9'!I80 -> 0 | H19: ='SA9'!J80 -> 0 | I19: ='SA9'!K80 -> 0 | J19: ='SA9'!L80 -> 0 | K19: ='SA9'!M80 -> 0
A20: Pit toilet (ventilated) | C20: ='SA9'!E81 -> 85788.8748 | D20: ='SA9'!F81 -> 97527.694 | E20: ='SA9'!G81 -> 98502.97094 | F20: ='SA9'!H81 -> 98502.97094 | G20: ='SA9'!I81 -> 98502.97094 | H20: ='SA9'!J81 -> 98502.97094 | I20: ='SA9'!K81 -> 99980.5155 | J20: ='SA9'!L81 -> 101480.2232 | K20: ='SA9'!M81 -> 103002.4266
A21: Other toilet provisions (> min.service level) | C21: ='SA9'!E82 -> 0 | D21: ='SA9'!F82 -> 0 | E21: ='SA9'!G82 -> 0 | F21: ='SA9'!H82 -> 0 | G21: ='SA9'!I82 -> 0 | H21: ='SA9'!J82 -> 0 | I21: ='SA9'!K82 -> 0 | J21: ='SA9'!L82 -> 0 | K21: ='SA9'!M82 -> 0
A22: =$A$10 -> Minimum Service Level and Above sub-total | C22: =SUM(C17:C21) -> 121388.466 | D22: =SUM(D17:D21) -> 143521.73 | E22: 144956.9473 | F22: 144956.9473 | G22: 144956.9473 | H22: 144956.9473 | I22: 147131.3015 | J22: 149338.271 | K22: 151578.3451
A23: Bucket toilet | C23: ='SA9'!E84 -> 0 | D23: ='SA9'!F84 -> 0 | E23: ='SA9'!G84 -> 0 | F23: ='SA9'!H84 -> 0 | G23: ='SA9'!I84 -> 0 | H23: ='SA9'!J84 -> 0 | I23: ='SA9'!K84 -> 0 | J23: ='SA9'!L84 -> 0 | K23: ='SA9'!M84 -> 0
A24: Other toilet provisions (< min.service level) | C24: ='SA9'!E85 -> 28353.1644 | D24: ='SA9'!F85 -> 49941.782 | E24: ='SA9'!G85 -> 50441.19982 | F24: ='SA9'!H85 -> 50441.19982 | G24: ='SA9'!I85 -> 50441.19982 | H24: ='SA9'!J85 -> 50441.19982 | I24: ='SA9'!K85 -> 51197.81782 | J24: ='SA9'!L85 -> 51965.78508 | K24: ='SA9'!M85 -> 52745.27186
A25: No toilet provisions | C25: ='SA9'!E86 -> 0 | D25: ='SA9'!F86 -> 0 | E25: ='SA9'!G86 -> 0 | F25: ='SA9'!H86 -> 0 | G25: ='SA9'!I86 -> 0 | H25: ='SA9'!J86 -> 0 | I25: ='SA9'!K86 -> 0 | J25: ='SA9'!L86 -> 0 | K25: ='SA9'!M86 -> 0
